Workbook

Sheet Title
B12: =ModelName -> PAL ACS Model | P12: Information Classification: | Q12: =+InfoClassification -> Public
B13: =+A49 -> Model Developer | E13: Regulation
B14: Structural Version | E14: =+_LU_Version -> 1
B16: Refer to the | C16: Guide | D16: below for further details
B18: Refer to HelpText for an initial model overview
B19: (Under Add-Ins Toolbar - go to Model Menu/Help/Overview)
A37: Model Guide | C37: (Refer Below)
A38: =+ModelName -> PAL ACS Model
A39: ="Version " & _LU_Version -> Version 1
A41: Overview
A42: Organisation name | D42: Powercor Australia Ltd
A43: Workbook name | D43: PAL ACS Model
A44: CP ID | L44: ID as provided by the Project Office, for models in the Quality Register.
A45: Workbook purpose | D45: Provides a bottom up build of the ACS charges
A46: Information Classification | D46: Public | L46: Note the confidentiality of this document.
A47: File name | D47: =MID(CELL("filename"),SEARCH("[",CELL("filename"))+1, SEARCH("]",CELL("filename"))-SEARCH("[",CELL("filename"))-1) -> Powercor - MOD 1.1 - PAL ACS Model - April 2015.xlsm
A48: File Location | D48: =MID(CELL("filename"),1, SEARCH("[",CELL("filename"))-1) -> S:\AER\Vic EDPR - 2016-20\Web publishing - Renamed\Powercor\Models\
A49: Model Developer | D49: Regulation | L49: Input name of the Developer of the model - as the reference for assistance for model questions and changes.
A50: Model User | D50: Powercor Australia Ltd | L50: Input name of the end user of the model - as the reference for assistance concerning the data and outputs.
A51: Data Version | D51: 1 | L51: Input description of the data in this version of the model.
A52: Structural Version | D52: 1 | L52: Input Structural Version of this model (as distinct from the data version).
A53: Description | L53: Input key changes made
A54: Risk Assessment | D54: High

Sheet Formats
A1: =Title!A38 -> PAL ACS Model | H1: Menu
A2: =MID(CELL("Filename",C1),FIND("]",CELL("Filename",C1))+1,255) -> Formats
A3: Menu
E5: Cell Format | F5: Purpose | J5: Example
E7: Blue font 10pt, orange shading | F7: Historical input | J7: Input
E9: Blue font 10pt, yellow shading | F9: Forecast input | J9: Input
E11: Blue font 10 pt, no shading | F11: Text / numbers input from a linked core model | J11: Input
E13: Black font 10 pt, no shading | F13: Formula or cell reference | J13: 100
E15: Green font 10 pt, no shading | F15: Change in formula or cell reference across row | J15: 100
E17: Red font 9 pt, no shading | F17: Check formula | J17: 100
E19: Purple font 10 pt, bold, underlined | F19: Link to another sheet | J19: Menu
E21: Grey shading | F21: Zero value
E25: Tab Colour | F25: Purpose | J25: Example
E27: Light Yellow | F27: Input sheet | J27: Inputs
E29: Mustard | F29: Import sheet from a linked core model | J29: Imports
E31: CPe-Blue | F31: Export Sheet | J31: Export
E33: Blue | F33: Output / Export Sheet | J33: Outputs
E35: Grey | F35: Calculation or cell reference sheet | J35: Calculations
E37: Clear | F37: Title, Menu & Formats Sheet | J37: Formats
E39: Red | F39: Checks Sheet | J39: Checks

Sheet Menu
A1: =Title!A38 -> PAL ACS Model
A2: =MID(CELL("Filename",C1),FIND("]",CELL("Filename",C1))+1,255) -> Menu
B6: Title | D6: ='PAL Sp Read BH'!A1 -> PAL Special Meter Reading BH | F6: ='PAL Tk 1 & half hr'!A1 -> PAL Service Truck Visit - BH additional 1 and a half hour
B8: =Formats!A2 -> Formats | D8: ='PAL Man Read BH '!A1 -> PAL Manual Meter Reading BH | F8: ='PAL Tk 2 hr'!A1 -> PAL Service Truck Visit - BH additional 2 hours
B10: =Check!A2 -> Check | D10: ='PAL Access to Mtr Data'!A1 -> PAL Customer Access to Meter Data | F10: ='PAL Serv Tk AH'!A1 -> PAL Service Truck Visit - AH
B12: =#REF! ->  | D12: ='PAL Reconn BH'!A1 -> PAL Reconnections BH | F12: ='PAL Wsd Tk BH'!A1 -> PAL Wasted Truck Visit - BH
B14: =Inputs!A2 -> Inputs | D14: ='PAL Reconn AH'!A1 -> PAL Reconnections AH | F14: ='PAL Wsd Tk AH'!A1 -> PAL Wasted Truck Visit - AH
D16: =LEFT('PAL Disc DNP BH'!A1,17) -> PAL Disconnection | F16: ='PAL Res Feeder'!A1 -> PAL Reserve Feeder Charges
D18: ='PAL Mtr Test 1ph BH'!A1 -> PAL Meter Accuracy Test - Single Phase BH | F18: ='PAL NC 1Ph (R) BH'!A1 -> PAL New Connections Single Phase BH
B20: ='PAL Reset RIN 4.2'!A2 -> PAL Reset RIN 4.2 | D20: ='PAL Mtr Test 1ph AH'!A1 -> PAL Meter Accuracy Test - Single Phase AH | F20: ='PAL NC 1Ph (R) AH'!A1 -> PAL New Connections Single Phase AH
B22: ='PAL Reset RIN 4.3'!A2 -> PAL Reset RIN 4.3 | D22: =LEFT('PAL MTest 1ph BH'!A1,42) -> PAL Meter Accuracy Test - Single Phase Add | F22: ='PAL NC Multi Ph DC (R) BH'!A1 -> PAL New Connections Multi Phase DC BH
B24: ='PAL Restet 4.4'!A2 -> PAL Restet 4.4 | D24: ='PAL Mtr Test 3ph BH'!A1 -> PAL Meter Accuracy Test - Multi Phase BH | F24: ='PAL NC 3Ph DC (R) AH'!A1 -> PAL New Connections Multi Phase DC AH
B26: ='ACS 12.1'!A2 -> ACS 12.1 | D26: ='PAL Mtr Test 3ph AH'!A1 -> PAL Meter Accuracy Test - Multi Phase AH | F26: ='PAL NC 3Ph CT (R) BH'!A1 -> PAL Multi Phase CT BH
B28: ='ACS 12.4'!A2 -> ACS 12.4 | D28: =LEFT('PAL Mtr Test ext mtr 3ph BH'!A1,41) -> PAL Meter Accuracy Test - Multi Phase Add | F28: ='PAL NC 3Ph CT (R) AH'!A1 -> PAL Multi Phase CT AH
B30: ='ACS 12.5'!A2 -> ACS 12.5 | D30: ='PAL Mtr Test CT ph BH'!A1 -> PAL Meter Accuracy Test - CT BH | F30: =LEFT('PAL NC 1Ph (NR) BH'!A1,45)&")" -> PAL New Connections Single Phase BH (Not resp)
B32: ='ACS vol'!A2 -> ACS vol | D32: ='PAL Mtr Test CT ph AH'!A1 -> PAL Meter Accuracy Test - CT AH | F32: =LEFT('PAL NC 1Ph (NR) AH'!A1,45)&")" -> PAL New Connections Single Phase AH (Not resp)
B34: =Volumes!A2 -> Volumes | D34: ='PAL Mtr Invest ph BH'!A1 -> PAL Meter Investigation - BH | F34: =LEFT('PAL NC 3Ph DC (NR) BH'!A1,47)&")" -> PAL New Connections Multi Phase DC BH (Not resp)
B36: ='2011-20 Revenue'!A2 -> 2011-20 Revenue | D36: ='PAL Mtr Invest ph AH'!A1 -> PAL Meter Investigation - AH | F36: =LEFT('PAL NC 3Ph DC (NR) AH'!A1,47)&")" -> PAL New Connections Multi Phase DC AH (Not resp)
B38: ='2015-20 rate summary'!A2 -> 2015-20 rate summary | D38: ='PAL Serv Tk BH'!A1 -> PAL Service Truck Visit - BH | F38: ='PAL NC 3Ph CT (NR) BH'!A1 -> PAL Multi Phase CT BH (Not responsible for metering)
B40: ='2011-15 rates summary'!A2 -> 2011-15 rates summary | D40: ='PAL Tk half hr'!A1 -> PAL Service Truck Visit - BH additional half hour | F40: ='PAL NC 3Ph CT (NR) AH'!A1 -> PAL Multi Phase CT AH (Not responsible for metering)
B42: ='2011-15 % split'!A2 -> 2011-15 % split | D42: ='PAL Tk 1 hr'!A1 -> PAL Service Truck Visit - BH additional 1 hour | F42: ='PAL Rem Mtr Config'!A1 -> PAL Remote Meter Reconfiguration
F44: ='PAL Rem De-en'!A1 -> PAL Remote Meter Disconnection
F46: ='PAL Rem Re-en'!A1 -> PAL Remote Re-energisation

Sheet Check
A1: =Title!A38 -> PAL ACS Model
A2: =MID(CELL("Filename",C1),FIND("]",CELL("Filename",C1))+1,255) -> Check | D2: =IF(OR(SUM(D6:D21)<1,SUM(D6:D21)>-1),"OK","ERROR") -> OK
A3: Menu
B5: Sheet Name | D5: Check
B8: ='PAL Reset RIN 3.2'!A2 -> PAL Reset RIN 3.2 | D8: ='PAL Reset RIN 3.2'!T6 -> 0
B9: ='PAL Reset RIN 4.2'!A2 -> PAL Reset RIN 4.2 | D9: ='PAL Reset RIN 4.2'!AB5 -> 5.820766091e-11
B10: ='PAL Reset RIN 4.3'!A2 -> PAL Reset RIN 4.3
B11: ='PAL Restet 4.4'!A2 -> PAL Restet 4.4
B12: ='ACS 12.4'!A2 -> ACS 12.4 | D12: ='ACS 12.4'!M6 -> 0
B13: ='ACS 12.5'!A2 -> ACS 12.5 | D13: ='ACS 12.5'!M6 -> 0
B14: ='ACS vol'!A2 -> ACS vol | D14: ='ACS vol'!M6 -> 0
B15: =Volumes!A2 -> Volumes
B16: ='2011-20 Revenue'!A2 -> 2011-20 Revenue | D16: ='2011-20 Revenue'!BU6 -> 0
B17: ='ACS 12.1'!A2 -> ACS 12.1 | D17: ='ACS 12.1'!BP4 -> -2.273736754e-13
B18: ='2015-20 rate summary'!A2 -> 2015-20 rate summary | D18: ='2015-20 rate summary'!K6 -> 0
B19: ='2011-15 rates summary'!A2 -> 2011-15 rates summary
B20: ='ACS 12.1'!A2 -> ACS 12.1 | D20: =ROUND('ACS 12.1'!BP4,0) -> 0
B21: ='2011-15 % split'!A2 -> 2011-15 % split | D21: ='2011-15 % split'!AH6 -> 0

Sheet Inputs
A1: =Title!A38 -> PAL ACS Model
A2: =MID(CELL("Filename",D1),FIND("]",CELL("Filename",D1))+1,255) -> Inputs
A3: Menu
B7: FINANCIAL INPUTS | G7: Current regulatory control period | M7: Forthcoming regulatory control period
G8: 2010 | H8: 2011 | I8: 2012 | J8: 2013 | K8: 2014 | L8: 2015 | M8: 2016 | N8: 2017 | O8: 2018 | P8: 2019 | Q8: 2020
G9: Approved | M9: Proposed
C10: CPI
D11: Sept Index old (9-month lagged) | G11: 168.6 | H11: 173.3 | I11: 179.4 | J11: 182.9951904 | K11: 186.9498998 | L11: 193.7346069 | M11: 198.7717066 | N11: 203.939771 | O11: 209.2422051 | P11: 214.6825024 | Q11: 220.2642474 | S11: Control model
D12: Sept Index new (9-month lagged) | G12: 0 | H12: 0 | I12: 99.8 | J12: 101.8 | K12: 104 | L12: 107.7743242 | M12: 0 | N12: 0 | O12: 0 | P12: 0 | Q12: 0 | S12: Control model
D13: CPI | G13: 0.01261261261 | H13: 0.02787663108 | I13: 0.03519907675 | J13: 0.02004008016 | K13: 0.02161100196 | L13: 0.03629157899 | M13: 0.026 | N13: 0.026 | O13: 0.026 | P13: 0.026 | Q13: 0.026 | S13: Control model
D14: Conversion factor to $2015 | G14: 1.149078332 | H14: 1.117914639 | I14: 1.079903048 | J14: 1.058686878 | K14: 1.036291579 | L14: 1 | M14: 0.9746588694 | N14: 0.9499599117 | O14: 0.9258868535 | P14: 0.9024238338 | Q14: 0.8795553936 | S14: Control model
D15: Conversion factor to $2006 to $2010 | G15: 1.156875834
D16: AER 2015 rate (until July) | L16: =106.4/104-1 -> 0.02307692308
C18: Real cost escalation
D19: Labour Escalation | L19: 0.02164431082 | M19: 0.01873364327 | N19: 0.01684373406 | O19: 0.01684373406 | P19: 0.01684373406 | Q19: 0.01684373406 | S19: Control model
D20: Materials Escalation | L20: 0 | M20: 0 | N20: 0 | O20: 0 | P20: 0 | Q20: 0 | S20: Control model
D21: Contracts Escalation | L21: 0.01043233083 | M21: 0.01705653021 | N21: 0.01388888889 | O21: 0.01359649123 | P21: 0.01384015595 | Q21: 0.01447368421 | S21: Control model
B25: MARGIN & OVERHEADS | M25: Forthcoming regulatory control period
M26: 2016-20
D27: Direct Overhead | M27: 0.104 | S27: 2014 overhead rate calculated from category RIN data
D28: Indirect Overhead | M28: 0.112 | S28: 2014 overhead rate calculated from category RIN data
D29: Margin | M29: 0.07 | S29: KPMG report
D30: Total Labour Overhead & Margin | M30: =(1+M27)*(1+M28)/1*(1+M29)/1-1 -> 0.31358336 | S30: Calculated
B34: X FACTOR | G34: Current regulatory control period
G35: 2010 | H35: 2011 | I35: 2012 | J35: 2013 | K35: 2014 | L35: 2015
D36: Fee based connection services | I36: -0.4159 | J36: -0.2936 | K36: -0.0018 | L36: -0.0014 | S36: X Factor excalation per the Final Decision 2011-15
D37: Other Fee based Services | I37: -0.0124 | J37: -0.0181 | K37: -0.0267 | L37: -0.01 | S37: X Factor excalation per the Final Decision 2011-15
D38: Quoted services | I38: -0.0302 | J38: -0.0222 | K38: -0.0067 | L38: -0.014 | S38: X Factor excalation per the Final Decision 2011-15
B42: CURRENT LABOUR RATES | G42: Current regulatory control period | M42: Forthcoming regulatory control period
G43: 2010 | H43: 2011 | I43: 2012 | J43: 2013 | K43: 2014 | L43: 2015 | M43: 2016 | N43: 2017 | O43: 2018 | P43: 2019 | Q43: 2020
G44: Real $2010 (ex GST) | L44: Real $2015 (ex GST)
C45: Back Office Labour Rate
D46: Back Office - Exclusive of Ohs | H46: 41.67 | I46: =ROUNDDOWN(H46*(1-I$38),2) -> 42.92 | J46: =ROUNDDOWN(I46*(1-J$38),2) -> 43.87 | K46: 44.16 | L46: =ROUNDDOWN(K46*(1-L$38)*$G$14,2) -> 51.45 | S46: Cost build up Model for ACS - AER final decision 2011-15
D47: Back Office - Inclusive of Ohs | H47: 45.34 | I47: 46.7 | J47: 47.73 | K47: 48.04 | L47: ='2011-15 rates summary'!P72 -> 55.27 | S47: Cost build up Model for ACS - AER final decision 2011-15
C49: Field labour rate exclusive of margin & overheads
D50: General Lineworker BH | H50: 97.04687056 | I50: =H50*(1-I$38) -> 99.97768605 | J50: 102.1971907 | K50: 102.8819119 | L50: =K50*(1-L$38)*$G$14 -> 119.874447 | S50: Cost build up Model for ACS - AER final decision 2011-15
D51: Design / Survey BH | H51: 92.30874181 | I51: 95.09646581 | J51: 97.20760736 | K51: 97.85889832 | L51: =K51*(1-L$38)*$G$14 -> 114.0218053 | S51: Cost build up Model for ACS - AER final decision 2011-15
D52: General Lineworker AH | H52: 107.5581995 | I52: 110.8064571 | J52: 113.2663605 | K52: 114.0252451 | L52: =K52*(1-L$38)*$G$14 -> 132.8582736 | S52: Cost build up Model for ACS - AER final decision 2011-15
D53: Design / Survey AH | H53: 108.7628085 | I53: 112.0474453 | J53: 114.5348986 | K53: 115.3022824 | L53: =K53*(1-L$38)*$G$14 -> 134.3462334 | S53: Cost build up Model for ACS - AER final decision 2011-15
C55: Field Labour rate inclusive of margin & overhead
D56: General Lineworker BH | H56: 108.76 | I56: =ROUNDDOWN(H56*(1-I$38),2) -> 112.04 | J56: 114.52 | K56: 115.28 | L56: ='2011-15 rates summary'!P68 -> 132.6 | S56: Cost build up Model for ACS - AER final decision 2011-15
D57: Design / Survey BH | H57: 103.45 | I57: 106.57 | J57: 108.93 | K57: 109.65 | L57: ='2011-15 rates summary'!P70 -> 126.13 | S57: Cost build up Model for ACS - AER final decision 2011-15
D58: General Lineworker AH | H58: 120.54 | I58: 124.18 | J58: 126.93 | K58: 127.78 | L58: ='2011-15 rates summary'!P69 -> 146.97 | S58: Cost build up Model for ACS - AER final decision 2011-15
D59: Design / Survey AH | H59: 121.89 | I59: 125.57 | J59: 128.35 | K59: 129.2 | L59: ='2011-15 rates summary'!P71 -> 148.62 | S59: Cost build up Model for ACS - AER final decision 2011-15
D61: PC Line workers, two person crew - BH | H61: 103.0381481 | I61: =H61*(1-I$38) -> 106.1499002 | J61: 108.506428 | K61: 109.2334211 | L61: =K61*(1-L$38)*$G$14 -> 127.2750059 | S61: Cost build up Model for ACS - AER final decision 2011-15
D62: PC Line workers, two person crew - AH | H62: 114.8163889 | I62: 118.2838438 | J62: 120.9097452 | K62: 121.7198405 | L62: =K62*(1-L$38)*$G$14 -> 141.8237501 | S62: Cost build up Model for ACS - AER final decision 2011-15
E64: 2006
E65: $nom
C66: Powercor not exclusively responsible for metering | E66: 50 | G66: =E66*G15 -> 57.84379172 | H66: =G66*(1+H13) -> 59.45628176 | I66: =H66*(1-I$38) -> 61.25186147 | J66: =I66*(1-J$38) -> 62.6116528 | K66: =J66*(1-K$38) -> 63.03115087 | L66: =K66*(1-L$38)*$G$14 -> 73.44171795 | S66: (refer to EDPR 2006-10 Final Decision Vol 1 s14.2.4)
B69: FORTHCOMING LABOUR RATES
G70: AH rate | H70: % | I70: 2014 rate | J70: 2014 rate
G71: as % of | H71: hours | I71: from Cat | J71: from Cat
G72: BH rate | H72: worked | I72: RIN | J72: RIN
C73: 2014 Categort RIN | I73: Nom $2014 | J73: Nom $2014
D74: Skilled Electrical Worker BH | G74: 1 | H74: 0.8026315789 | I74: 121.2715977 | J74: =I74/(H74+G75*H75) -> 117.2367293 | S74: AH rate as % of BH for PNS
D75: Skilled Electrical Worker AH | G75: 1.174376521 | H75: 0.1973684211 | J75: =J74*G75 -> 137.6800623 | S75: % hours worked by PNS
D76: Support staff (Category RIN) | G76: 1 | H76: 1 | I76: 65.47940459 | J76: =G76*H76*I76 -> 65.47940459 | S76: 2014 Cat RIN Rate: Rates as reported in 2014 Category RIN
G78: Current regulatory control period | M78: Forthcoming regulatory control period
G79: 2010 | H79: 2011 | I79: 2012 | J79: 2013 | K79: 2014 | L79: 2015 | M79: 2016 | N79: 2017 | O79: 2018 | P79: 2019 | Q79: 2020
C80: Exclusive of margin & overheads | G80: Real $2010 (ex GST) | L80: Real $2015 (ex GST)
D81: Skilled Electrical Worker BH | L81: =J74*(1+L13) -> 121.4914353 | M81: =L81*(1+M$19) -> 123.7674125 | N81: =M81*(1+N$19) -> 125.8521179 | O81: 127.9719375 | P81: 130.1274628 | Q81: 132.3192952
D82: Skilled Electrical Worker AH | L82: =J75*(1+L13) -> 142.6766892 | M82: 145.3495434 | N82: 147.7977724 | O82: 150.2872388 | P82: 152.8186371 | Q82: 155.3926736
D83: Support staff | L83: =J76*(1+L13)*(1+L$19) -> 69.32444664 | M83: 70.62314609 | N83: 71.81270358 | O83: 73.02229767 | P83: 74.25226583 | Q83: 75.50295125
B87: MATERIAL RATES | G87: Current regulatory control period | M87: Forthcoming regulatory control period
G88: 2010 | H88: 2011 | I88: 2012 | J88: 2013 | K88: 2014 | L88: 2015 | M88: 2016 | N88: 2017 | O88: 2018 | P88: 2019 | Q88: 2020
G89: Real $2010 (ex GST) | L89: Real $2015 (ex GST)
C90: Exclusive of margin & overheads
D91: Single Phase | H91: 64.65476813 | I91: 64.97804197 | J91: 64.39323959 | K91: 63.36294776 | L91: 71.42561953 | M91: =L91*(1+M$20) -> 71.42561953 | N91: =M91*(1+N$20) -> 71.42561953 | O91: =N91*(1+O$20) -> 71.42561953 | P91: =O91*(1+P$20) -> 71.42561953 | Q91: =P91*(1+Q$20) -> 71.42561953
D92: Multi DC | H92: 143.4486179 | I92: 144.165861 | J92: 142.8683683 | K92: 140.5824744 | L92: 158.47101 | M92: =L92*(1+M$20) -> 158.47101 | N92: 158.47101 | O92: 158.47101 | P92: 158.47101 | Q92: 158.47101
D93: Multi CT | H93: 280.4559124 | I93: 281.8581919 | J93: 279.3214682 | K93: 274.8523247 | L93: 309.8261408 | M93: 309.8261408 | N93: 309.8261408 | O93: 309.8261408 | P93: 309.8261408 | Q93: 309.8261408
B97: CONTRACT RATES | G97: Current regulatory control period | M97: Forthcoming regulatory control period
G98: 2010 | H98: 2011 | I98: 2012 | J98: 2013 | K98: 2014 | L98: 2015 | M98: 2016 | N98: 2017 | O98: 2018 | P98: 2019 | Q98: 2020
G99: Real $2010 (ex GST) | L99: Real $2015 (ex GST)
C100: Contract rates 2014/2015
D101: Reconnections BH | H101: 13.12 | I101: 19.68 | J101: 26.24 | K101: 26.24 | L101: 30.15181544 | M101: =L101*(1+M$21) -> 30.6661008 | N101: 31.09201886 | O101: 31.51476122 | P101: 31.95093043 | Q101: 32.41337811 | S101: $14.89 as per current contract.
D102: Reconnections AH | H102: 68.9 | I102: 103.35 | J102: 137.8 | K102: 137.8 | L102: 158.3429942 | M102: 161.0437763 | N102: 163.2804954 | O102: 165.5005372 | P102: 167.7910905 | Q102: 170.2196457 | S102: $24.15 as per current contract.
D103: Reconnections (Same day) BH | H103: 23.4 | I103: 35.1 | J103: 46.8 | K103: 46.8 | L103: 53.77686596 | M103: 54.6941127 | N103: 55.45375315 | O103: 56.20772962 | P103: 56.98565336 | Q103: 57.81044572 | S103: $14.89 as per current contract.
D104: Disconnection (incl Re-en after de-en for non-payment) BH | H104: 14.15 | I104: 21.225 | J104: 28.3 | K104: 28.3 | L104: 32.51891681 | M104: 33.0735767 | N104: 33.53293193 | O104: 33.98886214 | P104: 34.4592733 | Q104: 34.95802594 | S104: $17.65 as per current contract.
D105: Special Meter Reading BH | H105: 13.12 | I105: 19.68 | J105: 26.24 | K105: 26.24 | L105: 30.15181544 | M105: 30.6661008 | N105: 31.09201886 | O105: 31.51476122 | P105: 31.95093043 | Q105: 32.41337811 | S105: $14.89 as per current contract.
B109: CURRENT QUOTED SERVICE REVENUE
G110: Current regulatory control period | M110: Forthcoming regulatory control period
G111: 2010 | H111: 2011 | I111: 2012 | J111: 2013 | K111: 2014 | L111: 2015 | M111: 2016 | N111: 2017 | O111: 2018 | P111: 2019 | Q111: 2020
G112: Nominal $ (ex GST) | L112: Real $2015 (ex GST)
C113: Expenditure/Revenue
D114: Emergency Recoverable Works | H114: 1633977 | I114: 1676139 | J114: 1707156 | K114: 1804875 | L114: =K114*$K$14*(1+L$19) -> 1910859.78 | M114: =L114*(1+M$19) -> 1946657.145 | N114: 1979446.12 | O114: 2012787.384 | P114: =O114*(1+P$19) -> 2046690.24 | Q114: 2081164.146
D115: After hours truck by appointment | H115: 48356 | I115: 1073 | J115: 3952 | K115: 9498.47 | L115: 10056.23342 | M115: 10244.62331 | N115: 10417.18102 | O115: 10592.64525 | P115: 10771.06494 | Q115: 10952.4899
D116: Supply abolishment | H116: 1113399 | I116: 1050621 | J116: 765273 | K116: 588575.76 | L116: 623137.7503
D117: Audit Design & Construction Charge | H117: 201738 | I117: 849986 | J117: 930230 | K117: 1028166 | L117: 1088541.343 | M117: 1108933.688 | N117: 1127612.272 | O117: 1146605.473 | P117: 1165918.591 | Q117: 1185557.014
D118: Specification & Design Enquiry Charge | H118: 226278 | I118: 444568 | J118: 649774 | K118: 1694565 | L118: 1794072.222 | M118: 1827681.731 | N118: 1858466.716 | O118: 1889770.236 | P118: 1921601.023 | Q118: 1953967.959
D119: High Load Escorts | H119: 16858 | I119: 203087 | J119: 149729 | K119: 22979 | L119: 24328.35896 | M119: 24784.11776 | N119: 25201.57485 | O119: 25626.06347 | P119: 26057.70207 | Q119: 26496.61107
D120: Low Voltage Mains | H120: 74938 | I120: 316358 | J120: 348117 | K120: 460468 | L120: 487507.3238 | M120: 496640.1121 | N120: 505005.386 | O120: 513511.5625 | P120: 522161.0147 | Q120: 530956.1559
D121: Regulated Fee | H121: 0 | I121: 0 | J121: 0 | K121: 0 | L121: 0 | M121: 0 | N121: 0 | O121: 0 | P121: 0 | Q121: 0
C123: Volumes
D124: Emergency Recoverable Works | H124: 312 | I124: 263 | J124: 243 | K124: 237 | L124: =K124 -> 237 | M124: 237 | N124: 237 | O124: 237 | P124: 237 | Q124: 237
D125: After hours truck by appointment | H125: 260 | I125: 9 | J125: 16 | K125: 46.99 | L125: =K125 -> 46.99 | M125: 46.99 | N125: 46.99 | O125: 46.99 | P125: 46.99 | Q125: 46.99
D126: Supply abolishment | H126: 2794 | I126: 2546 | J126: 1631 | K126: 1200 | L126: =K126 -> 1200
D127: Audit Design & Construction Charge | H127: 125 | I127: 604 | J127: 764 | K127: 564 | L127: =K127 -> 564 | M127: 564 | N127: 564 | O127: 564 | P127: 564 | Q127: 564
D128: Specification & Design Enquiry Charge | H128: 15 | I128: 52 | J128: 100 | K128: 115 | L128: =K128 -> 115 | M128: 115 | N128: 115 | O128: 115 | P128: 115 | Q128: 115
D129: High Load Escorts | H129: 7 | I129: 23 | J129: 28 | K129: 12 | L129: =K129 -> 12 | M129: 12 | N129: 12 | O129: 12 | P129: 12 | Q129: 12
D130: Low Voltage Mains | H130: 100 | I130: 217 | J130: 230 | K130: 265 | L130: =K130 -> 265 | M130: 265 | N130: 265 | O130: 265 | P130: 265 | Q130: 265
D131: Regulated Fee | H131: 0 | I131: 0 | J131: 0 | K131: 0 | L131: =K131 -> 0 | M131: 0 | N131: 0 | O131: 0 | P131: 0 | Q131: 0
B135: CUSTOMER ESCALATION | G135: Current regulatory control period | M135: Forthcoming regulatory control period
G136: 2010 | H136: 2011 | I136: 2012 | J136: 2013 | K136: 2014 | L136: 2015 | M136: 2016 | N136: 2017 | O136: 2018 | P136: 2019 | Q136: 2020
D137: All ACS charges excluding Disconnections | H137: 0.02245719812 | I137: 0.01679242256 | J137: 0.01392205093 | K137: 0.01539181015 | L137: 0.0163163613 | M137: 0.0163163613 | N137: 0.01696745341 | O137: 0.01696745341 | P137: 0.01696745341 | Q137: 0.01696745341 | S137: Metering Volumes Model
D138: Disconnections | K138: =SUM(Volumes!AD20:AD27)/SUM(Volumes!W20:W27)-1 -> -0.3096818968 | L138: -0.2707019014 | M138: -0.2129412546 | N138: -0.2062001849 | O138: -0.0309102472 | P138: -0.03085345772 | Q138: -0.03079496796 | S138: Metering Volumes Model
B142: RESERVE FEEDER | G142: Current regulatory control period | M142: Forthcoming regulatory control period
G143: 2010 | H143: 2011 | I143: 2012 | J143: 2013 | K143: 2014 | L143: 2015 | M143: 2016 | N143: 2017 | O143: 2018 | P143: 2019 | Q143: 2020
D144: Subtransmission | J144: ='PAL Res Feeder'!$E$7 -> 0 | K144: =J144*(1-K$37) -> 0 | L144: 0 | M144: =L144*(1+M$19) -> 0 | N144: 0 | O144: 0 | P144: 0 | Q144: 0
D145: High Voltage | J145: ='PAL Res Feeder'!$E$9 -> 3.978143012 | K145: 4.084359431 | L145: 4.125203025 | M145: 4.202483107 | N145: 4.273268615 | O145: 4.345246415 | P145: 4.41843659 | Q145: 4.492859561
D146: Low Voltage | J146: ='PAL Res Feeder'!$E11 -> 8.803491429 | K146: 9.03854465 | L146: 9.128930097 | M146: 9.299948217 | N146: 9.456594071 | O146: 9.615878427 | P146: 9.777845726 | Q146: 9.942541159
G151: Current regulatory control period | M151: Forthcoming regulatory control period
B152: MANUAL READ VOLUMES | G152: 2010 | H152: 2011 | I152: 2012 | J152: 2013 | K152: 2014 | L152: 2015 | M152: 2016 | N152: 2017 | O152: 2018 | P152: 2019 | Q152: 2020
D153: No of manual reads | L153: 12154 | M153: 16206 | N153: 16206 | O153: 16206 | P153: 16206 | Q153: 16206
D154: No of requests for access to meter data | M154: 444 | N154: 1111 | O154: 2778 | P154: 6945 | Q154: 17363
B158: METER TYPE ALLOCATIONS
C160: 2014 Category RIN Analysis | K160: 2014
D161: Meter testing | E161: Meter Type 4 | K161: 0.9643298653
D162: Meter testing | E162: Meter Type 5 | K162: 0.001318169241
D163: Meter testing | E163: Meter Type 6 | K163: 0.03435196544
D164: Meter investigation | E164: Meter Type 4 | K164: 0.9643298653
D165: Meter investigation | E165: Meter Type 5 | K165: 0.001318169241
D166: Meter investigation | E166: Meter Type 6 | K166: 0.03435196544
D167: Scheduled meter reading | E167: Meter Type 5 | K167: 0.1746789186
D168: Scheduled meter reading | E168: Meter Type 6 | K168: 0.8253210814
D169: Special meter reading | E169: Meter Type 4 | K169: 0.9607326815
D170: Special meter reading | E170: Meter Type 5 | K170: 0.001268843147
D171: Special meter reading | E171: Meter Type 6 | K171: 0.03799847538

Sheet PAL Reset RIN 3.2
A1: =Title!A38 -> PAL ACS Model
A2: =MID(CELL("Filename",D1),FIND("]",CELL("Filename",D1))+1,255) -> PAL Reset RIN 3.2 | J2: =Check!D2 -> OK
A3: Menu
C6: Instructions
C7: Forecasts for opex in table 3.2.1 are to be for the opex categories that the DNSP has reported in their response to their annual reporting RIN.
E11: Standard control services | L11: Alternative control services
E12: Forecast ($0's, real December 2015) | L12: Forecast ($0's, real December 2015)
E13: 2015 | F13: 2016 | G13: 2017 | H13: 2018 | I13: 2019 | J13: 2020 | L13: 2015 | M13: 2016 | N13: 2017 | O13: 2018 | P13: 2019 | Q13: 2020
C15: TABLE 3.2.1 - OPEX CATEGORIES
C16: Table 3.2.1.1 Current opex categories and cost allocations
A17: ED_OPX3211_00001 | B17: DOPEX0101 | C17: Network Operating costs
A18: ED_OPX3211_00002 | B18: DOPEX0102 | C18: Meter data services
A19: ED_OPX3211_00003 | B19: DOPEX0103 | C19: Billing & Revenue Collection
A20: ED_OPX3211_00004 | B20: DOPEX0104 | C20: Advertising/ Marketing
A21: ED_OPX3211_00005 | B21: DOPEX0105 | C21: Customer Service
A22: ED_OPX3211_00006 | B22: DOPEX0106 | C22: Energy Planning
A23: ED_OPX3211_00007 | B23: DOPEX0107 | C23: Regulatory
A24: ED_OPX3211_00008 | B24: DOPEX0108 | C24: Regulatory Reset
A25: ED_OPX3211_00009 | B25: DOPEX0109 | C25: IT
A26: ED_OPX3211_00010 | B26: DOPEX0110 | C26: Licence Fee
A27: ED_OPX3211_00011 | B27: DOPEX0111 | C27: GSL payments
A28: ED_OPX3211_00012 | B28: DOPEX0112 | C28: Non-network alternatives costs
A29: ED_OPX3211_00013 | B29: DOPEX0113 | C29: Debt raising costs
A30: ED_OPX3211_00014 | B30: DOPEX0114 | C30: Other
A31: ED_OPX3211_00015 | B31: DOPEX0115 | C31: AMI
A32: ED_OPX3211_00016 | B32: DOPEX0116 | C32: Public Lighting
A33: ED_OPX3211_00017 | B33: DOPEX0117 | C33: Alternative control -other | L33: =SUM('ACS 12.5'!G66,'ACS 12.5'!G82)-L42 -> 18910825.67 | M33: =SUM('ACS 12.5'!H66,'ACS 12.5'!H82)-M42 -> 19283280.33 | N33: =SUM('ACS 12.5'!I66,'ACS 12.5'!I82)-N42 -> 19266070.02 | O33: =SUM('ACS 12.5'!J66,'ACS 12.5'!J82)-O42 -> 19401398.26 | P33: =SUM('ACS 12.5'!K66,'ACS 12.5'!K82)-P42 -> 19745435.45 | Q33: =SUM('ACS 12.5'!L66,'ACS 12.5'!L82)-Q42 -> 20485569.26
A34: ED_OPX3211_00018 | B34: DOPEX0118 | C34: MAINTENANCE
A35: ED_OPX3211_00019 | B35: DOPEX0119 | C35: Routine
A36: ED_OPX3211_00020 | B36: DOPEX0120 | C36: Condition based
A37: ED_OPX3211_00021 | B37: DOPEX0121 | C37: Emergency
A38: ED_OPX3211_00022 | B38: DOPEX0122 | C38: SCADA/Network Control
A39: ED_OPX3211_00023 | B39: DOPEX0123 | C39: Other - Standard Control Services (a)
A40: ED_OPX3211_00024 | B40: DOPEX0124 | C40: AMI
A41: ED_OPX3211_00025 | B41: DOPEX0125 | C41: Public Lighting
A42: ED_OPX3211_00026 | B42: DOPEX0126 | C42: Alternative control -other | L42: =(SUM('ACS 12.5'!G9:G18)+'ACS 12.5'!G31+'ACS 12.5'!G33)+('ACS 12.5'!G76+'ACS 12.5'!G75+'ACS 12.5'!G79+'ACS 12.5'!G80) -> 4524815.228 | M42: =(SUM('ACS 12.5'!H9:H18)+'ACS 12.5'!H31+'ACS 12.5'!H33)+('ACS 12.5'!H76+'ACS 12.5'!H75+'ACS 12.5'!H79+'ACS 12.5'!H80) -> 5000016.309 | N42: =(SUM('ACS 12.5'!I9:I18)+'ACS 12.5'!I31+'ACS 12.5'!I33)+('ACS 12.5'!I76+'ACS 12.5'!I75+'ACS 12.5'!I79+'ACS 12.5'!I80) -> 5153371.688 | O42: =(SUM('ACS 12.5'!J9:J18)+'ACS 12.5'!J31+'ACS 12.5'!J33)+('ACS 12.5'!J76+'ACS 12.5'!J75+'ACS 12.5'!J79+'ACS 12.5'!J80) -> 5311621.716 | P42: =(SUM('ACS 12.5'!K9:K18)+'ACS 12.5'!K31+'ACS 12.5'!K33)+('ACS 12.5'!K76+'ACS 12.5'!K75+'ACS 12.5'!K79+'ACS 12.5'!K80) -> 5480094.704 | Q42: =(SUM('ACS 12.5'!L9:L18)+'ACS 12.5'!L31+'ACS 12.5'!L33)+('ACS 12.5'!L76+'ACS 12.5'!L75+'ACS 12.5'!L79+'ACS 12.5'!L80) -> 5654046.948
A43: ED_OPX3211_00027 | B43: DOPEX0127 | C43: Negotiated services
A44: ED_OPX3211_00028 | B44: DOPEX0128 | C44: Unregulated services
A45: ED_OPX3211_00029 | B45: DOPEX0129
A46: ED_OPX3211_00030 | B46: DOPEX0130
A47: ED_OPX3211_00031 | B47: DOPEX0131
A48: ED_OPX3211_00032 | B48: DOPEX0132
A49: ED_OPX3211_00033 | B49: DOPEX0133
A50: ED_OPX3211_00034 | B50: DOPEX0134
A51: ED_OPX3211_99999 | B51: DOPEX01 | C51: Total opex | E51: =SUM(E17:E50) -> 0 | F51: 0 | G51: 0 | H51: 0 | I51: 0 | J51: 0 | L51: =SUM(L17:L50) -> 23435640.89 | M51: 24283296.64 | N51: 24419441.71 | O51: 24713019.98 | P51: 25225530.16 | Q51: 26139616.2
C54: TABLE 3.2.2 - OPEX CONSISTENCY
C55: Table 3.2.2.1 Opex consistency - current cost allocation approach
A56: ED_OPX3221_00001 | B56: DOPEX0201 | C56: Opex for network services
A57: ED_OPX3221_00002 | B57: DOPEX0202 | C57: Opex for metering
A58: ED_OPX3221_00003 | B58: DOPEX0203 | C58: Opex for connection services | L58: =SUM('ACS 12.5'!G77:G78,'ACS 12.5'!G40:G57) -> 12562988.1 | M58: =SUM('ACS 12.5'!H77:H78,'ACS 12.5'!H40:H57) -> 11524439.95 | N58: =SUM('ACS 12.5'!I77:I78,'ACS 12.5'!I40:I57) -> 11820608 | O58: =SUM('ACS 12.5'!J77:J78,'ACS 12.5'!J40:J57) -> 12125260.39 | P58: =SUM('ACS 12.5'!K77:K78,'ACS 12.5'!K40:K57) -> 12448488.88 | Q58: =SUM('ACS 12.5'!L77:L78,'ACS 12.5'!L40:L57) -> 12781157.07
A59: ED_OPX3221_00004 | B59: DOPEX0204 | C59: Opex for public lighting
A60: ED_OPX3221_00005 | B60: DOPEX0205 | C60: Opex for amounts payable for easement levy or similar direct charges on DNSP
A61: ED_OPX3221_00006 | B61: DOPEX0207 | C61: Opex for transmission connection point planning
C62: Total opex | E62: =SUM(E56:E61) -> 0 | F62: 0 | G62: 0 | H62: 0 | I62: 0 | J62: 0 | L62: =SUM(L56:L61) -> 12562988.1 | M62: 11524439.95 | N62: 11820608 | O62: 12125260.39 | P62: 12448488.88 | Q62: 12781157.07
C65: TABLE 3.2.4 - OPEX FOR HIGH VOLTAGE CUSTOMERS | F65: End user costs (not standard control services)
A66: ED_OPX324_00001 | B66: DOPEX0401 | C66: Opex for high voltage customers

Sheet PAL Reset RIN 4.2
A1: =Title!A38 -> PAL ACS Model
A2: =MID(CELL("Filename",D1),FIND("]",CELL("Filename",D1))+1,255) -> PAL Reset RIN 4.2 | J2: =Check!D2 -> OK
A3: Menu
AB5: =SUM(AB7:AB47) -> 5.820766091e-11
C7: TABLE 4.2.1 - METERING DESCRIPTOR METRIC | M7: TABLE 4.2.2 - COST METRICS
C8: <<<GROUP-ROW>>>
A10: NB: Codes in hidden column L | E10: VOLUMES (0's) | O10: EXPENDITURE ($0's, real December 2015) | U10: VOLUMES (0's)
C11: ASSET CATEGORY | D11: ASSET SUBCATEGORY | E11: 2015 | F11: 2016 | G11: 2017 | H11: 2018 | I11: 2019 | J11: 2020 | M11: SERVICE SUBCATEGORY | N11: METER TYPE | O11: 2015 | P11: 2016 | Q11: 2017 | R11: 2018 | S11: 2019 | T11: 2020 | U11: 2015 | V11: 2016 | W11: 2017 | X11: 2018 | Y11: 2019 | Z11: 2020
A12: ED_MET421_00001 | C12: Meter Type 4 | D12: Single phase meter population | L12: ED_MET422_00001 | M12: Meter purchase | N12: Meter Type 4
A13: ED_MET421_00002 | D13: Multi phase meter population | L13: ED_MET422_00002 | N13: Meter Type 5
A14: ED_MET421_00003 | D14: Current transformer connected meter population | L14: ED_MET422_00003 | N14: Meter Type 6
A15: ED_MET421_00004 | D15: Direct connect meter population | L15: ED_MET422_00004 | M15: Meter testing | N15: Meter Type 4 | O15: =Inputs!$K161*SUM('ACS 12.5'!G$11:G$18) -> 123975.554 | P15: =Inputs!$K161*SUM('ACS 12.5'!H$11:H$18) -> 160958.7602 | Q15: =Inputs!$K161*SUM('ACS 12.5'!I$11:I$18) -> 166160.3386 | R15: =Inputs!$K161*SUM('ACS 12.5'!J$11:J$18) -> 171532.7984 | S15: =Inputs!$K161*SUM('ACS 12.5'!K$11:K$18) -> 177267.9844 | T15: =Inputs!$K161*SUM('ACS 12.5'!L$11:L$18) -> 183194.926 | U15: =Inputs!$K161*SUM('ACS vol'!G$11:G$18) -> 316.6707414 | V15: =Inputs!$K161*SUM('ACS vol'!H$11:H$18) -> 321.8376557 | W15: =Inputs!$K161*SUM('ACS vol'!I$11:I$18) -> 327.0888751 | X15: =Inputs!$K161*SUM('ACS vol'!J$11:J$18) -> 332.4257754 | Y15: =Inputs!$K161*SUM('ACS vol'!K$11:K$18) -> 337.8497545 | Z15: =Inputs!$K161*SUM('ACS vol'!L$11:L$18) -> 343.3622331
A16: ED_MET421_00005 | C16: Meter Type 5 | D16: Single phase meter population | L16: ED_MET422_00005 | N16: Meter Type 5 | O16: =Inputs!$K162*SUM('ACS 12.5'!G$11:G$18) -> 169.4656235 | P16: =Inputs!$K162*SUM('ACS 12.5'!H$11:H$18) -> 220.018994 | Q16: =Inputs!$K162*SUM('ACS 12.5'!I$11:I$18) -> 227.1291757 | R16: =Inputs!$K162*SUM('ACS 12.5'!J$11:J$18) -> 234.47294 | S16: =Inputs!$K162*SUM('ACS 12.5'!K$11:K$18) -> 242.3125249 | T16: =Inputs!$K162*SUM('ACS 12.5'!L$11:L$18) -> 250.4142257 | U16: =Inputs!$K162*SUM('ACS vol'!G$11:G$18) -> 0.4328660201 | V16: =Inputs!$K162*SUM('ACS vol'!H$11:H$18) -> 0.4399288185 | W16: =Inputs!$K162*SUM('ACS vol'!I$11:I$18) -> 0.4471068561 | X16: =Inputs!$K162*SUM('ACS vol'!J$11:J$18) -> 0.4544020131 | Y16: =Inputs!$K162*SUM('ACS vol'!K$11:K$18) -> 0.4618162005 | Z16: =Inputs!$K162*SUM('ACS vol'!L$11:L$18) -> 0.4693513605
A17: ED_MET421_00006 | D17: Multi phase meter population | L17: ED_MET422_00006 | N17: Meter Type 6 | O17: =Inputs!$K163*SUM('ACS 12.5'!G$11:G$18) -> 4416.335218 | P17: =Inputs!$K163*SUM('ACS 12.5'!H$11:H$18) -> 5733.774269 | Q17: =Inputs!$K163*SUM('ACS 12.5'!I$11:I$18) -> 5919.068168 | R17: =Inputs!$K163*SUM('ACS 12.5'!J$11:J$18) -> 6110.449312 | S17: =Inputs!$K163*SUM('ACS 12.5'!K$11:K$18) -> 6314.751719 | T17: =Inputs!$K163*SUM('ACS 12.5'!L$11:L$18) -> 6525.884961 | U17: =Inputs!$K163*SUM('ACS vol'!G$11:G$18) -> 11.28064447 | V17: =Inputs!$K163*SUM('ACS vol'!H$11:H$18) -> 11.46470354 | W17: =Inputs!$K163*SUM('ACS vol'!I$11:I$18) -> 11.65176579 | X17: =Inputs!$K163*SUM('ACS vol'!J$11:J$18) -> 11.84188021 | Y17: =Inputs!$K163*SUM('ACS vol'!K$11:K$18) -> 12.0350966 | Z17: =Inputs!$K163*SUM('ACS vol'!L$11:L$18) -> 12.23146559
A18: ED_MET421_00007 | D18: Current transformer connected meter population | L18: ED_MET422_00007 | M18: Meter investigation | N18: Meter Type 4 | O18: =Inputs!$K164*SUM('ACS 12.5'!G$9:G$10) -> 130705.075 | P18: =Inputs!$K164*SUM('ACS 12.5'!H$9:H$10) -> 172915.0053 | Q18: =Inputs!$K164*SUM('ACS 12.5'!I$9:I$10) -> 178502.9643 | R18: =Inputs!$K164*SUM('ACS 12.5'!J$9:J$10) -> 184274.4981 | S18: =Inputs!$K164*SUM('ACS 12.5'!K$9:K$10) -> 190435.7019 | T18: =Inputs!$K164*SUM('ACS 12.5'!L$9:L$10) -> 196802.905 | U18: =Inputs!$K164*SUM('ACS vol'!G$9:G$10) -> 426.1481434 | V18: =Inputs!$K164*SUM('ACS vol'!H$9:H$10) -> 433.1013305 | W18: =Inputs!$K164*SUM('ACS vol'!I$9:I$10) -> 440.1679683 | X18: =Inputs!$K164*SUM('ACS vol'!J$9:J$10) -> 447.3499079 | Y18: =Inputs!$K164*SUM('ACS vol'!K$9:K$10) -> 454.6490306 | Z18: =Inputs!$K164*SUM('ACS vol'!L$9:L$10) -> 462.0672484
A19: ED_MET421_00008 | D19: Direct connect meter population | L19: ED_MET422_00008 | N19: Meter Type 5 | O19: =Inputs!$K165*SUM('ACS 12.5'!G$9:G$10) -> 178.6643925 | P19: =Inputs!$K165*SUM('ACS 12.5'!H$9:H$10) -> 236.362317 | Q19: =Inputs!$K165*SUM('ACS 12.5'!I$9:I$10) -> 244.0006532 | R19: =Inputs!$K165*SUM('ACS 12.5'!J$9:J$10) -> 251.8899227 | S19: =Inputs!$K165*SUM('ACS 12.5'!K$9:K$10) -> 260.3118431 | T19: =Inputs!$K165*SUM('ACS 12.5'!L$9:L$10) -> 269.0153497 | U19: =Inputs!$K165*SUM('ACS vol'!G$9:G$10) -> 0.5825137175 | V19: =Inputs!$K165*SUM('ACS vol'!H$9:H$10) -> 0.5920182218 | W19: =Inputs!$K165*SUM('ACS vol'!I$9:I$10) -> 0.601677805 | X19: =Inputs!$K165*SUM('ACS vol'!J$9:J$10) -> 0.6114949974 | Y19: =Inputs!$K165*SUM('ACS vol'!K$9:K$10) -> 0.6214723708 | Z19: =Inputs!$K165*SUM('ACS vol'!L$9:L$10) -> 0.6316125385
A20: ED_MET421_00009 | C20: Meter Type 6 | D20: Single phase meter population | L20: ED_MET422_00009 | N20: Meter Type 6 | O20: =Inputs!$K166*SUM('ACS 12.5'!G$9:G$10) -> 4656.058452 | P20: =Inputs!$K166*SUM('ACS 12.5'!H$9:H$10) -> 6159.687158 | Q20: =Inputs!$K166*SUM('ACS 12.5'!I$9:I$10) -> 6358.744951 | R20: =Inputs!$K166*SUM('ACS 12.5'!J$9:J$10) -> 6564.342157 | S20: =Inputs!$K166*SUM('ACS 12.5'!K$9:K$10) -> 6783.820437 | T20: =Inputs!$K166*SUM('ACS 12.5'!L$9:L$10) -> 7010.636956 | U20: =Inputs!$K166*SUM('ACS vol'!G$9:G$10) -> 15.18051739 | V20: =Inputs!$K166*SUM('ACS vol'!H$9:H$10) -> 15.4282082 | W20: =Inputs!$K166*SUM('ACS vol'!I$9:I$10) -> 15.67994042 | X20: =Inputs!$K166*SUM('ACS vol'!J$9:J$10) -> 15.93577999 | Y20: =Inputs!$K166*SUM('ACS vol'!K$9:K$10) -> 16.19579394 | Z20: =Inputs!$K166*SUM('ACS vol'!L$9:L$10) -> 16.46005036
A21: ED_MET421_00010 | D21: Multi phase meter population | L21: ED_MET422_00010 | M21: Scheduled meter reading | N21: Meter Type 4
A22: ED_MET421_00011 | D22: Current transformer connected meter population | L22: ED_MET422_00011 | N22: Meter Type 5 | O22: =Inputs!$K167*'ACS 12.5'!G$28 -> 65729.55298 | P22: =Inputs!$K167*'ACS 12.5'!H$28 -> 124975.8484 | Q22: =Inputs!$K167*'ACS 12.5'!I$28 -> 126743.957 | R22: =Inputs!$K167*'ACS 12.5'!J$28 -> 128503.361 | S22: =Inputs!$K167*'ACS 12.5'!K$28 -> 130315.8502 | T22: =Inputs!$K167*'ACS 12.5'!L$28 -> 132229.2671 | U22: =Inputs!$K167*'ACS vol'!G$28 -> 4246.095154 | V22: =Inputs!$K167*'ACS vol'!H$28 -> 11323.38622 | W22: =Inputs!$K167*'ACS vol'!I$28 -> 11323.38622 | X22: =Inputs!$K167*'ACS vol'!J$28 -> 11323.38622 | Y22: =Inputs!$K167*'ACS vol'!K$28 -> 11323.38622 | Z22: =Inputs!$K167*'ACS vol'!L$28 -> 11323.38622
A23: ED_MET421_00012 | D23: Direct connect meter population | L23: ED_MET422_00012 | N23: Meter Type 6 | O23: =Inputs!$K168*'ACS 12.5'!G$28 -> 310558.287 | P23: =Inputs!$K168*'ACS 12.5'!H$28 -> 590484.5482 | Q23: =Inputs!$K168*'ACS 12.5'!I$28 -> 598838.4886 | R23: =Inputs!$K168*'ACS 12.5'!J$28 -> 607151.3018 | S23: =Inputs!$K168*'ACS 12.5'!K$28 -> 615714.9313 | T23: =Inputs!$K168*'ACS 12.5'!L$28 -> 624755.4234 | U23: =Inputs!$K168*'ACS vol'!G$28 -> 20061.90485 | V23: =Inputs!$K168*'ACS vol'!H$28 -> 53500.61378 | W23: =Inputs!$K168*'ACS vol'!I$28 -> 53500.61378 | X23: =Inputs!$K168*'ACS vol'!J$28 -> 53500.61378 | Y23: =Inputs!$K168*'ACS vol'!K$28 -> 53500.61378 | Z23: =Inputs!$K168*'ACS vol'!L$28 -> 53500.61378
L24: ED_MET422_00013 | M24: Special meter reading | N24: Meter Type 4 | O24: =Inputs!$K169*SUM('ACS 12.5'!G$26:G$27) -> 43724.88178 | P24: =Inputs!$K169*SUM('ACS 12.5'!H$26:H$27) -> 47851.54548 | Q24: =Inputs!$K169*SUM('ACS 12.5'!I$26:I$27) -> 38624.27531 | R24: =Inputs!$K169*SUM('ACS 12.5'!J$26:J$27) -> 31257.00024 | S24: =Inputs!$K169*SUM('ACS 12.5'!K$26:K$27) -> 24948.08413 | T24: =Inputs!$K169*SUM('ACS 12.5'!L$26:L$27) -> 19923.91582 | U24: =Inputs!$K169*SUM('ACS vol'!G$26:G$27) -> 1412.302383 | V24: =Inputs!$K169*SUM('ACS vol'!H$26:H$27) -> 1111.564942 | W24: =Inputs!$K169*SUM('ACS vol'!I$26:I$27) -> 874.8669084 | X24: =Inputs!$K169*SUM('ACS vol'!J$26:J$27) -> 688.5716512 | Y24: =Inputs!$K169*SUM('ACS vol'!K$26:K$27) -> 541.9463399 | Z24: =Inputs!$K169*SUM('ACS vol'!L$26:L$27) -> 426.5436064
L25: ED_MET422_00014 | N25: Meter Type 5 | O25: =Inputs!$K170*SUM('ACS 12.5'!G$26:G$27) -> 57.74761041 | P25: =Inputs!$K170*SUM('ACS 12.5'!H$26:H$27) -> 63.19771017 | Q25: =Inputs!$K170*SUM('ACS 12.5'!I$26:I$27) -> 51.0112209 | R25: =Inputs!$K170*SUM('ACS 12.5'!J$26:J$27) -> 41.28123391 | S25: =Inputs!$K170*SUM('ACS 12.5'!K$26:K$27) -> 32.94902546 | T25: =Inputs!$K170*SUM('ACS 12.5'!L$26:L$27) -> 26.3135881 | U25: =Inputs!$K170*SUM('ACS vol'!G$26:G$27) -> 1.865232894 | V25: =Inputs!$K170*SUM('ACS vol'!H$26:H$27) -> 1.468047862 | W25: =Inputs!$K170*SUM('ACS vol'!I$26:I$27) -> 1.155439908 | X25: =Inputs!$K170*SUM('ACS vol'!J$26:J$27) -> 0.9093990844 | Y25: =Inputs!$K170*SUM('ACS vol'!K$26:K$27) -> 0.7157505024 | Z25: =Inputs!$K170*SUM('ACS vol'!L$26:L$27) -> 0.5633376924
L26: ED_MET422_00015 | N26: Meter Type 6 | O26: =Inputs!$K171*SUM('ACS 12.5'!G$26:G$27) -> 1729.387243 | P26: =Inputs!$K171*SUM('ACS 12.5'!H$26:H$27) -> 1892.603226 | Q26: =Inputs!$K171*SUM('ACS 12.5'!I$26:I$27) -> 1527.650306 | R26: =Inputs!$K171*SUM('ACS 12.5'!J$26:J$27) -> 1236.26309 | S26: =Inputs!$K171*SUM('ACS 12.5'!K$26:K$27) -> 986.7356226 | T26: =Inputs!$K171*SUM('ACS 12.5'!L$26:L$27) -> 788.0219331 | U26: =Inputs!$K171*SUM('ACS vol'!G$26:G$27) -> 55.85876109 | V26: =Inputs!$K171*SUM('ACS vol'!H$26:H$27) -> 43.96412642 | W26: =Inputs!$K171*SUM('ACS vol'!I$26:I$27) -> 34.60235018 | X26: =Inputs!$K171*SUM('ACS vol'!J$26:J$27) -> 27.23408232 | Y26: =Inputs!$K171*SUM('ACS vol'!K$26:K$27) -> 21.43482266 | Z26: =Inputs!$K171*SUM('ACS vol'!L$26:L$27) -> 16.87046463
L27: ED_MET422_00016 | M27: New meter installation | N27: Meter Type 4 | O27: =SUM('ACS 12.5'!G44:G57) -> 6949425.53 | P27: =SUM('ACS 12.5'!H44:H57) -> 8587824.528 | Q27: =SUM('ACS 12.5'!I44:I57) -> 8834529.007 | R27: =SUM('ACS 12.5'!J44:J57) -> 9088884.679 | S27: =SUM('ACS 12.5'!K44:K57) -> 9360969.265 | T27: =SUM('ACS 12.5'!L44:L57) -> 9641632.093 | U27: =SUM('ACS vol'!G44:G57) -> 15470.95239 | V27: =SUM('ACS vol'!H44:H57) -> 15723.38204 | W27: =SUM('ACS vol'!I44:I57) -> 15979.93042 | X27: =SUM('ACS vol'!J44:J57) -> 16240.66474 | Y27: =SUM('ACS vol'!K44:K57) -> 16505.65329 | Z27: =SUM('ACS vol'!L44:L57) -> 16774.96549
L28: ED_MET422_00017 | N28: Meter Type 5
L29: ED_MET422_00018 | N29: Meter Type 6
L30: ED_MET422_00019 | M30: Meter replacement | N30: Meter Type 4
L31: ED_MET422_00020 | N31: Meter Type 5
L32: ED_MET422_00021 | N32: Meter Type 6
L33: ED_MET422_00022 | M33: Meter maintenance | N33: Meter Type 4
L34: ED_MET422_00023 | N34: Meter Type 5
L35: ED_MET422_00024 | N35: Meter Type 6
L36: ED_MET422_00025 | M36: Remote meter reading | N36: Meter Type 4
L37: ED_MET422_00026 | M37: Remote meter re-configuration | N37: Meter Type 4 | O37: ='ACS 12.5'!G62 -> 344209.9077 | P37: ='ACS 12.5'!H62 -> 613770.2536 | Q37: ='ACS 12.5'!I62 -> 633604.9869 | R37: ='ACS 12.5'!J62 -> 654091.3275 | S37: ='ACS 12.5'!K62 -> 675960.8212 | T37: ='ACS 12.5'!L62 -> 698561.5198 | U37: ='ACS vol'!G62 -> 11135.80745 | V37: ='ACS vol'!H62 -> 11317.50331 | W37: ='ACS vol'!I62 -> 11502.16379 | X37: ='ACS vol'!J62 -> 11689.83725 | Y37: ='ACS vol'!K62 -> 11880.57285 | Z37: ='ACS vol'!L62 -> 12074.42057 | AE37: =O37/U37 -> 30.91018852 | AF37: =P37/V37 -> 54.23194821 | AG37: =Q37/W37 -> 55.08572114 | AH37: =R37/X37 -> 55.95384382 | AI37: =S37/Y37 -> 56.89631549 | AJ37: =T37/Z37 -> 57.85466189
L38: ED_MET422_00027 | M38: Other metering | N38: Meter Type 4 | O38: ='ACS 12.5'!G29 -> 0 | P38: ='ACS 12.5'!H29 -> 27677.35722 | Q38: ='ACS 12.5'!I29 -> 57545.14803 | R38: ='ACS 12.5'!J29 -> 133234.0955 | S38: ='ACS 12.5'!K29 -> 338695.638 | T38: ='ACS 12.5'!L29 -> 861026.1381
L39: ED_MET422_00028 | N39: Meter Type 5
L40: ED_MET422_00029 | N40: Meter Type 6
L41: ED_MET422_00030 | N41: Meter Type 7
L42: ED_MET422_00031 | M42: IT infrastructure capex | N42: Meter Type 4
L43: ED_MET422_00032 | M43: IT infrastructure opex | N43: Meter Type 4
L44: ED_MET422_00033 | M44: Communications infrastructure capex | N44: Meter Type 4
L45: ED_MET422_00034 | M45: Communications infrastructure opex | N45: Meter Type 4
O47: =SUM(O12:O45)+SUM('PAL Reset RIN 4.3'!E11:E23)-'2011-20 Revenue'!AK67 -> 0 | P47: =SUM(P12:P45)+SUM('PAL Reset RIN 4.3'!F11:F23)-'2011-20 Revenue'!AR67 -> 0 | Q47: =SUM(Q12:Q45)+SUM('PAL Reset RIN 4.3'!G11:G23)-'2011-20 Revenue'!AY67 -> 0 | R47: =SUM(R12:R45)+SUM('PAL Reset RIN 4.3'!H11:H23)-'2011-20 Revenue'!BF67 -> 0 | S47: =SUM(S12:S45)+SUM('PAL Reset RIN 4.3'!I11:I23)-'2011-20 Revenue'!BM67 -> 0 | T47: =SUM(T12:T45)+SUM('PAL Reset RIN 4.3'!J11:J23)-'2011-20 Revenue'!BT67 -> 0 | U47: =SUM(U12:U45)+SUM('PAL Reset RIN 4.3'!K11:K23)-SUM('ACS vol'!G9:G65)+'ACS vol'!G29 -> -5.820766091e-11 | V47: =SUM(V12:V45)+SUM('PAL Reset RIN 4.3'!L11:L23)-SUM('ACS vol'!H9:H65)+'ACS vol'!H29 -> 5.820766091e-11 | W47: =SUM(W12:W45)+SUM('PAL Reset RIN 4.3'!M11:M23)-SUM('ACS vol'!I9:I65)+'ACS vol'!I29 -> 0 | X47: =SUM(X12:X45)+SUM('PAL Reset RIN 4.3'!N11:N23)-SUM('ACS vol'!J9:J65)+'ACS vol'!J29 -> 5.820766091e-11 | Y47: =SUM(Y12:Y45)+SUM('PAL Reset RIN 4.3'!O11:O23)-SUM('ACS vol'!K9:K65)+'ACS vol'!K29 -> 0 | Z47: =SUM(Z12:Z45)+SUM('PAL Reset RIN 4.3'!P11:P23)-SUM('ACS vol'!L9:L65)+'ACS vol'!L29 -> 0 | AB47: =SUM(O47:Z47) -> 5.820766091e-11

Sheet PAL Reset RIN 4.3
A1: =Title!A38 -> PAL ACS Model
A2: =MID(CELL("Filename",D1),FIND("]",CELL("Filename",D1))+1,255) -> PAL Reset RIN 4.3 | J2: =Check!D2 -> OK
A3: Menu
C6: TABLE 4.3.1 - COST METRICS FOR FEE-BASED SERVICES
C9: SERVICE | D9: SERVICE SUBCATEGORY | E9: EXPENDITURE ($0's, real December 2015) | K9: VOLUMES (0's)
E10: 2015 | F10: 2016 | G10: 2017 | H10: 2018 | I10: 2019 | J10: 2020 | K10: 2015 | L10: 2016 | M10: 2017 | N10: 2018 | O10: 2019 | P10: 2020
A11: ED_FEE431_00001 | C11: Common Fee-Based Services | D11: Energisation
A12: ED_FEE431_00002 | C12: Common Fee-Based Services | D12: De-energisation | E12: =SUM('ACS 12.5'!G20:G22) -> 1404293.561 | F12: =SUM('ACS 12.5'!H20:H22) -> 1483137.222 | G12: =SUM('ACS 12.5'!I20:I22) -> 1197492.017 | H12: =SUM('ACS 12.5'!J20:J22) -> 969391.8945 | I12: =SUM('ACS 12.5'!K20:K22) -> 773960.6403 | J12: =SUM('ACS 12.5'!L20:L22) -> 618242.4071 | K12: =SUM('ACS vol'!G20:G22) -> 22191.06195 | L12: =SUM('ACS vol'!H20:H22) -> 17465.66937 | M12: =SUM('ACS vol'!I20:I22) -> 13746.50782 | N12: =SUM('ACS vol'!J20:J22) -> 10819.3092 | O12: =SUM('ACS vol'!K20:K22) -> 8515.431926 | P12: =SUM('ACS vol'!L20:L22) -> 6702.145168
A13: ED_FEE431_00003 | C13: Common Fee-Based Services | D13: Re-energisation | E13: =SUM('ACS 12.5'!G23:G25) -> 865895.2372 | F13: =SUM('ACS 12.5'!H23:H25) -> 913697.7241 | G13: =SUM('ACS 12.5'!I23:I25) -> 737728.8946 | H13: =SUM('ACS 12.5'!J23:J25) -> 597209.639 | I13: =SUM('ACS 12.5'!K23:K25) -> 476814.3512 | J13: =SUM('ACS 12.5'!L23:L25) -> 380883.0266 | K13: =SUM('ACS vol'!G23:G25) -> 35578.22902 | L13: =SUM('ACS vol'!H23:H25) -> 28002.15629 | M13: =SUM('ACS vol'!I23:I25) -> 22039.342 | N13: =SUM('ACS vol'!J23:J25) -> 17346.25686 | O13: =SUM('ACS vol'!K23:K25) -> 13652.52316 | P13: =SUM('ACS vol'!L23:L25) -> 10745.33775
A14: ED_FEE431_00004 | C14: Miscellaneous Fee-Based Services | D14: PV INSTALLATION | E14: =SUM('ACS 12.5'!G40:G41) -> 2730949.008 | K14: =SUM('ACS vol'!G40:G41) -> 11213.74352
A15: ED_FEE431_00005 | C15: Miscellaneous Fee-Based Services | D15: REMOTE DE - ENERGISATION | E15: ='ACS 12.5'!G64 -> 289017.3036 | F15: ='ACS 12.5'!H64 -> 515354.787 | G15: ='ACS 12.5'!I64 -> 532009.1047 | H15: ='ACS 12.5'!J64 -> 549210.5472 | I15: ='ACS 12.5'!K64 -> 567573.36 | J15: ='ACS 12.5'!L64 -> 586550.132 | K15: ='ACS vol'!G64 -> 49584.54129 | L15: ='ACS vol'!H64 -> 50393.58058 | M15: ='ACS vol'!I64 -> 51215.82045 | N15: ='ACS vol'!J64 -> 52051.47628 | O15: ='ACS vol'!K64 -> 52900.76697 | P15: ='ACS vol'!L64 -> 53763.915
A16: ED_FEE431_00006 | C16: Miscellaneous Fee-Based Services | D16: REMOTE RE - ENERGISATION | E16: ='ACS 12.5'!G63 -> 217211.1721 | F16: ='ACS 12.5'!H63 -> 387315.2782 | G16: ='ACS 12.5'!I63 -> 399831.8432 | H16: ='ACS 12.5'!J63 -> 412759.6002 | I16: ='ACS 12.5'!K63 -> 426560.186 | J16: ='ACS 12.5'!L63 -> 440822.1933 | K16: ='ACS vol'!G63 -> 37265.29934 | L16: ='ACS vol'!H63 -> 37873.33343 | M16: ='ACS vol'!I63 -> 38491.28842 | N16: ='ACS vol'!J63 -> 39119.32619 | O16: ='ACS vol'!K63 -> 39757.61125 | P16: ='ACS vol'!L63 -> 40406.3108
A17: ED_FEE431_00007 | C17: Miscellaneous Fee-Based Services | D17: WASTED TRUCK VISITS | E17: =SUM('ACS 12.5'!G33:G34) -> 130731.2703 | F17: =SUM('ACS 12.5'!H33:H34) -> 177898.8756 | G17: =SUM('ACS 12.5'!I33:I34) -> 183647.8944 | H17: =SUM('ACS 12.5'!J33:J34) -> 189585.7791 | I17: =SUM('ACS 12.5'!K33:K34) -> 195924.5651 | J17: =SUM('ACS 12.5'!L33:L34) -> 202475.288 | K17: =SUM('ACS vol'!G33:G34) -> 514.003397 | L17: =SUM('ACS vol'!H33:H34) -> 522.3900622 | M17: =SUM('ACS vol'!I33:I34) -> 530.9135672 | N17: =SUM('ACS vol'!J33:J34) -> 539.5761447 | O17: =SUM('ACS vol'!K33:K34) -> 548.3800641 | P17: =SUM('ACS vol'!L33:L34) -> 557.3276313
A18: ED_FEE431_00008 | C18: Miscellaneous Fee-Based Services | D18: SERVICE TRUCK VISITS | E18: =SUM('ACS 12.5'!G31:G32) -> 3562273.363 | F18: =SUM('ACS 12.5'!H31:H32) -> 4768502.156 | G18: =SUM('ACS 12.5'!I31:I32) -> 4922602.111 | H18: =SUM('ACS 12.5'!J31:J32) -> 5081764.533 | I18: =SUM('ACS 12.5'!K31:K32) -> 5251672.942 | J18: =SUM('ACS 12.5'!L31:L32) -> 5427262.227 | K18: =SUM('ACS vol'!G31:G32) -> 7379.641107 | L18: =SUM('ACS vol'!H31:H32) -> 7500.049998 | M18: =SUM('ACS vol'!I31:I32) -> 7622.423523 | N18: =SUM('ACS vol'!J31:J32) -> 7746.793739 | O18: =SUM('ACS vol'!K31:K32) -> 7873.193225 | P18: =SUM('ACS vol'!L31:L32) -> 8001.65509
A19: ED_FEE431_00009 | C19: Miscellaneous Fee-Based Services | D19: RESERVE FEEDER | E19: =SUM('ACS 12.5'!G36:G38) -> 317230.5192 | F19: =SUM('ACS 12.5'!H36:H38) -> 281685.6863 | G19: =SUM('ACS 12.5'!I36:I38) -> 291103.8258 | H19: =SUM('ACS 12.5'!J36:J38) -> 300836.86 | I19: =SUM('ACS 12.5'!K36:K38) -> 310895.3175 | J19: =SUM('ACS 12.5'!L36:L38) -> 321290.0788 | K19: =SUM('ACS vol'!G36:G38) -> 65952.2909 | L19: =SUM('ACS vol'!H36:H38) -> 67028.3923 | M19: =SUM('ACS vol'!I36:I38) -> 68122.05177 | N19: =SUM('ACS vol'!J36:J38) -> 69233.55578 | O19: =SUM('ACS vol'!K36:K38) -> 70363.19549 | P19: =SUM('ACS vol'!L36:L38) -> 71511.26681
A20: ED_FEE431_00015 | C20: Miscellaneous Fee-Based Services
A21: ED_FEE431_00016 | C21: Miscellaneous Fee-Based Services
A22: ED_FEE431_00017 | C22: Miscellaneous Fee-Based Services
A23: ED_FEE431_00471 | C23: Miscellaneous Fee-Based Services

Sheet PAL Restet 4.4
A1: =Title!A38 -> PAL ACS Model
A2: =MID(CELL("Filename",D1),FIND("]",CELL("Filename",D1))+1,255) -> PAL Restet 4.4 | J2: =Check!D2 -> OK
A3: Menu
C6: TABLE 4.4.1 - COST METRICS FOR QUOTED SERVICES
C10: SERVICE | D10: SERVICE SUBCATEGORY | E10: EXPENDITURE ($0's, real December 2015) | K10: VOLUMES (0's)
E11: 2015 | F11: 2016 | G11: 2017 | H11: 2018 | I11: 2019 | J11: 2020 | K11: 2015 | L11: 2016 | M11: 2017 | N11: 2018 | O11: 2019 | P11: 2020
A12: ED_QUO441_00001
A13: ED_QUO441_00002 | C13: Emergency Recoverable Works | E13: ='ACS 12.5'!G74 -> 1910859.78 | F13: ='ACS 12.5'!H74 -> 1946657.145 | G13: ='ACS 12.5'!I74 -> 1979446.12 | H13: ='ACS 12.5'!J74 -> 2012787.384 | I13: ='ACS 12.5'!K74 -> 2046690.24 | J13: ='ACS 12.5'!L74 -> 2081164.146 | K13: ='ACS vol'!G74 -> 237 | L13: ='ACS vol'!H74 -> 237 | M13: ='ACS vol'!I74 -> 237 | N13: ='ACS vol'!J74 -> 237 | O13: ='ACS vol'!K74 -> 237 | P13: ='ACS vol'!L74 -> 237
A14: ED_QUO441_00003 | C14: After hours truck by appointment | E14: ='ACS 12.5'!G75 -> 10056.23342 | F14: ='ACS 12.5'!H75 -> 10244.62331 | G14: ='ACS 12.5'!I75 -> 10417.18102 | H14: ='ACS 12.5'!J75 -> 10592.64525 | I14: ='ACS 12.5'!K75 -> 10771.06494 | J14: ='ACS 12.5'!L75 -> 10952.4899 | K14: ='ACS vol'!G75 -> 46.99 | L14: ='ACS vol'!H75 -> 46.99 | M14: ='ACS vol'!I75 -> 46.99 | N14: ='ACS vol'!J75 -> 46.99 | O14: ='ACS vol'!K75 -> 46.99 | P14: ='ACS vol'!L75 -> 46.99
A15: ED_QUO441_00004 | C15: Supply abolishment | E15: ='ACS 12.5'!G76 -> 623137.7503 | K15: ='ACS vol'!G76 -> 1200
A16: ED_QUO441_00005 | C16: Audit Design & Construction Charge | E16: ='ACS 12.5'!G77 -> 1088541.343 | F16: ='ACS 12.5'!H77 -> 1108933.688 | G16: ='ACS 12.5'!I77 -> 1127612.272 | H16: ='ACS 12.5'!J77 -> 1146605.473 | I16: ='ACS 12.5'!K77 -> 1165918.591 | J16: ='ACS 12.5'!L77 -> 1185557.014 | K16: ='ACS vol'!G77 -> 564 | L16: ='ACS vol'!H77 -> 564 | M16: ='ACS vol'!I77 -> 564 | N16: ='ACS vol'!J77 -> 564 | O16: ='ACS vol'!K77 -> 564 | P16: ='ACS vol'!L77 -> 564
A17: ED_QUO441_00006 | C17: Specification & Design Enquiry Charge | E17: ='ACS 12.5'!G78 -> 1794072.222 | F17: ='ACS 12.5'!H78 -> 1827681.731 | G17: ='ACS 12.5'!I78 -> 1858466.716 | H17: ='ACS 12.5'!J78 -> 1889770.236 | I17: ='ACS 12.5'!K78 -> 1921601.023 | J17: ='ACS 12.5'!L78 -> 1953967.959 | K17: ='ACS vol'!G78 -> 115 | L17: ='ACS vol'!H78 -> 115 | M17: ='ACS vol'!I78 -> 115 | N17: ='ACS vol'!J78 -> 115 | O17: ='ACS vol'!K78 -> 115 | P17: ='ACS vol'!L78 -> 115
A18: ED_QUO441_00007 | C18: High Load Escorts | E18: ='ACS 12.5'!G79 -> 24328.35896 | F18: ='ACS 12.5'!H79 -> 24784.11776 | G18: ='ACS 12.5'!I79 -> 25201.57485 | H18: ='ACS 12.5'!J79 -> 25626.06347 | I18: ='ACS 12.5'!K79 -> 26057.70207 | J18: ='ACS 12.5'!L79 -> 26496.61107 | K18: ='ACS vol'!G79 -> 12 | L18: ='ACS vol'!H79 -> 12 | M18: ='ACS vol'!I79 -> 12 | N18: ='ACS vol'!J79 -> 12 | O18: ='ACS vol'!K79 -> 12 | P18: ='ACS vol'!L79 -> 12
A19: ED_QUO441_00008 | C19: Low Voltage Mains | E19: ='ACS 12.5'!G80 -> 487507.3238 | F19: ='ACS 12.5'!H80 -> 496640.1121 | G19: ='ACS 12.5'!I80 -> 505005.386 | H19: ='ACS 12.5'!J80 -> 513511.5625 | I19: ='ACS 12.5'!K80 -> 522161.0147 | J19: ='ACS 12.5'!L80 -> 530956.1559 | K19: ='ACS vol'!G80 -> 265 | L19: ='ACS vol'!H80 -> 265 | M19: ='ACS vol'!I80 -> 265 | N19: ='ACS vol'!J80 -> 265 | O19: ='ACS vol'!K80 -> 265 | P19: ='ACS vol'!L80 -> 265
A20: ED_QUO441_00009 | C20: Regulated Fee | E20: ='ACS 12.5'!G81 -> 0 | F20: ='ACS 12.5'!H81 -> 0 | G20: ='ACS 12.5'!I81 -> 0 | H20: ='ACS 12.5'!J81 -> 0 | I20: ='ACS 12.5'!K81 -> 0 | J20: ='ACS 12.5'!L81 -> 0 | K20: ='ACS vol'!G81 -> 0 | L20: ='ACS vol'!H81 -> 0 | M20: ='ACS vol'!I81 -> 0 | N20: ='ACS vol'!J81 -> 0 | O20: ='ACS vol'!K81 -> 0 | P20: ='ACS vol'!L81 -> 0
A21: ED_QUO441_00010 | C21: Quoted Services
A22: ED_QUO441_00011 | C22: Quoted Services
A23: ED_QUO441_00012 | C23: Quoted Services
A24: ED_QUO441_00013 | C24: Quoted Services
A25: ED_QUO441_00014 | C25: Quoted Services
A26: ED_QUO441_00015 | C26: Quoted Services
A27: ED_QUO441_00016 | C27: Quoted Services
A28: ED_QUO441_00017 | C28: Quoted Services
A29: ED_QUO441_00018 | C29: Quoted Services
A30: ED_QUO441_00019 | C30: Quoted Services
A31: ED_QUO441_00020 | C31: Quoted Services
A32: ED_QUO441_00021 | C32: Quoted Services
A33: ED_QUO441_00022 | C33: Quoted Services
A34: ED_QUO441_00023 | C34: Quoted Services
A35: ED_QUO441_00024 | C35: Quoted Services
A36: ED_QUO441_00025 | C36: Quoted Services
A37: ED_QUO441_00026 | C37: Quoted Services
A38: ED_QUO441_00027 | C38: Quoted Services
A39: ED_QUO441_00028 | C39: Quoted Services
A40: ED_QUO441_00029 | C40: Quoted Services
A41: ED_QUO441_00030 | C41: Quoted Services
A42: ED_QUO441_00031 | C42: Quoted Services
A43: ED_QUO441_00032 | C43: Quoted Services
A44: ED_QUO441_00033 | C44: Quoted Services
A45: ED_QUO441_00034 | C45: Quoted Services
A46: ED_QUO441_00035 | C46: Quoted Services
A47: ED_QUO441_00036 | C47: Quoted Services
A48: ED_QUO441_00037 | C48: Quoted Services
A49: ED_QUO441_00038 | C49: Quoted Services
A50: ED_QUO441_00039 | C50: Quoted Services
A51: ED_QUO441_00040 | C51: Quoted Services
A52: ED_QUO441_00041 | C52: Quoted Services
A53: ED_QUO441_00042 | C53: Quoted Services
A54: ED_QUO441_00043 | C54: Quoted Services
A55: ED_QUO441_00044 | C55: Quoted Services
A56: ED_QUO441_00045 | C56: Quoted Services
A57: ED_QUO441_00046 | C57: Quoted Services
A58: ED_QUO441_00047 | C58: Quoted Services
A59: ED_QUO441_00048 | C59: Quoted Services
A60: ED_QUO441_00049 | C60: Quoted Services
A61: ED_QUO441_00050 | C61: Quoted Services
A62: ED_QUO441_00051 | C62: Quoted Services
A63: ED_QUO441_00052 | C63: Quoted Services
A64: ED_QUO441_00053 | C64: Quoted Services
A65: ED_QUO441_00054 | C65: Quoted Services
A66: ED_QUO441_00055 | C66: Quoted Services
A67: ED_QUO441_00056 | C67: Quoted Services
A68: ED_QUO441_00057 | C68: Quoted Services
A69: ED_QUO441_00058 | C69: Quoted Services
A70: ED_QUO441_00059 | C70: Quoted Services
A71: ED_QUO441_00060 | C71: Quoted Services
A72: ED_QUO441_00061 | C72: Quoted Services
A73: ED_QUO441_00062 | C73: Quoted Services
A74: ED_QUO441_00063 | C74: Quoted Services
A75: ED_QUO441_00064 | C75: Quoted Services
A76: ED_QUO441_00065 | C76: Quoted Services
A77: ED_QUO441_00066 | C77: Quoted Services
A78: ED_QUO441_00067 | C78: Quoted Services
A79: ED_QUO441_00068 | C79: Quoted Services
A80: ED_QUO441_00069 | C80: Quoted Services
A81: ED_QUO441_00070 | C81: Quoted Services
A82: ED_QUO441_00071 | C82: Quoted Services
A83: ED_QUO441_00072 | C83: Quoted Services
A84: ED_QUO441_00073 | C84: Quoted Services
A85: ED_QUO441_00074 | C85: Quoted Services
A86: ED_QUO441_00075 | C86: Quoted Services
A87: ED_QUO441_00076 | C87: Quoted Services
A88: ED_QUO441_00077 | C88: Quoted Services
A89: ED_QUO441_00078 | C89: Quoted Services
A90: ED_QUO441_00079 | C90: Quoted Services
A91: ED_QUO441_00080 | C91: Quoted Services
A92: ED_QUO441_00081 | C92: Quoted Services
A93: ED_QUO441_00082 | C93: Quoted Services
A94: ED_QUO441_00083 | C94: Quoted Services
A95: ED_QUO441_00084 | C95: Quoted Services
A96: ED_QUO441_00085 | C96: Quoted Services
A97: ED_QUO441_00086 | C97: Quoted Services
A98: ED_QUO441_00087 | C98: Quoted Services
A99: ED_QUO441_00088 | C99: Quoted Services
A100: ED_QUO441_00089 | C100: Quoted Services
A101: ED_QUO441_00090 | C101: Quoted Services
A102: ED_QUO441_00091 | C102: Quoted Services
A103: ED_QUO441_00092 | C103: Quoted Services
A104: ED_QUO441_00093 | C104: Quoted Services
A105: ED_QUO441_00094 | C105: Quoted Services
A106: ED_QUO441_00095 | C106: Quoted Services
A107: ED_QUO441_00096 | C107: Quoted Services
A108: ED_QUO441_00097 | C108: Quoted Services
A109: ED_QUO441_00098 | C109: Quoted Services
A110: ED_QUO441_00099 | C110: Quoted Services
A111: ED_QUO441_00100 | C111: Quoted Services
A112: ED_QUO441_00101 | C112: Quoted Services
A113: ED_QUO441_00102 | C113: Quoted Services
A114: ED_QUO441_00103 | C114: Quoted Services
A115: ED_QUO441_00104 | C115: Quoted Services
A116: ED_QUO441_00105 | C116: Quoted Services
A117: ED_QUO441_00106 | C117: Quoted Services
A118: ED_QUO441_00107 | C118: Quoted Services
A119: ED_QUO441_00108 | C119: Quoted Services
A120: ED_QUO441_00109 | C120: Quoted Services
A121: ED_QUO441_00110 | C121: Quoted Services
A122: ED_QUO441_00111 | C122: Quoted Services
A123: ED_QUO441_00112 | C123: Quoted Services
A124: ED_QUO441_00113 | C124: Quoted Services
A125: ED_QUO441_00114 | C125: Quoted Services
A126: ED_QUO441_00115 | C126: Quoted Services
A127: ED_QUO441_00116 | C127: Quoted Services
A128: ED_QUO441_00117 | C128: Quoted Services
A129: ED_QUO441_00118 | C129: Quoted Services
A130: ED_QUO441_00119 | C130: Quoted Services
A131: ED_QUO441_00120 | C131: Quoted Services
A132: ED_QUO441_00121 | C132: Quoted Services
A133: ED_QUO441_00122 | C133: Quoted Services
A134: ED_QUO441_00123 | C134: Quoted Services
A135: ED_QUO441_00124 | C135: Quoted Services
A136: ED_QUO441_00125 | C136: Quoted Services
A137: ED_QUO441_00126 | C137: Quoted Services
A138: ED_QUO441_00127 | C138: Quoted Services
A139: ED_QUO441_00128 | C139: Quoted Services
A140: ED_QUO441_00129 | C140: Quoted Services
A141: ED_QUO441_00130 | C141: Quoted Services
A142: ED_QUO441_00131 | C142: Quoted Services
A143: ED_QUO441_00132 | C143: Quoted Services
A144: ED_QUO441_00133 | C144: Quoted Services
A145: ED_QUO441_00134 | C145: Quoted Services
A146: ED_QUO441_00135 | C146: Quoted Services
A147: ED_QUO441_00136 | C147: Quoted Services
A148: ED_QUO441_00137 | C148: Quoted Services
A149: ED_QUO441_00138 | C149: Quoted Services
A150: ED_QUO441_00139 | C150: Quoted Services
A151: ED_QUO441_00140 | C151: Quoted Services
A152: ED_QUO441_00141 | C152: Quoted Services
A153: ED_QUO441_00142 | C153: Quoted Services
A154: ED_QUO441_00143 | C154: Quoted Services
A155: ED_QUO441_00144 | C155: Quoted Services
A156: ED_QUO441_00145 | C156: Quoted Services
A157: ED_QUO441_00146 | C157: Quoted Services
A158: ED_QUO441_00147 | C158: Quoted Services
A159: ED_QUO441_00148 | C159: Quoted Services
A160: ED_QUO441_00149 | C160: Quoted Services
A161: ED_QUO441_00150 | C161: Quoted Services
A162: ED_QUO441_00151 | C162: Quoted Services
A163: ED_QUO441_00152 | C163: Quoted Services
A164: ED_QUO441_00153 | C164: Quoted Services
A165: ED_QUO441_00154 | C165: Quoted Services
A166: ED_QUO441_00155 | C166: Quoted Services
A167: ED_QUO441_00156 | C167: Quoted Services
A168: ED_QUO441_00157 | C168: Quoted Services
A169: ED_QUO441_00158 | C169: Quoted Services
A170: ED_QUO441_00159 | C170: Quoted Services
A171: ED_QUO441_00160 | C171: Quoted Services
A172: ED_QUO441_00161 | C172: Quoted Services
A173: ED_QUO441_00162 | C173: Quoted Services
A174: ED_QUO441_00163 | C174: Quoted Services
A175: ED_QUO441_00164 | C175: Quoted Services
A176: ED_QUO441_00165 | C176: Quoted Services
A177: ED_QUO441_00166 | C177: Quoted Services
A178: ED_QUO441_00167 | C178: Quoted Services
A179: ED_QUO441_00168 | C179: Quoted Services
A180: ED_QUO441_00169 | C180: Quoted Services
A181: ED_QUO441_00170 | C181: Quoted Services
A182: ED_QUO441_00171 | C182: Quoted Services
A183: ED_QUO441_00172 | C183: Quoted Services
A184: ED_QUO441_00173 | C184: Quoted Services
A185: ED_QUO441_00174 | C185: Quoted Services
A186: ED_QUO441_00175 | C186: Quoted Services
A187: ED_QUO441_00176 | C187: Quoted Services
A188: ED_QUO441_00177 | C188: Quoted Services
A189: ED_QUO441_00178 | C189: Quoted Services
A190: ED_QUO441_00179 | C190: Quoted Services
A191: ED_QUO441_00180 | C191: Quoted Services
A192: ED_QUO441_00181 | C192: Quoted Services
A193: ED_QUO441_00182 | C193: Quoted Services
A194: ED_QUO441_00183 | C194: Quoted Services
A195: ED_QUO441_00184 | C195: Quoted Services
A196: ED_QUO441_00185 | C196: Quoted Services
A197: ED_QUO441_00186 | C197: Quoted Services
A198: ED_QUO441_00187 | C198: Quoted Services
A199: ED_QUO441_00188 | C199: Quoted Services
A200: ED_QUO441_00189 | C200: Quoted Services
A201: ED_QUO441_00190 | C201: Quoted Services
A202: ED_QUO441_00191 | C202: Quoted Services
A203: ED_QUO441_00192 | C203: Quoted Services
A204: ED_QUO441_00193 | C204: Quoted Services
A205: ED_QUO441_00194 | C205: Quoted Services
... 269 more rows

Sheet ACS 12.1
A1: =Title!A38 -> PAL ACS Model
A2: =MID(CELL("Filename",C1),FIND("]",CELL("Filename",C1))+1,255) -> ACS 12.1 | J2: =Check!D2 -> OK
A3: Menu
BP4: =SUM(BP9:BP66) -> -2.273736754e-13
BP5: Check
B6: Powercor Alternative Control services - Fee Based Services | C6: 2011 | I6: 2012 | O6: 2013 | U6: 2014 | AA6: 2015 | AG6: 2016 | AN6: 2017 | AU6: 2018 | BB6: 2019 | BI6: 2020
C7: $2011 | I7: $2012 | O7: $2013 | U7: $2014 | AA7: $2015 | AG7: Real $2015 (ex GST)
C8: Labour | D8: Material | E8: Contract | F8: Direct Overhead | G8: Indirect Overhead | H8: Total | I8: Labour | J8: Material | K8: Contract | L8: Direct Overhead | M8: Indirect Overhead | N8: Total | O8: Labour | P8: Material | Q8: Contract | R8: Direct Overhead | S8: Indirect Overhead | T8: Total | U8: Labour | V8: Material | W8: Contract | X8: Direct Overhead | Y8: Indirect Overhead | Z8: Total | AA8: Labour | AB8: Material | AC8: Contract | AD8: Direct Overhead | AE8: Indirect Overhead | AF8: Total | AG8: Labour | AH8: Material | AI8: Contract | AJ8: Direct Overhead | AK8: Indirect Overhead | AL8: Margin | AM8: Total | AN8: Labour | AO8: Material | AP8: Contract | AQ8: Direct Overhead | AR8: Indirect Overhead | AS8: Margin | AT8: Total | AU8: Labour | AV8: Material | AW8: Contract | AX8: Direct Overhead | AY8: Indirect Overhead | AZ8: Margin | BA8: Total | BB8: Labour | BC8: Material | BD8: Contract | BE8: Direct Overhead | BF8: Indirect Overhead | BG8: Margin | BH8: Total | BI8: Labour | BJ8: Material | BK8: Contract | BL8: Direct Overhead | BM8: Indirect Overhead | BN8: Margin | BO8: Total
B9: Meter Investigation Test (BH) | C9: =$H9*'2011-15 % split'!C9 -> 256.95 | D9: =$H9*'2011-15 % split'!D9 -> 0 | E9: =$H9*'2011-15 % split'!E9 -> 0 | F9: =$H9*'2011-15 % split'!F9 -> 0 | G9: =$H9*'2011-15 % split'!G9 -> 0 | H9: ='2011-15 rates summary'!D9 -> 256.95 | I9: =$N9*'2011-15 % split'!I9 -> 269.29 | J9: =$N9*'2011-15 % split'!J9 -> 0 | K9: =$N9*'2011-15 % split'!K9 -> 0 | L9: =$N9*'2011-15 % split'!L9 -> 0 | M9: =$N9*'2011-15 % split'!M9 -> 0 | N9: ='2011-15 rates summary'!G9 -> 269.29 | O9: =$T9*'2011-15 % split'!O9 -> 279.65 | P9: =$T9*'2011-15 % split'!P9 -> 0 | Q9: =$T9*'2011-15 % split'!Q9 -> 0 | R9: =$T9*'2011-15 % split'!R9 -> 0 | S9: =$T9*'2011-15 % split'!S9 -> 0 | T9: ='2011-15 rates summary'!J9 -> 279.65 | U9: =$Z9*'2011-15 % split'!U9 -> 293.32 | V9: =$Z9*'2011-15 % split'!V9 -> 0 | W9: =$Z9*'2011-15 % split'!W9 -> 0 | X9: =$Z9*'2011-15 % split'!X9 -> 0 | Y9: =$Z9*'2011-15 % split'!Y9 -> 0 | Z9: ='2011-15 rates summary'!M9 -> 293.32 | AA9: =$AF9*'2011-15 % split'!AA9 -> 303.08 | AB9: =$AF9*'2011-15 % split'!AB9 -> 0 | AC9: =$AF9*'2011-15 % split'!AC9 -> 0 | AD9: =$AF9*'2011-15 % split'!AD9 -> 0 | AE9: =$AF9*'2011-15 % split'!AE9 -> 0 | AF9: ='2011-15 rates summary'!P9 -> 303.08 | AG9: ='PAL Mtr Invest ph BH'!$O63 -> 297.7961434 | AH9: ='PAL Mtr Invest ph BH'!$O64 -> 0 | AI9: ='PAL Mtr Invest ph BH'!$O65 -> 0 | AJ9: ='PAL Mtr Invest ph BH'!O67 -> 30.97079892 | AK9: ='PAL Mtr Invest ph BH'!O66 -> 36.82189754 | AL9: ='PAL Mtr Invest ph BH'!O68 -> 25.59121879 | AM9: =SUM(AG9:AL9) -> 391.1800587 | AN9: ='PAL Mtr Invest ph BH'!P63 -> 302.8121425 | AO9: ='PAL Mtr Invest ph BH'!$P64 -> 0 | AP9: ='PAL Mtr Invest ph BH'!$P65 -> 0 | AQ9: ='PAL Mtr Invest ph BH'!P67 -> 31.49246282 | AR9: ='PAL Mtr Invest ph BH'!P66 -> 37.44211579 | AS9: ='PAL Mtr Invest ph BH'!P68 -> 26.02227048 | AT9: =SUM(AN9:AS9) -> 397.7689916 | AU9: ='PAL Mtr Invest ph BH'!Q63 -> 307.9126297 | AV9: ='PAL Mtr Invest ph BH'!$Q64 -> 0 | AW9: ='PAL Mtr Invest ph BH'!$Q65 -> 0 | AX9: ='PAL Mtr Invest ph BH'!Q67 -> 32.02291349 | AY9: ='PAL Mtr Invest ph BH'!Q66 -> 38.07278083 | AZ9: ='PAL Mtr Invest ph BH'!Q68 -> 26.46058268 | BA9: =SUM(AU9:AZ9) -> 404.4689067 | BB9: ='PAL Mtr Invest ph BH'!R63 -> 313.0990281 | BC9: ='PAL Mtr Invest ph BH'!$R64 -> 0 | BD9: ='PAL Mtr Invest ph BH'!$R65 -> 0 | BE9: ='PAL Mtr Invest ph BH'!R67 -> 32.56229892 | BF9: ='PAL Mtr Invest ph BH'!R66 -> 38.71406863 | BG9: ='PAL Mtr Invest ph BH'!R68 -> 26.9062777 | BH9: =SUM(BB9:BG9) -> 411.2816734 | BI9: ='PAL Mtr Invest ph BH'!S63 -> 318.3727849 | BJ9: ='PAL Mtr Invest ph BH'!$S64 -> 0 | BK9: ='PAL Mtr Invest ph BH'!$S65 -> 0 | BL9: ='PAL Mtr Invest ph BH'!S67 -> 33.11076963 | BM9: ='PAL Mtr Invest ph BH'!S66 -> 39.3661581 | BN9: ='PAL Mtr Invest ph BH'!S68 -> 27.35947988 | BO9: =SUM(BI9:BN9) -> 418.2091925 | BP9: =SUM(AM9,AT9,BA9,BH9,BO9)-SUM('PAL Mtr Invest ph BH'!O70:S70) -> 0
B10: Meter Investigation Test (AH) | C10: =$H10*'2011-15 % split'!C10 -> 281.25 | D10: =$H10*'2011-15 % split'!D10 -> 0 | E10: =$H10*'2011-15 % split'!E10 -> 0 | F10: =$H10*'2011-15 % split'!F10 -> 0 | G10: =$H10*'2011-15 % split'!G10 -> 0 | H10: ='2011-15 rates summary'!D10 -> 281.25 | I10: =$N10*'2011-15 % split'!I10 -> 294.75 | J10: =$N10*'2011-15 % split'!J10 -> 0 | K10: =$N10*'2011-15 % split'!K10 -> 0 | L10: =$N10*'2011-15 % split'!L10 -> 0 | M10: =$N10*'2011-15 % split'!M10 -> 0 | N10: ='2011-15 rates summary'!G10 -> 294.75 | O10: =$T10*'2011-15 % split'!O10 -> 306.09 | P10: =$T10*'2011-15 % split'!P10 -> 0 | Q10: =$T10*'2011-15 % split'!Q10 -> 0 | R10: =$T10*'2011-15 % split'!R10 -> 0 | S10: =$T10*'2011-15 % split'!S10 -> 0 | T10: ='2011-15 rates summary'!J10 -> 306.09 | U10: =$Z10*'2011-15 % split'!U10 -> 321.05 | V10: =$Z10*'2011-15 % split'!V10 -> 0 | W10: =$Z10*'2011-15 % split'!W10 -> 0 | X10: =$Z10*'2011-15 % split'!X10 -> 0 | Y10: =$Z10*'2011-15 % split'!Y10 -> 0 | Z10: ='2011-15 rates summary'!M10 -> 321.05 | AA10: =$AF10*'2011-15 % split'!AA10 -> 331.74 | AB10: =$AF10*'2011-15 % split'!AB10 -> 0 | AC10: =$AF10*'2011-15 % split'!AC10 -> 0 | AD10: =$AF10*'2011-15 % split'!AD10 -> 0 | AE10: =$AF10*'2011-15 % split'!AE10 -> 0 | AF10: ='2011-15 rates summary'!P10 -> 331.74 | AG10: ='PAL Mtr Invest ph AH'!$O63 -> 341.104286 | AH10: ='PAL Mtr Invest ph AH'!$O64 -> 0 | AI10: ='PAL Mtr Invest ph AH'!$O65 -> 0 | AJ10: ='PAL Mtr Invest ph AH'!O67 -> 35.47484574 | AK10: ='PAL Mtr Invest ph AH'!O66 -> 42.17686276 | AL10: ='PAL Mtr Invest ph AH'!O68 -> 29.31291962 | AM10: =SUM(AG10:AL10) -> 448.0689141 | AN10: ='PAL Mtr Invest ph AH'!P63 -> 346.8497559 | AO10: ='PAL Mtr Invest ph AH'!$P64 -> 0 | AP10: ='PAL Mtr Invest ph AH'!$P65 -> 0 | AQ10: ='PAL Mtr Invest ph AH'!P67 -> 36.07237461 | AR10: ='PAL Mtr Invest ph AH'!P66 -> 42.88727862 | AS10: ='PAL Mtr Invest ph AH'!P68 -> 29.80665864 | AT10: =SUM(AN10:AS10) -> 455.6160677 | AU10: ='PAL Mtr Invest ph AH'!Q63 -> 352.6920009 | AV10: ='PAL Mtr Invest ph AH'!$Q64 -> 0 | AW10: ='PAL Mtr Invest ph AH'!$Q65 -> 0 | AX10: ='PAL Mtr Invest ph AH'!Q67 -> 36.6799681 | AY10: ='PAL Mtr Invest ph AH'!Q66 -> 43.60966053 | AZ10: ='PAL Mtr Invest ph AH'!Q68 -> 30.30871407 | BA10: =SUM(AU10:AZ10) -> 463.2903436 | BB10: ='PAL Mtr Invest ph AH'!R63 -> 358.6326512 | BC10: ='PAL Mtr Invest ph AH'!$R64 -> 0 | BD10: ='PAL Mtr Invest ph AH'!$R65 -> 0 | BE10: ='PAL Mtr Invest ph AH'!R67 -> 37.29779572 | BF10: ='PAL Mtr Invest ph AH'!R66 -> 44.34421006 | BG10: ='PAL Mtr Invest ph AH'!R68 -> 30.81922599 | BH10: =SUM(BB10:BG10) -> 471.093883 | BI10: ='PAL Mtr Invest ph AH'!S63 -> 364.6733642 | BJ10: ='PAL Mtr Invest ph AH'!$S64 -> 0 | BK10: ='PAL Mtr Invest ph AH'!$S65 -> 0 | BL10: ='PAL Mtr Invest ph AH'!S67 -> 37.92602988 | BM10: ='PAL Mtr Invest ph AH'!S66 -> 45.09113214 | BN10: ='PAL Mtr Invest ph AH'!S68 -> 31.33833683 | BO10: =SUM(BI10:BN10) -> 479.028863 | BP10: =SUM(AM10,AT10,BA10,BH10,BO10)-SUM('PAL Mtr Invest ph AH'!O70:S70) -> 0
B11: Meter Accuracy Test - single phase (BH) | C11: =$H11*'2011-15 % split'!C11 -> 324.03 | D11: =$H11*'2011-15 % split'!D11 -> 0 | E11: =$H11*'2011-15 % split'!E11 -> 0 | F11: =$H11*'2011-15 % split'!F11 -> 0 | G11: =$H11*'2011-15 % split'!G11 -> 0 | H11: ='2011-15 rates summary'!D11 -> 324.03 | I11: =$N11*'2011-15 % split'!I11 -> 339.59 | J11: =$N11*'2011-15 % split'!J11 -> 0 | K11: =$N11*'2011-15 % split'!K11 -> 0 | L11: =$N11*'2011-15 % split'!L11 -> 0 | M11: =$N11*'2011-15 % split'!M11 -> 0 | N11: ='2011-15 rates summary'!G11 -> 339.59 | O11: =$T11*'2011-15 % split'!O11 -> 352.66 | P11: =$T11*'2011-15 % split'!P11 -> 0 | Q11: =$T11*'2011-15 % split'!Q11 -> 0 | R11: =$T11*'2011-15 % split'!R11 -> 0 | S11: =$T11*'2011-15 % split'!S11 -> 0 | T11: ='2011-15 rates summary'!J11 -> 352.66 | U11: =$Z11*'2011-15 % split'!U11 -> 369.9 | V11: =$Z11*'2011-15 % split'!V11 -> 0 | W11: =$Z11*'2011-15 % split'!W11 -> 0 | X11: =$Z11*'2011-15 % split'!X11 -> 0 | Y11: =$Z11*'2011-15 % split'!Y11 -> 0 | Z11: ='2011-15 rates summary'!M11 -> 369.9 | AA11: =$AF11*'2011-15 % split'!AA11 -> 382.22 | AB11: =$AF11*'2011-15 % split'!AB11 -> 0 | AC11: =$AF11*'2011-15 % split'!AC11 -> 0 | AD11: =$AF11*'2011-15 % split'!AD11 -> 0 | AE11: =$AF11*'2011-15 % split'!AE11 -> 0 | AF11: ='2011-15 rates summary'!P11 -> 382.22 | AG11: ='PAL Mtr Test 1ph BH'!$O68 -> 372.0565909 | AH11: ='PAL Mtr Test 1ph BH'!$O69 -> 0 | AI11: ='PAL Mtr Test 1ph BH'!$O70 -> 0 | AJ11: ='PAL Mtr Test 1ph BH'!O72 -> 38.69388546 | AK11: ='PAL Mtr Test 1ph BH'!O71 -> 46.00405336 | AL11: ='PAL Mtr Test 1ph BH'!O73 -> 31.97281708 | AM11: 488.7273468 | AN11: ='PAL Mtr Test 1ph BH'!P68 -> 378.3234132 | AO11: ='PAL Mtr Test 1ph BH'!$P69 -> 0 | AP11: ='PAL Mtr Test 1ph BH'!$P70 -> 0 | AQ11: ='PAL Mtr Test 1ph BH'!P72 -> 39.34563497 | AR11: ='PAL Mtr Test 1ph BH'!P71 -> 46.7789334 | AS11: ='PAL Mtr Test 1ph BH'!P73 -> 32.51135871 | AT11: 496.9593403 | AU11: ='PAL Mtr Test 1ph BH'!Q68 -> 384.6957922 | AV11: ='PAL Mtr Test 1ph BH'!$Q69 -> 0 | AW11: ='PAL Mtr Test 1ph BH'!$Q70 -> 0 | AX11: ='PAL Mtr Test 1ph BH'!Q72 -> 40.00836239 | AY11: ='PAL Mtr Test 1ph BH'!Q71 -> 47.56686531 | AZ11: ='PAL Mtr Test 1ph BH'!Q73 -> 33.05897139 | BA11: 505.3299913 | BB11: ='PAL Mtr Test 1ph BH'!R68 -> 391.1755058 | BC11: ='PAL Mtr Test 1ph BH'!$R69 -> 0 | BD11: ='PAL Mtr Test 1ph BH'!$R70 -> 0 | BE11: ='PAL Mtr Test 1ph BH'!R72 -> 40.6822526 | BF11: ='PAL Mtr Test 1ph BH'!R71 -> 48.36806894 | BG11: ='PAL Mtr Test 1ph BH'!R73 -> 33.61580791 | BH11: 513.8416353 | BI11: ='PAL Mtr Test 1ph BH'!S68 -> 397.764362 | BJ11: ='PAL Mtr Test 1ph BH'!$S69 -> 0 | BK11: ='PAL Mtr Test 1ph BH'!$S70 -> 0 | BL11: ='PAL Mtr Test 1ph BH'!S72 -> 41.36749365 | BM11: ='PAL Mtr Test 1ph BH'!S71 -> 49.18276783 | BN11: ='PAL Mtr Test 1ph BH'!S73 -> 34.18202364 | BO11: 522.4966471 | BP11: =SUM(AM11,AT11,BA11,BH11,BO11)-SUM('PAL Mtr Test 1ph BH'!O75:S75) -> 0 | BS11: Note: only difference between 2010 and 2011 is the escalators applied to PC's back office rate. For the Impaq rates (line workers) we've assumed 2010=2011 rates ($2010).
B12: Meter Accuracy Test - single phase (AH) | C12: =$H12*'2011-15 % split'!C12 -> 355.58 | D12: =$H12*'2011-15 % split'!D12 -> 0 | E12: =$H12*'2011-15 % split'!E12 -> 0 | F12: =$H12*'2011-15 % split'!F12 -> 0 | G12: =$H12*'2011-15 % split'!G12 -> 0 | H12: ='2011-15 rates summary'!D12 -> 355.58 | I12: =$N12*'2011-15 % split'!I12 -> 372.66 | J12: =$N12*'2011-15 % split'!J12 -> 0 | K12: =$N12*'2011-15 % split'!K12 -> 0 | L12: =$N12*'2011-15 % split'!L12 -> 0 | M12: =$N12*'2011-15 % split'!M12 -> 0 | N12: ='2011-15 rates summary'!G12 -> 372.66 | O12: =$T12*'2011-15 % split'!O12 -> 387 | P12: =$T12*'2011-15 % split'!P12 -> 0 | Q12: =$T12*'2011-15 % split'!Q12 -> 0 | R12: =$T12*'2011-15 % split'!R12 -> 0 | S12: =$T12*'2011-15 % split'!S12 -> 0 | T12: ='2011-15 rates summary'!J12 -> 387 | U12: =$Z12*'2011-15 % split'!U12 -> 405.91 | V12: =$Z12*'2011-15 % split'!V12 -> 0 | W12: =$Z12*'2011-15 % split'!W12 -> 0 | X12: =$Z12*'2011-15 % split'!X12 -> 0 | Y12: =$Z12*'2011-15 % split'!Y12 -> 0 | Z12: ='2011-15 rates summary'!M12 -> 405.91 | AA12: =$AF12*'2011-15 % split'!AA12 -> 419.42 | AB12: =$AF12*'2011-15 % split'!AB12 -> 0 | AC12: =$AF12*'2011-15 % split'!AC12 -> 0 | AD12: =$AF12*'2011-15 % split'!AD12 -> 0 | AE12: =$AF12*'2011-15 % split'!AE12 -> 0 | AF12: ='2011-15 rates summary'!P12 -> 419.42 | AG12: ='PAL Mtr Test 1ph AH'!$O68 -> 428.314012 | AH12: ='PAL Mtr Test 1ph AH'!$O69 -> 0 | AI12: ='PAL Mtr Test 1ph AH'!$O70 -> 0 | AJ12: ='PAL Mtr Test 1ph AH'!O72 -> 44.54465725 | AK12: ='PAL Mtr Test 1ph AH'!O71 -> 52.96017096 | AL12: ='PAL Mtr Test 1ph AH'!O73 -> 36.80731882 | AM12: 562.6261591 | AN12: ='PAL Mtr Test 1ph AH'!P68 -> 435.5284194 | AO12: ='PAL Mtr Test 1ph AH'!$P69 -> 0 | AP12: ='PAL Mtr Test 1ph AH'!$P70 -> 0 | AQ12: ='PAL Mtr Test 1ph AH'!P72 -> 45.29495561 | AR12: ='PAL Mtr Test 1ph AH'!P71 -> 53.852218 | AS12: ='PAL Mtr Test 1ph AH'!P73 -> 37.42729151 | AT12: 572.1028845 | AU12: ='PAL Mtr Test 1ph AH'!Q68 -> 442.8643442 | AV12: ='PAL Mtr Test 1ph AH'!$Q69 -> 0 | AW12: ='PAL Mtr Test 1ph AH'!$Q70 -> 0 | AX12: ='PAL Mtr Test 1ph AH'!Q72 -> 46.0578918 | AY12: ='PAL Mtr Test 1ph AH'!Q71 -> 54.75929043 | AZ12: ='PAL Mtr Test 1ph AH'!Q73 -> 38.05770685 | BA12: 581.7392333 | BB12: ='PAL Mtr Test 1ph AH'!R68 -> 450.3238335 | BC12: ='PAL Mtr Test 1ph AH'!$R69 -> 0 | BD12: ='PAL Mtr Test 1ph AH'!$R70 -> 0 | BE12: ='PAL Mtr Test 1ph AH'!R72 -> 46.83367868 | BF12: ='PAL Mtr Test 1ph AH'!R71 -> 55.68164136 | BG12: ='PAL Mtr Test 1ph AH'!R73 -> 38.69874074 | BH12: 591.5378942 | BI12: ='PAL Mtr Test 1ph AH'!S68 -> 457.9089683 | BJ12: ='PAL Mtr Test 1ph AH'!$S69 -> 0 | BK12: ='PAL Mtr Test 1ph AH'!$S70 -> 0 | BL12: ='PAL Mtr Test 1ph AH'!S72 -> 47.62253271 | BM12: ='PAL Mtr Test 1ph AH'!S71 -> 56.61952812 | BN12: ='PAL Mtr Test 1ph AH'!S73 -> 39.35057204 | BO12: 601.5016012 | BP12: =SUM(AM12,AT12,BA12,BH12,BO12)-SUM('PAL Mtr Test 1ph AH'!O75:S75) -> 0 | BS12: As the 2010 rates and prices are arbitrary (the prices will never actually apply, only 2011 prices are relevant). Impaq's advice provides labour rates in $2010 for implemenation in 2011.
B13: Meter Accuracy Test - Single phase additional meter (BH) | C13: =$H13*'2011-15 % split'!C13 -> 132.29 | D13: =$H13*'2011-15 % split'!D13 -> 0 | E13: =$H13*'2011-15 % split'!E13 -> 0 | F13: =$H13*'2011-15 % split'!F13 -> 0 | G13: =$H13*'2011-15 % split'!G13 -> 0 | H13: ='2011-15 rates summary'!D13 -> 132.29 | I13: =$N13*'2011-15 % split'!I13 -> 138.64 | J13: =$N13*'2011-15 % split'!J13 -> 0 | K13: =$N13*'2011-15 % split'!K13 -> 0 | L13: =$N13*'2011-15 % split'!L13 -> 0 | M13: =$N13*'2011-15 % split'!M13 -> 0 | N13: ='2011-15 rates summary'!G13 -> 138.64 | O13: =$T13*'2011-15 % split'!O13 -> 143.97 | P13: =$T13*'2011-15 % split'!P13 -> 0 | Q13: =$T13*'2011-15 % split'!Q13 -> 0 | R13: =$T13*'2011-15 % split'!R13 -> 0 | S13: =$T13*'2011-15 % split'!S13 -> 0 | T13: ='2011-15 rates summary'!J13 -> 143.97 | U13: =$Z13*'2011-15 % split'!U13 -> 151 | V13: =$Z13*'2011-15 % split'!V13 -> 0 | W13: =$Z13*'2011-15 % split'!W13 -> 0 | X13: =$Z13*'2011-15 % split'!X13 -> 0 | Y13: =$Z13*'2011-15 % split'!Y13 -> 0 | Z13: ='2011-15 rates summary'!M13 -> 151 | AA13: =$AF13*'2011-15 % split'!AA13 -> 156.02 | AB13: =$AF13*'2011-15 % split'!AB13 -> 0 | AC13: =$AF13*'2011-15 % split'!AC13 -> 0 | AD13: =$AF13*'2011-15 % split'!AD13 -> 0 | AE13: =$AF13*'2011-15 % split'!AE13 -> 0 | AF13: ='2011-15 rates summary'!P13 -> 156.02 | AG13: ='PAL MTest 1ph BH'!$O68 -> 150.268783 | AH13: ='PAL MTest 1ph BH'!$O69 -> 0 | AI13: ='PAL MTest 1ph BH'!$O70 -> 0 | AJ13: ='PAL MTest 1ph BH'!O$72 -> 15.62795343 | AK13: ='PAL MTest 1ph BH'!O$71 -> 18.58043448 | AL13: ='PAL MTest 1ph BH'!O$73 -> 12.91340196 | AM13: 197.3905729 | AN13: ='PAL MTest 1ph BH'!P$68 -> 152.7998704 | AO13: ='PAL MTest 1ph BH'!$P69 -> 0 | AP13: ='PAL MTest 1ph BH'!$P70 -> 0 | AQ13: ='PAL MTest 1ph BH'!P$72 -> 15.89118652 | AR13: ='PAL MTest 1ph BH'!P$71 -> 18.89339838 | AS13: ='PAL MTest 1ph BH'!P$73 -> 13.13091187 | AT13: 200.7153672 | AU13: ='PAL MTest 1ph BH'!Q$68 -> 155.3735908 | AV13: ='PAL MTest 1ph BH'!$Q69 -> 0 | AW13: ='PAL MTest 1ph BH'!$Q70 -> 0 | AX13: ='PAL MTest 1ph BH'!Q$72 -> 16.15885344 | AY13: ='PAL MTest 1ph BH'!Q$71 -> 19.21163376 | AZ13: ='PAL MTest 1ph BH'!Q$73 -> 13.35208546 | BA13: 204.0961635 | BB13: ='PAL MTest 1ph BH'!R$68 -> 157.9906623 | BC13: ='PAL MTest 1ph BH'!$R69 -> 0 | BD13: ='PAL MTest 1ph BH'!$R70 -> 0 | BE13: ='PAL MTest 1ph BH'!R$72 -> 16.43102887 | BF13: ='PAL MTest 1ph BH'!R$71 -> 19.53522941 | BG13: ='PAL MTest 1ph BH'!R$73 -> 13.57698444 | BH13: 207.533905 | BI13: ='PAL MTest 1ph BH'!S$68 -> 160.651815 | BJ13: ='PAL MTest 1ph BH'!$S69 -> 0 | BK13: ='PAL MTest 1ph BH'!$S70 -> 0 | BL13: ='PAL MTest 1ph BH'!S$72 -> 16.70778875 | BM13: ='PAL MTest 1ph BH'!S$71 -> 19.86427562 | BN13: ='PAL MTest 1ph BH'!S$73 -> 13.80567155 | BO13: 211.0295509 | BP13: =SUM(AM13,AT13,BA13,BH13,BO13)-SUM('PAL MTest 1ph BH'!O75:S75) -> 0
B14: Meter Accuracy Test - multi phase (BH) | C14: =$H14*'2011-15 % split'!C14 -> 414.95 | D14: =$H14*'2011-15 % split'!D14 -> 0 | E14: =$H14*'2011-15 % split'!E14 -> 0 | F14: =$H14*'2011-15 % split'!F14 -> 0 | G14: =$H14*'2011-15 % split'!G14 -> 0 | H14: ='2011-15 rates summary'!D14 -> 414.95 | I14: =$N14*'2011-15 % split'!I14 -> 434.88 | J14: =$N14*'2011-15 % split'!J14 -> 0 | K14: =$N14*'2011-15 % split'!K14 -> 0 | L14: =$N14*'2011-15 % split'!L14 -> 0 | M14: =$N14*'2011-15 % split'!M14 -> 0 | N14: ='2011-15 rates summary'!G14 -> 434.88 | O14: =$T14*'2011-15 % split'!O14 -> 451.62 | P14: =$T14*'2011-15 % split'!P14 -> 0 | Q14: =$T14*'2011-15 % split'!Q14 -> 0 | R14: =$T14*'2011-15 % split'!R14 -> 0 | S14: =$T14*'2011-15 % split'!S14 -> 0 | T14: ='2011-15 rates summary'!J14 -> 451.62 | U14: =$Z14*'2011-15 % split'!U14 -> 473.69 | V14: =$Z14*'2011-15 % split'!V14 -> 0 | W14: =$Z14*'2011-15 % split'!W14 -> 0 | X14: =$Z14*'2011-15 % split'!X14 -> 0 | Y14: =$Z14*'2011-15 % split'!Y14 -> 0 | Z14: ='2011-15 rates summary'!M14 -> 473.69 | AA14: =$AF14*'2011-15 % split'!AA14 -> 489.46 | AB14: =$AF14*'2011-15 % split'!AB14 -> 0 | AC14: =$AF14*'2011-15 % split'!AC14 -> 0 | AD14: =$AF14*'2011-15 % split'!AD14 -> 0 | AE14: =$AF14*'2011-15 % split'!AE14 -> 0 | AF14: ='2011-15 rates summary'!P14 -> 489.46 | AG14: ='PAL Mtr Test 3ph BH'!$O68 -> 472.7207531 | AH14: ='PAL Mtr Test 3ph BH'!$O69 -> 0 | AI14: ='PAL Mtr Test 3ph BH'!$O70 -> 0 | AJ14: ='PAL Mtr Test 3ph BH'!O72 -> 49.16295833 | AK14: ='PAL Mtr Test 3ph BH'!O71 -> 58.45097568 | AL14: ='PAL Mtr Test 3ph BH'!O73 -> 40.6234281 | AM14: 620.9581153 | AN14: ='PAL Mtr Test 3ph BH'!P68 -> 480.6831358 | AO14: ='PAL Mtr Test 3ph BH'!$P69 -> 0 | AP14: ='PAL Mtr Test 3ph BH'!$P70 -> 0 | AQ14: ='PAL Mtr Test 3ph BH'!P72 -> 49.99104612 | AR14: ='PAL Mtr Test 3ph BH'!P71 -> 59.43550837 | AS14: ='PAL Mtr Test 3ph BH'!P73 -> 41.30767832 | AT14: 631.4173686 | AU14: ='PAL Mtr Test 3ph BH'!Q68 -> 488.7796347 | AV14: ='PAL Mtr Test 3ph BH'!$Q69 -> 0 | AW14: ='PAL Mtr Test 3ph BH'!$Q70 -> 0 | AX14: ='PAL Mtr Test 3ph BH'!Q72 -> 50.83308201 | AY14: ='PAL Mtr Test 3ph BH'!Q71 -> 60.43662427 | AZ14: ='PAL Mtr Test 3ph BH'!Q73 -> 42.00345387 | BA14: 642.0527948 | BB14: ='PAL Mtr Test 3ph BH'!R68 -> 497.0125089 | BC14: ='PAL Mtr Test 3ph BH'!$R69 -> 0 | BD14: ='PAL Mtr Test 3ph BH'!$R70 -> 0 | BE14: ='PAL Mtr Test 3ph BH'!R72 -> 51.68930092 | BF14: ='PAL Mtr Test 3ph BH'!R71 -> 61.4546027 | BG14: ='PAL Mtr Test 3ph BH'!R73 -> 42.71094887 | BH14: 652.8673614 | BI14: ='PAL Mtr Test 3ph BH'!S68 -> 505.3840554 | BJ14: ='PAL Mtr Test 3ph BH'!$S69 -> 0 | BK14: ='PAL Mtr Test 3ph BH'!$S70 -> 0 | BL14: ='PAL Mtr Test 3ph BH'!S72 -> 52.55994176 | BM14: ='PAL Mtr Test 3ph BH'!S71 -> 62.48972768 | BN14: ='PAL Mtr Test 3ph BH'!S73 -> 43.43036074 | BO14: 663.8640856 | BP14: =SUM(AM14,AT14,BA14,BH14,BO14)-SUM('PAL Mtr Test 3ph BH'!O75:S75) -> 0
B15: Meter Accuracy Test - multi phase (AH) | C15: =$H15*'2011-15 % split'!C15 -> 456.36 | D15: =$H15*'2011-15 % split'!D15 -> 0 | E15: =$H15*'2011-15 % split'!E15 -> 0 | F15: =$H15*'2011-15 % split'!F15 -> 0 | G15: =$H15*'2011-15 % split'!G15 -> 0 | H15: ='2011-15 rates summary'!D15 -> 456.36 | I15: =$N15*'2011-15 % split'!I15 -> 478.28 | J15: =$N15*'2011-15 % split'!J15 -> 0 | K15: =$N15*'2011-15 % split'!K15 -> 0 | L15: =$N15*'2011-15 % split'!L15 -> 0 | M15: =$N15*'2011-15 % split'!M15 -> 0 | N15: ='2011-15 rates summary'!G15 -> 478.28 | O15: =$T15*'2011-15 % split'!O15 -> 496.69 | P15: =$T15*'2011-15 % split'!P15 -> 0 | Q15: =$T15*'2011-15 % split'!Q15 -> 0 | R15: =$T15*'2011-15 % split'!R15 -> 0 | S15: =$T15*'2011-15 % split'!S15 -> 0 | T15: ='2011-15 rates summary'!J15 -> 496.69 | U15: =$Z15*'2011-15 % split'!U15 -> 520.97 | V15: =$Z15*'2011-15 % split'!V15 -> 0 | W15: =$Z15*'2011-15 % split'!W15 -> 0 | X15: =$Z15*'2011-15 % split'!X15 -> 0 | Y15: =$Z15*'2011-15 % split'!Y15 -> 0 | Z15: ='2011-15 rates summary'!M15 -> 520.97 | AA15: =$AF15*'2011-15 % split'!AA15 -> 538.32 | AB15: =$AF15*'2011-15 % split'!AB15 -> 0 | AC15: =$AF15*'2011-15 % split'!AC15 -> 0 | AD15: =$AF15*'2011-15 % split'!AD15 -> 0 | AE15: =$AF15*'2011-15 % split'!AE15 -> 0 | AF15: ='2011-15 rates summary'!P15 -> 538.32 | AG15: ='PAL Mtr Test 3ph AH'!$O68 -> 546.5316407 | AH15: ='PAL Mtr Test 3ph AH'!$O69 -> 0 | AI15: ='PAL Mtr Test 3ph AH'!$O70 -> 0 | AJ15: ='PAL Mtr Test 3ph AH'!O72 -> 56.83929063 | AK15: ='PAL Mtr Test 3ph AH'!O71 -> 67.5775443 | AL15: ='PAL Mtr Test 3ph AH'!O73 -> 46.96639329 | AM15: 717.9148689 | AN15: ='PAL Mtr Test 3ph AH'!P68 -> 555.7372743 | AO15: ='PAL Mtr Test 3ph AH'!$P69 -> 0 | AP15: ='PAL Mtr Test 3ph AH'!$P70 -> 0 | AQ15: ='PAL Mtr Test 3ph AH'!P72 -> 57.79667652 | AR15: ='PAL Mtr Test 3ph AH'!P71 -> 68.71580249 | AS15: ='PAL Mtr Test 3ph AH'!P73 -> 47.75748273 | AT15: 730.007236 | AU15: ='PAL Mtr Test 3ph AH'!Q68 -> 565.0979651 | AV15: ='PAL Mtr Test 3ph AH'!$Q69 -> 0 | AW15: ='PAL Mtr Test 3ph AH'!$Q70 -> 0 | AX15: ='PAL Mtr Test 3ph AH'!Q72 -> 58.77018837 | AY15: ='PAL Mtr Test 3ph AH'!Q71 -> 69.87323319 | AZ15: ='PAL Mtr Test 3ph AH'!Q73 -> 48.56189707 | BA15: 742.3032838 | BB15: ='PAL Mtr Test 3ph AH'!R68 -> 574.616325 | BC15: ='PAL Mtr Test 3ph AH'!$R69 -> 0 | BD15: ='PAL Mtr Test 3ph AH'!$R70 -> 0 | BE15: ='PAL Mtr Test 3ph AH'!R72 -> 59.7600978 | BF15: ='PAL Mtr Test 3ph AH'!R71 -> 71.05015935 | BG15: ='PAL Mtr Test 3ph AH'!R73 -> 49.37986075 | BH15: 754.8064429 | BI15: ='PAL Mtr Test 3ph AH'!S68 -> 584.2950095 | BJ15: ='PAL Mtr Test 3ph AH'!$S69 -> 0 | BK15: ='PAL Mtr Test 3ph AH'!$S70 -> 0 | BL15: ='PAL Mtr Test 3ph AH'!S72 -> 60.76668099 | BM15: ='PAL Mtr Test 3ph AH'!S71 -> 72.24690934 | BN15: ='PAL Mtr Test 3ph AH'!S73 -> 50.21160199 | BO15: 767.5202018 | BP15: =SUM(AM15,AT15,BA15,BH15,BO15)-SUM('PAL Mtr Test 3ph AH'!O75:S75) -> 0
B16: Meter Accuracy Test - Multi phase additional meter (BH) | C16: =$H16*'2011-15 % split'!C16 -> 223.58 | D16: =$H16*'2011-15 % split'!D16 -> 0 | E16: =$H16*'2011-15 % split'!E16 -> 0 | F16: =$H16*'2011-15 % split'!F16 -> 0 | G16: =$H16*'2011-15 % split'!G16 -> 0 | H16: ='2011-15 rates summary'!D16 -> 223.58 | I16: =$N16*'2011-15 % split'!I16 -> 234.31 | J16: =$N16*'2011-15 % split'!J16 -> 0 | K16: =$N16*'2011-15 % split'!K16 -> 0 | L16: =$N16*'2011-15 % split'!L16 -> 0 | M16: =$N16*'2011-15 % split'!M16 -> 0 | N16: ='2011-15 rates summary'!G16 -> 234.31 | O16: =$T16*'2011-15 % split'!O16 -> 243.33 | P16: =$T16*'2011-15 % split'!P16 -> 0 | Q16: =$T16*'2011-15 % split'!Q16 -> 0 | R16: =$T16*'2011-15 % split'!R16 -> 0 | S16: =$T16*'2011-15 % split'!S16 -> 0 | T16: ='2011-15 rates summary'!J16 -> 243.33 | U16: =$Z16*'2011-15 % split'!U16 -> 255.22 | V16: =$Z16*'2011-15 % split'!V16 -> 0 | W16: =$Z16*'2011-15 % split'!W16 -> 0 | X16: =$Z16*'2011-15 % split'!X16 -> 0 | Y16: =$Z16*'2011-15 % split'!Y16 -> 0 | Z16: ='2011-15 rates summary'!M16 -> 255.22 | AA16: =$AF16*'2011-15 % split'!AA16 -> 263.72 | AB16: =$AF16*'2011-15 % split'!AB16 -> 0 | AC16: =$AF16*'2011-15 % split'!AC16 -> 0 | AD16: =$AF16*'2011-15 % split'!AD16 -> 0 | AE16: =$AF16*'2011-15 % split'!AE16 -> 0 | AF16: ='2011-15 rates summary'!P16 -> 263.72 | AG16: ='PAL Mtr Test ext mtr 3ph BH'!$O68 -> 251.3455032 | AH16: ='PAL Mtr Test ext mtr 3ph BH'!$O69 -> 0 | AI16: ='PAL Mtr Test ext mtr 3ph BH'!$O$70 -> 0 | AJ16: ='PAL Mtr Test ext mtr 3ph BH'!O$72 -> 26.13993234 | AK16: ='PAL Mtr Test ext mtr 3ph BH'!O$71 -> 31.07836879 | AL16: ='PAL Mtr Test ext mtr 3ph BH'!O$73 -> 21.59946631 | AM16: 330.1632707 | AN16: ='PAL Mtr Test ext mtr 3ph BH'!P$68 -> 255.5791001 | AO16: ='PAL Mtr Test ext mtr 3ph BH'!$P69 -> 0 | AP16: ='PAL Mtr Test ext mtr 3ph BH'!$P$70 -> 0 | AQ16: ='PAL Mtr Test ext mtr 3ph BH'!P$72 -> 26.58022641 | AR16: ='PAL Mtr Test ext mtr 3ph BH'!P$71 -> 31.60184456 | AS16: ='PAL Mtr Test ext mtr 3ph BH'!P$73 -> 21.96328197 | AT16: 335.724453 | AU16: ='PAL Mtr Test ext mtr 3ph BH'!Q$68 -> 259.8840065 | AV16: ='PAL Mtr Test ext mtr 3ph BH'!$Q69 -> 0 | AW16: ='PAL Mtr Test ext mtr 3ph BH'!$Q$70 -> 0 | AX16: ='PAL Mtr Test ext mtr 3ph BH'!Q$72 -> 27.02793667 | AY16: ='PAL Mtr Test ext mtr 3ph BH'!Q$71 -> 32.13413763 | AZ16: ='PAL Mtr Test ext mtr 3ph BH'!Q$73 -> 22.33322565 | BA16: 341.3793064 | BB16: ='PAL Mtr Test ext mtr 3ph BH'!R$68 -> 264.2614235 | BC16: ='PAL Mtr Test ext mtr 3ph BH'!$R69 -> 0 | BD16: ='PAL Mtr Test ext mtr 3ph BH'!$R$70 -> 0 | BE16: ='PAL Mtr Test ext mtr 3ph BH'!R$72 -> 27.48318805 | BF16: ='PAL Mtr Test ext mtr 3ph BH'!R$71 -> 32.6753965 | BG16: ='PAL Mtr Test ext mtr 3ph BH'!R$73 -> 22.70940057 | BH16: 347.1294087 | BI16: ='PAL Mtr Test ext mtr 3ph BH'!S$68 -> 268.7125727 | BJ16: ='PAL Mtr Test ext mtr 3ph BH'!$S69 -> 0 | BK16: ='PAL Mtr Test ext mtr 3ph BH'!$S$70 -> 0 | BL16: ='PAL Mtr Test ext mtr 3ph BH'!S$72 -> 27.94610756 | BM16: ='PAL Mtr Test ext mtr 3ph BH'!S$71 -> 33.22577219 | BN16: ='PAL Mtr Test ext mtr 3ph BH'!S$73 -> 23.09191167 | BO16: 352.9763641 | BP16: =SUM(AM16,AT16,BA16,BH16,BO16)-SUM('PAL Mtr Test ext mtr 3ph BH'!O75:S75) -> 0
B17: Meter Accuracy Test - CT (BH) | C17: =$H17*'2011-15 % split'!C17 -> 406.75 | D17: =$H17*'2011-15 % split'!D17 -> 0 | E17: =$H17*'2011-15 % split'!E17 -> 0 | F17: =$H17*'2011-15 % split'!F17 -> 0 | G17: =$H17*'2011-15 % split'!G17 -> 0 | H17: ='2011-15 rates summary'!D17 -> 406.75 | I17: =$N17*'2011-15 % split'!I17 -> 426.28 | J17: =$N17*'2011-15 % split'!J17 -> 0 | K17: =$N17*'2011-15 % split'!K17 -> 0 | L17: =$N17*'2011-15 % split'!L17 -> 0 | M17: =$N17*'2011-15 % split'!M17 -> 0 | N17: ='2011-15 rates summary'!G17 -> 426.28 | O17: =$T17*'2011-15 % split'!O17 -> 442.69 | P17: =$T17*'2011-15 % split'!P17 -> 0 | Q17: =$T17*'2011-15 % split'!Q17 -> 0 | R17: =$T17*'2011-15 % split'!R17 -> 0 | S17: =$T17*'2011-15 % split'!S17 -> 0 | T17: ='2011-15 rates summary'!J17 -> 442.69 | U17: =$Z17*'2011-15 % split'!U17 -> 464.33 | V17: =$Z17*'2011-15 % split'!V17 -> 0 | W17: =$Z17*'2011-15 % split'!W17 -> 0 | X17: =$Z17*'2011-15 % split'!X17 -> 0 | Y17: =$Z17*'2011-15 % split'!Y17 -> 0 | Z17: ='2011-15 rates summary'!M17 -> 464.33 | AA17: =$AF17*'2011-15 % split'!AA17 -> 479.79 | AB17: =$AF17*'2011-15 % split'!AB17 -> 0 | AC17: =$AF17*'2011-15 % split'!AC17 -> 0 | AD17: =$AF17*'2011-15 % split'!AD17 -> 0 | AE17: =$AF17*'2011-15 % split'!AE17 -> 0 | AF17: ='2011-15 rates summary'!P17 -> 479.79 | AG17: ='PAL Mtr Test CT ph BH'!$O68 -> 463.6444762 | AH17: ='PAL Mtr Test CT ph BH'!$O69 -> 0 | AI17: ='PAL Mtr Test CT ph BH'!$O70 -> 0 | AJ17: ='PAL Mtr Test CT ph BH'!O72 -> 48.21902553 | AK17: ='PAL Mtr Test CT ph BH'!O71 -> 57.3287122 | AL17: ='PAL Mtr Test CT ph BH'!O73 -> 39.84345498 | AM17: 609.0356689 | AN17: ='PAL Mtr Test CT ph BH'!P68 -> 471.4539805 | AO17: ='PAL Mtr Test CT ph BH'!$P69 -> 0 | AP17: ='PAL Mtr Test CT ph BH'!$P70 -> 0 | AQ17: ='PAL Mtr Test CT ph BH'!P72 -> 49.03121397 | AR17: ='PAL Mtr Test CT ph BH'!P71 -> 58.29434178 | AS17: ='PAL Mtr Test CT ph BH'!P73 -> 40.51456754 | AT17: 619.2941038 | AU17: ='PAL Mtr Test CT ph BH'!Q68 -> 479.3950259 | AV17: ='PAL Mtr Test CT ph BH'!$Q69 -> 0 | AW17: ='PAL Mtr Test CT ph BH'!$Q70 -> 0 | AX17: ='PAL Mtr Test CT ph BH'!Q72 -> 49.8570827 | AY17: ='PAL Mtr Test CT ph BH'!Q71 -> 59.27623617 | AZ17: ='PAL Mtr Test CT ph BH'!Q73 -> 41.19698414 | BA17: 629.7253289 | BB17: ='PAL Mtr Test CT ph BH'!R68 -> 487.4698283 | BC17: ='PAL Mtr Test CT ph BH'!$R69 -> 0 | BD17: ='PAL Mtr Test CT ph BH'!$R70 -> 0 | BE17: ='PAL Mtr Test CT ph BH'!R72 -> 50.69686214 | BF17: ='PAL Mtr Test CT ph BH'!R71 -> 60.27466933 | BG17: ='PAL Mtr Test CT ph BH'!R73 -> 41.89089518 | BH17: 640.3322549 | BI17: ='PAL Mtr Test CT ph BH'!S68 -> 495.6806404 | BJ17: ='PAL Mtr Test CT ph BH'!$S69 -> 0 | BK17: ='PAL Mtr Test CT ph BH'!$S70 -> 0 | BL17: ='PAL Mtr Test CT ph BH'!S72 -> 51.5507866 | BM17: ='PAL Mtr Test CT ph BH'!S71 -> 61.28991983 | BN17: ='PAL Mtr Test CT ph BH'!S73 -> 42.59649428 | BO17: 651.1178411 | BP17: =SUM(AM17,AT17,BA17,BH17,BO17)-SUM('PAL Mtr Test CT ph BH'!O75:S75) -> 0
B18: Meter Accuracy Test - CT (AH) | C18: =$H18*'2011-15 % split'!C18 -> 447.27 | D18: =$H18*'2011-15 % split'!D18 -> 0 | E18: =$H18*'2011-15 % split'!E18 -> 0 | F18: =$H18*'2011-15 % split'!F18 -> 0 | G18: =$H18*'2011-15 % split'!G18 -> 0 | H18: ='2011-15 rates summary'!D18 -> 447.27 | I18: =$N18*'2011-15 % split'!I18 -> 468.75 | J18: =$N18*'2011-15 % split'!J18 -> 0 | K18: =$N18*'2011-15 % split'!K18 -> 0 | L18: =$N18*'2011-15 % split'!L18 -> 0 | M18: =$N18*'2011-15 % split'!M18 -> 0 | N18: ='2011-15 rates summary'!G18 -> 468.75 | O18: =$T18*'2011-15 % split'!O18 -> 486.79 | P18: =$T18*'2011-15 % split'!P18 -> 0 | Q18: =$T18*'2011-15 % split'!Q18 -> 0 | R18: =$T18*'2011-15 % split'!R18 -> 0 | S18: =$T18*'2011-15 % split'!S18 -> 0 | T18: ='2011-15 rates summary'!J18 -> 486.79 | U18: =$Z18*'2011-15 % split'!U18 -> 510.58 | V18: =$Z18*'2011-15 % split'!V18 -> 0 | W18: =$Z18*'2011-15 % split'!W18 -> 0 | X18: =$Z18*'2011-15 % split'!X18 -> 0 | Y18: =$Z18*'2011-15 % split'!Y18 -> 0 | Z18: ='2011-15 rates summary'!M18 -> 510.58 | AA18: =$AF18*'2011-15 % split'!AA18 -> 527.58 | AB18: =$AF18*'2011-15 % split'!AB18 -> 0 | AC18: =$AF18*'2011-15 % split'!AC18 -> 0 | AD18: =$AF18*'2011-15 % split'!AD18 -> 0 | AE18: =$AF18*'2011-15 % split'!AE18 -> 0 | AF18: ='2011-15 rates summary'!P18 -> 527.58 | AG18: ='PAL Mtr Test CT ph AH'!$O68 -> 535.8726741 | AH18: ='PAL Mtr Test CT ph AH'!$O69 -> 0 | AI18: ='PAL Mtr Test CT ph AH'!$O70 -> 0 | AJ18: ='PAL Mtr Test CT ph AH'!O72 -> 55.73075811 | AK18: ='PAL Mtr Test CT ph AH'!O71 -> 66.25958441 | AL18: ='PAL Mtr Test CT ph AH'!O73 -> 46.05041117 | AM18: 703.9134278 | AN18: ='PAL Mtr Test CT ph AH'!P68 -> 544.898771 | AO18: ='PAL Mtr Test CT ph AH'!$P69 -> 0 | AP18: ='PAL Mtr Test CT ph AH'!$P70 -> 0 | AQ18: ='PAL Mtr Test CT ph AH'!P72 -> 56.66947218 | AR18: ='PAL Mtr Test CT ph AH'!P71 -> 67.37564323 | AS18: ='PAL Mtr Test CT ph AH'!P73 -> 46.82607205 | AT18: 715.7699584 | AU18: ='PAL Mtr Test CT ph AH'!Q68 -> 554.0769009 | AV18: ='PAL Mtr Test CT ph AH'!$Q69 -> 0 | AW18: ='PAL Mtr Test CT ph AH'!$Q70 -> 0 | AX18: ='PAL Mtr Test CT ph AH'!Q72 -> 57.6239977 | AY18: ='PAL Mtr Test CT ph AH'!Q71 -> 68.51050065 | AZ18: ='PAL Mtr Test CT ph AH'!Q73 -> 47.61479795 | BA18: 727.8261972 | BB18: ='PAL Mtr Test CT ph AH'!R68 -> 563.4096249 | BC18: ='PAL Mtr Test CT ph AH'!$R69 -> 0 | BD18: ='PAL Mtr Test CT ph AH'!$R70 -> 0 | BE18: ='PAL Mtr Test CT ph AH'!R72 -> 58.59460099 | BF18: ='PAL Mtr Test CT ph AH'!R71 -> 69.6644733 | BG18: ='PAL Mtr Test CT ph AH'!R73 -> 48.41680894 | BH18: 740.0855081 | BI18: ='PAL Mtr Test CT ph AH'!S68 -> 572.8995468 | BJ18: ='PAL Mtr Test CT ph AH'!$S69 -> 0 | BK18: ='PAL Mtr Test CT ph AH'!$S70 -> 0 | BL18: ='PAL Mtr Test CT ph AH'!S72 -> 59.58155287 | BM18: ='PAL Mtr Test CT ph AH'!S71 -> 70.83788316 | BN18: ='PAL Mtr Test CT ph AH'!S73 -> 49.2323288 | BO18: 752.5513116 | BP18: =SUM(AM18,AT18,BA18,BH18,BO18)-SUM('PAL Mtr Test CT ph AH'!O75:S75) -> 0
B20: Disconnection (BH only) | C20: =$H20*'2011-15 % split'!C20 -> 4.709688172 | D20: =$H20*'2011-15 % split'!D20 -> 0 | E20: =$H20*'2011-15 % split'!E20 -> 14.54031183 | F20: =$H20*'2011-15 % split'!F20 -> 0 | G20: =$H20*'2011-15 % split'!G20 -> 0 | H20: ='2011-15 rates summary'!D23 -> 19.25 | I20: =$N20*'2011-15 % split'!I20 -> 5.050503339 | J20: =$N20*'2011-15 % split'!J20 -> 0 | K20: =$N20*'2011-15 % split'!K20 -> 23.15949666 | L20: =$N20*'2011-15 % split'!L20 -> 0 | M20: =$N20*'2011-15 % split'!M20 -> 0 | N20: ='2011-15 rates summary'!G23 -> 28.21 | O20: =$T20*'2011-15 % split'!O20 -> 5.270927944 | P20: =$T20*'2011-15 % split'!P20 -> 0 | Q20: =$T20*'2011-15 % split'!Q20 -> 31.94907206 | R20: =$T20*'2011-15 % split'!R20 -> 0 | S20: =$T20*'2011-15 % split'!S20 -> 0 | T20: ='2011-15 rates summary'!J23 -> 37.22 | U20: =$Z20*'2011-15 % split'!U20 -> 5.48325347 | V20: =$Z20*'2011-15 % split'!V20 -> 0 | W20: =$Z20*'2011-15 % split'!W20 -> 32.60674653 | X20: =$Z20*'2011-15 % split'!X20 -> 0 | Y20: =$Z20*'2011-15 % split'!Y20 -> 0 | Z20: ='2011-15 rates summary'!M23 -> 38.09 | AA20: =$AF20*'2011-15 % split'!AA20 -> 5.687188902 | AB20: =$AF20*'2011-15 % split'!AB20 -> 0 | AC20: =$AF20*'2011-15 % split'!AC20 -> 33.3328111 | AD20: =$AF20*'2011-15 % split'!AD20 -> 0 | AE20: =$AF20*'2011-15 % split'!AE20 -> 0 | AF20: ='2011-15 rates summary'!P23 -> 39.02 | AG20: ='PAL Disc DNP BH'!O36 -> 7.76854607 | AH20: ='PAL Disc DNP BH'!O37 -> 0 | AI20: ='PAL Disc DNP BH'!O38 -> 33.0735767 | AJ20: ='PAL Disc DNP BH'!O40 -> 4.247580768 | AK20: ='PAL Disc DNP BH'!O39 -> 5.050046796 | AL20: ='PAL Disc DNP BH'!O41 -> 3.509782523 | AM20: =SUM(AG20:AL20) -> 53.64953285 | AN20: ='PAL Disc DNP BH'!P36 -> 7.899397394 | AO20: ='PAL Disc DNP BH'!P37 -> 0 | AP20: ='PAL Disc DNP BH'!P38 -> 33.53293193 | AQ20: ='PAL Disc DNP BH'!P40 -> 4.30896225 | AR20: ='PAL Disc DNP BH'!P39 -> 5.123024656 | AS20: ='PAL Disc DNP BH'!P41 -> 3.560502136 | AT20: =SUM(AN20:AS20) -> 54.42481836 | AU20: ='PAL Disc DNP BH'!Q36 -> 8.032452743 | AV20: ='PAL Disc DNP BH'!Q37 -> 0 | AW20: ='PAL Disc DNP BH'!Q38 -> 33.98886214 | AX20: ='PAL Disc DNP BH'!Q40 -> 4.370216748 | AY20: ='PAL Disc DNP BH'!Q39 -> 5.195851543 | AZ20: ='PAL Disc DNP BH'!Q41 -> 3.611116822 | BA20: =SUM(AU20:AZ20) -> 55.1985 | BB20: ='PAL Disc DNP BH'!R36 -> 8.167749241 | BC20: ='PAL Disc DNP BH'!R37 -> 0 | BD20: ='PAL Disc DNP BH'!R38 -> 34.4592733 | BE20: ='PAL Disc DNP BH'!R40 -> 4.433210344 | BF20: ='PAL Disc DNP BH'!R39 -> 5.270746083 | BG20: ='PAL Disc DNP BH'!R41 -> 3.663168527 | BH20: =SUM(BB20:BG20) -> 55.99414749 | BI20: ='PAL Disc DNP BH'!S36 -> 8.305324637 | BJ20: ='PAL Disc DNP BH'!S37 -> 0 | BK20: ='PAL Disc DNP BH'!S38 -> 34.95802594 | BL20: ='PAL Disc DNP BH'!S40 -> 4.49938846 | BM20: ='PAL Disc DNP BH'!S39 -> 5.349426772 | BN20: ='PAL Disc DNP BH'!S41 -> 3.717851606 | BO20: =SUM(BI20:BN20) -> 56.83001741 | BP20: =SUM(AM20,AT20,BA20,BH20,BO20)-SUM('PAL Disc DNP BH'!O43:S43) -> 0
B21: Disconnection (no AH service) | C21: =$H21*'2011-15 % split'!C21 -> 0 | D21: =$H21*'2011-15 % split'!D21 -> 0 | E21: =$H21*'2011-15 % split'!E21 -> 0 | F21: =$H21*'2011-15 % split'!F21 -> 0 | G21: =$H21*'2011-15 % split'!G21 -> 0 | H21: ='2011-15 rates summary'!D24 -> 0 | I21: =$N21*'2011-15 % split'!I21 -> 0 | J21: =$N21*'2011-15 % split'!J21 -> 0 | K21: =$N21*'2011-15 % split'!K21 -> 0 | L21: =$N21*'2011-15 % split'!L21 -> 0 | M21: =$N21*'2011-15 % split'!M21 -> 0 | N21: ='2011-15 rates summary'!G24 -> 0 | O21: =$T21*'2011-15 % split'!O21 -> 0 | P21: =$T21*'2011-15 % split'!P21 -> 0 | Q21: =$T21*'2011-15 % split'!Q21 -> 0 | R21: =$T21*'2011-15 % split'!R21 -> 0 | S21: =$T21*'2011-15 % split'!S21 -> 0 | T21: ='2011-15 rates summary'!J24 -> 0 | U21: =$Z21*'2011-15 % split'!U21 -> 0 | V21: =$Z21*'2011-15 % split'!V21 -> 0 | W21: =$Z21*'2011-15 % split'!W21 -> 0 | X21: =$Z21*'2011-15 % split'!X21 -> 0 | Y21: =$Z21*'2011-15 % split'!Y21 -> 0 | Z21: ='2011-15 rates summary'!M24 -> 0 | AA21: =$AF21*'2011-15 % split'!AA21 -> 0 | AB21: =$AF21*'2011-15 % split'!AB21 -> 0 | AC21: =$AF21*'2011-15 % split'!AC21 -> 0 | AD21: =$AF21*'2011-15 % split'!AD21 -> 0 | AE21: =$AF21*'2011-15 % split'!AE21 -> 0 | AF21: ='2011-15 rates summary'!P24 -> 0
B22: Disconnection for non payment (BH only) | C22: =$H22*'2011-15 % split'!C22 -> 4.709688172 | D22: =$H22*'2011-15 % split'!D22 -> 0 | E22: =$H22*'2011-15 % split'!E22 -> 14.54031183 | F22: =$H22*'2011-15 % split'!F22 -> 0 | G22: =$H22*'2011-15 % split'!G22 -> 0 | H22: ='2011-15 rates summary'!D25 -> 19.25 | I22: =$N22*'2011-15 % split'!I22 -> 5.050503339 | J22: =$N22*'2011-15 % split'!J22 -> 0 | K22: =$N22*'2011-15 % split'!K22 -> 23.15949666 | L22: =$N22*'2011-15 % split'!L22 -> 0 | M22: =$N22*'2011-15 % split'!M22 -> 0 | N22: ='2011-15 rates summary'!G25 -> 28.21 | O22: =$T22*'2011-15 % split'!O22 -> 5.270927944 | P22: =$T22*'2011-15 % split'!P22 -> 0 | Q22: =$T22*'2011-15 % split'!Q22 -> 31.94907206 | R22: =$T22*'2011-15 % split'!R22 -> 0 | S22: =$T22*'2011-15 % split'!S22 -> 0 | T22: ='2011-15 rates summary'!J25 -> 37.22 | U22: =$Z22*'2011-15 % split'!U22 -> 5.48325347 | V22: =$Z22*'2011-15 % split'!V22 -> 0 | W22: =$Z22*'2011-15 % split'!W22 -> 32.60674653 | X22: =$Z22*'2011-15 % split'!X22 -> 0 | Y22: =$Z22*'2011-15 % split'!Y22 -> 0 | Z22: ='2011-15 rates summary'!M25 -> 38.09 | AA22: =$AF22*'2011-15 % split'!AA22 -> 5.687188902 | AB22: =$AF22*'2011-15 % split'!AB22 -> 0 | AC22: =$AF22*'2011-15 % split'!AC22 -> 33.3328111 | AD22: =$AF22*'2011-15 % split'!AD22 -> 0 | AE22: =$AF22*'2011-15 % split'!AE22 -> 0 | AF22: ='2011-15 rates summary'!P25 -> 39.02 | AG22: =AG20 -> 7.76854607 | AH22: =AH20 -> 0 | AI22: 33.0735767 | AJ22: 4.247580768 | AK22: 5.050046796 | AL22: 3.509782523 | AM22: 53.64953285 | AN22: =AN20 -> 7.899397394 | AO22: =AO20 -> 0 | AP22: 33.53293193 | AQ22: 4.30896225 | AR22: 5.123024656 | AS22: 3.560502136 | AT22: 54.42481836 | AU22: =AU20 -> 8.032452743 | AV22: =AV20 -> 0 | AW22: 33.98886214 | AX22: 4.370216748 | AY22: 5.195851543 | AZ22: 3.611116822 | BA22: 55.1985 | BB22: =BB20 -> 8.167749241 | BC22: =BC20 -> 0 | BD22: 34.4592733 | BE22: 4.433210344 | BF22: 5.270746083 | BG22: 3.663168527 | BH22: 55.99414749 | BI22: =BI20 -> 8.305324637 | BJ22: =BJ20 -> 0 | BK22: 34.95802594 | BL22: 4.49938846 | BM22: 5.349426772 | BN22: 3.717851606 | BO22: 56.83001741 | BP22: =BP20 -> 0
B23: Reconnections (incl Customer Transfer) BH | C23: =$H23*'2011-15 % split'!C23 -> 4.709276891 | D23: =$H23*'2011-15 % split'!D23 -> 0 | E23: =$H23*'2011-15 % split'!E23 -> 13.48072311 | F23: =$H23*'2011-15 % split'!F23 -> 0 | G23: =$H23*'2011-15 % split'!G23 -> 0 | H23: ='2011-15 rates summary'!D20 -> 18.19 | I23: =$N23*'2011-15 % split'!I23 -> 5.076364034 | J23: =$N23*'2011-15 % split'!J23 -> 0 | K23: =$N23*'2011-15 % split'!K23 -> 21.58363597 | L23: =$N23*'2011-15 % split'!L23 -> 0 | M23: =$N23*'2011-15 % split'!M23 -> 0 | N23: ='2011-15 rates summary'!G20 -> 26.66 | O23: =$T23*'2011-15 % split'!O23 -> 5.312561615 | P23: =$T23*'2011-15 % split'!P23 -> 0 | Q23: =$T23*'2011-15 % split'!Q23 -> 29.85743839 | R23: =$T23*'2011-15 % split'!R23 -> 0 | S23: =$T23*'2011-15 % split'!S23 -> 0 | T23: ='2011-15 rates summary'!J20 -> 35.17 | U23: =$Z23*'2011-15 % split'!U23 -> 5.52524079 | V23: =$Z23*'2011-15 % split'!V23 -> 0 | W23: =$Z23*'2011-15 % split'!W23 -> 30.46475921 | X23: =$Z23*'2011-15 % split'!X23 -> 0 | Y23: =$Z23*'2011-15 % split'!Y23 -> 0 | Z23: ='2011-15 rates summary'!M20 -> 35.99 | AA23: =$AF23*'2011-15 % split'!AA23 -> 5.730137106 | AB23: =$AF23*'2011-15 % split'!AB23 -> 0 | AC23: =$AF23*'2011-15 % split'!AC23 -> 31.13986289 | AD23: =$AF23*'2011-15 % split'!AD23 -> 0 | AE23: =$AF23*'2011-15 % split'!AE23 -> 0 | AF23: ='2011-15 rates summary'!P20 -> 36.87 | AG23: ='PAL Reconn BH'!O$38 -> 7.76854607 | AH23: ='PAL Reconn BH'!O$39 -> 0 | AI23: ='PAL Reconn BH'!O$40 -> 30.6661008 | AJ23: ='PAL Reconn BH'!O$42 -> 3.997203274 | AK23: ='PAL Reconn BH'!O$41 -> 4.752367216 | AL23: ='PAL Reconn BH'!O$43 -> 3.302895215 | AM23: 50.48711257 | AN23: ='PAL Reconn BH'!P$38 -> 7.899397394 | AO23: ='PAL Reconn BH'!P$39 -> 0 | AP23: ='PAL Reconn BH'!P$40 -> 31.09201886 | AQ23: ='PAL Reconn BH'!P$42 -> 4.055107291 | AR23: ='PAL Reconn BH'!P$41 -> 4.821210637 | AS23: ='PAL Reconn BH'!P$43 -> 3.350741393 | AT23: 51.21847558 | AU23: ='PAL Reconn BH'!Q$38 -> 8.032452743 | AV23: ='PAL Reconn BH'!Q$39 -> 0 | AW23: ='PAL Reconn BH'!Q$40 -> 31.51476122 | AX23: ='PAL Reconn BH'!Q$42 -> 4.112910253 | AY23: ='PAL Reconn BH'!Q$41 -> 4.889933913 | AZ23: ='PAL Reconn BH'!Q$43 -> 3.398504069 | BA23: 51.9485622 | BB23: ='PAL Reconn BH'!R$38 -> 8.167749241 | BC23: ='PAL Reconn BH'!R$39 -> 0 | BD23: ='PAL Reconn BH'!R$40 -> 31.95093043 | BE23: ='PAL Reconn BH'!R$42 -> 4.172342686 | BF23: ='PAL Reconn BH'!R$41 -> 4.960594504 | BG23: ='PAL Reconn BH'!R$43 -> 3.447613181 | BH23: 52.69923005 | BI23: ='PAL Reconn BH'!S$38 -> 8.305324637 | BJ23: ='PAL Reconn BH'!S$39 -> 0 | BK23: ='PAL Reconn BH'!S$40 -> 32.41337811 | BL23: ='PAL Reconn BH'!S$42 -> 4.234745086 | BM23: ='PAL Reconn BH'!S$41 -> 5.034786157 | BN23: ='PAL Reconn BH'!S$43 -> 3.499176379 | BO23: 53.48741037 | BP23: =SUM(AM23,AT23,BA23,BH23,BO23)-SUM('PAL Reconn BH'!O45:S45) -> 0
B24: Reconnections (same day) BH | C24: =$H24*'2011-15 % split'!C24 -> 4.710482395 | D24: =$H24*'2011-15 % split'!D24 -> 0 | E24: =$H24*'2011-15 % split'!E24 -> 24.0495176 | F24: =$H24*'2011-15 % split'!F24 -> 0 | G24: =$H24*'2011-15 % split'!G24 -> 0 | H24: ='2011-15 rates summary'!D21 -> 28.76 | I24: =$N24*'2011-15 % split'!I24 -> 4.910742298 | J24: =$N24*'2011-15 % split'!J24 -> 0 | K24: =$N24*'2011-15 % split'!K24 -> 37.2392577 | L24: =$N24*'2011-15 % split'!L24 -> 0 | M24: =$N24*'2011-15 % split'!M24 -> 0 | N24: ='2011-15 rates summary'!G21 -> 42.15 | O24: =$T24*'2011-15 % split'!O24 -> 5.044559067 | P24: =$T24*'2011-15 % split'!P24 -> 0 | Q24: =$T24*'2011-15 % split'!Q24 -> 50.56544093 | R24: =$T24*'2011-15 % split'!R24 -> 0 | S24: =$T24*'2011-15 % split'!S24 -> 0 | T24: ='2011-15 rates summary'!J21 -> 55.61 | U24: =$Z24*'2011-15 % split'!U24 -> 5.25292553 | V24: =$Z24*'2011-15 % split'!V24 -> 0 | W24: =$Z24*'2011-15 % split'!W24 -> 51.65707447 | X24: =$Z24*'2011-15 % split'!X24 -> 0 | Y24: =$Z24*'2011-15 % split'!Y24 -> 0 | Z24: ='2011-15 rates summary'!M21 -> 56.91 | AA24: =$AF24*'2011-15 % split'!AA24 -> 5.452443874 | AB24: =$AF24*'2011-15 % split'!AB24 -> 0 | AC24: =$AF24*'2011-15 % split'!AC24 -> 52.84755613 | AD24: =$AF24*'2011-15 % split'!AD24 -> 0 | AE24: =$AF24*'2011-15 % split'!AE24 -> 0 | AF24: ='2011-15 rates summary'!P21 -> 58.3 | AG24: ='PAL Reconn Sday BH'!O35 -> 7.76854607 | AH24: ='PAL Reconn Sday BH'!O36 -> 0 | AI24: ='PAL Reconn Sday BH'!O37 -> 54.6941127 | AJ24: ='PAL Reconn Sday BH'!O39 -> 6.496116512 | AK24: ='PAL Reconn Sday BH'!O38 -> 7.723382831 | AL24: ='PAL Reconn Sday BH'!O40 -> 5.367751068 | AM24: 82.04990918 | AN24: ='PAL Reconn Sday BH'!P35 -> 7.899397394 | AO24: ='PAL Reconn Sday BH'!P36 -> 0 | AP24: ='PAL Reconn Sday BH'!P37 -> 55.45375315 | AQ24: ='PAL Reconn Sday BH'!P39 -> 6.588727657 | AR24: ='PAL Reconn Sday BH'!P38 -> 7.833490359 | AS24: ='PAL Reconn Sday BH'!P40 -> 5.444275799 | AT24: 83.21964436 | AU24: ='PAL Reconn Sday BH'!Q35 -> 8.032452743 | AV24: ='PAL Reconn Sday BH'!Q36 -> 0 | AW24: ='PAL Reconn Sday BH'!Q37 -> 56.20772962 | AX24: ='PAL Reconn Sday BH'!Q39 -> 6.680978966 | AY24: ='PAL Reconn Sday BH'!Q38 -> 7.943170069 | AZ24: ='PAL Reconn Sday BH'!Q40 -> 5.520503198 | BA24: 84.3848346 | BB24: ='PAL Reconn Sday BH'!R35 -> 8.167749241 | BC24: ='PAL Reconn Sday BH'!R36 -> 0 | BD24: ='PAL Reconn Sday BH'!R37 -> 56.98565336 | BE24: ='PAL Reconn Sday BH'!R39 -> 6.775953871 | BF24: ='PAL Reconn Sday BH'!R38 -> 8.056087925 | BG24: ='PAL Reconn Sday BH'!R40 -> 5.598981108 | BH24: 85.58442551 | BI24: ='PAL Reconn Sday BH'!S35 -> 8.305324637 | BJ24: ='PAL Reconn Sday BH'!S36 -> 0 | BK24: ='PAL Reconn Sday BH'!S37 -> 57.81044572 | BL24: ='PAL Reconn Sday BH'!S39 -> 6.876040117 | BM24: ='PAL Reconn Sday BH'!S38 -> 8.175082773 | BN24: ='PAL Reconn Sday BH'!S40 -> 5.681682527 | BO24: 86.84857577 | BP24: =SUM(AM24,AT24,BA24,BH24,BO24)-SUM('PAL Reconn Sday BH'!O42:S42) -> 0
B25: Reconnections (incl Customer Transfer) AH | C25: =$H25*'2011-15 % split'!C25 -> 4.710922059 | D25: =$H25*'2011-15 % split'!D25 -> 0 | E25: =$H25*'2011-15 % split'!E25 -> 70.81907794 | F25: =$H25*'2011-15 % split'!F25 -> 0 | G25: =$H25*'2011-15 % split'!G25 -> 0 | H25: ='2011-15 rates summary'!D22 -> 75.53 | I25: =$N25*'2011-15 % split'!I25 -> 4.745292851 | J25: =$N25*'2011-15 % split'!J25 -> 0 | K25: =$N25*'2011-15 % split'!K25 -> 105.9547071 | L25: =$N25*'2011-15 % split'!L25 -> 0 | M25: =$N25*'2011-15 % split'!M25 -> 0 | N25: ='2011-15 rates summary'!G22 -> 110.7 | O25: =$T25*'2011-15 % split'!O25 -> 4.786920351 | P25: =$T25*'2011-15 % split'!P25 -> 0 | Q25: =$T25*'2011-15 % split'!Q25 -> 141.2830796 | R25: =$T25*'2011-15 % split'!R25 -> 0 | S25: =$T25*'2011-15 % split'!S25 -> 0 | T25: ='2011-15 rates summary'!J22 -> 146.07 | U25: =$Z25*'2011-15 % split'!U25 -> 4.990392892 | V25: =$Z25*'2011-15 % split'!V25 -> 0 | W25: =$Z25*'2011-15 % split'!W25 -> 144.4996071 | X25: =$Z25*'2011-15 % split'!X25 -> 0 | Y25: =$Z25*'2011-15 % split'!Y25 -> 0 | Z25: ='2011-15 rates summary'!M22 -> 149.49 | AA25: =$AF25*'2011-15 % split'!AA25 -> 5.184690513 | AB25: =$AF25*'2011-15 % split'!AB25 -> 0 | AC25: =$AF25*'2011-15 % split'!AC25 -> 147.9653095 | AD25: =$AF25*'2011-15 % split'!AD25 -> 0 | AE25: =$AF25*'2011-15 % split'!AE25 -> 0 | AF25: ='2011-15 rates summary'!P22 -> 153.15 | AG25: ='PAL Reconn AH'!O$36 -> 7.76854607 | AH25: ='PAL Reconn AH'!O$37 -> 0 | AI25: ='PAL Reconn AH'!O$38 -> 161.0437763 | AJ25: ='PAL Reconn AH'!O$40 -> 17.55648152 | AK25: ='PAL Reconn AH'!O$39 -> 20.87330603 | AL25: ='PAL Reconn AH'!O$41 -> 14.50694769 | AM25: 221.7490576 | AN25: ='PAL Reconn AH'!P$36 -> 7.899397394 | AO25: ='PAL Reconn AH'!P$37 -> 0 | AP25: ='PAL Reconn AH'!P$38 -> 163.2804954 | AQ25: ='PAL Reconn AH'!P$40 -> 17.80270885 | AR25: ='PAL Reconn AH'!P$39 -> 21.16605138 | AS25: ='PAL Reconn AH'!P$41 -> 14.71040571 | AT25: 224.8590587 | AU25: ='PAL Reconn AH'!Q$36 -> 8.032452743 | AV25: ='PAL Reconn AH'!Q$37 -> 0 | AW25: ='PAL Reconn AH'!Q$38 -> 165.5005372 | AX25: ='PAL Reconn AH'!Q$40 -> 18.04743096 | AY25: ='PAL Reconn AH'!Q$39 -> 21.45700714 | AZ25: ='PAL Reconn AH'!Q$41 -> 14.91261996 | BA25: 227.950048 | BB25: ='PAL Reconn AH'!R$36 -> 8.167749241 | BC25: ='PAL Reconn AH'!R$37 -> 0 | BD25: ='PAL Reconn AH'!R$38 -> 167.7910905 | BE25: ='PAL Reconn AH'!R$40 -> 18.29971933 | BF25: ='PAL Reconn AH'!R$39 -> 21.75695861 | BG25: ='PAL Reconn AH'!R$41 -> 15.12108624 | BH25: 231.1366039 | BI25: ='PAL Reconn AH'!S$36 -> 8.305324637 | BJ25: ='PAL Reconn AH'!S$37 -> 0 | BK25: ='PAL Reconn AH'!S$38 -> 170.2196457 | BL25: ='PAL Reconn AH'!S$40 -> 18.56659692 | BM25: ='PAL Reconn AH'!S$39 -> 22.07425553 | BN25: ='PAL Reconn AH'!S$41 -> 15.3416076 | BO25: 234.5074304 | BP25: =SUM(AM25,AT25,BA25,BH25,BO25)-SUM('PAL Reconn AH'!O43:S43) -> 0
B26: Special reading BH | C26: =$H26*'2011-15 % split'!C26 -> 1.784455047 | D26: =$H26*'2011-15 % split'!D26 -> 0 | E26: =$H26*'2011-15 % split'!E26 -> 13.48554495 | F26: =$H26*'2011-15 % split'!F26 -> 0 | G26: =$H26*'2011-15 % split'!G26 -> 0 | H26: ='2011-15 rates summary'!D26 -> 15.27 | I26: =$N26*'2011-15 % split'!I26 -> 1.830715773 | J26: =$N26*'2011-15 % split'!J26 -> 0 | K26: =$N26*'2011-15 % split'!K26 -> 20.54928423 | L26: =$N26*'2011-15 % split'!L26 -> 0 | M26: =$N26*'2011-15 % split'!M26 -> 0 | N26: ='2011-15 rates summary'!G26 -> 22.38 | O26: =$T26*'2011-15 % split'!O26 -> 1.864595102 | P26: =$T26*'2011-15 % split'!P26 -> 0 | Q26: =$T26*'2011-15 % split'!Q26 -> 27.6654049 | R26: =$T26*'2011-15 % split'!R26 -> 0 | S26: =$T26*'2011-15 % split'!S26 -> 0 | T26: ='2011-15 rates summary'!J26 -> 29.53 | U26: =$Z26*'2011-15 % split'!U26 -> 1.942623537 | V26: =$Z26*'2011-15 % split'!V26 -> 0 | W26: =$Z26*'2011-15 % split'!W26 -> 28.27737646 | X26: =$Z26*'2011-15 % split'!X26 -> 0 | Y26: =$Z26*'2011-15 % split'!Y26 -> 0 | Z26: ='2011-15 rates summary'!M26 -> 30.22 | AA26: =$AF26*'2011-15 % split'!AA26 -> 2.017356213 | AB26: =$AF26*'2011-15 % split'!AB26 -> 0 | AC26: =$AF26*'2011-15 % split'!AC26 -> 28.94264379 | AD26: =$AF26*'2011-15 % split'!AD26 -> 0 | AE26: =$AF26*'2011-15 % split'!AE26 -> 0 | AF26: ='2011-15 rates summary'!P26 -> 30.96 | AG26: ='PAL Sp Read BH'!O$39 -> 2.942631087 | AH26: ='PAL Sp Read BH'!O$40 -> 0 | AI26: ='PAL Sp Read BH'!O$41 -> 30.6661008 | AJ26: ='PAL Sp Read BH'!O$43 -> 3.495308116 | AK26: ='PAL Sp Read BH'!O$42 -> 4.15565248 | AL26: ='PAL Sp Read BH'!O$44 -> 2.888178473 | AM26: 44.14787095 | AN26: ='PAL Sp Read BH'!P$39 -> 2.992195983 | AO26: ='PAL Sp Read BH'!P$40 -> 0 | AP26: ='PAL Sp Read BH'!P$41 -> 31.09201886 | AQ26: ='PAL Sp Read BH'!P$43 -> 3.544758344 | AR26: ='PAL Sp Read BH'!P$42 -> 4.214444997 | AS26: ='PAL Sp Read BH'!P$44 -> 2.929039273 | AT26: 44.77245746 | AU26: ='PAL Sp Read BH'!Q$39 -> 3.042595736 | AV26: ='PAL Sp Read BH'!Q$40 -> 0 | AW26: ='PAL Sp Read BH'!Q$41 -> 31.51476122 | AX26: ='PAL Sp Read BH'!Q$43 -> 3.593965124 | AY26: ='PAL Sp Read BH'!Q$42 -> 4.272948073 | AZ26: ='PAL Sp Read BH'!Q$44 -> 2.969698911 | BA26: 45.39396907 | BB26: ='PAL Sp Read BH'!R$39 -> 3.093844409 | BC26: ='PAL Sp Read BH'!R$40 -> 0 | BD26: ='PAL Sp Read BH'!R$41 -> 31.95093043 | BE26: ='PAL Sp Read BH'!R$43 -> 3.644656584 | BF26: ='PAL Sp Read BH'!R$42 -> 4.33321632 | BG26: ='PAL Sp Read BH'!R$44 -> 3.011585342 | BH26: 46.03423309 | BI26: ='PAL Sp Read BH'!S$39 -> 3.145956302 | BJ26: ='PAL Sp Read BH'!S$40 -> 0 | BK26: ='PAL Sp Read BH'!S$41 -> 32.41337811 | BL26: ='PAL Sp Read BH'!S$43 -> 3.698170779 | BM26: ='PAL Sp Read BH'!S$42 -> 4.396840581 | BN26: ='PAL Sp Read BH'!S$44 -> 3.055804204 | BO26: 46.71014998 | BP26: =SUM(AM26,AT26,BA26,BH26,BO26)-SUM('PAL Sp Read BH'!O46:S46) -> 0
B27: Special reading AH - no service | C27: =$H27*'2011-15 % split'!C27 -> 0 | D27: =$H27*'2011-15 % split'!D27 -> 0 | E27: =$H27*'2011-15 % split'!E27 -> 0 | F27: =$H27*'2011-15 % split'!F27 -> 0 | G27: =$H27*'2011-15 % split'!G27 -> 0 | H27: ='2011-15 rates summary'!D27 -> 0 | I27: =$N27*'2011-15 % split'!I27 -> 0 | J27: =$N27*'2011-15 % split'!J27 -> 0 | K27: =$N27*'2011-15 % split'!K27 -> 0 | L27: =$N27*'2011-15 % split'!L27 -> 0 | M27: =$N27*'2011-15 % split'!M27 -> 0 | N27: ='2011-15 rates summary'!G27 -> 0 | O27: =$T27*'2011-15 % split'!O27 -> 0 | P27: =$T27*'2011-15 % split'!P27 -> 0 | Q27: =$T27*'2011-15 % split'!Q27 -> 0 | R27: =$T27*'2011-15 % split'!R27 -> 0 | S27: =$T27*'2011-15 % split'!S27 -> 0 | T27: ='2011-15 rates summary'!J27 -> 0 | U27: =$Z27*'2011-15 % split'!U27 -> 0 | V27: =$Z27*'2011-15 % split'!V27 -> 0 | W27: =$Z27*'2011-15 % split'!W27 -> 0 | X27: =$Z27*'2011-15 % split'!X27 -> 0 | Y27: =$Z27*'2011-15 % split'!Y27 -> 0 | Z27: ='2011-15 rates summary'!M27 -> 0 | AA27: =$AF27*'2011-15 % split'!AA27 -> 0 | AB27: =$AF27*'2011-15 % split'!AB27 -> 0 | AC27: =$AF27*'2011-15 % split'!AC27 -> 0 | AD27: =$AF27*'2011-15 % split'!AD27 -> 0 | AE27: =$AF27*'2011-15 % split'!AE27 -> 0 | AF27: ='2011-15 rates summary'!P27 -> 0
B28: Manual meter reading | C28: =$H28*'2011-15 % split'!C28 -> 0 | D28: =$H28*'2011-15 % split'!D28 -> 0 | E28: =$H28*'2011-15 % split'!E28 -> 0 | F28: =$H28*'2011-15 % split'!F28 -> 0 | G28: =$H28*'2011-15 % split'!G28 -> 0 | H28: ='2011-15 rates summary'!D28 -> 0 | I28: =$N28*'2011-15 % split'!I28 -> 0 | J28: =$N28*'2011-15 % split'!J28 -> 0 | K28: =$N28*'2011-15 % split'!K28 -> 0 | L28: =$N28*'2011-15 % split'!L28 -> 0 | M28: =$N28*'2011-15 % split'!M28 -> 0 | N28: ='2011-15 rates summary'!G28 -> 0 | O28: =$T28*'2011-15 % split'!O28 -> 0 | P28: =$T28*'2011-15 % split'!P28 -> 0 | Q28: =$T28*'2011-15 % split'!Q28 -> 0 | R28: =$T28*'2011-15 % split'!R28 -> 0 | S28: =$T28*'2011-15 % split'!S28 -> 0 | T28: ='2011-15 rates summary'!J28 -> 0 | U28: =$Z28*'2011-15 % split'!U28 -> 0 | V28: =$Z28*'2011-15 % split'!V28 -> 0 | W28: =$Z28*'2011-15 % split'!W28 -> 0 | X28: =$Z28*'2011-15 % split'!X28 -> 0 | Y28: =$Z28*'2011-15 % split'!Y28 -> 0 | Z28: ='2011-15 rates summary'!M28 -> 0 | AA28: =$AF28*'2011-15 % split'!AA28 -> 2.017356213 | AB28: =$AF28*'2011-15 % split'!AB28 -> 0 | AC28: =$AF28*'2011-15 % split'!AC28 -> 28.94264379 | AD28: =$AF28*'2011-15 % split'!AD28 -> 0 | AE28: =$AF28*'2011-15 % split'!AE28 -> 0 | AF28: ='2011-15 rates summary'!P28 -> 30.96 | AG28: ='PAL Man Read BH '!O$39 -> 2.942631087 | AH28: ='PAL Man Read BH '!O$40 -> 0 | AI28: ='PAL Man Read BH '!O$41 -> 30.6661008 | AJ28: ='PAL Man Read BH '!O$43 -> 3.495308116 | AK28: ='PAL Man Read BH '!O$42 -> 4.15565248 | AL28: ='PAL Man Read BH '!O$44 -> 2.888178473 | AM28: =SUM(AG28:AL28) -> 44.14787095 | AN28: ='PAL Man Read BH '!P$39 -> 2.992195983 | AO28: ='PAL Man Read BH '!P$40 -> 0 | AP28: ='PAL Man Read BH '!P$41 -> 31.09201886 | AQ28: ='PAL Man Read BH '!P$43 -> 3.544758344 | AR28: ='PAL Man Read BH '!P$42 -> 4.214444997 | AS28: ='PAL Man Read BH '!P$44 -> 2.929039273 | AT28: =SUM(AN28:AS28) -> 44.77245746 | AU28: ='PAL Man Read BH '!Q$39 -> 3.042595736 | AV28: ='PAL Man Read BH '!Q$40 -> 0 | AW28: ='PAL Man Read BH '!Q$41 -> 31.51476122 | AX28: ='PAL Man Read BH '!Q$43 -> 3.593965124 | AY28: ='PAL Man Read BH '!Q$42 -> 4.272948073 | AZ28: ='PAL Man Read BH '!Q$44 -> 2.969698911 | BA28: =SUM(AU28:AZ28) -> 45.39396907 | BB28: ='PAL Man Read BH '!R$39 -> 3.093844409 | BC28: ='PAL Man Read BH '!R$40 -> 0 | BD28: ='PAL Man Read BH '!R$41 -> 31.95093043 | BE28: ='PAL Man Read BH '!R$43 -> 3.644656584 | BF28: ='PAL Man Read BH '!R$42 -> 4.33321632 | BG28: ='PAL Man Read BH '!R$44 -> 3.011585342 | BH28: =SUM(BB28:BG28) -> 46.03423309 | BI28: ='PAL Man Read BH '!S$39 -> 3.145956302 | BJ28: ='PAL Man Read BH '!S$40 -> 0 | BK28: ='PAL Man Read BH '!S$41 -> 32.41337811 | BL28: ='PAL Man Read BH '!S$43 -> 3.698170779 | BM28: ='PAL Man Read BH '!S$42 -> 4.396840581 | BN28: ='PAL Man Read BH '!S$44 -> 3.055804204 | BO28: =SUM(BI28:BN28) -> 46.71014998 | BP28: =SUM(AM28,AT28,BA28,BH28,BO28)-SUM('PAL Man Read BH '!O46:S46) -> 0
B29: Access to meter data | C29: =$H29*'2011-15 % split'!C29 -> 0 | D29: =$H29*'2011-15 % split'!D29 -> 0 | E29: =$H29*'2011-15 % split'!E29 -> 0 | F29: =$H29*'2011-15 % split'!F29 -> 0 | G29: =$H29*'2011-15 % split'!G29 -> 0 | H29: ='2011-15 rates summary'!D29 -> 0 | I29: =$N29*'2011-15 % split'!I29 -> 0 | J29: =$N29*'2011-15 % split'!J29 -> 0 | K29: =$N29*'2011-15 % split'!K29 -> 0 | L29: =$N29*'2011-15 % split'!L29 -> 0 | M29: =$N29*'2011-15 % split'!M29 -> 0 | N29: ='2011-15 rates summary'!G29 -> 0 | O29: =$T29*'2011-15 % split'!O29 -> 0 | P29: =$T29*'2011-15 % split'!P29 -> 0 | Q29: =$T29*'2011-15 % split'!Q29 -> 0 | R29: =$T29*'2011-15 % split'!R29 -> 0 | S29: =$T29*'2011-15 % split'!S29 -> 0 | T29: ='2011-15 rates summary'!J29 -> 0 | U29: =$Z29*'2011-15 % split'!U29 -> 0 | V29: =$Z29*'2011-15 % split'!V29 -> 0 | W29: =$Z29*'2011-15 % split'!W29 -> 0 | X29: =$Z29*'2011-15 % split'!X29 -> 0 | Y29: =$Z29*'2011-15 % split'!Y29 -> 0 | Z29: ='2011-15 rates summary'!M29 -> 0 | AA29: =$AF29*'2011-15 % split'!AA29 -> 0 | AB29: =$AF29*'2011-15 % split'!AB29 -> 0 | AC29: =$AF29*'2011-15 % split'!AC29 -> 0 | AD29: =$AF29*'2011-15 % split'!AD29 -> 0 | AE29: =$AF29*'2011-15 % split'!AE29 -> 0 | AF29: ='2011-15 rates summary'!P29 -> 0 | AG29: ='PAL Access to Mtr Data'!O$37 -> 35.31157305 | AH29: ='PAL Access to Mtr Data'!O$38 -> 0 | AI29: ='PAL Access to Mtr Data'!O$39 -> 0 | AJ29: ='PAL Access to Mtr Data'!O$41 -> 3.672403597 | AK29: ='PAL Access to Mtr Data'!O$40 -> 4.366205384 | AL29: ='PAL Access to Mtr Data'!O$42 -> 3.034512742 | AM29: 46.38469477 | AN29: ='PAL Access to Mtr Data'!P$37 -> 35.90635179 | AO29: ='PAL Access to Mtr Data'!P$38 -> 0 | AP29: ='PAL Access to Mtr Data'!P$39 -> 0 | AQ29: ='PAL Access to Mtr Data'!P$41 -> 3.734260586 | AR29: ='PAL Access to Mtr Data'!P$40 -> 4.439748586 | AS29: ='PAL Access to Mtr Data'!P$42 -> 3.085625268 | AT29: 47.16598623 | AU29: ='PAL Access to Mtr Data'!Q$37 -> 36.51114883 | AV29: ='PAL Access to Mtr Data'!Q$38 -> 0 | AW29: ='PAL Access to Mtr Data'!Q$39 -> 0 | AX29: ='PAL Access to Mtr Data'!Q$41 -> 3.797159479 | AY29: ='PAL Access to Mtr Data'!Q$40 -> 4.514530531 | AZ29: ='PAL Access to Mtr Data'!Q$42 -> 3.137598719 | BA29: 47.96043756 | BB29: ='PAL Access to Mtr Data'!R$37 -> 37.12613291 | BC29: ='PAL Access to Mtr Data'!R$38 -> 0 | BD29: ='PAL Access to Mtr Data'!R$39 -> 0 | BE29: ='PAL Access to Mtr Data'!R$41 -> 3.861117823 | BF29: ='PAL Access to Mtr Data'!R$40 -> 4.590572083 | BG29: ='PAL Access to Mtr Data'!R$42 -> 3.190447597 | BH29: 48.76827042 | BI29: ='PAL Access to Mtr Data'!S$37 -> 37.75147562 | BJ29: ='PAL Access to Mtr Data'!S$38 -> 0 | BK29: ='PAL Access to Mtr Data'!S$39 -> 0 | BL29: ='PAL Access to Mtr Data'!S$41 -> 3.926153465 | BM29: ='PAL Access to Mtr Data'!S$40 -> 4.667894458 | BN29: ='PAL Access to Mtr Data'!S$42 -> 3.244186648 | BO29: 49.58971019 | BP29: =SUM(AM29,AT29,BA29,BH29,BO29)-SUM('PAL Access to Mtr Data'!O44:S44) -> 0
B31: Service Truck Visit BH | C31: =$H31*'2011-15 % split'!C31 -> 402.6 | D31: =$H31*'2011-15 % split'!D31 -> 0 | E31: =$H31*'2011-15 % split'!E31 -> 0 | F31: =$H31*'2011-15 % split'!F31 -> 0 | G31: =$H31*'2011-15 % split'!G31 -> 0 | H31: ='2011-15 rates summary'!D31 -> 402.6 | I31: =$N31*'2011-15 % split'!I31 -> 421.93 | J31: =$N31*'2011-15 % split'!J31 -> 0 | K31: =$N31*'2011-15 % split'!K31 -> 0 | L31: =$N31*'2011-15 % split'!L31 -> 0 | M31: =$N31*'2011-15 % split'!M31 -> 0 | N31: ='2011-15 rates summary'!G31 -> 421.93 | O31: =$T31*'2011-15 % split'!O31 -> 438.17 | P31: =$T31*'2011-15 % split'!P31 -> 0 | Q31: =$T31*'2011-15 % split'!Q31 -> 0 | R31: =$T31*'2011-15 % split'!R31 -> 0 | S31: =$T31*'2011-15 % split'!S31 -> 0 | T31: ='2011-15 rates summary'!J31 -> 438.17 | U31: =$Z31*'2011-15 % split'!U31 -> 459.59 | V31: =$Z31*'2011-15 % split'!V31 -> 0 | W31: =$Z31*'2011-15 % split'!W31 -> 0 | X31: =$Z31*'2011-15 % split'!X31 -> 0 | Y31: =$Z31*'2011-15 % split'!Y31 -> 0 | Z31: ='2011-15 rates summary'!M31 -> 459.59 | AA31: =$AF31*'2011-15 % split'!AA31 -> 474.89 | AB31: =$AF31*'2011-15 % split'!AB31 -> 0 | AC31: =$AF31*'2011-15 % split'!AC31 -> 0 | AD31: =$AF31*'2011-15 % split'!AD31 -> 0 | AE31: =$AF31*'2011-15 % split'!AE31 -> 0 | AF31: ='2011-15 rates summary'!P31 -> 474.89 | AG31: ='PAL Serv Tk BH'!O$62 -> 469.0565587 | AH31: ='PAL Serv Tk BH'!O$63 -> 0 | AI31: ='PAL Serv Tk BH'!O$64 -> 0 | AJ31: ='PAL Serv Tk BH'!O$66 -> 48.7818821 | AK31: ='PAL Serv Tk BH'!O$65 -> 57.99790537 | AL31: ='PAL Serv Tk BH'!O$67 -> 40.30854423 | AM31: =SUM(AG31:AL31) -> 616.1448904 | AN31: ='PAL Serv Tk BH'!P$62 -> 476.9572226 | AO31: ='PAL Serv Tk BH'!P$63 -> 0 | AP31: ='PAL Serv Tk BH'!P$64 -> 0 | AQ31: ='PAL Serv Tk BH'!P$66 -> 49.60355115 | AR31: ='PAL Serv Tk BH'!P$65 -> 58.97480666 | AS31: ='PAL Serv Tk BH'!P$67 -> 40.98749063 | AT31: =SUM(AN31:AS31) -> 626.523071 | AU31: ='PAL Serv Tk BH'!Q$62 -> 484.9909632 | AV31: ='PAL Serv Tk BH'!Q$63 -> 0 | AW31: ='PAL Serv Tk BH'!Q$64 -> 0 | AX31: ='PAL Serv Tk BH'!Q$66 -> 50.43906017 | AY31: ='PAL Serv Tk BH'!Q$65 -> 59.96816262 | AZ31: ='PAL Serv Tk BH'!Q$67 -> 41.67787302 | BA31: =SUM(AU31:AZ31) -> 637.076059 | BB31: ='PAL Serv Tk BH'!R$62 -> 493.160022 | BC31: ='PAL Serv Tk BH'!R$63 -> 0 | BD31: ='PAL Serv Tk BH'!R$64 -> 0 | BE31: ='PAL Serv Tk BH'!R$66 -> 51.28864229 | BF31: ='PAL Serv Tk BH'!R$65 -> 60.9782504 | BG31: ='PAL Serv Tk BH'!R$67 -> 42.37988403 | BH31: =SUM(BB31:BG31) -> 647.8067987 | BI31: ='PAL Serv Tk BH'!S$62 -> 501.4666783 | BJ31: ='PAL Serv Tk BH'!S$63 -> 0 | BK31: ='PAL Serv Tk BH'!S$64 -> 0 | BL31: ='PAL Serv Tk BH'!S$66 -> 52.15253454 | BM31: ='PAL Serv Tk BH'!S$65 -> 62.00535184 | BN31: ='PAL Serv Tk BH'!S$67 -> 43.09371953 | BO31: =SUM(BI31:BN31) -> 658.7182842 | BP31: =SUM(AM31,AT31,BA31,BH31,BO31)-SUM('PAL Serv Tk BH'!O69:S69) -> 0
B32: Service Truck Visit AH | C32: =$H32*'2011-15 % split'!C32 -> 447.57 | D32: =$H32*'2011-15 % split'!D32 -> 0 | E32: =$H32*'2011-15 % split'!E32 -> 0 | F32: =$H32*'2011-15 % split'!F32 -> 0 | G32: =$H32*'2011-15 % split'!G32 -> 0 | H32: ='2011-15 rates summary'!D32 -> 447.57 | I32: =$N32*'2011-15 % split'!I32 -> 469.06 | J32: =$N32*'2011-15 % split'!J32 -> 0 | K32: =$N32*'2011-15 % split'!K32 -> 0 | L32: =$N32*'2011-15 % split'!L32 -> 0 | M32: =$N32*'2011-15 % split'!M32 -> 0 | N32: ='2011-15 rates summary'!G32 -> 469.06 | O32: =$T32*'2011-15 % split'!O32 -> 487.12 | P32: =$T32*'2011-15 % split'!P32 -> 0 | Q32: =$T32*'2011-15 % split'!Q32 -> 0 | R32: =$T32*'2011-15 % split'!R32 -> 0 | S32: =$T32*'2011-15 % split'!S32 -> 0 | T32: ='2011-15 rates summary'!J32 -> 487.12 | U32: =$Z32*'2011-15 % split'!U32 -> 510.93 | V32: =$Z32*'2011-15 % split'!V32 -> 0 | W32: =$Z32*'2011-15 % split'!W32 -> 0 | X32: =$Z32*'2011-15 % split'!X32 -> 0 | Y32: =$Z32*'2011-15 % split'!Y32 -> 0 | Z32: ='2011-15 rates summary'!M32 -> 510.93 | AA32: =$AF32*'2011-15 % split'!AA32 -> 527.94 | AB32: =$AF32*'2011-15 % split'!AB32 -> 0 | AC32: =$AF32*'2011-15 % split'!AC32 -> 0 | AD32: =$AF32*'2011-15 % split'!AD32 -> 0 | AE32: =$AF32*'2011-15 % split'!AE32 -> 0 | AF32: ='2011-15 rates summary'!P32 -> 527.94 | AG32: ='PAL Serv Tk AH'!O$62 -> 563.414914 | AH32: ='PAL Serv Tk AH'!O$63 -> 0 | AI32: ='PAL Serv Tk AH'!O$64 -> 0 | AJ32: ='PAL Serv Tk AH'!O$66 -> 58.59515106 | AK32: ='PAL Serv Tk AH'!O$65 -> 69.66512729 | AL32: ='PAL Serv Tk AH'!O$67 -> 48.41726347 | AM32: 740.0924559 | AN32: ='PAL Serv Tk AH'!P$62 -> 572.904925 | AO32: ='PAL Serv Tk AH'!P$63 -> 0 | AP32: ='PAL Serv Tk AH'!P$64 -> 0 | AQ32: ='PAL Serv Tk AH'!P$66 -> 59.5821122 | AR32: ='PAL Serv Tk AH'!P$65 -> 70.83854817 | AS32: ='PAL Serv Tk AH'!P$67 -> 49.23279098 | AT32: 752.5583764 | AU32: ='PAL Serv Tk AH'!Q$62 -> 582.5547832 | AV32: ='PAL Serv Tk AH'!Q$63 -> 0 | AW32: ='PAL Serv Tk AH'!Q$64 -> 0 | AX32: ='PAL Serv Tk AH'!Q$66 -> 60.58569745 | AY32: ='PAL Serv Tk AH'!Q$65 -> 72.03173383 | AZ32: ='PAL Serv Tk AH'!Q$67 -> 50.06205501 | BA32: 765.2342695 | BB32: ='PAL Serv Tk AH'!R$62 -> 592.3671811 | BC32: ='PAL Serv Tk AH'!R$63 -> 0 | BD32: ='PAL Serv Tk AH'!R$64 -> 0 | BE32: ='PAL Serv Tk AH'!R$66 -> 61.60618683 | BF32: ='PAL Serv Tk AH'!R$65 -> 73.2450172 | BG32: ='PAL Serv Tk AH'!R$67 -> 50.90528696 | BH32: 778.123672 | BI32: ='PAL Serv Tk AH'!S$62 -> 602.3448563 | BJ32: ='PAL Serv Tk AH'!S$63 -> 0 | BK32: ='PAL Serv Tk AH'!S$64 -> 0 | BL32: ='PAL Serv Tk AH'!S$66 -> 62.64386506 | BM32: ='PAL Serv Tk AH'!S$65 -> 74.47873679 | BN32: ='PAL Serv Tk AH'!S$67 -> 51.76272207 | BO32: 791.2301802 | BP32: =SUM(AM32,AT32,BA32,BH32,BO32)-SUM('PAL Serv Tk AH'!O69:S69) -> 0
B33: Wasted Truck Visit BH | C33: =$H33*'2011-15 % split'!C33 -> 215.23 | D33: =$H33*'2011-15 % split'!D33 -> 0 | E33: =$H33*'2011-15 % split'!E33 -> 0 | F33: =$H33*'2011-15 % split'!F33 -> 0 | G33: =$H33*'2011-15 % split'!G33 -> 0 | H33: ='2011-15 rates summary'!D33 -> 215.23 | I33: =$N33*'2011-15 % split'!I33 -> 225.56 | J33: =$N33*'2011-15 % split'!J33 -> 0 | K33: =$N33*'2011-15 % split'!K33 -> 0 | L33: =$N33*'2011-15 % split'!L33 -> 0 | M33: =$N33*'2011-15 % split'!M33 -> 0 | N33: ='2011-15 rates summary'!G33 -> 225.56 | O33: =$T33*'2011-15 % split'!O33 -> 234.24 | P33: =$T33*'2011-15 % split'!P33 -> 0 | Q33: =$T33*'2011-15 % split'!Q33 -> 0 | R33: =$T33*'2011-15 % split'!R33 -> 0 | S33: =$T33*'2011-15 % split'!S33 -> 0 | T33: ='2011-15 rates summary'!J33 -> 234.24 | U33: =$Z33*'2011-15 % split'!U33 -> 245.69 | V33: =$Z33*'2011-15 % split'!V33 -> 0 | W33: =$Z33*'2011-15 % split'!W33 -> 0 | X33: =$Z33*'2011-15 % split'!X33 -> 0 | Y33: =$Z33*'2011-15 % split'!Y33 -> 0 | Z33: ='2011-15 rates summary'!M33 -> 245.69 | AA33: =$AF33*'2011-15 % split'!AA33 -> 253.87 | AB33: =$AF33*'2011-15 % split'!AB33 -> 0 | AC33: =$AF33*'2011-15 % split'!AC33 -> 0 | AD33: =$AF33*'2011-15 % split'!AD33 -> 0 | AE33: =$AF33*'2011-15 % split'!AE33 -> 0 | AF33: ='2011-15 rates summary'!P33 -> 253.87 | AG33: ='PAL Wsd Tk BH'!O$46 -> 257.9851509 | AH33: ='PAL Wsd Tk BH'!O$47 -> 0 | AI33: ='PAL Wsd Tk BH'!O$48 -> 0 | AJ33: ='PAL Wsd Tk BH'!O$50 -> 26.83045569 | AK33: ='PAL Wsd Tk BH'!O$49 -> 31.89934793 | AL33: ='PAL Wsd Tk BH'!O$51 -> 22.17004681 | AM33: 338.8850013 | AN33: ='PAL Wsd Tk BH'!P$46 -> 262.3305841 | AO33: ='PAL Wsd Tk BH'!P$47 -> 0 | AP33: ='PAL Wsd Tk BH'!P$48 -> 0 | AQ33: ='PAL Wsd Tk BH'!P$50 -> 27.28238075 | AR33: ='PAL Wsd Tk BH'!P$49 -> 32.43665207 | AS33: ='PAL Wsd Tk BH'!P$51 -> 22.54347319 | AT33: 344.5930901 | AU33: ='PAL Wsd Tk BH'!Q$46 -> 266.7492107 | AV33: ='PAL Wsd Tk BH'!Q$47 -> 0 | AW33: ='PAL Wsd Tk BH'!Q$48 -> 0 | AX33: ='PAL Wsd Tk BH'!Q$50 -> 27.74191791 | AY33: ='PAL Wsd Tk BH'!Q$49 -> 32.98300641 | AZ33: ='PAL Wsd Tk BH'!Q$51 -> 22.92318945 | BA33: 350.3973245 | BB33: ='PAL Wsd Tk BH'!R$46 -> 271.2422635 | BC33: ='PAL Wsd Tk BH'!R$47 -> 0 | BD33: ='PAL Wsd Tk BH'!R$48 -> 0 | BE33: ='PAL Wsd Tk BH'!R$50 -> 28.2091954 | BF33: ='PAL Wsd Tk BH'!R$49 -> 33.5385634 | BG33: ='PAL Wsd Tk BH'!R$51 -> 23.30930156 | BH33: 356.2993238 | BI33: ='PAL Wsd Tk BH'!S$46 -> 275.810996 | BJ33: ='PAL Wsd Tk BH'!S$47 -> 0 | BK33: ='PAL Wsd Tk BH'!S$48 -> 0 | BL33: ='PAL Wsd Tk BH'!S$50 -> 28.68434359 | BM33: ='PAL Wsd Tk BH'!S$49 -> 34.10347804 | BN33: ='PAL Wsd Tk BH'!S$51 -> 23.70191724 | BO33: 362.3007349 | BP33: =SUM(AM33,AT33,BA33,BH33,BO33)-SUM('PAL Wsd Tk BH'!O53:S53) -> 0
B34: Wasted Truck Visit AH | C34: =$H34*'2011-15 % split'!C34 -> 237.71 | D34: =$H34*'2011-15 % split'!D34 -> 0 | E34: =$H34*'2011-15 % split'!E34 -> 0 | F34: =$H34*'2011-15 % split'!F34 -> 0 | G34: =$H34*'2011-15 % split'!G34 -> 0 | H34: ='2011-15 rates summary'!D34 -> 237.71 | I34: =$N34*'2011-15 % split'!I34 -> 249.12 | J34: =$N34*'2011-15 % split'!J34 -> 0 | K34: =$N34*'2011-15 % split'!K34 -> 0 | L34: =$N34*'2011-15 % split'!L34 -> 0 | M34: =$N34*'2011-15 % split'!M34 -> 0 | N34: ='2011-15 rates summary'!G34 -> 249.12 | O34: =$T34*'2011-15 % split'!O34 -> 258.71 | P34: =$T34*'2011-15 % split'!P34 -> 0 | Q34: =$T34*'2011-15 % split'!Q34 -> 0 | R34: =$T34*'2011-15 % split'!R34 -> 0 | S34: =$T34*'2011-15 % split'!S34 -> 0 | T34: ='2011-15 rates summary'!J34 -> 258.71 | U34: =$Z34*'2011-15 % split'!U34 -> 271.35 | V34: =$Z34*'2011-15 % split'!V34 -> 0 | W34: =$Z34*'2011-15 % split'!W34 -> 0 | X34: =$Z34*'2011-15 % split'!X34 -> 0 | Y34: =$Z34*'2011-15 % split'!Y34 -> 0 | Z34: ='2011-15 rates summary'!M34 -> 271.35 | AA34: =$AF34*'2011-15 % split'!AA34 -> 280.38 | AB34: =$AF34*'2011-15 % split'!AB34 -> 0 | AC34: =$AF34*'2011-15 % split'!AC34 -> 0 | AD34: =$AF34*'2011-15 % split'!AD34 -> 0 | AE34: =$AF34*'2011-15 % split'!AE34 -> 0 | AF34: ='2011-15 rates summary'!P34 -> 280.38 | AG34: ='PAL Wsd Tk AH'!O$46 -> 298.0456966 | AH34: ='PAL Wsd Tk AH'!O$47 -> 0 | AI34: ='PAL Wsd Tk AH'!O$48 -> 0 | AJ34: ='PAL Wsd Tk AH'!O$50 -> 30.99675245 | AK34: ='PAL Wsd Tk AH'!O$49 -> 36.85275429 | AL34: ='PAL Wsd Tk AH'!O$51 -> 25.61266423 | AM34: 391.5078676 | AN34: ='PAL Wsd Tk AH'!P$46 -> 303.065899 | AO34: ='PAL Wsd Tk AH'!P$47 -> 0 | AP34: ='PAL Wsd Tk AH'!P$48 -> 0 | AQ34: ='PAL Wsd Tk AH'!P$50 -> 31.5188535 | AR34: ='PAL Wsd Tk AH'!P$49 -> 37.47349229 | AS34: ='PAL Wsd Tk AH'!P$51 -> 26.04407714 | AT34: 398.102322 | AU34: ='PAL Wsd Tk AH'!Q$46 -> 308.1706605 | AV34: ='PAL Wsd Tk AH'!Q$47 -> 0 | AW34: ='PAL Wsd Tk AH'!Q$48 -> 0 | AX34: ='PAL Wsd Tk AH'!Q$50 -> 32.04974869 | AY34: ='PAL Wsd Tk AH'!Q$49 -> 38.10468582 | AZ34: ='PAL Wsd Tk AH'!Q$51 -> 26.48275665 | BA34: 404.8078516 | BB34: ='PAL Wsd Tk AH'!R$46 -> 313.3614051 | BC34: ='PAL Wsd Tk AH'!R$47 -> 0 | BD34: ='PAL Wsd Tk AH'!R$48 -> 0 | BE34: ='PAL Wsd Tk AH'!R$50 -> 32.58958613 | BF34: ='PAL Wsd Tk AH'!R$49 -> 38.74651102 | BG34: ='PAL Wsd Tk AH'!R$51 -> 26.92882516 | BH34: 411.6263274 | BI34: ='PAL Wsd Tk AH'!S$46 -> 318.6395813 | BJ34: ='PAL Wsd Tk AH'!S$47 -> 0 | BK34: ='PAL Wsd Tk AH'!S$48 -> 0 | BL34: ='PAL Wsd Tk AH'!S$50 -> 33.13851645 | BM34: ='PAL Wsd Tk AH'!S$49 -> 39.39914695 | BN34: ='PAL Wsd Tk AH'!S$51 -> 27.38240713 | BO34: 418.5596518 | BP34: =SUM(AM34,AT34,BA34,BH34,BO34)-SUM('PAL Wsd Tk AH'!O53:S53) -> 0
B36: Reserve Feeder - Subtransmission - $ per KVA | C36: =$H36*'2011-15 % split'!C36 -> 0.8 | D36: =$H36*'2011-15 % split'!D36 -> 0 | E36: =$H36*'2011-15 % split'!E36 -> 0 | F36: =$H36*'2011-15 % split'!F36 -> 0 | G36: =$H36*'2011-15 % split'!G36 -> 0 | H36: ='2011-15 rates summary'!D36 -> 0.8 | I36: =$N36*'2011-15 % split'!I36 -> 0.83 | J36: =$N36*'2011-15 % split'!J36 -> 0 | K36: =$N36*'2011-15 % split'!K36 -> 0 | L36: =$N36*'2011-15 % split'!L36 -> 0 | M36: =$N36*'2011-15 % split'!M36 -> 0 | N36: ='2011-15 rates summary'!G36 -> 0.83 | O36: =$T36*'2011-15 % split'!O36 -> 0.86 | P36: =$T36*'2011-15 % split'!P36 -> 0 | Q36: =$T36*'2011-15 % split'!Q36 -> 0 | R36: =$T36*'2011-15 % split'!R36 -> 0 | S36: =$T36*'2011-15 % split'!S36 -> 0 | T36: ='2011-15 rates summary'!J36 -> 0.86 | U36: =$Z36*'2011-15 % split'!U36 -> 0.9 | V36: =$Z36*'2011-15 % split'!V36 -> 0 | W36: =$Z36*'2011-15 % split'!W36 -> 0 | X36: =$Z36*'2011-15 % split'!X36 -> 0 | Y36: =$Z36*'2011-15 % split'!Y36 -> 0 | Z36: ='2011-15 rates summary'!M36 -> 0.9 | AA36: =$AF36*'2011-15 % split'!AA36 -> 0.92 | AB36: =$AF36*'2011-15 % split'!AB36 -> 0 | AC36: =$AF36*'2011-15 % split'!AC36 -> 0 | AD36: =$AF36*'2011-15 % split'!AD36 -> 0 | AE36: =$AF36*'2011-15 % split'!AE36 -> 0 | AF36: ='2011-15 rates summary'!P36 -> 0.92 | AG36: ='PAL Res Feeder'!C36 -> 0 | AM36: =SUM(AG36:AL36) -> 0 | AN36: ='PAL Res Feeder'!D36 -> 0 | AT36: =SUM(AN36:AS36) -> 0 | AU36: ='PAL Res Feeder'!E36 -> 0 | BA36: =SUM(AU36:AZ36) -> 0 | BB36: ='PAL Res Feeder'!F36 -> 0 | BH36: =SUM(BB36:BG36) -> 0 | BI36: ='PAL Res Feeder'!G36 -> 0 | BO36: =SUM(BI36:BN36) -> 0
B37: Reserve Feeder - High Voltage - $ per KVA | C37: =$H37*'2011-15 % split'!C37 -> 4.1 | D37: =$H37*'2011-15 % split'!D37 -> 0 | E37: =$H37*'2011-15 % split'!E37 -> 0 | F37: =$H37*'2011-15 % split'!F37 -> 0 | G37: =$H37*'2011-15 % split'!G37 -> 0 | H37: ='2011-15 rates summary'!D37 -> 4.1 | I37: =$N37*'2011-15 % split'!I37 -> 4.29 | J37: =$N37*'2011-15 % split'!J37 -> 0 | K37: =$N37*'2011-15 % split'!K37 -> 0 | L37: =$N37*'2011-15 % split'!L37 -> 0 | M37: =$N37*'2011-15 % split'!M37 -> 0 | N37: ='2011-15 rates summary'!G37 -> 4.29 | O37: =$T37*'2011-15 % split'!O37 -> 4.45 | P37: =$T37*'2011-15 % split'!P37 -> 0 | Q37: =$T37*'2011-15 % split'!Q37 -> 0 | R37: =$T37*'2011-15 % split'!R37 -> 0 | S37: =$T37*'2011-15 % split'!S37 -> 0 | T37: ='2011-15 rates summary'!J37 -> 4.45 | U37: =$Z37*'2011-15 % split'!U37 -> 4.66 | V37: =$Z37*'2011-15 % split'!V37 -> 0 | W37: =$Z37*'2011-15 % split'!W37 -> 0 | X37: =$Z37*'2011-15 % split'!X37 -> 0 | Y37: =$Z37*'2011-15 % split'!Y37 -> 0 | Z37: ='2011-15 rates summary'!M37 -> 4.66 | AA37: =$AF37*'2011-15 % split'!AA37 -> 4.81 | AB37: =$AF37*'2011-15 % split'!AB37 -> 0 | AC37: =$AF37*'2011-15 % split'!AC37 -> 0 | AD37: =$AF37*'2011-15 % split'!AD37 -> 0 | AE37: =$AF37*'2011-15 % split'!AE37 -> 0 | AF37: ='2011-15 rates summary'!P37 -> 4.81 | AG37: ='PAL Res Feeder'!C37 -> 4.202483107 | AM37: 4.202483107 | AN37: ='PAL Res Feeder'!D37 -> 4.273268615 | AT37: 4.273268615 | AU37: ='PAL Res Feeder'!E37 -> 4.345246415 | BA37: 4.345246415 | BB37: ='PAL Res Feeder'!F37 -> 4.41843659 | BH37: 4.41843659 | BI37: ='PAL Res Feeder'!G37 -> 4.492859561 | BO37: 4.492859561
B38: Reserve Feeder - Low Voltage - $ per KVA | C38: =$H38*'2011-15 % split'!C38 -> 14.86 | D38: =$H38*'2011-15 % split'!D38 -> 0 | E38: =$H38*'2011-15 % split'!E38 -> 0 | F38: =$H38*'2011-15 % split'!F38 -> 0 | G38: =$H38*'2011-15 % split'!G38 -> 0 | H38: ='2011-15 rates summary'!D38 -> 14.86 | I38: =$N38*'2011-15 % split'!I38 -> 15.57 | J38: =$N38*'2011-15 % split'!J38 -> 0 | K38: =$N38*'2011-15 % split'!K38 -> 0 | L38: =$N38*'2011-15 % split'!L38 -> 0 | M38: =$N38*'2011-15 % split'!M38 -> 0 | N38: ='2011-15 rates summary'!G38 -> 15.57 | O38: =$T38*'2011-15 % split'!O38 -> 16.16 | P38: =$T38*'2011-15 % split'!P38 -> 0 | Q38: =$T38*'2011-15 % split'!Q38 -> 0 | R38: =$T38*'2011-15 % split'!R38 -> 0 | S38: =$T38*'2011-15 % split'!S38 -> 0 | T38: ='2011-15 rates summary'!J38 -> 16.16 | U38: =$Z38*'2011-15 % split'!U38 -> 16.95 | V38: =$Z38*'2011-15 % split'!V38 -> 0 | W38: =$Z38*'2011-15 % split'!W38 -> 0 | X38: =$Z38*'2011-15 % split'!X38 -> 0 | Y38: =$Z38*'2011-15 % split'!Y38 -> 0 | Z38: ='2011-15 rates summary'!M38 -> 16.95 | AA38: =$AF38*'2011-15 % split'!AA38 -> 17.51 | AB38: =$AF38*'2011-15 % split'!AB38 -> 0 | AC38: =$AF38*'2011-15 % split'!AC38 -> 0 | AD38: =$AF38*'2011-15 % split'!AD38 -> 0 | AE38: =$AF38*'2011-15 % split'!AE38 -> 0 | AF38: ='2011-15 rates summary'!P38 -> 17.51 | AG38: ='PAL Res Feeder'!C38 -> 9.299948217 | AM38: 9.299948217 | AN38: ='PAL Res Feeder'!D38 -> 9.456594071 | AT38: 9.456594071 | AU38: ='PAL Res Feeder'!E38 -> 9.615878427 | BA38: 9.615878427 | BB38: ='PAL Res Feeder'!F38 -> 9.777845726 | BH38: 9.777845726 | BI38: ='PAL Res Feeder'!G38 -> 9.942541159 | BO38: 9.942541159
B40: Solar PV Conn - Single phase BH (unit cost) | C40: =$H40*'2011-15 % split'!C40 -> 206.44 | D40: =$H40*'2011-15 % split'!D40 -> 0 | E40: =$H40*'2011-15 % split'!E40 -> 0 | F40: =$H40*'2011-15 % split'!F40 -> 0 | G40: =$H40*'2011-15 % split'!G40 -> 0 | H40: ='2011-15 rates summary'!D40 -> 206.44 | I40: =$N40*'2011-15 % split'!I40 -> 216.356458 | J40: =$N40*'2011-15 % split'!J40 -> 0 | K40: =$N40*'2011-15 % split'!K40 -> 0 | L40: =$N40*'2011-15 % split'!L40 -> 0 | M40: =$N40*'2011-15 % split'!M40 -> 0 | N40: ='2011-15 rates summary'!G40 -> 216.356458 | O40: =$T40*'2011-15 % split'!O40 -> 224.6867886 | P40: =$T40*'2011-15 % split'!P40 -> 0 | Q40: =$T40*'2011-15 % split'!Q40 -> 0 | R40: =$T40*'2011-15 % split'!R40 -> 0 | S40: =$T40*'2011-15 % split'!S40 -> 0 | T40: ='2011-15 rates summary'!J40 -> 224.6867886 | U40: =$Z40*'2011-15 % split'!U40 -> 235.6712799 | V40: =$Z40*'2011-15 % split'!V40 -> 0 | W40: =$Z40*'2011-15 % split'!W40 -> 0 | X40: =$Z40*'2011-15 % split'!X40 -> 0 | Y40: =$Z40*'2011-15 % split'!Y40 -> 0 | Z40: ='2011-15 rates summary'!M40 -> 235.6712799 | AA40: =$AF40*'2011-15 % split'!AA40 -> 243.5209463 | AB40: =$AF40*'2011-15 % split'!AB40 -> 0 | AC40: =$AF40*'2011-15 % split'!AC40 -> 0 | AD40: =$AF40*'2011-15 % split'!AD40 -> 0 | AE40: =$AF40*'2011-15 % split'!AE40 -> 0 | AF40: ='2011-15 rates summary'!P40 -> 243.5209463
B41: Solar PV Conn - Single phase AH (unit cost) | C41: =$H41*'2011-15 % split'!C41 -> 220.57 | D41: =$H41*'2011-15 % split'!D41 -> 0 | E41: =$H41*'2011-15 % split'!E41 -> 0 | F41: =$H41*'2011-15 % split'!F41 -> 0 | G41: =$H41*'2011-15 % split'!G41 -> 0 | H41: ='2011-15 rates summary'!D41 -> 220.57 | I41: =$N41*'2011-15 % split'!I41 -> 231.1652002 | J41: =$N41*'2011-15 % split'!J41 -> 0 | K41: =$N41*'2011-15 % split'!K41 -> 0 | L41: =$N41*'2011-15 % split'!L41 -> 0 | M41: =$N41*'2011-15 % split'!M41 -> 0 | N41: ='2011-15 rates summary'!G41 -> 231.1652002 | O41: =$T41*'2011-15 % split'!O41 -> 240.065709 | P41: =$T41*'2011-15 % split'!P41 -> 0 | Q41: =$T41*'2011-15 % split'!Q41 -> 0 | R41: =$T41*'2011-15 % split'!R41 -> 0 | S41: =$T41*'2011-15 % split'!S41 -> 0 | T41: ='2011-15 rates summary'!J41 -> 240.065709 | U41: =$Z41*'2011-15 % split'!U41 -> 251.8020451 | V41: =$Z41*'2011-15 % split'!V41 -> 0 | W41: =$Z41*'2011-15 % split'!W41 -> 0 | X41: =$Z41*'2011-15 % split'!X41 -> 0 | Y41: =$Z41*'2011-15 % split'!Y41 -> 0 | Z41: ='2011-15 rates summary'!M41 -> 251.8020451 | AA41: =$AF41*'2011-15 % split'!AA41 -> 260.1889902 | AB41: =$AF41*'2011-15 % split'!AB41 -> 0 | AC41: =$AF41*'2011-15 % split'!AC41 -> 0 | AD41: =$AF41*'2011-15 % split'!AD41 -> 0 | AE41: =$AF41*'2011-15 % split'!AE41 -> 0 | AF41: ='2011-15 rates summary'!P41 -> 260.1889902
B43: New Connections Responsible for metering | BO43: =SUM(BI43:BN43) -> 0
B44: Single phase BH | C44: =$H44*'2011-15 % split'!C44 -> 251.3045734 | D44: =$H44*'2011-15 % split'!D44 -> 84.08542662 | E44: =$H44*'2011-15 % split'!E44 -> 0 | F44: =$H44*'2011-15 % split'!F44 -> 0 | G44: =$H44*'2011-15 % split'!G44 -> 0 | H44: ='2011-15 rates summary'!D44 -> 335.39 | I44: =$N44*'2011-15 % split'!I44 -> 269.2786451 | J44: =$N44*'2011-15 % split'!J44 -> 82.22135493 | K44: =$N44*'2011-15 % split'!K44 -> 0 | L44: =$N44*'2011-15 % split'!L44 -> 0 | M44: =$N44*'2011-15 % split'!M44 -> 0 | N44: ='2011-15 rates summary'!G44 -> 351.5 | O44: =$T44*'2011-15 % split'!O44 -> 281.6969985 | P44: =$T44*'2011-15 % split'!P44 -> 83.33300149 | Q44: =$T44*'2011-15 % split'!Q44 -> 0 | R44: =$T44*'2011-15 % split'!R44 -> 0 | S44: =$T44*'2011-15 % split'!S44 -> 0 | T44: ='2011-15 rates summary'!J44 -> 365.03 | U44: =$Z44*'2011-15 % split'!U44 -> 298.1199152 | V44: =$Z44*'2011-15 % split'!V44 -> 84.75008481 | W44: =$Z44*'2011-15 % split'!W44 -> 0 | X44: =$Z44*'2011-15 % split'!X44 -> 0 | Y44: =$Z44*'2011-15 % split'!Y44 -> 0 | Z44: ='2011-15 rates summary'!M44 -> 382.87 | AA44: =$AF44*'2011-15 % split'!AA44 -> 310.9116412 | AB44: =$AF44*'2011-15 % split'!AB44 -> 84.70835879 | AC44: =$AF44*'2011-15 % split'!AC44 -> 0 | AD44: =$AF44*'2011-15 % split'!AD44 -> 0 | AE44: =$AF44*'2011-15 % split'!AE44 -> 0 | AF44: ='2011-15 rates summary'!P44 -> 395.62 | AG44: ='PAL NC 1Ph (R) BH'!O$57 -> 302.285454 | AH44: ='PAL NC 1Ph (R) BH'!O$58 -> 71.42561953 | AI44: ='PAL NC 1Ph (R) BH'!O$59 -> 0 | AJ44: ='PAL NC 1Ph (R) BH'!O$61 -> 38.86595165 | AK44: ='PAL NC 1Ph (R) BH'!O$60 -> 46.20862682 | AL44: ='PAL NC 1Ph (R) BH'!O$62 -> 32.11499564 | AM44: =SUM(AG44:AL44) -> 490.9006476 | AN44: ='PAL NC 1Ph (R) BH'!P$57 -> 307.3770698 | AO44: ='PAL NC 1Ph (R) BH'!P$58 -> 71.42561953 | AP44: ='PAL NC 1Ph (R) BH'!P$59 -> 0 | AQ44: ='PAL NC 1Ph (R) BH'!P$61 -> 39.39547969 | AR44: ='PAL NC 1Ph (R) BH'!P$60 -> 46.83819493 | AS44: ='PAL NC 1Ph (R) BH'!P$62 -> 32.55254548 | AT44: =SUM(AN44:AS44) -> 497.5889094 | AU44: ='PAL NC 1Ph (R) BH'!Q$57 -> 312.5544474 | AV44: ='PAL NC 1Ph (R) BH'!Q$58 -> 71.42561953 | AW44: ='PAL NC 1Ph (R) BH'!Q$59 -> 0 | AX44: ='PAL NC 1Ph (R) BH'!Q$61 -> 39.93392696 | AY44: ='PAL NC 1Ph (R) BH'!Q$60 -> 47.47836732 | AZ44: ='PAL NC 1Ph (R) BH'!Q$62 -> 32.99746528 | BA44: =SUM(AU44:AZ44) -> 504.3898265 | BB44: ='PAL NC 1Ph (R) BH'!R$57 -> 317.8190314 | BC44: ='PAL NC 1Ph (R) BH'!R$58 -> 71.42561953 | BD44: ='PAL NC 1Ph (R) BH'!R$59 -> 0 | BE44: ='PAL NC 1Ph (R) BH'!R$61 -> 40.4814437 | BF44: ='PAL NC 1Ph (R) BH'!R$60 -> 48.1293226 | BG44: ='PAL NC 1Ph (R) BH'!R$62 -> 33.4498792 | BH44: =SUM(BB44:BG44) -> 511.3052964 | BI44: ='PAL NC 1Ph (R) BH'!S$57 -> 323.1722906 | BJ44: ='PAL NC 1Ph (R) BH'!S$58 -> 71.42561953 | BK44: ='PAL NC 1Ph (R) BH'!S$59 -> 0 | BL44: ='PAL NC 1Ph (R) BH'!S$61 -> 41.03818266 | BM44: ='PAL NC 1Ph (R) BH'!S$60 -> 48.7912424 | BN44: ='PAL NC 1Ph (R) BH'!S$62 -> 33.90991347 | BO44: =SUM(BI44:BN44) -> 518.3372487 | BP44: =SUM(AM44,AT44,BA44,BH44,BO44)-SUM('PAL NC 1Ph (R) BH'!O64:S64) -> 0
B45: Single phase AH | C45: =$H45*'2011-15 % split'!C45 -> 276.7331252 | D45: =$H45*'2011-15 % split'!D45 -> 84.08687478 | E45: =$H45*'2011-15 % split'!E45 -> 0 | F45: =$H45*'2011-15 % split'!F45 -> 0 | G45: =$H45*'2011-15 % split'!G45 -> 0 | H45: ='2011-15 rates summary'!D45 -> 360.82 | I45: =$N45*'2011-15 % split'!I45 -> 295.3645031 | J45: =$N45*'2011-15 % split'!J45 -> 82.78549693 | K45: =$N45*'2011-15 % split'!K45 -> 0 | L45: =$N45*'2011-15 % split'!L45 -> 0 | M45: =$N45*'2011-15 % split'!M45 -> 0 | N45: ='2011-15 rates summary'!G45 -> 378.15 | O45: =$T45*'2011-15 % split'!O45 -> 308.8458982 | P45: =$T45*'2011-15 % split'!P45 -> 83.85410176 | Q45: =$T45*'2011-15 % split'!Q45 -> 0 | R45: =$T45*'2011-15 % split'!R45 -> 0 | S45: =$T45*'2011-15 % split'!S45 -> 0 | T45: ='2011-15 rates summary'!J45 -> 392.7 | U45: =$Z45*'2011-15 % split'!U45 -> 326.6642269 | V45: =$Z45*'2011-15 % split'!V45 -> 85.22577314 | W45: =$Z45*'2011-15 % split'!W45 -> 0 | X45: =$Z45*'2011-15 % split'!X45 -> 0 | Y45: =$Z45*'2011-15 % split'!Y45 -> 0 | Z45: ='2011-15 rates summary'!M45 -> 411.89 | AA45: =$AF45*'2011-15 % split'!AA45 -> 340.4731232 | AB45: =$AF45*'2011-15 % split'!AB45 -> 85.12687678 | AC45: =$AF45*'2011-15 % split'!AC45 -> 0 | AD45: =$AF45*'2011-15 % split'!AD45 -> 0 | AE45: =$AF45*'2011-15 % split'!AE45 -> 0 | AF45: ='2011-15 rates summary'!P45 -> 425.6 | AG45: ='PAL NC 1Ph (R) AH'!O$57 -> 347.6079288 | AH45: ='PAL NC 1Ph (R) AH'!O$58 -> 71.42561953 | AI45: ='PAL NC 1Ph (R) AH'!O$59 -> 0 | AJ45: ='PAL NC 1Ph (R) AH'!O$61 -> 43.57948902 | AK45: ='PAL NC 1Ph (R) AH'!O$60 -> 51.81266018 | AL45: ='PAL NC 1Ph (R) AH'!O$62 -> 36.00979883 | AM45: 550.4354963 | AN45: ='PAL NC 1Ph (R) AH'!P$57 -> 353.4629443 | AO45: ='PAL NC 1Ph (R) AH'!P$58 -> 71.42561953 | AP45: ='PAL NC 1Ph (R) AH'!P$59 -> 0 | AQ45: ='PAL NC 1Ph (R) AH'!P$61 -> 44.18841064 | AR45: ='PAL NC 1Ph (R) AH'!P$60 -> 52.53662114 | AS45: ='PAL NC 1Ph (R) AH'!P$62 -> 36.51295169 | AT45: 558.1265473 | AU45: ='PAL NC 1Ph (R) AH'!Q$57 -> 359.4165801 | AV45: ='PAL NC 1Ph (R) AH'!Q$58 -> 71.42561953 | AW45: ='PAL NC 1Ph (R) AH'!Q$59 -> 0 | AX45: ='PAL NC 1Ph (R) AH'!Q$61 -> 44.80758876 | AY45: ='PAL NC 1Ph (R) AH'!Q$60 -> 53.2727763 | AZ45: ='PAL NC 1Ph (R) AH'!Q$62 -> 37.02457953 | BA45: 565.9471442 | BB45: ='PAL NC 1Ph (R) AH'!R$57 -> 365.4704974 | BC45: ='PAL NC 1Ph (R) AH'!R$58 -> 71.42561953 | BD45: ='PAL NC 1Ph (R) AH'!R$59 -> 0 | BE45: ='PAL NC 1Ph (R) AH'!R$61 -> 45.43719616 | BF45: ='PAL NC 1Ph (R) AH'!R$60 -> 54.02133107 | BG45: ='PAL NC 1Ph (R) AH'!R$62 -> 37.54482509 | BH45: 573.8994693 | BI45: ='PAL NC 1Ph (R) AH'!S$57 -> 371.6263853 | BJ45: ='PAL NC 1Ph (R) AH'!S$58 -> 71.42561953 | BK45: ='PAL NC 1Ph (R) AH'!S$59 -> 0 | BL45: ='PAL NC 1Ph (R) AH'!S$61 -> 46.0774085 | BM45: ='PAL NC 1Ph (R) AH'!S$60 -> 54.78249429 | BN45: ='PAL NC 1Ph (R) AH'!S$62 -> 38.07383353 | BO45: 581.9857411 | BP45: =SUM(AM45,AT45,BA45,BH45,BO45)-SUM('PAL NC 1Ph (R) AH'!O64:S64) -> 0
B46: Multi phase DC BH | C46: =$H46*'2011-15 % split'!C46 -> 251.3081788 | D46: =$H46*'2011-15 % split'!D46 -> 186.5618212 | E46: =$H46*'2011-15 % split'!E46 -> 0 | F46: =$H46*'2011-15 % split'!F46 -> 0 | G46: =$H46*'2011-15 % split'!G46 -> 0 | H46: ='2011-15 rates summary'!D46 -> 437.87 | I46: =$N46*'2011-15 % split'!I46 -> 273.5696768 | J46: =$N46*'2011-15 % split'!J46 -> 185.3303232 | K46: =$N46*'2011-15 % split'!K46 -> 0 | L46: =$N46*'2011-15 % split'!L46 -> 0 | M46: =$N46*'2011-15 % split'!M46 -> 0 | N46: ='2011-15 rates summary'!G46 -> 458.9 | O46: =$T46*'2011-15 % split'!O46 -> 287.7182478 | P46: =$T46*'2011-15 % split'!P46 -> 188.8417522 | Q46: =$T46*'2011-15 % split'!Q46 -> 0 | R46: =$T46*'2011-15 % split'!R46 -> 0 | S46: =$T46*'2011-15 % split'!S46 -> 0 | T46: ='2011-15 rates summary'!J46 -> 476.56 | U46: =$Z46*'2011-15 % split'!U46 -> 306.5187639 | V46: =$Z46*'2011-15 % split'!V46 -> 193.3312361 | W46: =$Z46*'2011-15 % split'!W46 -> 0 | X46: =$Z46*'2011-15 % split'!X46 -> 0 | Y46: =$Z46*'2011-15 % split'!Y46 -> 0 | Z46: ='2011-15 rates summary'!M46 -> 499.85 | AA46: =$AF46*'2011-15 % split'!AA46 -> 321.9040345 | AB46: =$AF46*'2011-15 % split'!AB46 -> 194.5859655 | AC46: =$AF46*'2011-15 % split'!AC46 -> 0 | AD46: =$AF46*'2011-15 % split'!AD46 -> 0 | AE46: =$AF46*'2011-15 % split'!AE46 -> 0 | AF46: ='2011-15 rates summary'!P46 -> 516.49 | AG46: ='PAL NC Multi Ph DC (R) BH'!O$57 -> 302.285454 | AH46: ='PAL NC Multi Ph DC (R) BH'!O$58 -> 158.47101 | AI46: ='PAL NC Multi Ph DC (R) BH'!O$59 -> 0 | AJ46: ='PAL NC Multi Ph DC (R) BH'!O$61 -> 47.91867225 | AK46: ='PAL NC Multi Ph DC (R) BH'!O$60 -> 56.97161526 | AL46: ='PAL NC Multi Ph DC (R) BH'!O$62 -> 39.5952726 | AM46: 605.2420241 | AN46: ='PAL NC Multi Ph DC (R) BH'!P$57 -> 307.3770698 | AO46: ='PAL NC Multi Ph DC (R) BH'!P$58 -> 158.47101 | AP46: ='PAL NC Multi Ph DC (R) BH'!P$59 -> 0 | AQ46: ='PAL NC Multi Ph DC (R) BH'!P$61 -> 48.4482003 | AR46: ='PAL NC Multi Ph DC (R) BH'!P$60 -> 57.60118337 | AS46: ='PAL NC Multi Ph DC (R) BH'!P$62 -> 40.03282244 | AT46: 611.9302859 | AU46: ='PAL NC Multi Ph DC (R) BH'!Q$57 -> 312.5544474 | AV46: ='PAL NC Multi Ph DC (R) BH'!Q$58 -> 158.47101 | AW46: ='PAL NC Multi Ph DC (R) BH'!Q$59 -> 0 | AX46: ='PAL NC Multi Ph DC (R) BH'!Q$61 -> 48.98664757 | AY46: ='PAL NC Multi Ph DC (R) BH'!Q$60 -> 58.24135575 | AZ46: ='PAL NC Multi Ph DC (R) BH'!Q$62 -> 40.47774225 | BA46: 618.731203 | BB46: ='PAL NC Multi Ph DC (R) BH'!R$57 -> 317.8190314 | BC46: ='PAL NC Multi Ph DC (R) BH'!R$58 -> 158.47101 | BD46: ='PAL NC Multi Ph DC (R) BH'!R$59 -> 0 | BE46: ='PAL NC Multi Ph DC (R) BH'!R$61 -> 49.5341643 | BF46: ='PAL NC Multi Ph DC (R) BH'!R$60 -> 58.89231104 | BG46: ='PAL NC Multi Ph DC (R) BH'!R$62 -> 40.93015617 | BH46: 625.6466729 | BI46: ='PAL NC Multi Ph DC (R) BH'!S$57 -> 323.1722906 | BJ46: ='PAL NC Multi Ph DC (R) BH'!S$58 -> 158.47101 | BK46: ='PAL NC Multi Ph DC (R) BH'!S$59 -> 0 | BL46: ='PAL NC Multi Ph DC (R) BH'!S$61 -> 50.09090326 | BM46: ='PAL NC Multi Ph DC (R) BH'!S$60 -> 59.55423083 | BN46: ='PAL NC Multi Ph DC (R) BH'!S$62 -> 41.39019043 | BO46: 632.6786251 | BP46: =SUM(AM46,AT46,BA46,BH46,BO46)-SUM('PAL NC Multi Ph DC (R) BH'!O64:S64) -> 0
B47: Multi phase DC AH | C47: =$H47*'2011-15 % split'!C47 -> 276.7238771 | D47: =$H47*'2011-15 % split'!D47 -> 186.5561229 | E47: =$H47*'2011-15 % split'!E47 -> 0 | F47: =$H47*'2011-15 % split'!F47 -> 0 | G47: =$H47*'2011-15 % split'!G47 -> 0 | H47: ='2011-15 rates summary'!D47 -> 463.28 | I47: =$N47*'2011-15 % split'!I47 -> 299.3663854 | J47: =$N47*'2011-15 % split'!J47 -> 186.1636146 | K47: =$N47*'2011-15 % split'!K47 -> 0 | L47: =$N47*'2011-15 % split'!L47 -> 0 | M47: =$N47*'2011-15 % split'!M47 -> 0 | N47: ='2011-15 rates summary'!G47 -> 485.53 | O47: =$T47*'2011-15 % split'!O47 -> 314.6673213 | P47: =$T47*'2011-15 % split'!P47 -> 189.5526787 | Q47: =$T47*'2011-15 % split'!Q47 -> 0 | R47: =$T47*'2011-15 % split'!R47 -> 0 | S47: =$T47*'2011-15 % split'!S47 -> 0 | T47: ='2011-15 rates summary'!J47 -> 504.22 | U47: =$Z47*'2011-15 % split'!U47 -> 334.9718985 | V47: =$Z47*'2011-15 % split'!V47 -> 193.8981015 | W47: =$Z47*'2011-15 % split'!W47 -> 0 | X47: =$Z47*'2011-15 % split'!X47 -> 0 | Y47: =$Z47*'2011-15 % split'!Y47 -> 0 | Z47: ='2011-15 rates summary'!M47 -> 528.87 | AA47: =$AF47*'2011-15 % split'!AA47 -> 351.4956862 | AB47: =$AF47*'2011-15 % split'!AB47 -> 194.9843138 | AC47: =$AF47*'2011-15 % split'!AC47 -> 0 | AD47: =$AF47*'2011-15 % split'!AD47 -> 0 | AE47: =$AF47*'2011-15 % split'!AE47 -> 0 | AF47: ='2011-15 rates summary'!P47 -> 546.48 | AG47: ='PAL NC 3Ph DC (R) AH'!O$57 -> 347.6079288 | AH47: ='PAL NC 3Ph DC (R) AH'!O$58 -> 158.47101 | AI47: ='PAL NC 3Ph DC (R) AH'!O$59 -> 0 | AJ47: ='PAL NC 3Ph DC (R) AH'!O$61 -> 52.63220963 | AK47: ='PAL NC 3Ph DC (R) AH'!O$60 -> 62.57564862 | AL47: ='PAL NC 3Ph DC (R) AH'!O$62 -> 43.49007579 | AM47: 664.7768728 | AN47: ='PAL NC 3Ph DC (R) AH'!P$57 -> 353.4629443 | AO47: ='PAL NC 3Ph DC (R) AH'!P$58 -> 158.47101 | AP47: ='PAL NC 3Ph DC (R) AH'!P$59 -> 0 | AQ47: ='PAL NC 3Ph DC (R) AH'!P$61 -> 53.24113124 | AR47: ='PAL NC 3Ph DC (R) AH'!P$60 -> 63.29960958 | AS47: ='PAL NC 3Ph DC (R) AH'!P$62 -> 43.99322866 | AT47: 672.4679237 | AU47: ='PAL NC 3Ph DC (R) AH'!Q$57 -> 359.4165801 | AV47: ='PAL NC 3Ph DC (R) AH'!Q$58 -> 158.47101 | AW47: ='PAL NC 3Ph DC (R) AH'!Q$59 -> 0 | AX47: ='PAL NC 3Ph DC (R) AH'!Q$61 -> 53.86030937 | AY47: ='PAL NC 3Ph DC (R) AH'!Q$60 -> 64.03576474 | AZ47: ='PAL NC 3Ph DC (R) AH'!Q$62 -> 44.50485649 | BA47: 680.2885207 | BB47: ='PAL NC 3Ph DC (R) AH'!R$57 -> 365.4704974 | BC47: ='PAL NC 3Ph DC (R) AH'!R$58 -> 158.47101 | BD47: ='PAL NC 3Ph DC (R) AH'!R$59 -> 0 | BE47: ='PAL NC 3Ph DC (R) AH'!R$61 -> 54.48991677 | BF47: ='PAL NC 3Ph DC (R) AH'!R$60 -> 64.78431951 | BG47: ='PAL NC 3Ph DC (R) AH'!R$62 -> 45.02510206 | BH47: 688.2408457 | BI47: ='PAL NC 3Ph DC (R) AH'!S$57 -> 371.6263853 | BJ47: ='PAL NC 3Ph DC (R) AH'!S$58 -> 158.47101 | BK47: ='PAL NC 3Ph DC (R) AH'!S$59 -> 0 | BL47: ='PAL NC 3Ph DC (R) AH'!S$61 -> 55.13012911 | BM47: ='PAL NC 3Ph DC (R) AH'!S$60 -> 65.54548273 | BN47: ='PAL NC 3Ph DC (R) AH'!S$62 -> 45.5541105 | BO47: 696.3271176 | BP47: =SUM(AM47,AT47,BA47,BH47,BO47)-SUM('PAL NC 3Ph DC (R) AH'!O64:S64) -> 0
B48: Multi phase CT BH | C48: =$H48*'2011-15 % split'!C48 -> 1445.439249 | D48: =$H48*'2011-15 % split'!D48 -> 364.7407512 | E48: =$H48*'2011-15 % split'!E48 -> 0 | F48: =$H48*'2011-15 % split'!F48 -> 0 | G48: =$H48*'2011-15 % split'!G48 -> 0 | H48: ='2011-15 rates summary'!D48 -> 1810.18 | I48: =$N48*'2011-15 % split'!I48 -> 1538.381781 | J48: =$N48*'2011-15 % split'!J48 -> 358.748219 | K48: =$N48*'2011-15 % split'!K48 -> 0 | L48: =$N48*'2011-15 % split'!L48 -> 0 | M48: =$N48*'2011-15 % split'!M48 -> 0 | N48: ='2011-15 rates summary'!G48 -> 1897.13 | O48: =$T48*'2011-15 % split'!O48 -> 1607.527856 | P48: =$T48*'2011-15 % split'!P48 -> 362.6421435 | Q48: =$T48*'2011-15 % split'!Q48 -> 0 | R48: =$T48*'2011-15 % split'!R48 -> 0 | S48: =$T48*'2011-15 % split'!S48 -> 0 | T48: ='2011-15 rates summary'!J48 -> 1970.17 | U48: =$Z48*'2011-15 % split'!U48 -> 1698.499783 | V48: =$Z48*'2011-15 % split'!V48 -> 367.9802175 | W48: =$Z48*'2011-15 % split'!W48 -> 0 | X48: =$Z48*'2011-15 % split'!X48 -> 0 | Y48: =$Z48*'2011-15 % split'!Y48 -> 0 | Z48: ='2011-15 rates summary'!M48 -> 2066.48 | AA48: =$AF48*'2011-15 % split'!AA48 -> 1768.347491 | AB48: =$AF48*'2011-15 % split'!AB48 -> 366.9525087 | AC48: =$AF48*'2011-15 % split'!AC48 -> 0 | AD48: =$AF48*'2011-15 % split'!AD48 -> 0 | AE48: =$AF48*'2011-15 % split'!AE48 -> 0 | AF48: ='2011-15 rates summary'!P48 -> 2135.3 | AG48: ='PAL NC 3Ph CT (R) BH'!O$77 -> 1657.538621 | AH48: ='PAL NC 3Ph CT (R) BH'!O$78 -> 158.47101 | AI48: ='PAL NC 3Ph CT (R) BH'!O$79 -> 0 | AJ48: ='PAL NC 3Ph CT (R) BH'!O$81 -> 188.8650017 | AK48: ='PAL NC 3Ph CT (R) BH'!O$80 -> 224.5459589 | AL48: ='PAL NC 3Ph CT (R) BH'!O$82 -> 156.0594414 | AM48: 2385.480033 | AN48: ='PAL NC 3Ph CT (R) BH'!P$77 -> 1685.457761 | AO48: ='PAL NC 3Ph CT (R) BH'!P$78 -> 158.47101 | AP48: ='PAL NC 3Ph CT (R) BH'!P$79 -> 0 | AQ48: ='PAL NC 3Ph CT (R) BH'!P$81 -> 191.7685922 | AR48: ='PAL NC 3Ph CT (R) BH'!P$80 -> 227.9981047 | AS48: ='PAL NC 3Ph CT (R) BH'!P$82 -> 158.4586827 | AT48: 2422.154151 | AU48: ='PAL NC 3Ph CT (R) BH'!Q$77 -> 1713.847163 | AV48: ='PAL NC 3Ph CT (R) BH'!Q$78 -> 158.47101 | AW48: ='PAL NC 3Ph CT (R) BH'!Q$79 -> 0 | AX48: ='PAL NC 3Ph CT (R) BH'!Q$81 -> 194.72109 | AY48: ='PAL NC 3Ph CT (R) BH'!Q$80 -> 231.5083975 | AZ48: ='PAL NC 3Ph CT (R) BH'!Q$82 -> 160.8983363 | BA48: 2459.445997 | BB48: ='PAL NC 3Ph CT (R) BH'!R$77 -> 1742.714749 | BC48: ='PAL NC 3Ph CT (R) BH'!R$78 -> 158.47101 | BD48: ='PAL NC 3Ph CT (R) BH'!R$79 -> 0 | BE48: ='PAL NC 3Ph CT (R) BH'!R$81 -> 197.7233189 | BF48: ='PAL NC 3Ph CT (R) BH'!R$80 -> 235.0778167 | BG48: ='PAL NC 3Ph CT (R) BH'!R$82 -> 163.3790826 | BH48: 2497.365977 | BI48: ='PAL NC 3Ph CT (R) BH'!S$77 -> 1772.068573 | BJ48: ='PAL NC 3Ph CT (R) BH'!S$78 -> 158.47101 | BK48: ='PAL NC 3Ph CT (R) BH'!S$79 -> 0 | BL48: ='PAL NC 3Ph CT (R) BH'!S$81 -> 200.7761166 | BM48: ='PAL NC 3Ph CT (R) BH'!S$80 -> 238.7073583 | BN48: ='PAL NC 3Ph CT (R) BH'!S$82 -> 165.901614 | BO48: 2535.924672 | BP48: =SUM(AM48,AT48,BA48,BH48,BO48)-SUM('PAL NC 3Ph CT (R) BH'!O84:S84) -> 0
B49: Multi phase CT AH | C49: =$H49*'2011-15 % split'!C49 -> 1603.437487 | D49: =$H49*'2011-15 % split'!D49 -> 364.742513 | E49: =$H49*'2011-15 % split'!E49 -> 0 | F49: =$H49*'2011-15 % split'!F49 -> 0 | G49: =$H49*'2011-15 % split'!G49 -> 0 | H49: ='2011-15 rates summary'!D49 -> 1968.18 | I49: =$N49*'2011-15 % split'!I49 -> 1701.323569 | J49: =$N49*'2011-15 % split'!J49 -> 361.3964314 | K49: =$N49*'2011-15 % split'!K49 -> 0 | L49: =$N49*'2011-15 % split'!L49 -> 0 | M49: =$N49*'2011-15 % split'!M49 -> 0 | N49: ='2011-15 rates summary'!G49 -> 2062.72 | O49: =$T49*'2011-15 % split'!O49 -> 1776.99541 | P49: =$T49*'2011-15 % split'!P49 -> 365.1445896 | Q49: =$T49*'2011-15 % split'!Q49 -> 0 | R49: =$T49*'2011-15 % split'!R49 -> 0 | S49: =$T49*'2011-15 % split'!S49 -> 0 | T49: ='2011-15 rates summary'!J49 -> 2142.14 | U49: =$Z49*'2011-15 % split'!U49 -> 1876.54484 | V49: =$Z49*'2011-15 % split'!V49 -> 370.3151603 | W49: =$Z49*'2011-15 % split'!W49 -> 0 | X49: =$Z49*'2011-15 % split'!X49 -> 0 | Y49: =$Z49*'2011-15 % split'!Y49 -> 0 | Z49: ='2011-15 rates summary'!M49 -> 2246.86 | AA49: =$AF49*'2011-15 % split'!AA49 -> 1952.62005 | AB49: =$AF49*'2011-15 % split'!AB49 -> 369.0699501 | AC49: =$AF49*'2011-15 % split'!AC49 -> 0 | AD49: =$AF49*'2011-15 % split'!AD49 -> 0 | AE49: =$AF49*'2011-15 % split'!AE49 -> 0 | AF49: ='2011-15 rates summary'!P49 -> 2321.69 | AG49: ='PAL NC 3Ph CT (R) AH'!O$77 -> 1939.185429 | AH49: ='PAL NC 3Ph CT (R) AH'!O$78 -> 309.8261408 | AI49: ='PAL NC 3Ph CT (R) AH'!O$79 -> 0 | AJ49: ='PAL NC 3Ph CT (R) AH'!O$81 -> 233.8972032 | AK49: ='PAL NC 3Ph CT (R) AH'!O$80 -> 278.0857826 | AL49: ='PAL NC 3Ph CT (R) AH'!O$82 -> 193.2696189 | AM49: 2954.264174 | AN49: ='PAL NC 3Ph CT (R) AH'!P$77 -> 1971.848553 | AO49: ='PAL NC 3Ph CT (R) AH'!P$78 -> 309.8261408 | AP49: ='PAL NC 3Ph CT (R) AH'!P$79 -> 0 | AQ49: ='PAL NC 3Ph CT (R) AH'!P$81 -> 237.2941681 | AR49: ='PAL NC 3Ph CT (R) AH'!P$80 -> 282.1245125 | AS49: ='PAL NC 3Ph CT (R) AH'!P$82 -> 196.0765362 | AT49: 2997.16991 | AU49: ='PAL NC 3Ph CT (R) AH'!Q$77 -> 2005.061845 | AV49: ='PAL NC 3Ph CT (R) AH'!Q$78 -> 309.8261408 | AW49: ='PAL NC 3Ph CT (R) AH'!Q$79 -> 0 | AX49: ='PAL NC 3Ph CT (R) AH'!Q$81 -> 240.7483505 | AY49: ='PAL NC 3Ph CT (R) AH'!Q$80 -> 286.2312697 | AZ49: ='PAL NC 3Ph CT (R) AH'!Q$82 -> 198.9307324 | BA49: 3040.798339 | BB49: ='PAL NC 3Ph CT (R) AH'!R$77 -> 2038.834574 | BC49: ='PAL NC 3Ph CT (R) AH'!R$78 -> 309.8261408 | BD49: ='PAL NC 3Ph CT (R) AH'!R$79 -> 0 | BE49: ='PAL NC 3Ph CT (R) AH'!R$81 -> 244.2607143 | BF49: ='PAL NC 3Ph CT (R) AH'!R$80 -> 290.4072 | BG49: ='PAL NC 3Ph CT (R) AH'!R$82 -> 201.833004 | BH49: 3085.161633 | BI49: ='PAL NC 3Ph CT (R) AH'!S$77 -> 2073.176161 | BJ49: ='PAL NC 3Ph CT (R) AH'!S$78 -> 309.8261408 | BK49: ='PAL NC 3Ph CT (R) AH'!S$79 -> 0 | BL49: ='PAL NC 3Ph CT (R) AH'!S$81 -> 247.8322394 | BM49: ='PAL NC 3Ph CT (R) AH'!S$80 -> 294.6534686 | BN49: ='PAL NC 3Ph CT (R) AH'!S$82 -> 204.7841607 | BO49: 3130.27217 | BP49: =SUM(AM49,AT49,BA49,BH49,BO49)-SUM('PAL NC 3Ph CT (R) AH'!O84:S84) -> 0
B51: New Connections Not Responsible for metering
B52: Single phase BH | C52: =$H52*'2011-15 % split'!C52 -> 192.0452104 | D52: =$H52*'2011-15 % split'!D52 -> 84.08478964 | E52: =$H52*'2011-15 % split'!E52 -> 0 | F52: =$H52*'2011-15 % split'!F52 -> 0 | G52: =$H52*'2011-15 % split'!G52 -> 0 | H52: ='2011-15 rates summary'!D52 -> 276.13 | I52: =$N52*'2011-15 % split'!I52 -> 207.9362408 | J52: =$N52*'2011-15 % split'!J52 -> 81.45375924 | K52: =$N52*'2011-15 % split'!K52 -> 0 | L52: =$N52*'2011-15 % split'!L52 -> 0 | M52: =$N52*'2011-15 % split'!M52 -> 0 | N52: ='2011-15 rates summary'!G52 -> 289.39 | O52: =$T52*'2011-15 % split'!O52 -> 217.8722856 | P52: =$T52*'2011-15 % split'!P52 -> 82.65771438 | Q52: =$T52*'2011-15 % split'!Q52 -> 0 | R52: =$T52*'2011-15 % split'!R52 -> 0 | S52: =$T52*'2011-15 % split'!S52 -> 0 | T52: ='2011-15 rates summary'!J52 -> 300.53 | U52: =$Z52*'2011-15 % split'!U52 -> 231.0624933 | V52: =$Z52*'2011-15 % split'!V52 -> 84.15750668 | W52: =$Z52*'2011-15 % split'!W52 -> 0 | X52: =$Z52*'2011-15 % split'!X52 -> 0 | Y52: =$Z52*'2011-15 % split'!Y52 -> 0 | Z52: ='2011-15 rates summary'!M52 -> 315.22 | AA52: =$AF52*'2011-15 % split'!AA52 -> 241.3007661 | AB52: =$AF52*'2011-15 % split'!AB52 -> 84.40923386 | AC52: =$AF52*'2011-15 % split'!AC52 -> 0 | AD52: =$AF52*'2011-15 % split'!AD52 -> 0 | AE52: =$AF52*'2011-15 % split'!AE52 -> 0 | AF52: ='2011-15 rates summary'!P52 -> 325.71 | AG52: ='PAL NC 1Ph (NR) BH'!O$57 -> 278.0116831 | AH52: ='PAL NC 1Ph (NR) BH'!O$58 -> 71.42561953 | AI52: ='PAL NC 1Ph (NR) BH'!O$59 -> 0 | AJ52: ='PAL NC 1Ph (NR) BH'!O$61 -> 36.34147948 | AK52: ='PAL NC 1Ph (NR) BH'!O$60 -> 43.2072236 | AL52: ='PAL NC 1Ph (NR) BH'!O$62 -> 30.0290204 | AM52: =SUM(AG52:AL52) -> 459.0150261 | AN52: ='PAL NC 1Ph (NR) BH'!P$57 -> 282.694438 | AO52: ='PAL NC 1Ph (NR) BH'!P$58 -> 71.42561953 | AP52: ='PAL NC 1Ph (NR) BH'!P$59 -> 0 | AQ52: ='PAL NC 1Ph (NR) BH'!P$61 -> 36.82848598 | AR52: ='PAL NC 1Ph (NR) BH'!P$60 -> 43.78623687 | AS52: ='PAL NC 1Ph (NR) BH'!P$62 -> 30.43143463 | AT52: =SUM(AN52:AS52) -> 465.166215 | AU52: ='PAL NC 1Ph (NR) BH'!Q$57 -> 287.4560679 | AV52: ='PAL NC 1Ph (NR) BH'!Q$58 -> 71.42561953 | AW52: ='PAL NC 1Ph (NR) BH'!Q$59 -> 0 | AX52: ='PAL NC 1Ph (NR) BH'!Q$61 -> 37.32369549 | AY52: ='PAL NC 1Ph (NR) BH'!Q$60 -> 44.37500289 | AZ52: ='PAL NC 1Ph (NR) BH'!Q$62 -> 30.84062701 | BA52: =SUM(AU52:AZ52) -> 471.4210128 | BB52: ='PAL NC 1Ph (NR) BH'!R$57 -> 292.2979015 | BC52: ='PAL NC 1Ph (NR) BH'!R$58 -> 71.42561953 | BD52: ='PAL NC 1Ph (NR) BH'!R$59 -> 0 | BE52: ='PAL NC 1Ph (NR) BH'!R$61 -> 37.82724618 | BF52: ='PAL NC 1Ph (NR) BH'!R$60 -> 44.97368593 | BG52: ='PAL NC 1Ph (NR) BH'!R$62 -> 31.25671172 | BH52: =SUM(BB52:BG52) -> 477.7811648 | BI52: ='PAL NC 1Ph (NR) BH'!S$57 -> 297.2212896 | BJ52: ='PAL NC 1Ph (NR) BH'!S$58 -> 71.42561953 | BK52: ='PAL NC 1Ph (NR) BH'!S$59 -> 0 | BL52: ='PAL NC 1Ph (NR) BH'!S$61 -> 38.33927855 | BM52: ='PAL NC 1Ph (NR) BH'!S$60 -> 45.58245302 | BN52: ='PAL NC 1Ph (NR) BH'!S$62 -> 31.67980485 | BO52: =SUM(BI52:BN52) -> 484.2484455 | BP52: =SUM(AM52,AT52,BA52,BH52,BO52)-SUM('PAL NC 1Ph (NR) BH'!O64:S64) -> 0
B53: Single phase AH | C53: =$H53*'2011-15 % split'!C53 -> 217.4734239 | D53: =$H53*'2011-15 % split'!D53 -> 84.08657607 | E53: =$H53*'2011-15 % split'!E53 -> 0 | F53: =$H53*'2011-15 % split'!F53 -> 0 | G53: =$H53*'2011-15 % split'!G53 -> 0 | H53: ='2011-15 rates summary'!D53 -> 301.56 | I53: =$N53*'2011-15 % split'!I53 -> 233.8577079 | J53: =$N53*'2011-15 % split'!J53 -> 82.18229209 | K53: =$N53*'2011-15 % split'!K53 -> 0 | L53: =$N53*'2011-15 % split'!L53 -> 0 | M53: =$N53*'2011-15 % split'!M53 -> 0 | N53: ='2011-15 rates summary'!G53 -> 316.04 | O53: =$T53*'2011-15 % split'!O53 -> 244.8707693 | P53: =$T53*'2011-15 % split'!P53 -> 83.32923069 | Q53: =$T53*'2011-15 % split'!Q53 -> 0 | R53: =$T53*'2011-15 % split'!R53 -> 0 | S53: =$T53*'2011-15 % split'!S53 -> 0 | T53: ='2011-15 rates summary'!J53 -> 328.2 | U53: =$Z53*'2011-15 % split'!U53 -> 259.4703605 | V53: =$Z53*'2011-15 % split'!V53 -> 84.76963945 | W53: =$Z53*'2011-15 % split'!W53 -> 0 | X53: =$Z53*'2011-15 % split'!X53 -> 0 | Y53: =$Z53*'2011-15 % split'!Y53 -> 0 | Z53: ='2011-15 rates summary'!M53 -> 344.24 | AA53: =$AF53*'2011-15 % split'!AA53 -> 270.7652311 | AB53: =$AF53*'2011-15 % split'!AB53 -> 84.93476886 | AC53: =$AF53*'2011-15 % split'!AC53 -> 0 | AD53: =$AF53*'2011-15 % split'!AD53 -> 0 | AE53: =$AF53*'2011-15 % split'!AE53 -> 0 | AF53: ='2011-15 rates summary'!P53 -> 355.7 | AG53: ='PAL NC 1Ph (NR) AH'!O$57 -> 319.1013822 | AH53: ='PAL NC 1Ph (NR) AH'!O$58 -> 71.42561953 | AI53: ='PAL NC 1Ph (NR) AH'!O$59 -> 0 | AJ53: ='PAL NC 1Ph (NR) AH'!O$61 -> 40.61480818 | AK53: ='PAL NC 1Ph (NR) AH'!O$60 -> 48.28788271 | AL53: ='PAL NC 1Ph (NR) AH'!O$62 -> 33.56007848 | AM53: 512.9897711 | AN53: ='PAL NC 1Ph (NR) AH'!P$57 -> 324.476241 | AO53: ='PAL NC 1Ph (NR) AH'!P$58 -> 71.42561953 | AP53: ='PAL NC 1Ph (NR) AH'!P$59 -> 0 | AQ53: ='PAL NC 1Ph (NR) AH'!P$61 -> 41.1737935 | AR53: ='PAL NC 1Ph (NR) AH'!P$60 -> 48.95247325 | AS53: ='PAL NC 1Ph (NR) AH'!P$62 -> 34.02196891 | AT53: 520.0500962 | AU53: ='PAL NC 1Ph (NR) AH'!Q$57 -> 329.9416325 | AV53: ='PAL NC 1Ph (NR) AH'!Q$58 -> 71.42561953 | AW53: ='PAL NC 1Ph (NR) AH'!Q$59 -> 0 | AX53: ='PAL NC 1Ph (NR) AH'!Q$61 -> 41.74219421 | AY53: ='PAL NC 1Ph (NR) AH'!Q$60 -> 49.62825798 | AZ53: ='PAL NC 1Ph (NR) AH'!Q$62 -> 34.4916393 | BA53: 527.2293436 | BB53: ='PAL NC 1Ph (NR) AH'!R$57 -> 335.4990816 | BC53: ='PAL NC 1Ph (NR) AH'!R$58 -> 71.42561953 | BD53: ='PAL NC 1Ph (NR) AH'!R$59 -> 0 | BE53: ='PAL NC 1Ph (NR) AH'!R$61 -> 42.32016892 | BF53: ='PAL NC 1Ph (NR) AH'!R$60 -> 50.31542545 | BG53: ='PAL NC 1Ph (NR) AH'!R$62 -> 34.96922069 | BH53: 534.5295162 | BI53: ='PAL NC 1Ph (NR) AH'!S$57 -> 341.1501389 | BJ53: ='PAL NC 1Ph (NR) AH'!S$58 -> 71.42561953 | BK53: ='PAL NC 1Ph (NR) AH'!S$59 -> 0 | BL53: ='PAL NC 1Ph (NR) AH'!S$61 -> 42.90787888 | BM53: ='PAL NC 1Ph (NR) AH'!S$60 -> 51.01416738 | BN53: ='PAL NC 1Ph (NR) AH'!S$62 -> 35.45484633 | BO53: 541.9526511 | BP53: =SUM(AM53,AT53,BA53,BH53,BO53)-SUM('PAL NC 1Ph (NR) AH'!O64:S64) -> 0
B54: Multi phase DC BH | C54: =$H54*'2011-15 % split'!C54 -> 192.0487907 | D54: =$H54*'2011-15 % split'!D54 -> 186.5612093 | E54: =$H54*'2011-15 % split'!E54 -> 0 | F54: =$H54*'2011-15 % split'!F54 -> 0 | G54: =$H54*'2011-15 % split'!G54 -> 0 | H54: ='2011-15 rates summary'!D54 -> 378.61 | I54: =$N54*'2011-15 % split'!I54 -> 212.2877451 | J54: =$N54*'2011-15 % split'!J54 -> 184.5022549 | K54: =$N54*'2011-15 % split'!K54 -> 0 | L54: =$N54*'2011-15 % split'!L54 -> 0 | M54: =$N54*'2011-15 % split'!M54 -> 0 | N54: ='2011-15 rates summary'!G54 -> 396.79 | O54: =$T54*'2011-15 % split'!O54 -> 223.7342549 | P54: =$T54*'2011-15 % split'!P54 -> 188.3257451 | Q54: =$T54*'2011-15 % split'!Q54 -> 0 | R54: =$T54*'2011-15 % split'!R54 -> 0 | S54: =$T54*'2011-15 % split'!S54 -> 0 | T54: ='2011-15 rates summary'!J54 -> 412.06 | U54: =$Z54*'2011-15 % split'!U54 -> 239.036901 | V54: =$Z54*'2011-15 % split'!V54 -> 193.163099 | W54: =$Z54*'2011-15 % split'!W54 -> 0 | X54: =$Z54*'2011-15 % split'!X54 -> 0 | Y54: =$Z54*'2011-15 % split'!Y54 -> 0 | Z54: ='2011-15 rates summary'!M54 -> 432.2 | AA54: =$AF54*'2011-15 % split'!AA54 -> 251.4418014 | AB54: =$AF54*'2011-15 % split'!AB54 -> 195.1481986 | AC54: =$AF54*'2011-15 % split'!AC54 -> 0 | AD54: =$AF54*'2011-15 % split'!AD54 -> 0 | AE54: =$AF54*'2011-15 % split'!AE54 -> 0 | AF54: ='2011-15 rates summary'!P54 -> 446.59 | AG54: ='PAL NC 3Ph DC (NR) BH'!O$57 -> 278.0116831 | AH54: ='PAL NC 3Ph DC (NR) BH'!O$58 -> 158.47101 | AI54: ='PAL NC 3Ph DC (NR) BH'!O$59 -> 0 | AJ54: ='PAL NC 3Ph DC (NR) BH'!O$61 -> 45.39420008 | AK54: ='PAL NC 3Ph DC (NR) BH'!O$60 -> 53.97021204 | AL54: ='PAL NC 3Ph DC (NR) BH'!O$62 -> 37.50929737 | AM54: 573.3564026 | AN54: ='PAL NC 3Ph DC (NR) BH'!P$57 -> 282.694438 | AO54: ='PAL NC 3Ph DC (NR) BH'!P$58 -> 158.47101 | AP54: ='PAL NC 3Ph DC (NR) BH'!P$59 -> 0 | AQ54: ='PAL NC 3Ph DC (NR) BH'!P$61 -> 45.88120659 | AR54: ='PAL NC 3Ph DC (NR) BH'!P$60 -> 54.54922531 | AS54: ='PAL NC 3Ph DC (NR) BH'!P$62 -> 37.91171159 | AT54: 579.5075915 | AU54: ='PAL NC 3Ph DC (NR) BH'!Q$57 -> 287.4560679 | AV54: ='PAL NC 3Ph DC (NR) BH'!Q$58 -> 158.47101 | AW54: ='PAL NC 3Ph DC (NR) BH'!Q$59 -> 0 | AX54: ='PAL NC 3Ph DC (NR) BH'!Q$61 -> 46.3764161 | AY54: ='PAL NC 3Ph DC (NR) BH'!Q$60 -> 55.13799133 | AZ54: ='PAL NC 3Ph DC (NR) BH'!Q$62 -> 38.32090397 | BA54: 585.7623893 | BB54: ='PAL NC 3Ph DC (NR) BH'!R$57 -> 292.2979015 | BC54: ='PAL NC 3Ph DC (NR) BH'!R$58 -> 158.47101 | BD54: ='PAL NC 3Ph DC (NR) BH'!R$59 -> 0 | BE54: ='PAL NC 3Ph DC (NR) BH'!R$61 -> 46.87996679 | BF54: ='PAL NC 3Ph DC (NR) BH'!R$60 -> 55.73667436 | BG54: ='PAL NC 3Ph DC (NR) BH'!R$62 -> 38.73698868 | BH54: 592.1225413 | BI54: ='PAL NC 3Ph DC (NR) BH'!S$57 -> 297.2212896 | BJ54: ='PAL NC 3Ph DC (NR) BH'!S$58 -> 158.47101 | BK54: ='PAL NC 3Ph DC (NR) BH'!S$59 -> 0 | BL54: ='PAL NC 3Ph DC (NR) BH'!S$61 -> 47.39199916 | BM54: ='PAL NC 3Ph DC (NR) BH'!S$60 -> 56.34544146 | BN54: ='PAL NC 3Ph DC (NR) BH'!S$62 -> 39.16008181 | BO54: 598.589822 | BP54: =SUM(AM54,AT54,BA54,BH54,BO54)-SUM('PAL NC 3Ph DC (NR) BH'!O64:S64) -> 0
B55: Multi phase DC AH | C55: =$H55*'2011-15 % split'!C55 -> 217.4706687 | D55: =$H55*'2011-15 % split'!D55 -> 186.5593313 | E55: =$H55*'2011-15 % split'!E55 -> 0 | F55: =$H55*'2011-15 % split'!F55 -> 0 | G55: =$H55*'2011-15 % split'!G55 -> 0 | H55: ='2011-15 rates summary'!D55 -> 404.03 | I55: =$N55*'2011-15 % split'!I55 -> 237.923361 | J55: =$N55*'2011-15 % split'!J55 -> 185.506639 | K55: =$N55*'2011-15 % split'!K55 -> 0 | L55: =$N55*'2011-15 % split'!L55 -> 0 | M55: =$N55*'2011-15 % split'!M55 -> 0 | N55: ='2011-15 rates summary'!G55 -> 423.43 | O55: =$T55*'2011-15 % split'!O55 -> 250.5561001 | P55: =$T55*'2011-15 % split'!P55 -> 189.1738999 | Q55: =$T55*'2011-15 % split'!Q55 -> 0 | R55: =$T55*'2011-15 % split'!R55 -> 0 | S55: =$T55*'2011-15 % split'!S55 -> 0 | T55: ='2011-15 rates summary'!J55 -> 439.73 | U55: =$Z55*'2011-15 % split'!U55 -> 267.397101 | V55: =$Z55*'2011-15 % split'!V55 -> 193.822899 | W55: =$Z55*'2011-15 % split'!W55 -> 0 | X55: =$Z55*'2011-15 % split'!X55 -> 0 | Y55: =$Z55*'2011-15 % split'!Y55 -> 0 | Z55: ='2011-15 rates summary'!M55 -> 461.22 | AA55: =$AF55*'2011-15 % split'!AA55 -> 281.0078858 | AB55: =$AF55*'2011-15 % split'!AB55 -> 195.5721142 | AC55: =$AF55*'2011-15 % split'!AC55 -> 0 | AD55: =$AF55*'2011-15 % split'!AD55 -> 0 | AE55: =$AF55*'2011-15 % split'!AE55 -> 0 | AF55: ='2011-15 rates summary'!P55 -> 476.58 | AG55: ='PAL NC 3Ph DC (NR) AH'!O$57 -> 319.1013822 | AH55: ='PAL NC 3Ph DC (NR) AH'!O$58 -> 158.47101 | AI55: ='PAL NC 3Ph DC (NR) AH'!O$59 -> 0 | AJ55: ='PAL NC 3Ph DC (NR) AH'!O$61 -> 49.66752879 | AK55: ='PAL NC 3Ph DC (NR) AH'!O$60 -> 59.05087115 | AL55: ='PAL NC 3Ph DC (NR) AH'!O$62 -> 41.04035545 | AM55: 627.3311476 | AN55: ='PAL NC 3Ph DC (NR) AH'!P$57 -> 324.476241 | AO55: ='PAL NC 3Ph DC (NR) AH'!P$58 -> 158.47101 | AP55: ='PAL NC 3Ph DC (NR) AH'!P$59 -> 0 | AQ55: ='PAL NC 3Ph DC (NR) AH'!P$61 -> 50.2265141 | AR55: ='PAL NC 3Ph DC (NR) AH'!P$60 -> 59.71546169 | AS55: ='PAL NC 3Ph DC (NR) AH'!P$62 -> 41.50224588 | AT55: 634.3914727 | AU55: ='PAL NC 3Ph DC (NR) AH'!Q$57 -> 329.9416325 | AV55: ='PAL NC 3Ph DC (NR) AH'!Q$58 -> 158.47101 | AW55: ='PAL NC 3Ph DC (NR) AH'!Q$59 -> 0 | AX55: ='PAL NC 3Ph DC (NR) AH'!Q$61 -> 50.79491482 | AY55: ='PAL NC 3Ph DC (NR) AH'!Q$60 -> 60.39124642 | AZ55: ='PAL NC 3Ph DC (NR) AH'!Q$62 -> 41.97191626 | BA55: 641.57072 | BB55: ='PAL NC 3Ph DC (NR) AH'!R$57 -> 335.4990816 | BC55: ='PAL NC 3Ph DC (NR) AH'!R$58 -> 158.47101 | BD55: ='PAL NC 3Ph DC (NR) AH'!R$59 -> 0 | BE55: ='PAL NC 3Ph DC (NR) AH'!R$61 -> 51.37288953 | BF55: ='PAL NC 3Ph DC (NR) AH'!R$60 -> 61.07841389 | BG55: ='PAL NC 3Ph DC (NR) AH'!R$62 -> 42.44949765 | BH55: 648.8708927 | BI55: ='PAL NC 3Ph DC (NR) AH'!S$57 -> 341.1501389 | BJ55: ='PAL NC 3Ph DC (NR) AH'!S$58 -> 158.47101 | BK55: ='PAL NC 3Ph DC (NR) AH'!S$59 -> 0 | BL55: ='PAL NC 3Ph DC (NR) AH'!S$61 -> 51.96059949 | BM55: ='PAL NC 3Ph DC (NR) AH'!S$60 -> 61.77715582 | BN55: ='PAL NC 3Ph DC (NR) AH'!S$62 -> 42.9351233 | BO55: 656.2940275 | BP55: =SUM(AM55,AT55,BA55,BH55,BO55)-SUM('PAL NC 3Ph DC (NR) AH'!O64:S64) -> 0
B56: Multi phase CT BH | C56: =$H56*'2011-15 % split'!C56 -> 1386.187615 | D56: =$H56*'2011-15 % split'!D56 -> 364.7423848 | E56: =$H56*'2011-15 % split'!E56 -> 0 | F56: =$H56*'2011-15 % split'!F56 -> 0 | G56: =$H56*'2011-15 % split'!G56 -> 0 | H56: ='2011-15 rates summary'!D56 -> 1750.93 | I56: =$N56*'2011-15 % split'!I56 -> 1476.744256 | J56: =$N56*'2011-15 % split'!J56 -> 358.2857445 | K56: =$N56*'2011-15 % split'!K56 -> 0 | L56: =$N56*'2011-15 % split'!L56 -> 0 | M56: =$N56*'2011-15 % split'!M56 -> 0 | N56: ='2011-15 rates summary'!G56 -> 1835.03 | O56: =$T56*'2011-15 % split'!O56 -> 1543.464624 | P56: =$T56*'2011-15 % split'!P56 -> 362.2153755 | Q56: =$T56*'2011-15 % split'!Q56 -> 0 | R56: =$T56*'2011-15 % split'!R56 -> 0 | S56: =$T56*'2011-15 % split'!S56 -> 0 | T56: ='2011-15 rates summary'!J56 -> 1905.68 | U56: =$Z56*'2011-15 % split'!U56 -> 1631.254469 | V56: =$Z56*'2011-15 % split'!V56 -> 367.5855312 | W56: =$Z56*'2011-15 % split'!W56 -> 0 | X56: =$Z56*'2011-15 % split'!X56 -> 0 | Y56: =$Z56*'2011-15 % split'!Y56 -> 0 | Z56: ='2011-15 rates summary'!M56 -> 1998.84 | AA56: =$AF56*'2011-15 % split'!AA56 -> 1698.675192 | AB56: =$AF56*'2011-15 % split'!AB56 -> 366.734808 | AC56: =$AF56*'2011-15 % split'!AC56 -> 0 | AD56: =$AF56*'2011-15 % split'!AD56 -> 0 | AE56: =$AF56*'2011-15 % split'!AE56 -> 0 | AF56: ='2011-15 rates summary'!P56 -> 2065.41 | AG56: ='PAL NC 3Ph CT (NR) BH'!O$77 -> 1238.434909 | AH56: ='PAL NC 3Ph CT (NR) BH'!O$78 -> 309.8261408 | AI56: ='PAL NC 3Ph CT (NR) BH'!O$79 -> 0 | AJ56: ='PAL NC 3Ph CT (NR) BH'!O$81 -> 161.0191492 | AK56: ='PAL NC 3Ph CT (NR) BH'!O$80 -> 191.4393823 | AL56: ='PAL NC 3Ph CT (NR) BH'!O$82 -> 133.0503707 | AM56: 2033.769953 | AN56: ='PAL NC 3Ph CT (NR) BH'!P$77 -> 1259.294778 | AO56: ='PAL NC 3Ph CT (NR) BH'!P$78 -> 309.8261408 | AP56: ='PAL NC 3Ph CT (NR) BH'!P$79 -> 0 | AQ56: ='PAL NC 3Ph CT (NR) BH'!P$81 -> 163.1885755 | AR56: ='PAL NC 3Ph CT (NR) BH'!P$80 -> 194.0186633 | AS56: ='PAL NC 3Ph CT (NR) BH'!P$82 -> 134.842971 | AT56: 2061.171128 | AU56: ='PAL NC 3Ph CT (NR) BH'!Q$77 -> 1280.506004 | AV56: ='PAL NC 3Ph CT (NR) BH'!Q$78 -> 309.8261408 | AW56: ='PAL NC 3Ph CT (NR) BH'!Q$79 -> 0 | AX56: ='PAL NC 3Ph CT (NR) BH'!Q$81 -> 165.3945431 | AY56: ='PAL NC 3Ph CT (NR) BH'!Q$80 -> 196.641389 | AZ56: ='PAL NC 3Ph CT (NR) BH'!Q$82 -> 136.6657654 | BA56: 2089.033842 | BB56: ='PAL NC 3Ph CT (NR) BH'!R$77 -> 1302.074507 | BC56: ='PAL NC 3Ph CT (NR) BH'!R$78 -> 309.8261408 | BD56: ='PAL NC 3Ph CT (NR) BH'!R$79 -> 0 | BE56: ='PAL NC 3Ph CT (NR) BH'!R$81 -> 167.6376673 | BF56: ='PAL NC 3Ph CT (NR) BH'!R$80 -> 199.3082913 | BG56: ='PAL NC 3Ph CT (NR) BH'!R$82 -> 138.5192624 | BH56: 2117.365868 | BI56: ='PAL NC 3Ph CT (NR) BH'!S$77 -> 1324.006303 | BJ56: ='PAL NC 3Ph CT (NR) BH'!S$78 -> 309.8261408 | BK56: ='PAL NC 3Ph CT (NR) BH'!S$79 -> 0 | BL56: ='PAL NC 3Ph CT (NR) BH'!S$81 -> 169.9185742 | BM56: ='PAL NC 3Ph CT (NR) BH'!S$80 -> 202.0201141 | BN56: ='PAL NC 3Ph CT (NR) BH'!S$82 -> 140.4039793 | BO56: 2146.175112 | BP56: =SUM(AM56,AT56,BA56,BH56,BO56)-SUM('PAL NC 3Ph CT (NR) BH'!O84:S84) -> 0
B57: Multi phase CT AH | C57: =$H57*'2011-15 % split'!C57 -> 1544.177845 | D57: =$H57*'2011-15 % split'!D57 -> 364.7421554 | E57: =$H57*'2011-15 % split'!E57 -> 0 | F57: =$H57*'2011-15 % split'!F57 -> 0 | G57: =$H57*'2011-15 % split'!G57 -> 0 | H57: ='2011-15 rates summary'!D57 -> 1908.92 | I57: =$N57*'2011-15 % split'!I57 -> 1639.563267 | J57: =$N57*'2011-15 % split'!J57 -> 361.046733 | K57: =$N57*'2011-15 % split'!K57 -> 0 | L57: =$N57*'2011-15 % split'!L57 -> 0 | M57: =$N57*'2011-15 % split'!M57 -> 0 | N57: ='2011-15 rates summary'!G57 -> 2000.61 | O57: =$T57*'2011-15 % split'!O57 -> 1712.807764 | P57: =$T57*'2011-15 % split'!P57 -> 364.8222355 | Q57: =$T57*'2011-15 % split'!Q57 -> 0 | R57: =$T57*'2011-15 % split'!R57 -> 0 | S57: =$T57*'2011-15 % split'!S57 -> 0 | T57: ='2011-15 rates summary'!J57 -> 2077.63 | U57: =$Z57*'2011-15 % split'!U57 -> 1809.182088 | V57: =$Z57*'2011-15 % split'!V57 -> 370.0179116 | W57: =$Z57*'2011-15 % split'!W57 -> 0 | X57: =$Z57*'2011-15 % split'!X57 -> 0 | Y57: =$Z57*'2011-15 % split'!Y57 -> 0 | Z57: ='2011-15 rates summary'!M57 -> 2179.2 | AA57: =$AF57*'2011-15 % split'!AA57 -> 1882.849289 | AB57: =$AF57*'2011-15 % split'!AB57 -> 368.9307107 | AC57: =$AF57*'2011-15 % split'!AC57 -> 0 | AD57: =$AF57*'2011-15 % split'!AD57 -> 0 | AE57: =$AF57*'2011-15 % split'!AE57 -> 0 | AF57: ='2011-15 rates summary'!P57 -> 2251.78 | AG57: ='PAL NC 3Ph CT (NR) AH'!O$77 -> 1447.781579 | AH57: ='PAL NC 3Ph CT (NR) AH'!O$78 -> 309.8261408 | AI57: ='PAL NC 3Ph CT (NR) AH'!O$79 -> 0 | AJ57: ='PAL NC 3Ph CT (NR) AH'!O$81 -> 182.7912028 | AK57: ='PAL NC 3Ph CT (NR) AH'!O$80 -> 217.3246793 | AL57: ='PAL NC 3Ph CT (NR) AH'!O$82 -> 151.0406521 | AM57: 2308.764254 | AN57: ='PAL NC 3Ph CT (NR) AH'!P$77 -> 1472.167627 | AO57: ='PAL NC 3Ph CT (NR) AH'!P$78 -> 309.8261408 | AP57: ='PAL NC 3Ph CT (NR) AH'!P$79 -> 0 | AQ57: ='PAL NC 3Ph CT (NR) AH'!P$81 -> 185.3273518 | AR57: ='PAL NC 3Ph CT (NR) AH'!P$80 -> 220.3399654 | AS57: ='PAL NC 3Ph CT (NR) AH'!P$82 -> 153.1362759 | AT57: 2340.797361 | AU57: ='PAL NC 3Ph CT (NR) AH'!Q$77 -> 1496.964427 | AV57: ='PAL NC 3Ph CT (NR) AH'!Q$78 -> 309.8261408 | AW57: ='PAL NC 3Ph CT (NR) AH'!Q$79 -> 0 | AX57: ='PAL NC 3Ph CT (NR) AH'!Q$81 -> 187.906219 | AY57: ='PAL NC 3Ph CT (NR) AH'!Q$80 -> 223.4060401 | AZ57: ='PAL NC 3Ph CT (NR) AH'!Q$82 -> 155.2671979 | BA57: 2373.370024 | BB57: ='PAL NC 3Ph CT (NR) AH'!R$77 -> 1522.178897 | BC57: ='PAL NC 3Ph CT (NR) AH'!R$78 -> 309.8261408 | BD57: ='PAL NC 3Ph CT (NR) AH'!R$79 -> 0 | BE57: ='PAL NC 3Ph CT (NR) AH'!R$81 -> 190.528524 | BF57: ='PAL NC 3Ph CT (NR) AH'!R$80 -> 226.523759 | BG57: ='PAL NC 3Ph CT (NR) AH'!R$82 -> 157.4340125 | BH57: 2406.491333 | BI57: ='PAL NC 3Ph CT (NR) AH'!S$77 -> 1547.818074 | BJ57: ='PAL NC 3Ph CT (NR) AH'!S$78 -> 309.8261408 | BK57: ='PAL NC 3Ph CT (NR) AH'!S$79 -> 0 | BL57: ='PAL NC 3Ph CT (NR) AH'!S$81 -> 193.1949983 | BM57: ='PAL NC 3Ph CT (NR) AH'!S$80 -> 229.6939919 | BN57: ='PAL NC 3Ph CT (NR) AH'!S$82 -> 159.6373243 | BO57: 2440.170529 | BP57: =SUM(AM57,AT57,BA57,BH57,BO57)-SUM('PAL NC 3Ph CT (NR) AH'!O84:S84) -> 0
B59: Re-test of type 5 & 6 metering installations for first tier customers with annual consumption greater than 160MWh BH
B60: Re-test of type 5 & 6 metering installations for first tier customers with annual consumption greater than 160MWh AH
B62: Remote Meter Reconfiguration | C62: =$H62*'2011-15 % split'!C62 -> 28.73 | D62: =$H62*'2011-15 % split'!D62 -> 0 | E62: =$H62*'2011-15 % split'!E62 -> 0 | F62: =$H62*'2011-15 % split'!F62 -> 0 | G62: =$H62*'2011-15 % split'!G62 -> 0 | H62: ='2011-15 rates summary'!D62 -> 28.73 | I62: =$N62*'2011-15 % split'!I62 -> 29.74 | J62: =$N62*'2011-15 % split'!J62 -> 0 | K62: =$N62*'2011-15 % split'!K62 -> 0 | L62: =$N62*'2011-15 % split'!L62 -> 0 | M62: =$N62*'2011-15 % split'!M62 -> 0 | N62: ='2011-15 rates summary'!G62 -> 29.74 | O62: =$T62*'2011-15 % split'!O62 -> 30.91018852 | P62: =$T62*'2011-15 % split'!P62 -> 0 | Q62: =$T62*'2011-15 % split'!Q62 -> 0 | R62: =$T62*'2011-15 % split'!R62 -> 0 | S62: =$T62*'2011-15 % split'!S62 -> 0 | T62: ='2011-15 rates summary'!J62 -> 30.91018852 | U62: =$Z62*'2011-15 % split'!U62 -> 30.91018852 | V62: =$Z62*'2011-15 % split'!V62 -> 0 | W62: =$Z62*'2011-15 % split'!W62 -> 0 | X62: =$Z62*'2011-15 % split'!X62 -> 0 | Y62: =$Z62*'2011-15 % split'!Y62 -> 0 | Z62: ='2011-15 rates summary'!M62 -> 30.91018852 | AA62: =$AF62*'2011-15 % split'!AA62 -> 30.91018852 | AB62: =$AF62*'2011-15 % split'!AB62 -> 0 | AC62: =$AF62*'2011-15 % split'!AC62 -> 0 | AD62: =$AF62*'2011-15 % split'!AD62 -> 0 | AE62: =$AF62*'2011-15 % split'!AE62 -> 0 | AF62: ='2011-15 rates summary'!P62 -> 30.91018852 | AG62: ='PAL Rem Mtr Config'!O$38 -> 41.19683522 | AH62: ='PAL Rem Mtr Config'!O$39 -> 0 | AI62: ='PAL Rem Mtr Config'!O$40 -> 0 | AJ62: ='PAL Rem Mtr Config'!O$42 -> 4.284470863 | AK62: ='PAL Rem Mtr Config'!O$41 -> 5.093906281 | AL62: ='PAL Rem Mtr Config'!O$43 -> 3.540264866 | AM62: =SUM(AG62:AL62) -> 54.11547723 | AN62: ='PAL Rem Mtr Config'!P$38 -> 41.89074376 | AO62: ='PAL Rem Mtr Config'!P$39 -> 0 | AP62: ='PAL Rem Mtr Config'!P$40 -> 0 | AQ62: ='PAL Rem Mtr Config'!P$42 -> 4.356637351 | AR62: ='PAL Rem Mtr Config'!P$41 -> 5.179706684 | AS62: ='PAL Rem Mtr Config'!P$43 -> 3.599896145 | AT62: =SUM(AN62:AS62) -> 55.02698394 | AU62: ='PAL Rem Mtr Config'!Q$38 -> 42.5963403 | AV62: ='PAL Rem Mtr Config'!Q$39 -> 0 | AW62: ='PAL Rem Mtr Config'!Q$40 -> 0 | AX62: ='PAL Rem Mtr Config'!Q$42 -> 4.430019392 | AY62: ='PAL Rem Mtr Config'!Q$41 -> 5.266952286 | AZ62: ='PAL Rem Mtr Config'!Q$43 -> 3.660531839 | BA62: =SUM(AU62:AZ62) -> 55.95384382 | BB62: ='PAL Rem Mtr Config'!R$38 -> 43.31382173 | BC62: ='PAL Rem Mtr Config'!R$39 -> 0 | BD62: ='PAL Rem Mtr Config'!R$40 -> 0 | BE62: ='PAL Rem Mtr Config'!R$42 -> 4.50463746 | BF62: ='PAL Rem Mtr Config'!R$41 -> 5.35566743 | BG62: ='PAL Rem Mtr Config'!R$43 -> 3.722188864 | BH62: =SUM(BB62:BG62) -> 56.89631549 | BI62: ='PAL Rem Mtr Config'!S$38 -> 44.04338823 | BJ62: ='PAL Rem Mtr Config'!S$39 -> 0 | BK62: ='PAL Rem Mtr Config'!S$40 -> 0 | BL62: ='PAL Rem Mtr Config'!S$42 -> 4.580512376 | BM62: ='PAL Rem Mtr Config'!S$41 -> 5.445876867 | BN62: ='PAL Rem Mtr Config'!S$43 -> 3.784884423 | BO62: =SUM(BI62:BN62) -> 57.85466189 | BP62: =SUM(AM62,AT62,BA62,BH62,BO62)-SUM('PAL Rem Mtr Config'!O45:S45) -> 0
B63: Remote Reenergisation | C63: =$H63*'2011-15 % split'!C63 -> 5.42 | D63: =$H63*'2011-15 % split'!D63 -> 0 | E63: =$H63*'2011-15 % split'!E63 -> 0 | F63: =$H63*'2011-15 % split'!F63 -> 0 | G63: =$H63*'2011-15 % split'!G63 -> 0 | H63: ='2011-15 rates summary'!D63 -> 5.42 | I63: =$N63*'2011-15 % split'!I63 -> 5.61 | J63: =$N63*'2011-15 % split'!J63 -> 0 | K63: =$N63*'2011-15 % split'!K63 -> 0 | L63: =$N63*'2011-15 % split'!L63 -> 0 | M63: =$N63*'2011-15 % split'!M63 -> 0 | N63: ='2011-15 rates summary'!G63 -> 5.61 | O63: =$T63*'2011-15 % split'!O63 -> 5.828778406 | P63: =$T63*'2011-15 % split'!P63 -> 0 | Q63: =$T63*'2011-15 % split'!Q63 -> 0 | R63: =$T63*'2011-15 % split'!R63 -> 0 | S63: =$T63*'2011-15 % split'!S63 -> 0 | T63: ='2011-15 rates summary'!J63 -> 5.828778406 | U63: =$Z63*'2011-15 % split'!U63 -> 5.828778406 | V63: =$Z63*'2011-15 % split'!V63 -> 0 | W63: =$Z63*'2011-15 % split'!W63 -> 0 | X63: =$Z63*'2011-15 % split'!X63 -> 0 | Y63: =$Z63*'2011-15 % split'!Y63 -> 0 | Z63: ='2011-15 rates summary'!M63 -> 5.828778406 | AA63: =$AF63*'2011-15 % split'!AA63 -> 5.828778406 | AB63: =$AF63*'2011-15 % split'!AB63 -> 0 | AC63: =$AF63*'2011-15 % split'!AC63 -> 0 | AD63: =$AF63*'2011-15 % split'!AD63 -> 0 | AE63: =$AF63*'2011-15 % split'!AE63 -> 0 | AF63: ='2011-15 rates summary'!P63 -> 5.828778406 | AG63: ='PAL Rem Re-en'!O$35 -> 7.76854607 | AH63: ='PAL Rem Re-en'!O$36 -> 0 | AI63: ='PAL Rem Re-en'!O$37 -> 0 | AJ63: ='PAL Rem Re-en'!O$39 -> 0.8079287913 | AK63: ='PAL Rem Re-en'!O$38 -> 0.9605651845 | AL63: ='PAL Rem Re-en'!O$40 -> 0.6675928032 | AM63: 10.20463285 | AN63: ='PAL Rem Re-en'!P$35 -> 7.899397394 | AO63: ='PAL Rem Re-en'!P$36 -> 0 | AP63: ='PAL Rem Re-en'!P$37 -> 0 | AQ63: ='PAL Rem Re-en'!P$39 -> 0.821537329 | AR63: ='PAL Rem Re-en'!P$38 -> 0.976744689 | AS63: ='PAL Rem Re-en'!P$40 -> 0.6788375589 | AT63: 10.37651697 | AU63: ='PAL Rem Re-en'!Q$35 -> 8.032452743 | AV63: ='PAL Rem Re-en'!Q$36 -> 0 | AW63: ='PAL Rem Re-en'!Q$37 -> 0 | AX63: ='PAL Rem Re-en'!Q$39 -> 0.8353750853 | AY63: ='PAL Rem Re-en'!Q$38 -> 0.9931967168 | AZ63: ='PAL Rem Re-en'!Q$40 -> 0.6902717182 | BA63: 10.55129626 | BB63: ='PAL Rem Re-en'!R$35 -> 8.167749241 | BC63: ='PAL Rem Re-en'!R$36 -> 0 | BD63: ='PAL Rem Re-en'!R$37 -> 0 | BE63: ='PAL Rem Re-en'!R$39 -> 0.8494459211 | BF63: ='PAL Rem Re-en'!R$38 -> 1.009925858 | BG63: ='PAL Rem Re-en'!R$40 -> 0.7018984714 | BH63: 10.72901949 | BI63: ='PAL Rem Re-en'!S$35 -> 8.305324637 | BJ63: ='PAL Rem Re-en'!S$36 -> 0 | BK63: ='PAL Rem Re-en'!S$37 -> 0 | BL63: ='PAL Rem Re-en'!S$39 -> 0.8637537623 | BM63: ='PAL Rem Re-en'!S$38 -> 1.026936781 | BN63: ='PAL Rem Re-en'!S$40 -> 0.7137210626 | BO63: 10.90973624 | BP63: =SUM(AM63,AT63,BA63,BH63,BO63)-SUM('PAL Rem Re-en'!O42:S42) -> 0
B64: Remote Deenergisation | C64: =$H64*'2011-15 % split'!C64 -> 5.42 | D64: =$H64*'2011-15 % split'!D64 -> 0 | E64: =$H64*'2011-15 % split'!E64 -> 0 | F64: =$H64*'2011-15 % split'!F64 -> 0 | G64: =$H64*'2011-15 % split'!G64 -> 0 | H64: ='2011-15 rates summary'!D64 -> 5.42 | I64: =$N64*'2011-15 % split'!I64 -> 5.61 | J64: =$N64*'2011-15 % split'!J64 -> 0 | K64: =$N64*'2011-15 % split'!K64 -> 0 | L64: =$N64*'2011-15 % split'!L64 -> 0 | M64: =$N64*'2011-15 % split'!M64 -> 0 | N64: ='2011-15 rates summary'!G64 -> 5.61 | O64: =$T64*'2011-15 % split'!O64 -> 5.828778406 | P64: =$T64*'2011-15 % split'!P64 -> 0 | Q64: =$T64*'2011-15 % split'!Q64 -> 0 | R64: =$T64*'2011-15 % split'!R64 -> 0 | S64: =$T64*'2011-15 % split'!S64 -> 0 | T64: ='2011-15 rates summary'!J64 -> 5.828778406 | U64: =$Z64*'2011-15 % split'!U64 -> 5.828778406 | V64: =$Z64*'2011-15 % split'!V64 -> 0 | W64: =$Z64*'2011-15 % split'!W64 -> 0 | X64: =$Z64*'2011-15 % split'!X64 -> 0 | Y64: =$Z64*'2011-15 % split'!Y64 -> 0 | Z64: ='2011-15 rates summary'!M64 -> 5.828778406 | AA64: =$AF64*'2011-15 % split'!AA64 -> 5.828778406 | AB64: =$AF64*'2011-15 % split'!AB64 -> 0 | AC64: =$AF64*'2011-15 % split'!AC64 -> 0 | AD64: =$AF64*'2011-15 % split'!AD64 -> 0 | AE64: =$AF64*'2011-15 % split'!AE64 -> 0 | AF64: ='2011-15 rates summary'!P64 -> 5.828778406 | AG64: ='PAL Rem De-en'!O$35 -> 7.76854607 | AH64: ='PAL Rem De-en'!O$36 -> 0 | AI64: ='PAL Rem De-en'!O$37 -> 0 | AJ64: ='PAL Rem De-en'!O$39 -> 0.8079287913 | AK64: ='PAL Rem De-en'!O$38 -> 0.9605651845 | AL64: ='PAL Rem De-en'!O$40 -> 0.6675928032 | AM64: 10.20463285 | AN64: ='PAL Rem De-en'!P$35 -> 7.899397394 | AO64: ='PAL Rem De-en'!P$36 -> 0 | AP64: ='PAL Rem De-en'!P$37 -> 0 | AQ64: ='PAL Rem De-en'!P$39 -> 0.821537329 | AR64: ='PAL Rem De-en'!P$38 -> 0.976744689 | AS64: ='PAL Rem De-en'!P$40 -> 0.6788375589 | AT64: 10.37651697 | AU64: ='PAL Rem De-en'!Q$35 -> 8.032452743 | AV64: ='PAL Rem De-en'!Q$36 -> 0 | AW64: ='PAL Rem De-en'!Q$37 -> 0 | AX64: ='PAL Rem De-en'!Q$39 -> 0.8353750853 | AY64: ='PAL Rem De-en'!Q$38 -> 0.9931967168 | AZ64: ='PAL Rem De-en'!Q$40 -> 0.6902717182 | BA64: 10.55129626 | BB64: ='PAL Rem De-en'!R$35 -> 8.167749241 | BC64: ='PAL Rem De-en'!R$36 -> 0 | BD64: ='PAL Rem De-en'!R$37 -> 0 | BE64: ='PAL Rem De-en'!R$39 -> 0.8494459211 | BF64: ='PAL Rem De-en'!R$38 -> 1.009925858 | BG64: ='PAL Rem De-en'!R$40 -> 0.7018984714 | BH64: 10.72901949 | BI64: ='PAL Rem De-en'!S$35 -> 8.305324637 | BJ64: ='PAL Rem De-en'!S$36 -> 0 | BK64: ='PAL Rem De-en'!S$37 -> 0 | BL64: ='PAL Rem De-en'!S$39 -> 0.8637537623 | BM64: ='PAL Rem De-en'!S$38 -> 1.026936781 | BN64: ='PAL Rem De-en'!S$40 -> 0.7137210626 | BO64: 10.90973624 | BP64: =SUM(AM64,AT64,BA64,BH64,BO64)-SUM('PAL Rem De-en'!O42:S42) -> 0
B66: Check | G66: =SUM(C9:G64)-SUM(H9:H64) -> 0 | H66: =SUM(H9:H64)-SUM('2011-15 rates summary'!$D$9:$D$64)+SUM('2011-15 rates summary'!D59:D60) -> 1.136868377e-12 | M66: =SUM(I9:M64)-SUM(N9:N64) -> 0 | N66: =SUM(N9:N64)-SUM('2011-15 rates summary'!$G$9:$G$64)+SUM('2011-15 rates summary'!G59:G60) -> 0 | S66: =SUM(O9:S64)-SUM(T9:T64) -> 0 | T66: =SUM(T9:T64)-SUM('2011-15 rates summary'!$J$9:$J$64)+SUM('2011-15 rates summary'!J59:J60) -> -1.364242053e-12 | Y66: =SUM(U9:Y64)-SUM(Z9:Z64) -> 0 | Z66: =SUM(Z9:Z64)-SUM('2011-15 rates summary'!$M$9:$M$64)+SUM('2011-15 rates summary'!M59:M60) -> 0 | AE66: =SUM(AA9:AE64)-SUM(AF9:AF64) -> 0 | AF66: =SUM(AF9:AF64)-SUM('2011-15 rates summary'!$P$9:$P$64)+SUM('2011-15 rates summary'!P59:P60) -> 0 | AL66: =SUM(AG9:AL64)-SUM(AM9:AM64) -> 0 | AS66: =SUM(AN9:AS64)-SUM(AT9:AT64) -> 0 | AZ66: =SUM(AU9:AZ64)-SUM(BA9:BA64) -> 0 | BG66: =SUM(BB9:BG64)-SUM(BH9:BH64) -> 0 | BN66: =SUM(BI9:BN64)-SUM(BO9:BO64) -> 0 | BP66: =SUM(C66:BO66) -> -2.273736754e-13

Sheet ACS 12.4
A1: =Title!A38 -> PAL ACS Model
A2: =MID(CELL("Filename",C1),FIND("]",CELL("Filename",C1))+1,255) -> ACS 12.4 | J2: =Check!D2 -> OK
A3: Menu
B4: Charges applicable during each year
B6: Name of Fee Based Service | C6: Current regulatory control period | H6: Forthcoming regulatory control period | M6: =SUM(M9:M65) -> 0
C7: Actual ($ ex GST) | H7: Real $2015 (ex GST)
C8: 2011 | D8: 2012 | E8: 2013 | F8: 2014 | G8: 2015 | H8: 2016 | I8: 2017 | J8: 2018 | K8: 2019 | L8: 2020
B9: Meter Investigation Test (BH) | C9: ='2011-15 rates summary'!D9 -> 256.95 | D9: ='2011-15 rates summary'!G9 -> 269.29 | E9: ='2011-15 rates summary'!J9 -> 279.65 | F9: ='2011-15 rates summary'!M9 -> 293.32 | G9: ='2011-15 rates summary'!P9 -> 303.08 | H9: ='2015-20 rate summary'!E9 -> 391.1800587 | I9: ='2015-20 rate summary'!F9 -> 397.7689916 | J9: ='2015-20 rate summary'!G9 -> 404.4689067 | K9: ='2015-20 rate summary'!H9 -> 411.2816734 | L9: ='2015-20 rate summary'!I9 -> 418.2091925
B10: Meter Investigation Test (AH) | C10: ='2011-15 rates summary'!D10 -> 281.25 | D10: ='2011-15 rates summary'!G10 -> 294.75 | E10: ='2011-15 rates summary'!J10 -> 306.09 | F10: ='2011-15 rates summary'!M10 -> 321.05 | G10: ='2011-15 rates summary'!P10 -> 331.74 | H10: ='2015-20 rate summary'!E10 -> 448.0689141 | I10: ='2015-20 rate summary'!F10 -> 455.6160677 | J10: ='2015-20 rate summary'!G10 -> 463.2903436 | K10: ='2015-20 rate summary'!H10 -> 471.093883 | L10: ='2015-20 rate summary'!I10 -> 479.028863
B11: Meter Accuracy Test - single phase (BH) | C11: ='2011-15 rates summary'!D11 -> 324.03 | D11: ='2011-15 rates summary'!G11 -> 339.59 | E11: ='2011-15 rates summary'!J11 -> 352.66 | F11: ='2011-15 rates summary'!M11 -> 369.9 | G11: ='2011-15 rates summary'!P11 -> 382.22 | H11: ='2015-20 rate summary'!E11 -> 488.7273468 | I11: ='2015-20 rate summary'!F11 -> 496.9593403 | J11: ='2015-20 rate summary'!G11 -> 505.3299913 | K11: ='2015-20 rate summary'!H11 -> 513.8416353 | L11: ='2015-20 rate summary'!I11 -> 522.4966471
B12: Meter Accuracy Test - single phase (AH) | C12: ='2011-15 rates summary'!D12 -> 355.58 | D12: ='2011-15 rates summary'!G12 -> 372.66 | E12: ='2011-15 rates summary'!J12 -> 387 | F12: ='2011-15 rates summary'!M12 -> 405.91 | G12: ='2011-15 rates summary'!P12 -> 419.42 | H12: ='2015-20 rate summary'!E12 -> 562.6261591 | I12: ='2015-20 rate summary'!F12 -> 572.1028845 | J12: ='2015-20 rate summary'!G12 -> 581.7392333 | K12: ='2015-20 rate summary'!H12 -> 591.5378942 | L12: ='2015-20 rate summary'!I12 -> 601.5016012
B13: Meter Accuracy Test - Single phase additional meter (BH) | C13: ='2011-15 rates summary'!D13 -> 132.29 | D13: ='2011-15 rates summary'!G13 -> 138.64 | E13: ='2011-15 rates summary'!J13 -> 143.97 | F13: ='2011-15 rates summary'!M13 -> 151 | G13: ='2011-15 rates summary'!P13 -> 156.02 | H13: ='2015-20 rate summary'!E13 -> 197.3905729 | I13: ='2015-20 rate summary'!F13 -> 200.7153672 | J13: ='2015-20 rate summary'!G13 -> 204.0961635 | K13: ='2015-20 rate summary'!H13 -> 207.533905 | L13: ='2015-20 rate summary'!I13 -> 211.0295509
B14: Meter Accuracy Test - multi phase (BH) | C14: ='2011-15 rates summary'!D14 -> 414.95 | D14: ='2011-15 rates summary'!G14 -> 434.88 | E14: ='2011-15 rates summary'!J14 -> 451.62 | F14: ='2011-15 rates summary'!M14 -> 473.69 | G14: ='2011-15 rates summary'!P14 -> 489.46 | H14: ='2015-20 rate summary'!E14 -> 620.9581153 | I14: ='2015-20 rate summary'!F14 -> 631.4173686 | J14: ='2015-20 rate summary'!G14 -> 642.0527948 | K14: ='2015-20 rate summary'!H14 -> 652.8673614 | L14: ='2015-20 rate summary'!I14 -> 663.8640856
B15: Meter Accuracy Test - multi phase (AH) | C15: ='2011-15 rates summary'!D15 -> 456.36 | D15: ='2011-15 rates summary'!G15 -> 478.28 | E15: ='2011-15 rates summary'!J15 -> 496.69 | F15: ='2011-15 rates summary'!M15 -> 520.97 | G15: ='2011-15 rates summary'!P15 -> 538.32 | H15: ='2015-20 rate summary'!E15 -> 717.9148689 | I15: ='2015-20 rate summary'!F15 -> 730.007236 | J15: ='2015-20 rate summary'!G15 -> 742.3032838 | K15: ='2015-20 rate summary'!H15 -> 754.8064429 | L15: ='2015-20 rate summary'!I15 -> 767.5202018
B16: Meter Accuracy Test - Multi phase additional meter (BH) | C16: ='2011-15 rates summary'!D16 -> 223.58 | D16: ='2011-15 rates summary'!G16 -> 234.31 | E16: ='2011-15 rates summary'!J16 -> 243.33 | F16: ='2011-15 rates summary'!M16 -> 255.22 | G16: ='2011-15 rates summary'!P16 -> 263.72 | H16: ='2015-20 rate summary'!E16 -> 330.1632707 | I16: ='2015-20 rate summary'!F16 -> 335.724453 | J16: ='2015-20 rate summary'!G16 -> 341.3793064 | K16: ='2015-20 rate summary'!H16 -> 347.1294087 | L16: ='2015-20 rate summary'!I16 -> 352.9763641
B17: Meter Accuracy Test - CT (BH) | C17: ='2011-15 rates summary'!D17 -> 406.75 | D17: ='2011-15 rates summary'!G17 -> 426.28 | E17: ='2011-15 rates summary'!J17 -> 442.69 | F17: ='2011-15 rates summary'!M17 -> 464.33 | G17: ='2011-15 rates summary'!P17 -> 479.79 | H17: ='2015-20 rate summary'!E17 -> 609.0356689 | I17: ='2015-20 rate summary'!F17 -> 619.2941038 | J17: ='2015-20 rate summary'!G17 -> 629.7253289 | K17: ='2015-20 rate summary'!H17 -> 640.3322549 | L17: ='2015-20 rate summary'!I17 -> 651.1178411
B18: Meter Accuracy Test - CT (AH) | C18: ='2011-15 rates summary'!D18 -> 447.27 | D18: ='2011-15 rates summary'!G18 -> 468.75 | E18: ='2011-15 rates summary'!J18 -> 486.79 | F18: ='2011-15 rates summary'!M18 -> 510.58 | G18: ='2011-15 rates summary'!P18 -> 527.58 | H18: ='2015-20 rate summary'!E18 -> 703.9134278 | I18: ='2015-20 rate summary'!F18 -> 715.7699584 | J18: ='2015-20 rate summary'!G18 -> 727.8261972 | K18: ='2015-20 rate summary'!H18 -> 740.0855081 | L18: ='2015-20 rate summary'!I18 -> 752.5513116
B20: Reconnections (incl Customer Transfer) BH | C20: ='2011-15 rates summary'!D20 -> 18.19 | D20: ='2011-15 rates summary'!G20 -> 26.66 | E20: ='2011-15 rates summary'!J20 -> 35.17 | F20: ='2011-15 rates summary'!M20 -> 35.99 | G20: ='2011-15 rates summary'!P20 -> 36.87 | H20: ='2015-20 rate summary'!E20 -> 53.64953285 | I20: ='2015-20 rate summary'!F20 -> 54.42481836 | J20: ='2015-20 rate summary'!G20 -> 55.1985 | K20: ='2015-20 rate summary'!H20 -> 55.99414749 | L20: ='2015-20 rate summary'!I20 -> 56.83001741
B21: Reconnections (same day) BH | C21: ='2011-15 rates summary'!D21 -> 28.76 | D21: ='2011-15 rates summary'!G21 -> 42.15 | E21: ='2011-15 rates summary'!J21 -> 55.61 | F21: ='2011-15 rates summary'!M21 -> 56.91 | G21: ='2011-15 rates summary'!P21 -> 58.3 | H21: ='2015-20 rate summary'!E21 -> 0 | I21: ='2015-20 rate summary'!F21 -> 0 | J21: ='2015-20 rate summary'!G21 -> 0 | K21: ='2015-20 rate summary'!H21 -> 0 | L21: ='2015-20 rate summary'!I21 -> 0
B22: Reconnections (incl Customer Transfer) AH | C22: ='2011-15 rates summary'!D22 -> 75.53 | D22: ='2011-15 rates summary'!G22 -> 110.7 | E22: ='2011-15 rates summary'!J22 -> 146.07 | F22: ='2011-15 rates summary'!M22 -> 149.49 | G22: ='2011-15 rates summary'!P22 -> 153.15 | H22: ='2015-20 rate summary'!E22 -> 53.64953285 | I22: ='2015-20 rate summary'!F22 -> 54.42481836 | J22: ='2015-20 rate summary'!G22 -> 55.1985 | K22: ='2015-20 rate summary'!H22 -> 55.99414749 | L22: ='2015-20 rate summary'!I22 -> 56.83001741
B23: Disconnection (BH only) | C23: ='2011-15 rates summary'!D23 -> 19.25 | D23: ='2011-15 rates summary'!G23 -> 28.21 | E23: ='2011-15 rates summary'!J23 -> 37.22 | F23: ='2011-15 rates summary'!M23 -> 38.09 | G23: ='2011-15 rates summary'!P23 -> 39.02 | H23: ='2015-20 rate summary'!E23 -> 50.48711257 | I23: ='2015-20 rate summary'!F23 -> 51.21847558 | J23: ='2015-20 rate summary'!G23 -> 51.9485622 | K23: ='2015-20 rate summary'!H23 -> 52.69923005 | L23: ='2015-20 rate summary'!I23 -> 53.48741037
B24: Disconnection (no AH service) | C24: ='2011-15 rates summary'!D24 -> 0 | D24: ='2011-15 rates summary'!G24 -> 0 | E24: ='2011-15 rates summary'!J24 -> 0 | F24: ='2011-15 rates summary'!M24 -> 0 | G24: ='2011-15 rates summary'!P24 -> 0 | H24: ='2015-20 rate summary'!E24 -> 82.04990918 | I24: ='2015-20 rate summary'!F24 -> 83.21964436 | J24: ='2015-20 rate summary'!G24 -> 84.3848346 | K24: ='2015-20 rate summary'!H24 -> 85.58442551 | L24: ='2015-20 rate summary'!I24 -> 86.84857577
B25: Disconnection for non payment (BH only) | C25: ='2011-15 rates summary'!D25 -> 19.25 | D25: ='2011-15 rates summary'!G25 -> 28.21 | E25: ='2011-15 rates summary'!J25 -> 37.22 | F25: ='2011-15 rates summary'!M25 -> 38.09 | G25: ='2011-15 rates summary'!P25 -> 39.02 | H25: ='2015-20 rate summary'!E25 -> 221.7490576 | I25: ='2015-20 rate summary'!F25 -> 224.8590587 | J25: ='2015-20 rate summary'!G25 -> 227.950048 | K25: ='2015-20 rate summary'!H25 -> 231.1366039 | L25: ='2015-20 rate summary'!I25 -> 234.5074304
B26: Special reading BH | C26: ='2011-15 rates summary'!D26 -> 15.27 | D26: ='2011-15 rates summary'!G26 -> 22.38 | E26: ='2011-15 rates summary'!J26 -> 29.53 | F26: ='2011-15 rates summary'!M26 -> 30.22 | G26: ='2011-15 rates summary'!P26 -> 30.96 | H26: ='2015-20 rate summary'!E26 -> 44.14787095 | I26: ='2015-20 rate summary'!F26 -> 44.77245746 | J26: ='2015-20 rate summary'!G26 -> 45.39396907 | K26: ='2015-20 rate summary'!H26 -> 46.03423309 | L26: ='2015-20 rate summary'!I26 -> 46.71014998
B27: Special reading AH - no service | C27: ='2011-15 rates summary'!D27 -> 0 | D27: ='2011-15 rates summary'!G27 -> 0 | E27: ='2011-15 rates summary'!J27 -> 0 | F27: ='2011-15 rates summary'!M27 -> 0 | G27: ='2011-15 rates summary'!P27 -> 0 | H27: ='2015-20 rate summary'!E27 -> 0 | I27: ='2015-20 rate summary'!F27 -> 0 | J27: ='2015-20 rate summary'!G27 -> 0 | K27: ='2015-20 rate summary'!H27 -> 0 | L27: ='2015-20 rate summary'!I27 -> 0
B28: Manual meter reading | C28: ='2011-15 rates summary'!D28 -> 0 | D28: ='2011-15 rates summary'!G28 -> 0 | E28: ='2011-15 rates summary'!J28 -> 0 | F28: ='2011-15 rates summary'!M28 -> 0 | G28: ='2011-15 rates summary'!P28 -> 30.96 | H28: ='2015-20 rate summary'!E28 -> 44.14787095 | I28: ='2015-20 rate summary'!F28 -> 44.77245746 | J28: ='2015-20 rate summary'!G28 -> 45.39396907 | K28: ='2015-20 rate summary'!H28 -> 46.03423309 | L28: ='2015-20 rate summary'!I28 -> 46.71014998
B29: Access to meter data | C29: ='2011-15 rates summary'!D29 -> 0 | D29: ='2011-15 rates summary'!G29 -> 0 | E29: ='2011-15 rates summary'!J29 -> 0 | F29: ='2011-15 rates summary'!M29 -> 0 | G29: ='2011-15 rates summary'!P29 -> 0 | H29: ='2015-20 rate summary'!E29 -> 46.38469477 | I29: ='2015-20 rate summary'!F29 -> 47.16598623 | J29: ='2015-20 rate summary'!G29 -> 47.96043756 | K29: ='2015-20 rate summary'!H29 -> 48.76827042 | L29: ='2015-20 rate summary'!I29 -> 49.58971019
B31: Service Truck Visit BH | C31: ='2011-15 rates summary'!D31 -> 402.6 | D31: ='2011-15 rates summary'!G31 -> 421.93 | E31: ='2011-15 rates summary'!J31 -> 438.17 | F31: ='2011-15 rates summary'!M31 -> 459.59 | G31: ='2011-15 rates summary'!P31 -> 474.89 | H31: ='2015-20 rate summary'!E31 -> 616.1448904 | I31: ='2015-20 rate summary'!F31 -> 626.523071 | J31: ='2015-20 rate summary'!G31 -> 637.076059 | K31: ='2015-20 rate summary'!H31 -> 647.8067987 | L31: ='2015-20 rate summary'!I31 -> 658.7182842
B32: Service Truck Visit AH | C32: ='2011-15 rates summary'!D32 -> 447.57 | D32: ='2011-15 rates summary'!G32 -> 469.06 | E32: ='2011-15 rates summary'!J32 -> 487.12 | F32: ='2011-15 rates summary'!M32 -> 510.93 | G32: ='2011-15 rates summary'!P32 -> 527.94 | H32: ='2015-20 rate summary'!E32 -> 740.0924559 | I32: ='2015-20 rate summary'!F32 -> 752.5583764 | J32: ='2015-20 rate summary'!G32 -> 765.2342695 | K32: ='2015-20 rate summary'!H32 -> 778.123672 | L32: ='2015-20 rate summary'!I32 -> 791.2301802
B33: Wasted Truck Visit BH | C33: ='2011-15 rates summary'!D33 -> 215.23 | D33: ='2011-15 rates summary'!G33 -> 225.56 | E33: ='2011-15 rates summary'!J33 -> 234.24 | F33: ='2011-15 rates summary'!M33 -> 245.69 | G33: ='2011-15 rates summary'!P33 -> 253.87 | H33: ='2015-20 rate summary'!E33 -> 338.8850013 | I33: ='2015-20 rate summary'!F33 -> 344.5930901 | J33: ='2015-20 rate summary'!G33 -> 350.3973245 | K33: ='2015-20 rate summary'!H33 -> 356.2993238 | L33: ='2015-20 rate summary'!I33 -> 362.3007349
B34: Wasted Truck Visit AH | C34: ='2011-15 rates summary'!D34 -> 237.71 | D34: ='2011-15 rates summary'!G34 -> 249.12 | E34: ='2011-15 rates summary'!J34 -> 258.71 | F34: ='2011-15 rates summary'!M34 -> 271.35 | G34: ='2011-15 rates summary'!P34 -> 280.38 | H34: ='2015-20 rate summary'!E34 -> 391.5078676 | I34: ='2015-20 rate summary'!F34 -> 398.102322 | J34: ='2015-20 rate summary'!G34 -> 404.8078516 | K34: ='2015-20 rate summary'!H34 -> 411.6263274 | L34: ='2015-20 rate summary'!I34 -> 418.5596518
H35: ='2015-20 rate summary'!E35 -> 0 | I35: ='2015-20 rate summary'!F35 -> 0 | J35: ='2015-20 rate summary'!G35 -> 0 | K35: ='2015-20 rate summary'!H35 -> 0 | L35: ='2015-20 rate summary'!I35 -> 0
B36: Reserve Feeder - Subtransmission - $ per KVA | C36: ='2011-15 rates summary'!D36 -> 0.8 | D36: ='2011-15 rates summary'!G36 -> 0.83 | E36: ='2011-15 rates summary'!J36 -> 0.86 | F36: ='2011-15 rates summary'!M36 -> 0.9 | G36: ='2011-15 rates summary'!P36 -> 0.92 | H36: ='2015-20 rate summary'!E36 -> 0 | I36: ='2015-20 rate summary'!F36 -> 0 | J36: ='2015-20 rate summary'!G36 -> 0 | K36: ='2015-20 rate summary'!H36 -> 0 | L36: ='2015-20 rate summary'!I36 -> 0
B37: Reserve Feeder - High Voltage - $ per KVA | C37: ='2011-15 rates summary'!D37 -> 4.1 | D37: ='2011-15 rates summary'!G37 -> 4.29 | E37: ='2011-15 rates summary'!J37 -> 4.45 | F37: ='2011-15 rates summary'!M37 -> 4.66 | G37: ='2011-15 rates summary'!P37 -> 4.81 | H37: ='2015-20 rate summary'!E37 -> 4.202483107 | I37: ='2015-20 rate summary'!F37 -> 4.273268615 | J37: ='2015-20 rate summary'!G37 -> 4.345246415 | K37: ='2015-20 rate summary'!H37 -> 4.41843659 | L37: ='2015-20 rate summary'!I37 -> 4.492859561
B38: Reserve Feeder - Voltage - $ per KVA | C38: ='2011-15 rates summary'!D38 -> 14.86 | D38: ='2011-15 rates summary'!G38 -> 15.57 | E38: ='2011-15 rates summary'!J38 -> 16.16 | F38: ='2011-15 rates summary'!M38 -> 16.95 | G38: ='2011-15 rates summary'!P38 -> 17.51 | H38: ='2015-20 rate summary'!E38 -> 9.299948217 | I38: ='2015-20 rate summary'!F38 -> 9.456594071 | J38: ='2015-20 rate summary'!G38 -> 9.615878427 | K38: ='2015-20 rate summary'!H38 -> 9.777845726 | L38: ='2015-20 rate summary'!I38 -> 9.942541159
B40: Solar PV Conn - Single phase BH (unit cost) | C40: ='2011-15 rates summary'!D40 -> 206.44 | D40: ='2011-15 rates summary'!G40 -> 216.356458 | E40: ='2011-15 rates summary'!J40 -> 224.6867886 | F40: ='2011-15 rates summary'!M40 -> 235.6712799 | G40: ='2011-15 rates summary'!P40 -> 243.5209463 | H40: ='2015-20 rate summary'!E40 -> 0 | I40: ='2015-20 rate summary'!F40 -> 0 | J40: ='2015-20 rate summary'!G40 -> 0 | K40: ='2015-20 rate summary'!H40 -> 0 | L40: ='2015-20 rate summary'!I40 -> 0
B41: Solar PV Conn - Single phase AH (unit cost) | C41: ='2011-15 rates summary'!D41 -> 220.57 | D41: ='2011-15 rates summary'!G41 -> 231.1652002 | E41: ='2011-15 rates summary'!J41 -> 240.065709 | F41: ='2011-15 rates summary'!M41 -> 251.8020451 | G41: ='2011-15 rates summary'!P41 -> 260.1889902 | H41: ='2015-20 rate summary'!E41 -> 0 | I41: ='2015-20 rate summary'!F41 -> 0 | J41: ='2015-20 rate summary'!G41 -> 0 | K41: ='2015-20 rate summary'!H41 -> 0 | L41: ='2015-20 rate summary'!I41 -> 0
B43: New Connections Responsible for metering
B44: Single phase BH | C44: ='2011-15 rates summary'!D44 -> 335.39 | D44: ='2011-15 rates summary'!G44 -> 351.5 | E44: ='2011-15 rates summary'!J44 -> 365.03 | F44: ='2011-15 rates summary'!M44 -> 382.87 | G44: ='2011-15 rates summary'!P44 -> 395.62 | H44: ='2015-20 rate summary'!E44 -> 490.9006476 | I44: ='2015-20 rate summary'!F44 -> 497.5889094 | J44: ='2015-20 rate summary'!G44 -> 504.3898265 | K44: ='2015-20 rate summary'!H44 -> 511.3052964 | L44: ='2015-20 rate summary'!I44 -> 518.3372487
B45: Single phase AH | C45: ='2011-15 rates summary'!D45 -> 360.82 | D45: ='2011-15 rates summary'!G45 -> 378.15 | E45: ='2011-15 rates summary'!J45 -> 392.7 | F45: ='2011-15 rates summary'!M45 -> 411.89 | G45: ='2011-15 rates summary'!P45 -> 425.6 | H45: ='2015-20 rate summary'!E45 -> 550.4354963 | I45: ='2015-20 rate summary'!F45 -> 558.1265473 | J45: ='2015-20 rate summary'!G45 -> 565.9471442 | K45: ='2015-20 rate summary'!H45 -> 573.8994693 | L45: ='2015-20 rate summary'!I45 -> 581.9857411
B46: Multi phase DC BH | C46: ='2011-15 rates summary'!D46 -> 437.87 | D46: ='2011-15 rates summary'!G46 -> 458.9 | E46: ='2011-15 rates summary'!J46 -> 476.56 | F46: ='2011-15 rates summary'!M46 -> 499.85 | G46: ='2011-15 rates summary'!P46 -> 516.49 | H46: ='2015-20 rate summary'!E46 -> 605.2420241 | I46: ='2015-20 rate summary'!F46 -> 611.9302859 | J46: ='2015-20 rate summary'!G46 -> 618.731203 | K46: ='2015-20 rate summary'!H46 -> 625.6466729 | L46: ='2015-20 rate summary'!I46 -> 632.6786251
B47: Multi phase DC AH | C47: ='2011-15 rates summary'!D47 -> 463.28 | D47: ='2011-15 rates summary'!G47 -> 485.53 | E47: ='2011-15 rates summary'!J47 -> 504.22 | F47: ='2011-15 rates summary'!M47 -> 528.87 | G47: ='2011-15 rates summary'!P47 -> 546.48 | H47: ='2015-20 rate summary'!E47 -> 664.7768728 | I47: ='2015-20 rate summary'!F47 -> 672.4679237 | J47: ='2015-20 rate summary'!G47 -> 680.2885207 | K47: ='2015-20 rate summary'!H47 -> 688.2408457 | L47: ='2015-20 rate summary'!I47 -> 696.3271176
B48: Multi phase CT BH | C48: ='2011-15 rates summary'!D48 -> 1810.18 | D48: ='2011-15 rates summary'!G48 -> 1897.13 | E48: ='2011-15 rates summary'!J48 -> 1970.17 | F48: ='2011-15 rates summary'!M48 -> 2066.48 | G48: ='2011-15 rates summary'!P48 -> 2135.3 | H48: ='2015-20 rate summary'!E48 -> 2385.480033 | I48: ='2015-20 rate summary'!F48 -> 2422.154151 | J48: ='2015-20 rate summary'!G48 -> 2459.445997 | K48: ='2015-20 rate summary'!H48 -> 2497.365977 | L48: ='2015-20 rate summary'!I48 -> 2535.924672
B49: Multi phase CT AH | C49: ='2011-15 rates summary'!D49 -> 1968.18 | D49: ='2011-15 rates summary'!G49 -> 2062.72 | E49: ='2011-15 rates summary'!J49 -> 2142.14 | F49: ='2011-15 rates summary'!M49 -> 2246.86 | G49: ='2011-15 rates summary'!P49 -> 2321.69 | H49: ='2015-20 rate summary'!E49 -> 2954.264174 | I49: ='2015-20 rate summary'!F49 -> 2997.16991 | J49: ='2015-20 rate summary'!G49 -> 3040.798339 | K49: ='2015-20 rate summary'!H49 -> 3085.161633 | L49: ='2015-20 rate summary'!I49 -> 3130.27217
B51: New Connections Not Responsible for metering
B52: Single phase BH | C52: ='2011-15 rates summary'!D52 -> 276.13 | D52: ='2011-15 rates summary'!G52 -> 289.39 | E52: ='2011-15 rates summary'!J52 -> 300.53 | F52: ='2011-15 rates summary'!M52 -> 315.22 | G52: ='2011-15 rates summary'!P52 -> 325.71 | H52: ='2015-20 rate summary'!E52 -> 459.0150261 | I52: ='2015-20 rate summary'!F52 -> 465.166215 | J52: ='2015-20 rate summary'!G52 -> 471.4210128 | K52: ='2015-20 rate summary'!H52 -> 477.7811648 | L52: ='2015-20 rate summary'!I52 -> 484.2484455
B53: Single phase AH | C53: ='2011-15 rates summary'!D53 -> 301.56 | D53: ='2011-15 rates summary'!G53 -> 316.04 | E53: ='2011-15 rates summary'!J53 -> 328.2 | F53: ='2011-15 rates summary'!M53 -> 344.24 | G53: ='2011-15 rates summary'!P53 -> 355.7 | H53: ='2015-20 rate summary'!E53 -> 512.9897711 | I53: ='2015-20 rate summary'!F53 -> 520.0500962 | J53: ='2015-20 rate summary'!G53 -> 527.2293436 | K53: ='2015-20 rate summary'!H53 -> 534.5295162 | L53: ='2015-20 rate summary'!I53 -> 541.9526511
B54: Multi phase DC BH | C54: ='2011-15 rates summary'!D54 -> 378.61 | D54: ='2011-15 rates summary'!G54 -> 396.79 | E54: ='2011-15 rates summary'!J54 -> 412.06 | F54: ='2011-15 rates summary'!M54 -> 432.2 | G54: ='2011-15 rates summary'!P54 -> 446.59 | H54: ='2015-20 rate summary'!E54 -> 573.3564026 | I54: ='2015-20 rate summary'!F54 -> 579.5075915 | J54: ='2015-20 rate summary'!G54 -> 585.7623893 | K54: ='2015-20 rate summary'!H54 -> 592.1225413 | L54: ='2015-20 rate summary'!I54 -> 598.589822
B55: Multi phase DC AH | C55: ='2011-15 rates summary'!D55 -> 404.03 | D55: ='2011-15 rates summary'!G55 -> 423.43 | E55: ='2011-15 rates summary'!J55 -> 439.73 | F55: ='2011-15 rates summary'!M55 -> 461.22 | G55: ='2011-15 rates summary'!P55 -> 476.58 | H55: ='2015-20 rate summary'!E55 -> 627.3311476 | I55: ='2015-20 rate summary'!F55 -> 634.3914727 | J55: ='2015-20 rate summary'!G55 -> 641.57072 | K55: ='2015-20 rate summary'!H55 -> 648.8708927 | L55: ='2015-20 rate summary'!I55 -> 656.2940275
B56: Multi phase CT BH | C56: ='2011-15 rates summary'!D56 -> 1750.93 | D56: ='2011-15 rates summary'!G56 -> 1835.03 | E56: ='2011-15 rates summary'!J56 -> 1905.68 | F56: ='2011-15 rates summary'!M56 -> 1998.84 | G56: ='2011-15 rates summary'!P56 -> 2065.41 | H56: ='2015-20 rate summary'!E56 -> 2033.769953 | I56: ='2015-20 rate summary'!F56 -> 2061.171128 | J56: ='2015-20 rate summary'!G56 -> 2089.033842 | K56: ='2015-20 rate summary'!H56 -> 2117.365868 | L56: ='2015-20 rate summary'!I56 -> 2146.175112
B57: Multi phase CT AH | C57: ='2011-15 rates summary'!D57 -> 1908.92 | D57: ='2011-15 rates summary'!G57 -> 2000.61 | E57: ='2011-15 rates summary'!J57 -> 2077.63 | F57: ='2011-15 rates summary'!M57 -> 2179.2 | G57: ='2011-15 rates summary'!P57 -> 2251.78 | H57: ='2015-20 rate summary'!E57 -> 2308.764254 | I57: ='2015-20 rate summary'!F57 -> 2340.797361 | J57: ='2015-20 rate summary'!G57 -> 2373.370024 | K57: ='2015-20 rate summary'!H57 -> 2406.491333 | L57: ='2015-20 rate summary'!I57 -> 2440.170529
B59: Re-test of type 5 & 6 metering installations for first tier customers with annual consumption greater than 160MWh BH | C59: ='2011-15 rates summary'!D59 -> 318.89 | D59: ='2011-15 rates summary'!G59 -> 334.2 | E59: ='2011-15 rates summary'!J59 -> 347.06 | F59: ='2011-15 rates summary'!M59 -> 364.02 | G59: ='2011-15 rates summary'!P59 -> 376.14
B60: Re-test of type 5 & 6 metering installations for first tier customers with annual consumption greater than 160MWh AH | C60: ='2011-15 rates summary'!D60 -> 352.14 | D60: ='2011-15 rates summary'!G60 -> 369.05 | E60: ='2011-15 rates summary'!J60 -> 383.25 | F60: ='2011-15 rates summary'!M60 -> 401.98 | G60: ='2011-15 rates summary'!P60 -> 415.36
B62: Remote Meter Reconfiguration | C62: ='2011-15 rates summary'!D62 -> 28.73 | D62: ='2011-15 rates summary'!G62 -> 29.74 | E62: ='2011-15 rates summary'!J62 -> 30.91018852 | F62: ='2011-15 rates summary'!M62 -> 30.91018852 | G62: ='2011-15 rates summary'!P62 -> 30.91018852 | H62: ='2015-20 rate summary'!E62 -> 54.11547723 | I62: ='2015-20 rate summary'!F62 -> 55.02698394 | J62: ='2015-20 rate summary'!G62 -> 55.95384382 | K62: ='2015-20 rate summary'!H62 -> 56.89631549 | L62: ='2015-20 rate summary'!I62 -> 57.85466189
B63: Remote Reenergisation | C63: ='2011-15 rates summary'!D63 -> 5.42 | D63: ='2011-15 rates summary'!G63 -> 5.61 | E63: ='2011-15 rates summary'!J63 -> 5.828778406 | F63: ='2011-15 rates summary'!M63 -> 5.828778406 | G63: ='2011-15 rates summary'!P63 -> 5.828778406 | H63: ='2015-20 rate summary'!E63 -> 10.20463285 | I63: ='2015-20 rate summary'!F63 -> 10.37651697 | J63: ='2015-20 rate summary'!G63 -> 10.55129626 | K63: ='2015-20 rate summary'!H63 -> 10.72901949 | L63: ='2015-20 rate summary'!I63 -> 10.90973624
B64: Remote Deenergisation | C64: ='2011-15 rates summary'!D64 -> 5.42 | D64: ='2011-15 rates summary'!G64 -> 5.61 | E64: ='2011-15 rates summary'!J64 -> 5.828778406 | F64: ='2011-15 rates summary'!M64 -> 5.828778406 | G64: ='2011-15 rates summary'!P64 -> 5.828778406 | H64: ='2015-20 rate summary'!E64 -> 10.20463285 | I64: ='2015-20 rate summary'!F64 -> 10.37651697 | J64: ='2015-20 rate summary'!G64 -> 10.55129626 | K64: ='2015-20 rate summary'!H64 -> 10.72901949 | L64: ='2015-20 rate summary'!I64 -> 10.90973624
B67: Check | C67: =SUM(C9:C64)-SUM('2011-15 rates summary'!D9:D64) -> 0 | D67: =SUM(D9:D64)-SUM('2011-15 rates summary'!G9:G64) -> 0 | E67: =SUM(E9:E64)-SUM('2011-15 rates summary'!J9:J64) -> 0 | F67: =SUM(F9:F64)-SUM('2011-15 rates summary'!M9:M64) -> 0 | G67: =SUM(G9:G64)-SUM('2011-15 rates summary'!P9:P64) -> 0 | H67: =SUM(H9:H64)-SUM('2015-20 rate summary'!E9:E64) -> 0 | I67: =SUM(I9:I64)-SUM('2015-20 rate summary'!F9:F64) -> 0 | J67: =SUM(J9:J64)-SUM('2015-20 rate summary'!G9:G64) -> 0 | K67: =SUM(K9:K64)-SUM('2015-20 rate summary'!H9:H64) -> 0 | L67: =SUM(L9:L64)-SUM('2015-20 rate summary'!I9:I64) -> 0 | M67: =SUM(C67:L67) -> 0
B70: Name of Quoted Service | C70: Current regulatory control period | H70: Forthcoming regulatory control period
C71: Actual ($ ex GST) | H71: Real $2015 (ex GST)
C72: 2011 | D72: 2012 | E72: 2013 | F72: 2014 | G72: 2015 | H72: 2016 | I72: 2017 | J72: 2018 | K72: 2019 | L72: 2020
B73: General Lineworker BH | C73: ='2011-15 rates summary'!D68 -> 111.79 | D73: ='2011-15 rates summary'!G68 -> 119.21 | E73: ='2011-15 rates summary'!J68 -> 124.29 | F73: ='2011-15 rates summary'!M68 -> 127.82 | G73: ='2011-15 rates summary'!P68 -> 132.6 | H73: ='ACS 12.6'!H11 -> 0 | I73: ='ACS 12.6'!I11 -> 0 | J73: ='ACS 12.6'!J11 -> 0 | K73: ='ACS 12.6'!K11 -> 0 | L73: ='ACS 12.6'!L11 -> 0
B74: Design / Survey BH | C74: ='2011-15 rates summary'!D69 -> 123.9 | D74: ='2011-15 rates summary'!G69 -> 132.13 | E74: ='2011-15 rates summary'!J69 -> 137.76 | F74: ='2011-15 rates summary'!M69 -> 141.68 | G74: ='2011-15 rates summary'!P69 -> 146.97 | H74: ='ACS 12.6'!H12 -> 0 | I74: ='ACS 12.6'!I12 -> 0 | J74: ='ACS 12.6'!J12 -> 0 | K74: ='ACS 12.6'!K12 -> 0 | L74: ='ACS 12.6'!L12 -> 0
B75: General Lineworker AH | C75: ='2011-15 rates summary'!D70 -> 106.33 | D75: ='2011-15 rates summary'!G70 -> 113.39 | E75: ='2011-15 rates summary'!J70 -> 118.23 | F75: ='2011-15 rates summary'!M70 -> 121.59 | G75: ='2011-15 rates summary'!P70 -> 126.13 | H75: ='ACS 12.6'!H13 -> 0 | I75: ='ACS 12.6'!I13 -> 0 | J75: ='ACS 12.6'!J13 -> 0 | K75: ='ACS 12.6'!K13 -> 0 | L75: ='ACS 12.6'!L13 -> 0
B76: Design / Survey AH | C76: ='2011-15 rates summary'!D71 -> 125.29 | D76: ='2011-15 rates summary'!G71 -> 133.61 | E76: ='2011-15 rates summary'!J71 -> 139.31 | F76: ='2011-15 rates summary'!M71 -> 143.27 | G76: ='2011-15 rates summary'!P71 -> 148.62 | H76: ='ACS 12.6'!H14 -> 0 | I76: ='ACS 12.6'!I14 -> 0 | J76: ='ACS 12.6'!J14 -> 0 | K76: ='ACS 12.6'!K14 -> 0 | L76: ='ACS 12.6'!L14 -> 0
B77: Skilled Electrical Worker BH | H77: ='ACS 12.6'!H15 -> 123.7674125 | I77: ='ACS 12.6'!I15 -> 125.8521179 | J77: ='ACS 12.6'!J15 -> 127.9719375 | K77: ='ACS 12.6'!K15 -> 130.1274628 | L77: ='ACS 12.6'!L15 -> 132.3192952
B78: Skilled Electrical Worker AH | H78: ='ACS 12.6'!H16 -> 145.3495434 | I78: ='ACS 12.6'!I16 -> 147.7977724 | J78: ='ACS 12.6'!J16 -> 150.2872388 | K78: ='ACS 12.6'!K16 -> 152.8186371 | L78: ='ACS 12.6'!L16 -> 155.3926736
B80: Back Office - Exclusive of Ohs | C80: ='2011-15 rates summary'!D72 -> 46.6 | D80: ='2011-15 rates summary'!G72 -> 49.69 | E80: ='2011-15 rates summary'!J72 -> 51.81 | F80: ='2011-15 rates summary'!M72 -> 53.28 | G80: ='2011-15 rates summary'!P72 -> 55.27 | H80: ='ACS 12.6'!H18 -> 0 | I80: ='ACS 12.6'!I18 -> 0 | J80: ='ACS 12.6'!J18 -> 0 | K80: ='ACS 12.6'!K18 -> 0 | L80: ='ACS 12.6'!L18 -> 0
B81: Support staff (Category RIN) | H81: ='ACS 12.6'!H19 -> 70.62314609 | I81: ='ACS 12.6'!I19 -> 71.81270358 | J81: ='ACS 12.6'!J19 -> 73.02229767 | K81: ='ACS 12.6'!K19 -> 74.25226583 | L81: ='ACS 12.6'!L19 -> 75.50295125

Sheet ACS 12.5
A1: =Title!A38 -> PAL ACS Model
A2: =MID(CELL("Filename",C1),FIND("]",CELL("Filename",C1))+1,255) -> ACS 12.5 | J2: =Check!D2 -> OK
A3: Menu
B4: Total revenue earned by Powercor
B6: Name of Fee based Service | C6: Current regulatory control period | H6: Forthcoming regulatory control period | M6: =SUM(M41:M84) -> 0
C7: Actual (nominal $ ex GST) | H7: Real $2015 (ex GST)
C8: 2011 | D8: 2012 | E8: 2013 | F8: 2014 | G8: 2015 | H8: 2016 | I8: 2017 | J8: 2018 | K8: 2019 | L8: 2020
B9: Meter Investigation Test (BH) | C9: ='2011-20 Revenue'!$I$9 -> 72132.87 | D9: =OFFSET('2011-20 Revenue'!$I$9,0,D$87) -> 116280.88 | E9: =OFFSET('2011-20 Revenue'!$I$9,0,E$87) -> 130950.56 | F9: =OFFSET('2011-20 Revenue'!$I$9,0,F$87) -> 111374.16 | G9: =OFFSET('2011-20 Revenue'!$I$9,0,G$87) -> 116957.7382 | H9: =OFFSET('2011-20 Revenue'!$I$9,0,H$87) -> 153748.5471 | I9: =OFFSET('2011-20 Revenue'!$I$9,0,I$87) -> 158717.1187 | J9: =OFFSET('2011-20 Revenue'!$I$9,0,J$87) -> 163848.9169 | K9: =OFFSET('2011-20 Revenue'!$I$9,0,K$87) -> 169327.193 | L9: =OFFSET('2011-20 Revenue'!$I$9,0,L$87) -> 174988.6348
B10: Meter Investigation Test (AH) | C10: ='2011-20 Revenue'!$I$10 -> 16875 | D10: =OFFSET('2011-20 Revenue'!$I$10,0,D$87) -> 32120.1 | E10: =OFFSET('2011-20 Revenue'!$I$10,0,E$87) -> 19147.59 | F10: =OFFSET('2011-20 Revenue'!$I$10,0,F$87) -> 17694.56 | G10: =OFFSET('2011-20 Revenue'!$I$10,0,G$87) -> 18582.0597 | H10: =OFFSET('2011-20 Revenue'!$I$10,0,H$87) -> 25562.50769 | I10: =OFFSET('2011-20 Revenue'!$I$10,0,I$87) -> 26388.59126 | J10: =OFFSET('2011-20 Revenue'!$I$10,0,J$87) -> 27241.81319 | K10: =OFFSET('2011-20 Revenue'!$I$10,0,K$87) -> 28152.64114 | L10: =OFFSET('2011-20 Revenue'!$I$10,0,L$87) -> 29093.92255
B11: Meter Accuracy Test - single phase (BH) | C11: ='2011-20 Revenue'!$I$11 -> 129725.99 | D11: =OFFSET('2011-20 Revenue'!$I$11,0,D$87) -> 142098.76 | E11: =OFFSET('2011-20 Revenue'!$I$11,0,E$87) -> 109572.7 | F11: =OFFSET('2011-20 Revenue'!$I$11,0,F$87) -> 79102.72 | G11: =OFFSET('2011-20 Revenue'!$I$11,0,G$87) -> 83070.9948 | H11: =OFFSET('2011-20 Revenue'!$I$11,0,H$87) -> 108184.5579 | I11: =OFFSET('2011-20 Revenue'!$I$11,0,I$87) -> 111680.6736 | J11: =OFFSET('2011-20 Revenue'!$I$11,0,J$87) -> 115291.6432 | K11: =OFFSET('2011-20 Revenue'!$I$11,0,K$87) -> 119146.4105 | L11: =OFFSET('2011-20 Revenue'!$I$11,0,L$87) -> 123130.0616
B12: Meter Accuracy Test - single phase (AH) | C12: ='2011-20 Revenue'!$I$12 -> 355.58 | D12: =OFFSET('2011-20 Revenue'!$I$12,0,D$87) -> 2235.96 | E12: =OFFSET('2011-20 Revenue'!$I$12,0,E$87) -> 774 | F12: =OFFSET('2011-20 Revenue'!$I$12,0,F$87) -> 0 | G12: =OFFSET('2011-20 Revenue'!$I$12,0,G$87) -> 0 | H12: =OFFSET('2011-20 Revenue'!$I$12,0,H$87) -> 0 | I12: =OFFSET('2011-20 Revenue'!$I$12,0,I$87) -> 0 | J12: =OFFSET('2011-20 Revenue'!$I$12,0,J$87) -> 0 | K12: =OFFSET('2011-20 Revenue'!$I$12,0,K$87) -> 0 | L12: =OFFSET('2011-20 Revenue'!$I$12,0,L$87) -> 0
B13: Meter Accuracy Test - Single phase additional meter (BH) | C13: ='2011-20 Revenue'!$I$13 -> 8838.17 | D13: =OFFSET('2011-20 Revenue'!$I$13,0,D$87) -> 6761.61 | E13: =OFFSET('2011-20 Revenue'!$I$13,0,E$87) -> 4601.71 | F13: =OFFSET('2011-20 Revenue'!$I$13,0,F$87) -> 3005.94 | G13: =OFFSET('2011-20 Revenue'!$I$13,0,G$87) -> 3156.549114 | H13: =OFFSET('2011-20 Revenue'!$I$13,0,H$87) -> 4067.441502 | I13: =OFFSET('2011-20 Revenue'!$I$13,0,I$87) -> 4198.885828 | J13: =OFFSET('2011-20 Revenue'!$I$13,0,J$87) -> 4334.648342 | K13: =OFFSET('2011-20 Revenue'!$I$13,0,K$87) -> 4479.576979 | L13: =OFFSET('2011-20 Revenue'!$I$13,0,L$87) -> 4629.351294
B14: Meter Accuracy Test - multi phase (BH) | C14: ='2011-20 Revenue'!$I$14 -> 38766.79 | D14: =OFFSET('2011-20 Revenue'!$I$14,0,D$87) -> 54595.58 | E14: =OFFSET('2011-20 Revenue'!$I$14,0,E$87) -> 45563.4 | F14: =OFFSET('2011-20 Revenue'!$I$14,0,F$87) -> 36597.73 | G14: =OFFSET('2011-20 Revenue'!$I$14,0,G$87) -> 38433.15659 | H14: =OFFSET('2011-20 Revenue'!$I$14,0,H$87) -> 49660.80868 | I14: =OFFSET('2011-20 Revenue'!$I$14,0,I$87) -> 51265.6582 | J14: =OFFSET('2011-20 Revenue'!$I$14,0,J$87) -> 52923.22997 | K14: =OFFSET('2011-20 Revenue'!$I$14,0,K$87) -> 54692.71413 | L14: =OFFSET('2011-20 Revenue'!$I$14,0,L$87) -> 56521.36086
B15: Meter Accuracy Test - multi phase (AH) | C15: ='2011-20 Revenue'!$I$15 -> 0 | D15: =OFFSET('2011-20 Revenue'!$I$15,0,D$87) -> 0 | E15: =OFFSET('2011-20 Revenue'!$I$15,0,E$87) -> 0 | F15: =OFFSET('2011-20 Revenue'!$I$15,0,F$87) -> 0 | G15: =OFFSET('2011-20 Revenue'!$I$15,0,G$87) -> 0 | H15: =OFFSET('2011-20 Revenue'!$I$15,0,H$87) -> 0 | I15: =OFFSET('2011-20 Revenue'!$I$15,0,I$87) -> 0 | J15: =OFFSET('2011-20 Revenue'!$I$15,0,J$87) -> 0 | K15: =OFFSET('2011-20 Revenue'!$I$15,0,K$87) -> 0 | L15: =OFFSET('2011-20 Revenue'!$I$15,0,L$87) -> 0
B16: Meter Accuracy Test - Multi phase additional meter (BH) | C16: ='2011-20 Revenue'!$I$16 -> 4603.89 | D16: =OFFSET('2011-20 Revenue'!$I$16,0,D$87) -> 1874.48 | E16: =OFFSET('2011-20 Revenue'!$I$16,0,E$87) -> 2919.96 | F16: =OFFSET('2011-20 Revenue'!$I$16,0,F$87) -> 2321.35 | G16: =OFFSET('2011-20 Revenue'!$I$16,0,G$87) -> 2437.799063 | H16: =OFFSET('2011-20 Revenue'!$I$16,0,H$87) -> 3108.466759 | I16: =OFFSET('2011-20 Revenue'!$I$16,0,I$87) -> 3208.920648 | J16: =OFFSET('2011-20 Revenue'!$I$16,0,J$87) -> 3312.674632 | K16: =OFFSET('2011-20 Revenue'!$I$16,0,K$87) -> 3423.433656 | L16: =OFFSET('2011-20 Revenue'!$I$16,0,L$87) -> 3537.895899
B17: Meter Accuracy Test - CT (BH) | C17: ='2011-20 Revenue'!$I$17 -> 406.75 | D17: =OFFSET('2011-20 Revenue'!$I$17,0,D$87) -> 426.28 | E17: =OFFSET('2011-20 Revenue'!$I$17,0,E$87) -> 4820.36 | F17: =OFFSET('2011-20 Revenue'!$I$17,0,F$87) -> 1392.99 | G17: =OFFSET('2011-20 Revenue'!$I$17,0,G$87) -> 1462.855281 | H17: =OFFSET('2011-20 Revenue'!$I$17,0,H$87) -> 1891.278698 | I17: =OFFSET('2011-20 Revenue'!$I$17,0,I$87) -> 1952.397672 | J17: =OFFSET('2011-20 Revenue'!$I$17,0,J$87) -> 2015.524517 | K17: =OFFSET('2011-20 Revenue'!$I$17,0,K$87) -> 2082.913426 | L17: =OFFSET('2011-20 Revenue'!$I$17,0,L$87) -> 2152.555478
B18: Meter Accuracy Test - CT (AH) | C18: ='2011-20 Revenue'!$I$18 -> 0 | D18: =OFFSET('2011-20 Revenue'!$I$18,0,D$87) -> 0 | E18: =OFFSET('2011-20 Revenue'!$I$18,0,E$87) -> 0 | F18: =OFFSET('2011-20 Revenue'!$I$18,0,F$87) -> 0 | G18: =OFFSET('2011-20 Revenue'!$I$18,0,G$87) -> 0 | H18: =OFFSET('2011-20 Revenue'!$I$18,0,H$87) -> 0 | I18: =OFFSET('2011-20 Revenue'!$I$18,0,I$87) -> 0 | J18: =OFFSET('2011-20 Revenue'!$I$18,0,J$87) -> 0 | K18: =OFFSET('2011-20 Revenue'!$I$18,0,K$87) -> 0 | L18: =OFFSET('2011-20 Revenue'!$I$18,0,L$87) -> 0
B20: Reconnections (incl Customer Transfer) BH | C20: ='2011-20 Revenue'!$I$23 -> 2232450.591 | D20: =OFFSET('2011-20 Revenue'!$I$23,0,D$87) -> 2618875.68 | E20: =OFFSET('2011-20 Revenue'!$I$23,0,E$87) -> 2039560.402 | F20: =OFFSET('2011-20 Revenue'!$I$23,0,F$87) -> 1542679.53 | G20: =OFFSET('2011-20 Revenue'!$I$23,0,G$87) -> 1152582.68 | H20: =OFFSET('2011-20 Revenue'!$I$23,0,H$87) -> 1211261.735 | I20: =OFFSET('2011-20 Revenue'!$I$23,0,I$87) -> 978019.0618 | J20: =OFFSET('2011-20 Revenue'!$I$23,0,J$87) -> 791760.6796 | K20: =OFFSET('2011-20 Revenue'!$I$23,0,K$87) -> 632166.9939 | L20: =OFFSET('2011-20 Revenue'!$I$23,0,L$87) -> 504994.0576
B21: Reconnections (same day) BH | C21: ='2011-20 Revenue'!$I$24 -> 107416.6447 | D21: =OFFSET('2011-20 Revenue'!$I$24,0,D$87) -> 514987.36 | E21: =OFFSET('2011-20 Revenue'!$I$24,0,E$87) -> 533300.3517 | F21: =OFFSET('2011-20 Revenue'!$I$24,0,F$87) -> 336912.3571 | G21: =OFFSET('2011-20 Revenue'!$I$24,0,G$87) -> 251710.8815 | H21: =OFFSET('2011-20 Revenue'!$I$24,0,H$87) -> 271875.4875 | I21: =OFFSET('2011-20 Revenue'!$I$24,0,I$87) -> 219472.955 | J21: =OFFSET('2011-20 Revenue'!$I$24,0,J$87) -> 177631.2148 | K21: =OFFSET('2011-20 Revenue'!$I$24,0,K$87) -> 141793.6465 | L21: =OFFSET('2011-20 Revenue'!$I$24,0,L$87) -> 113248.3495
B22: Reconnections (incl Customer Transfer) AH | C22: ='2011-20 Revenue'!$I$25 -> 682931.0056 | D22: =OFFSET('2011-20 Revenue'!$I$25,0,D$87) -> 20984.83 | E22: =OFFSET('2011-20 Revenue'!$I$25,0,E$87) -> 26873.30993 | F22: =OFFSET('2011-20 Revenue'!$I$25,0,F$87) -> 0 | G22: =OFFSET('2011-20 Revenue'!$I$25,0,G$87) -> 0 | H22: =OFFSET('2011-20 Revenue'!$I$25,0,H$87) -> 0 | I22: =OFFSET('2011-20 Revenue'!$I$25,0,I$87) -> 0 | J22: =OFFSET('2011-20 Revenue'!$I$25,0,J$87) -> 0 | K22: =OFFSET('2011-20 Revenue'!$I$25,0,K$87) -> 0 | L22: =OFFSET('2011-20 Revenue'!$I$25,0,L$87) -> 0
B23: Disconnection (BH only) | C23: ='2011-20 Revenue'!$I$20 -> 1047720.439 | D23: =OFFSET('2011-20 Revenue'!$I$20,0,D$87) -> 1405782.56 | E23: =OFFSET('2011-20 Revenue'!$I$20,0,E$87) -> 1381103.517 | F23: =OFFSET('2011-20 Revenue'!$I$20,0,F$87) -> 1020939.826 | G23: =OFFSET('2011-20 Revenue'!$I$20,0,G$87) -> 762748.7756 | H23: =OFFSET('2011-20 Revenue'!$I$20,0,H$87) -> 804856.9739 | I23: =OFFSET('2011-20 Revenue'!$I$20,0,I$87) -> 649849.7588 | J23: =OFFSET('2011-20 Revenue'!$I$20,0,J$87) -> 526069.3226 | K23: =OFFSET('2011-20 Revenue'!$I$20,0,K$87) -> 420015.6635 | L23: =OFFSET('2011-20 Revenue'!$I$20,0,L$87) -> 335511.7914
B24: Disconnection (no AH service) | C24: ='2011-20 Revenue'!$I$21 -> 0 | D24: =OFFSET('2011-20 Revenue'!$I$21,0,D$87) -> 0 | E24: =OFFSET('2011-20 Revenue'!$I$21,0,E$87) -> 0 | F24: =OFFSET('2011-20 Revenue'!$I$21,0,F$87) -> 0 | G24: =OFFSET('2011-20 Revenue'!$I$21,0,G$87) -> 0 | H24: =OFFSET('2011-20 Revenue'!$I$21,0,H$87) -> 0 | I24: =OFFSET('2011-20 Revenue'!$I$21,0,I$87) -> 0 | J24: =OFFSET('2011-20 Revenue'!$I$21,0,J$87) -> 0 | K24: =OFFSET('2011-20 Revenue'!$I$21,0,K$87) -> 0 | L24: =OFFSET('2011-20 Revenue'!$I$21,0,L$87) -> 0
B25: Disconnection for non payment (BH only) | C25: ='2011-20 Revenue'!$I$22 -> 233696.7172 | D25: =OFFSET('2011-20 Revenue'!$I$22,0,D$87) -> 250900.8 | E25: =OFFSET('2011-20 Revenue'!$I$22,0,E$87) -> 215660.8064 | F25: =OFFSET('2011-20 Revenue'!$I$22,0,F$87) -> 138061.6186 | G25: =OFFSET('2011-20 Revenue'!$I$22,0,G$87) -> 103146.4616 | H25: =OFFSET('2011-20 Revenue'!$I$22,0,H$87) -> 108840.7502 | I25: =OFFSET('2011-20 Revenue'!$I$22,0,I$87) -> 87879.13575 | J25: =OFFSET('2011-20 Revenue'!$I$22,0,J$87) -> 71140.31635 | K25: =OFFSET('2011-20 Revenue'!$I$22,0,K$87) -> 56798.68771 | L25: =OFFSET('2011-20 Revenue'!$I$22,0,L$87) -> 45371.23521
B26: Special reading BH | C26: ='2011-20 Revenue'!$I$26 -> 252383.0222 | D26: =OFFSET('2011-20 Revenue'!$I$26,0,D$87) -> 455948.22 | E26: =OFFSET('2011-20 Revenue'!$I$26,0,E$87) -> 206742.6037 | F26: =OFFSET('2011-20 Revenue'!$I$26,0,F$87) -> 60913.63353 | G26: =OFFSET('2011-20 Revenue'!$I$26,0,G$87) -> 45512.01663 | H26: =OFFSET('2011-20 Revenue'!$I$26,0,H$87) -> 49807.34642 | I26: =OFFSET('2011-20 Revenue'!$I$26,0,I$87) -> 40202.93684 | J26: =OFFSET('2011-20 Revenue'!$I$26,0,J$87) -> 32534.54456 | K26: =OFFSET('2011-20 Revenue'!$I$26,0,K$87) -> 25967.76878 | L26: =OFFSET('2011-20 Revenue'!$I$26,0,L$87) -> 20738.25135
B27: Special reading AH - no service | C27: ='2011-20 Revenue'!$I$27 -> 0 | D27: =OFFSET('2011-20 Revenue'!$I$27,0,D$87) -> 0 | E27: =OFFSET('2011-20 Revenue'!$I$27,0,E$87) -> 0 | F27: =OFFSET('2011-20 Revenue'!$I$27,0,F$87) -> 0 | G27: =OFFSET('2011-20 Revenue'!$I$27,0,G$87) -> 0 | H27: =OFFSET('2011-20 Revenue'!$I$27,0,H$87) -> 0 | I27: =OFFSET('2011-20 Revenue'!$I$27,0,I$87) -> 0 | J27: =OFFSET('2011-20 Revenue'!$I$27,0,J$87) -> 0 | K27: =OFFSET('2011-20 Revenue'!$I$27,0,K$87) -> 0 | L27: =OFFSET('2011-20 Revenue'!$I$27,0,L$87) -> 0
B28: Manual meter reading | C28: ='2011-20 Revenue'!$I$28 -> 0 | D28: =OFFSET('2011-20 Revenue'!$I$28,0,D$87) -> 0 | E28: =OFFSET('2011-20 Revenue'!$I$28,0,E$87) -> 0 | F28: =OFFSET('2011-20 Revenue'!$I$28,0,F$87) -> 0 | G28: =OFFSET('2011-20 Revenue'!$I$28,0,G$87) -> 376287.84 | H28: =OFFSET('2011-20 Revenue'!$I$28,0,H$87) -> 715460.3966 | I28: =OFFSET('2011-20 Revenue'!$I$28,0,I$87) -> 725582.4456 | J28: =OFFSET('2011-20 Revenue'!$I$28,0,J$87) -> 735654.6627 | K28: =OFFSET('2011-20 Revenue'!$I$28,0,K$87) -> 746030.7814 | L28: =OFFSET('2011-20 Revenue'!$I$28,0,L$87) -> 756984.6905
B29: Access to meter data | C29: ='2011-20 Revenue'!$I$29 -> 0 | D29: =OFFSET('2011-20 Revenue'!$I$29,0,D$87) -> 0 | E29: =OFFSET('2011-20 Revenue'!$I$29,0,E$87) -> 0 | F29: =OFFSET('2011-20 Revenue'!$I$29,0,F$87) -> 0 | G29: =OFFSET('2011-20 Revenue'!$I$29,0,G$87) -> 0 | H29: =OFFSET('2011-20 Revenue'!$I$29,0,H$87) -> 27677.35722 | I29: =OFFSET('2011-20 Revenue'!$I$29,0,I$87) -> 57545.14803 | J29: =OFFSET('2011-20 Revenue'!$I$29,0,J$87) -> 133234.0955 | K29: =OFFSET('2011-20 Revenue'!$I$29,0,K$87) -> 338695.638 | L29: =OFFSET('2011-20 Revenue'!$I$29,0,L$87) -> 861026.1381
B31: Service Truck Visit BH | C31: ='2011-20 Revenue'!$I$31 -> 3295487.92 | D31: =OFFSET('2011-20 Revenue'!$I$31,0,D$87) -> 3901430.83 | E31: =OFFSET('2011-20 Revenue'!$I$31,0,E$87) -> 2593910.95 | F31: =OFFSET('2011-20 Revenue'!$I$31,0,F$87) -> 2844835.71 | G31: =OFFSET('2011-20 Revenue'!$I$31,0,G$87) -> 2987504.458 | H31: =OFFSET('2011-20 Revenue'!$I$31,0,H$87) -> 3947853.42 | I31: =OFFSET('2011-20 Revenue'!$I$31,0,I$87) -> 4075433.112 | J31: =OFFSET('2011-20 Revenue'!$I$31,0,J$87) -> 4207204.031 | K31: =OFFSET('2011-20 Revenue'!$I$31,0,K$87) -> 4347871.577 | L31: =OFFSET('2011-20 Revenue'!$I$31,0,L$87) -> 4493242.332
B32: Service Truck Visit AH | C32: ='2011-20 Revenue'!$I$32 -> 263336.49 | D32: =OFFSET('2011-20 Revenue'!$I$32,0,D$87) -> 393389.35 | E32: =OFFSET('2011-20 Revenue'!$I$32,0,E$87) -> 277741.25 | F32: =OFFSET('2011-20 Revenue'!$I$32,0,F$87) -> 547319.83 | G32: =OFFSET('2011-20 Revenue'!$I$32,0,G$87) -> 574768.9053 | H32: =OFFSET('2011-20 Revenue'!$I$32,0,H$87) -> 820648.7358 | I32: =OFFSET('2011-20 Revenue'!$I$32,0,I$87) -> 847168.9992 | J32: =OFFSET('2011-20 Revenue'!$I$32,0,J$87) -> 874560.5019 | K32: =OFFSET('2011-20 Revenue'!$I$32,0,K$87) -> 903801.3657 | L32: =OFFSET('2011-20 Revenue'!$I$32,0,L$87) -> 934019.8955
B33: Wasted Truck Visit BH | C33: ='2011-20 Revenue'!$I$33 -> 240989.08 | D33: =OFFSET('2011-20 Revenue'!$I$33,0,D$87) -> 200415.67 | E33: =OFFSET('2011-20 Revenue'!$I$33,0,E$87) -> 169105 | F33: =OFFSET('2011-20 Revenue'!$I$33,0,F$87) -> 122058.29 | G33: =OFFSET('2011-20 Revenue'!$I$33,0,G$87) -> 128179.951 | H33: =OFFSET('2011-20 Revenue'!$I$33,0,H$87) -> 174270.4275 | I33: =OFFSET('2011-20 Revenue'!$I$33,0,I$87) -> 179902.1887 | J33: =OFFSET('2011-20 Revenue'!$I$33,0,J$87) -> 185718.9635 | K33: =OFFSET('2011-20 Revenue'!$I$33,0,K$87) -> 191928.4629 | L33: =OFFSET('2011-20 Revenue'!$I$33,0,L$87) -> 198345.5764
B34: Wasted Truck Visit AH | C34: ='2011-20 Revenue'!$I$34 -> 5727.52 | D34: =OFFSET('2011-20 Revenue'!$I$34,0,D$87) -> 1245.6 | E34: =OFFSET('2011-20 Revenue'!$I$34,0,E$87) -> 5418.92 | F34: =OFFSET('2011-20 Revenue'!$I$34,0,F$87) -> 2429.51 | G34: =OFFSET('2011-20 Revenue'!$I$34,0,G$87) -> 2551.319296 | H34: =OFFSET('2011-20 Revenue'!$I$34,0,H$87) -> 3628.448027 | I34: =OFFSET('2011-20 Revenue'!$I$34,0,I$87) -> 3745.705744 | J34: =OFFSET('2011-20 Revenue'!$I$34,0,J$87) -> 3866.815593 | K34: =OFFSET('2011-20 Revenue'!$I$34,0,K$87) -> 3996.102278 | L34: =OFFSET('2011-20 Revenue'!$I$34,0,L$87) -> 4129.711653
B36: Reserve Feeder - Subtransmission - $ per KVA | C36: ='2011-20 Revenue'!$I$36 -> 0 | D36: =OFFSET('2011-20 Revenue'!$I$36,0,D$87) -> 0 | E36: =OFFSET('2011-20 Revenue'!$I$36,0,E$87) -> 0 | F36: =OFFSET('2011-20 Revenue'!$I$36,0,F$87) -> 0 | G36: =OFFSET('2011-20 Revenue'!$I$36,0,G$87) -> 0 | H36: =OFFSET('2011-20 Revenue'!$I$36,0,H$87) -> 0 | I36: =OFFSET('2011-20 Revenue'!$I$36,0,I$87) -> 0 | J36: =OFFSET('2011-20 Revenue'!$I$36,0,J$87) -> 0 | K36: =OFFSET('2011-20 Revenue'!$I$36,0,K$87) -> 0 | L36: =OFFSET('2011-20 Revenue'!$I$36,0,L$87) -> 0
B37: Reserve Feeder - High Voltage - $ per KVA | C37: ='2011-20 Revenue'!$I$37 -> 68375.22 | D37: =OFFSET('2011-20 Revenue'!$I$37,0,D$87) -> 101896.45 | E37: =OFFSET('2011-20 Revenue'!$I$37,0,E$87) -> 87346.56 | F37: =OFFSET('2011-20 Revenue'!$I$37,0,F$87) -> 302403.55 | G37: =OFFSET('2011-20 Revenue'!$I$37,0,G$87) -> 317230.5192 | H37: =OFFSET('2011-20 Revenue'!$I$37,0,H$87) -> 281685.6863 | I37: =OFFSET('2011-20 Revenue'!$I$37,0,I$87) -> 291103.8258 | J37: =OFFSET('2011-20 Revenue'!$I$37,0,J$87) -> 300836.86 | K37: =OFFSET('2011-20 Revenue'!$I$37,0,K$87) -> 310895.3175 | L37: =OFFSET('2011-20 Revenue'!$I$37,0,L$87) -> 321290.0788
B38: Reserve Feeder - Voltage - $ per KVA | C38: ='2011-20 Revenue'!$I$38 -> 0 | D38: =OFFSET('2011-20 Revenue'!$I$38,0,D$87) -> 0 | E38: =OFFSET('2011-20 Revenue'!$I$38,0,E$87) -> 0 | F38: =OFFSET('2011-20 Revenue'!$I$38,0,F$87) -> 0 | G38: =OFFSET('2011-20 Revenue'!$I$38,0,G$87) -> 0 | H38: =OFFSET('2011-20 Revenue'!$I$38,0,H$87) -> 0 | I38: =OFFSET('2011-20 Revenue'!$I$38,0,I$87) -> 0 | J38: =OFFSET('2011-20 Revenue'!$I$38,0,J$87) -> 0 | K38: =OFFSET('2011-20 Revenue'!$I$38,0,K$87) -> 0 | L38: =OFFSET('2011-20 Revenue'!$I$38,0,L$87) -> 0
B40: Solar PV Conn - Single phase BH (unit cost) | C40: ='2011-20 Revenue'!$I$40 -> 4371387.05 | D40: =OFFSET('2011-20 Revenue'!$I$40,0,D$87) -> 4882724.23 | E40: =OFFSET('2011-20 Revenue'!$I$40,0,E$87) -> 2846442.96 | F40: =OFFSET('2011-20 Revenue'!$I$40,0,F$87) -> 2597998.053 | G40: =OFFSET('2011-20 Revenue'!$I$40,0,G$87) -> 2728333.157 | H40: =OFFSET('2011-20 Revenue'!$I$40,0,H$87) -> 0 | I40: =OFFSET('2011-20 Revenue'!$I$40,0,I$87) -> 0 | J40: =OFFSET('2011-20 Revenue'!$I$40,0,J$87) -> 0 | K40: =OFFSET('2011-20 Revenue'!$I$40,0,K$87) -> 0 | L40: =OFFSET('2011-20 Revenue'!$I$40,0,L$87) -> 0
B41: Solar PV Conn - Single phase AH (unit cost) | C41: ='2011-20 Revenue'!$I$41 -> 8582.18 | D41: =OFFSET('2011-20 Revenue'!$I$41,0,D$87) -> 3684.59 | E41: =OFFSET('2011-20 Revenue'!$I$41,0,E$87) -> 960.28 | F41: =OFFSET('2011-20 Revenue'!$I$41,0,F$87) -> 2490.89 | G41: =OFFSET('2011-20 Revenue'!$I$41,0,G$87) -> 2615.851759 | H41: =OFFSET('2011-20 Revenue'!$I$41,0,H$87) -> 0 | I41: =OFFSET('2011-20 Revenue'!$I$41,0,I$87) -> 0 | J41: =OFFSET('2011-20 Revenue'!$I$41,0,J$87) -> 0 | K41: =OFFSET('2011-20 Revenue'!$I$41,0,K$87) -> 0 | L41: =OFFSET('2011-20 Revenue'!$I$41,0,L$87) -> 0
B43: New Connections Responsible for metering
B44: Single phase BH | C44: ='2011-20 Revenue'!$I$44 -> 4737082.12 | D44: =OFFSET('2011-20 Revenue'!$I$44,0,D$87) -> 4502065.98 | E44: =OFFSET('2011-20 Revenue'!$I$44,0,E$87) -> 4244056.09 | F44: =OFFSET('2011-20 Revenue'!$I$44,0,F$87) -> 4844218.43 | G44: =OFFSET('2011-20 Revenue'!$I$44,0,G$87) -> 5087208.471 | H44: =OFFSET('2011-20 Revenue'!$I$44,0,H$87) -> 6429208.826 | I44: =OFFSET('2011-20 Revenue'!$I$44,0,I$87) -> 6615964.292 | J44: =OFFSET('2011-20 Revenue'!$I$44,0,J$87) -> 6808545.849 | K44: =OFFSET('2011-20 Revenue'!$I$44,0,K$87) -> 7014508.675 | L44: =OFFSET('2011-20 Revenue'!$I$44,0,L$87) -> 7227004.108
B45: Single phase AH | C45: ='2011-20 Revenue'!$I$45 -> 21649.2 | D45: =OFFSET('2011-20 Revenue'!$I$45,0,D$87) -> 20780.92 | E45: =OFFSET('2011-20 Revenue'!$I$45,0,E$87) -> 10210.2 | F45: =OFFSET('2011-20 Revenue'!$I$45,0,F$87) -> 9023.2 | G45: =OFFSET('2011-20 Revenue'!$I$45,0,G$87) -> 9475.668787 | H45: =OFFSET('2011-20 Revenue'!$I$45,0,H$87) -> 12481.80278 | I45: =OFFSET('2011-20 Revenue'!$I$45,0,I$87) -> 12848.78603 | J45: =OFFSET('2011-20 Revenue'!$I$45,0,J$87) -> 13227.29005 | K45: =OFFSET('2011-20 Revenue'!$I$45,0,K$87) -> 13632.00524 | L45: =OFFSET('2011-20 Revenue'!$I$45,0,L$87) -> 14049.63957
B46: Multi phase DC BH | C46: ='2011-20 Revenue'!$I$46 -> 874775.58 | D46: =OFFSET('2011-20 Revenue'!$I$46,0,D$87) -> 962791.7 | E46: =OFFSET('2011-20 Revenue'!$I$46,0,E$87) -> 886789.6 | F46: =OFFSET('2011-20 Revenue'!$I$46,0,F$87) -> 1099091.86 | G46: =OFFSET('2011-20 Revenue'!$I$46,0,G$87) -> 1154210.789 | H46: =OFFSET('2011-20 Revenue'!$I$46,0,H$87) -> 1377573.938 | I46: =OFFSET('2011-20 Revenue'!$I$46,0,I$87) -> 1413989.955 | J46: =OFFSET('2011-20 Revenue'!$I$46,0,J$87) -> 1451483.095 | K46: =OFFSET('2011-20 Revenue'!$I$46,0,K$87) -> 1491653.736 | L46: =OFFSET('2011-20 Revenue'!$I$46,0,L$87) -> 1533031.082
B47: Multi phase DC AH | C47: ='2011-20 Revenue'!$I$47 -> 5989.08 | D47: =OFFSET('2011-20 Revenue'!$I$47,0,D$87) -> 13087.06 | E47: =OFFSET('2011-20 Revenue'!$I$47,0,E$87) -> 9580.18 | F47: =OFFSET('2011-20 Revenue'!$I$47,0,F$87) -> 12114.71 | G47: =OFFSET('2011-20 Revenue'!$I$47,0,G$87) -> 12722.34825 | H47: =OFFSET('2011-20 Revenue'!$I$47,0,H$87) -> 15762.73376 | I47: =OFFSET('2011-20 Revenue'!$I$47,0,I$87) -> 16187.72228 | J47: =OFFSET('2011-20 Revenue'!$I$47,0,J$87) -> 16625.43056 | K47: =OFFSET('2011-20 Revenue'!$I$47,0,K$87) -> 17094.21333 | L47: =OFFSET('2011-20 Revenue'!$I$47,0,L$87) -> 17577.24887
B48: Multi phase CT BH | C48: ='2011-20 Revenue'!$I$48 -> 207799.4 | D48: =OFFSET('2011-20 Revenue'!$I$48,0,D$87) -> 349317 | E48: =OFFSET('2011-20 Revenue'!$I$48,0,E$87) -> 385422.92 | F48: =OFFSET('2011-20 Revenue'!$I$48,0,F$87) -> 423050.54 | G48: =OFFSET('2011-20 Revenue'!$I$48,0,G$87) -> 444271.9198 | H48: =OFFSET('2011-20 Revenue'!$I$48,0,H$87) -> 505508.405 | I48: =OFFSET('2011-20 Revenue'!$I$48,0,I$87) -> 521090.2025 | J48: =OFFSET('2011-20 Revenue'!$I$48,0,J$87) -> 537172.7916 | K48: =OFFSET('2011-20 Revenue'!$I$48,0,K$87) -> 554354.815 | L48: =OFFSET('2011-20 Revenue'!$I$48,0,L$87) -> 572098.6189
B49: Multi phase CT AH | C49: ='2011-20 Revenue'!$I$49 -> 13718 | D49: =OFFSET('2011-20 Revenue'!$I$49,0,D$87) -> 10408.14 | E49: =OFFSET('2011-20 Revenue'!$I$49,0,E$87) -> 19199.84 | F49: =OFFSET('2011-20 Revenue'!$I$49,0,F$87) -> 8778 | G49: =OFFSET('2011-20 Revenue'!$I$49,0,G$87) -> 9218.339779 | H49: =OFFSET('2011-20 Revenue'!$I$49,0,H$87) -> 11947.04335 | I49: =OFFSET('2011-20 Revenue'!$I$49,0,I$87) -> 12304.98274 | J49: =OFFSET('2011-20 Revenue'!$I$49,0,J$87) -> 12674.267 | K49: =OFFSET('2011-20 Revenue'!$I$49,0,K$87) -> 13068.99138 | L49: =OFFSET('2011-20 Revenue'!$I$49,0,L$87) -> 13476.43953
B51: New Connections Not Responsible for metering
B52: Single phase BH | C52: ='2011-20 Revenue'!$I$52 -> 14020.72 | D52: =OFFSET('2011-20 Revenue'!$I$52,0,D$87) -> 3472.68 | E52: =OFFSET('2011-20 Revenue'!$I$52,0,E$87) -> 601.06 | F52: =OFFSET('2011-20 Revenue'!$I$52,0,F$87) -> 1576.1 | G52: =OFFSET('2011-20 Revenue'!$I$52,0,G$87) -> 1655.12201 | H52: =OFFSET('2011-20 Revenue'!$I$52,0,H$87) -> 2375.682808 | I52: =OFFSET('2011-20 Revenue'!$I$52,0,I$87) -> 2444.152221 | J52: =OFFSET('2011-20 Revenue'!$I$52,0,J$87) -> 2514.7488 | K52: =OFFSET('2011-20 Revenue'!$I$52,0,K$87) -> 2590.261528 | L52: =OFFSET('2011-20 Revenue'!$I$52,0,L$87) -> 2668.159223
B53: Single phase AH | C53: ='2011-20 Revenue'!$I$53 -> 0 | D53: =OFFSET('2011-20 Revenue'!$I$53,0,D$87) -> 0 | E53: =OFFSET('2011-20 Revenue'!$I$53,0,E$87) -> 0 | F53: =OFFSET('2011-20 Revenue'!$I$53,0,F$87) -> 0 | G53: =OFFSET('2011-20 Revenue'!$I$53,0,G$87) -> 0 | H53: =OFFSET('2011-20 Revenue'!$I$53,0,H$87) -> 0 | I53: =OFFSET('2011-20 Revenue'!$I$53,0,I$87) -> 0 | J53: =OFFSET('2011-20 Revenue'!$I$53,0,J$87) -> 0 | K53: =OFFSET('2011-20 Revenue'!$I$53,0,K$87) -> 0 | L53: =OFFSET('2011-20 Revenue'!$I$53,0,L$87) -> 0
B54: Multi phase DC BH | C54: ='2011-20 Revenue'!$I$54 -> 27122.97 | D54: =OFFSET('2011-20 Revenue'!$I$54,0,D$87) -> 7863.08 | E54: =OFFSET('2011-20 Revenue'!$I$54,0,E$87) -> 2884.42 | F54: =OFFSET('2011-20 Revenue'!$I$54,0,F$87) -> 2161 | G54: =OFFSET('2011-20 Revenue'!$I$54,0,G$87) -> 2269.383619 | H54: =OFFSET('2011-20 Revenue'!$I$54,0,H$87) -> 2967.469191 | I54: =OFFSET('2011-20 Revenue'!$I$54,0,I$87) -> 3044.943336 | J54: =OFFSET('2011-20 Revenue'!$I$54,0,J$87) -> 3124.691572 | K54: =OFFSET('2011-20 Revenue'!$I$54,0,K$87) -> 3210.156346 | L54: =OFFSET('2011-20 Revenue'!$I$54,0,L$87) -> 3298.16847
B55: Multi phase DC AH | C55: ='2011-20 Revenue'!$I$55 -> 919.22 | D55: =OFFSET('2011-20 Revenue'!$I$55,0,D$87) -> 0 | E55: =OFFSET('2011-20 Revenue'!$I$55,0,E$87) -> 0 | F55: =OFFSET('2011-20 Revenue'!$I$55,0,F$87) -> 0 | G55: =OFFSET('2011-20 Revenue'!$I$55,0,G$87) -> 0 | H55: =OFFSET('2011-20 Revenue'!$I$55,0,H$87) -> 0 | I55: =OFFSET('2011-20 Revenue'!$I$55,0,I$87) -> 0 | J55: =OFFSET('2011-20 Revenue'!$I$55,0,J$87) -> 0 | K55: =OFFSET('2011-20 Revenue'!$I$55,0,K$87) -> 0 | L55: =OFFSET('2011-20 Revenue'!$I$55,0,L$87) -> 0
B56: Multi phase CT BH | C56: ='2011-20 Revenue'!$I$56 -> 140945.61 | D56: =OFFSET('2011-20 Revenue'!$I$56,0,D$87) -> 174817.28 | E56: =OFFSET('2011-20 Revenue'!$I$56,0,E$87) -> 249361.48 | F56: =OFFSET('2011-20 Revenue'!$I$56,0,F$87) -> 195793.16 | G56: =OFFSET('2011-20 Revenue'!$I$56,0,G$87) -> 205614.9443 | H56: =OFFSET('2011-20 Revenue'!$I$56,0,H$87) -> 206211.4891 | I56: =OFFSET('2011-20 Revenue'!$I$56,0,I$87) -> 212169.8238 | J56: =OFFSET('2011-20 Revenue'!$I$56,0,J$87) -> 218313.5181 | K56: =OFFSET('2011-20 Revenue'!$I$56,0,K$87) -> 224884.7355 | L56: =OFFSET('2011-20 Revenue'!$I$56,0,L$87) -> 231663.7815
B57: Multi phase CT AH | C57: ='2011-20 Revenue'!$I$57 -> 10004.51 | D57: =OFFSET('2011-20 Revenue'!$I$57,0,D$87) -> 24007.32 | E57: =OFFSET('2011-20 Revenue'!$I$57,0,E$87) -> 16621.04 | F57: =OFFSET('2011-20 Revenue'!$I$57,0,F$87) -> 21690.43 | G57: =OFFSET('2011-20 Revenue'!$I$57,0,G$87) -> 22778.54324 | H57: =OFFSET('2011-20 Revenue'!$I$57,0,H$87) -> 23787.13893 | I57: =OFFSET('2011-20 Revenue'!$I$57,0,I$87) -> 24484.14664 | J57: =OFFSET('2011-20 Revenue'!$I$57,0,J$87) -> 25202.99731 | K57: =OFFSET('2011-20 Revenue'!$I$57,0,K$87) -> 25971.67498 | L57: =OFFSET('2011-20 Revenue'!$I$57,0,L$87) -> 26764.84621
B59: Re-test of type 5 & 6 metering installations for first tier customers with annual consumption greater than 160MWh BH
B60: Re-test of type 5 & 6 metering installations for first tier customers with annual consumption greater than 160MWh AH
B62: Remote Meter Reconfiguration | C62: ='2011-20 Revenue'!$I$62 -> 0 | D62: =OFFSET('2011-20 Revenue'!$I$62,0,D$87) -> 374992.86 | E62: =OFFSET('2011-20 Revenue'!$I$62,0,E$87) -> 349308.1761 | F62: =OFFSET('2011-20 Revenue'!$I$62,0,F$87) -> 338683.8202 | G62: =OFFSET('2011-20 Revenue'!$I$62,0,G$87) -> 344209.9077 | H62: =OFFSET('2011-20 Revenue'!$I$62,0,H$87) -> 613770.2536 | I62: =OFFSET('2011-20 Revenue'!$I$62,0,I$87) -> 633604.9869 | J62: =OFFSET('2011-20 Revenue'!$I$62,0,J$87) -> 654091.3275 | K62: =OFFSET('2011-20 Revenue'!$I$62,0,K$87) -> 675960.8212 | L62: =OFFSET('2011-20 Revenue'!$I$62,0,L$87) -> 698561.5198
B63: Remote Reenergisation | C63: ='2011-20 Revenue'!$I$63 -> 0 | D63: =OFFSET('2011-20 Revenue'!$I$63,0,D$87) -> 12291.51 | E63: =OFFSET('2011-20 Revenue'!$I$63,0,E$87) -> 117397.0197 | F63: =OFFSET('2011-20 Revenue'!$I$63,0,F$87) -> 213723.9745 | G63: =OFFSET('2011-20 Revenue'!$I$63,0,G$87) -> 217211.1721 | H63: =OFFSET('2011-20 Revenue'!$I$63,0,H$87) -> 387315.2782 | I63: =OFFSET('2011-20 Revenue'!$I$63,0,I$87) -> 399831.8432 | J63: =OFFSET('2011-20 Revenue'!$I$63,0,J$87) -> 412759.6002 | K63: =OFFSET('2011-20 Revenue'!$I$63,0,K$87) -> 426560.186 | L63: =OFFSET('2011-20 Revenue'!$I$63,0,L$87) -> 440822.1933
B64: Remote Deenergisation | C64: ='2011-20 Revenue'!$I$64 -> 0 | D64: =OFFSET('2011-20 Revenue'!$I$64,0,D$87) -> 30120.09 | E64: =OFFSET('2011-20 Revenue'!$I$64,0,E$87) -> 186736.0032 | F64: =OFFSET('2011-20 Revenue'!$I$64,0,F$87) -> 284377.3008 | G64: =OFFSET('2011-20 Revenue'!$I$64,0,G$87) -> 289017.3036 | H64: =OFFSET('2011-20 Revenue'!$I$64,0,H$87) -> 515354.787 | I64: =OFFSET('2011-20 Revenue'!$I$64,0,I$87) -> 532009.1047 | J64: =OFFSET('2011-20 Revenue'!$I$64,0,J$87) -> 549210.5472 | K64: =OFFSET('2011-20 Revenue'!$I$64,0,K$87) -> 567573.36 | L64: =OFFSET('2011-20 Revenue'!$I$64,0,L$87) -> 586550.132
B66: Total Fee Based Service Revenue | C66: =SUM(C9:C65) -> 19136215.33 | D66: 21594675.44 | E66: 17180685.22 | F66: 17224814.77 | G66: 17497137.88 | H66: 18868355.22 | I66: 18913292.46 | J66: 19114126.61 | K66: 19532330.52 | L66: 20350521.83
B67: Check | C67: =C66-'2011-20 Revenue'!$I$67 -> 0 | D67: =D66-'2011-20 Revenue'!$P$67 -> 0 | E67: =E66-'2011-20 Revenue'!$W$67 -> 0 | F67: =F66-'2011-20 Revenue'!$AD$67 -> 0 | G67: =G66-'2011-20 Revenue'!$AK$67 -> 0 | H67: =H66-'2011-20 Revenue'!$AR$67 -> 0 | I67: =I66-'2011-20 Revenue'!$AY$67 -> 0 | J67: =J66-'2011-20 Revenue'!$BF$67 -> 0 | K67: =K66-'2011-20 Revenue'!$BM$67 -> 0 | L67: =L66-'2011-20 Revenue'!$BT$67 -> 0 | M67: =SUM(C67:L67) -> 0
B70: Name of Quoted Service | C70: Current regulatory control period | H70: Forthcoming regulatory control period
C71: Actual (nominal $ ex GST) | H71: Real $2015 (ex GST)
C72: 2011 | D72: 2012 | E72: 2013 | F72: 2014 | G72: 2015 | H72: 2016 | I72: 2017 | J72: 2018 | K72: 2019 | L72: 2020
B74: Emergency Recoverable Works | C74: =Inputs!H114 -> 1633977 | D74: =Inputs!I114 -> 1676139 | E74: =Inputs!J114 -> 1707156 | F74: =Inputs!K114 -> 1804875 | G74: =Inputs!L114 -> 1910859.78 | H74: =Inputs!M114 -> 1946657.145 | I74: =Inputs!N114 -> 1979446.12 | J74: =Inputs!O114 -> 2012787.384 | K74: =Inputs!P114 -> 2046690.24 | L74: =Inputs!Q114 -> 2081164.146
B75: After hours truck by appointment | C75: =Inputs!H115 -> 48356 | D75: =Inputs!I115 -> 1073 | E75: =Inputs!J115 -> 3952 | F75: =Inputs!K115 -> 9498.47 | G75: =Inputs!L115 -> 10056.23342 | H75: =Inputs!M115 -> 10244.62331 | I75: =Inputs!N115 -> 10417.18102 | J75: =Inputs!O115 -> 10592.64525 | K75: =Inputs!P115 -> 10771.06494 | L75: =Inputs!Q115 -> 10952.4899
B76: Supply abolishment | C76: =Inputs!H116 -> 1113399 | D76: =Inputs!I116 -> 1050621 | E76: =Inputs!J116 -> 765273 | F76: =Inputs!K116 -> 588575.76 | G76: =Inputs!L116 -> 623137.7503 | H76: =Inputs!M116 -> 0 | I76: =Inputs!N116 -> 0 | J76: =Inputs!O116 -> 0 | K76: =Inputs!P116 -> 0 | L76: =Inputs!Q116 -> 0
B77: Audit Design & Construction Charge | C77: =Inputs!H117 -> 201738 | D77: =Inputs!I117 -> 849986 | E77: =Inputs!J117 -> 930230 | F77: =Inputs!K117 -> 1028166 | G77: =Inputs!L117 -> 1088541.343 | H77: =Inputs!M117 -> 1108933.688 | I77: =Inputs!N117 -> 1127612.272 | J77: =Inputs!O117 -> 1146605.473 | K77: =Inputs!P117 -> 1165918.591 | L77: =Inputs!Q117 -> 1185557.014
B78: Specification & Design Enquiry Charge | C78: =Inputs!H118 -> 226278 | D78: =Inputs!I118 -> 444568 | E78: =Inputs!J118 -> 649774 | F78: =Inputs!K118 -> 1694565 | G78: =Inputs!L118 -> 1794072.222 | H78: =Inputs!M118 -> 1827681.731 | I78: =Inputs!N118 -> 1858466.716 | J78: =Inputs!O118 -> 1889770.236 | K78: =Inputs!P118 -> 1921601.023 | L78: =Inputs!Q118 -> 1953967.959
B79: High Load Escorts | C79: =Inputs!H119 -> 16858 | D79: =Inputs!I119 -> 203087 | E79: =Inputs!J119 -> 149729 | F79: =Inputs!K119 -> 22979 | G79: =Inputs!L119 -> 24328.35896 | H79: =Inputs!M119 -> 24784.11776 | I79: =Inputs!N119 -> 25201.57485 | J79: =Inputs!O119 -> 25626.06347 | K79: =Inputs!P119 -> 26057.70207 | L79: =Inputs!Q119 -> 26496.61107
B80: Low Voltage Mains | C80: =Inputs!H120 -> 74938 | D80: =Inputs!I120 -> 316358 | E80: =Inputs!J120 -> 348117 | F80: =Inputs!K120 -> 460468 | G80: =Inputs!L120 -> 487507.3238 | H80: =Inputs!M120 -> 496640.1121 | I80: =Inputs!N120 -> 505005.386 | J80: =Inputs!O120 -> 513511.5625 | K80: =Inputs!P120 -> 522161.0147 | L80: =Inputs!Q120 -> 530956.1559
B81: Regulated Fee | C81: =Inputs!H121 -> 0 | D81: =Inputs!I121 -> 0 | E81: =Inputs!J121 -> 0 | F81: =Inputs!K121 -> 0 | G81: =Inputs!L121 -> 0 | H81: =Inputs!M121 -> 0 | I81: =Inputs!N121 -> 0 | J81: =Inputs!O121 -> 0 | K81: =Inputs!P121 -> 0 | L81: =Inputs!Q121 -> 0
B82: Total Quoted Service Revenue | C82: =SUM(C73:C81) -> 3315544 | D82: =SUM(D73:D81) -> 4541832 | E82: 4554231 | F82: 5609127.23 | G82: =SUM(G73:G81) -> 5938503.011 | H82: =SUM(H73:H81) -> 5414941.418 | I82: =SUM(I73:I81) -> 5506149.251 | J82: =SUM(J73:J81) -> 5598893.365 | K82: =SUM(K73:K81) -> 5693199.635 | L82: =SUM(L73:L81) -> 5789094.376 | M82: =SUM(C82:L82)-SUM(Inputs!G114:Q121) -> 0
B83: Check
B87: Offset ref | D87: =E87-7 -> 7 | E87: 14 | F87: 21 | G87: 28 | H87: 35 | I87: 42 | J87: 49 | K87: =L87-7 -> 56 | L87: 63

Sheet ACS 12.6
A1: =Title!A38 -> PAL ACS Model
A2: =MID(CELL("Filename",C1),FIND("]",CELL("Filename",C1))+1,255) -> ACS 12.6
A3: Menu
B4: Labour rates used to calculate the charges
B6: Name of Labour Category | C6: Current regulatory control period | H6: Forthcoming regulatory control period | M6: =SUM(M10:M20) -> 0
C7: Actual | H7: Proposed
C8: Real $2015 (ex GST)
C9: 2011 | D9: 2012 | E9: 2013 | F9: 2014 | G9: 2015 | H9: 2016 | I9: 2017 | J9: 2018 | K9: 2019 | L9: 2020
B11: General Lineworker BH | C11: =Inputs!H50*(1*Inputs!$G$14) -> 111.5144562 | D11: =Inputs!I50*(1*Inputs!$G$14) -> 114.8821928 | E11: =Inputs!J50*(1*Inputs!$G$14) -> 117.4325775 | F11: =Inputs!K50*(1*Inputs!$G$14) -> 118.2193757 | G11: =Inputs!L50 -> 119.874447 | H11: =Inputs!M50 -> 0 | I11: =Inputs!N50 -> 0 | J11: =Inputs!O50 -> 0 | K11: =Inputs!P50 -> 0 | L11: =Inputs!Q50 -> 0
B12: Design / Survey BH | C12: =Inputs!H51*(1*Inputs!$G$14) -> 106.0699751 | D12: =Inputs!I51*(1*Inputs!$G$14) -> 109.2732884 | E12: =Inputs!J51*(1*Inputs!$G$14) -> 111.6991554 | F12: =Inputs!K51*(1*Inputs!$G$14) -> 112.4475397 | G12: =Inputs!L51 -> 114.0218053 | H12: =Inputs!M51 -> 0 | I12: =Inputs!N51 -> 0 | J12: =Inputs!O51 -> 0 | K12: =Inputs!P51 -> 0 | L12: =Inputs!Q51 -> 0
B13: General Lineworker AH | C13: =Inputs!H52*(1*Inputs!$G$14) -> 123.5927965 | D13: =Inputs!I52*(1*Inputs!$G$14) -> 127.325299 | E13: =Inputs!J52*(1*Inputs!$G$14) -> 130.1519206 | F13: =Inputs!K52*(1*Inputs!$G$14) -> 131.0239385 | G13: =Inputs!L52 -> 132.8582736 | H13: =Inputs!M52 -> 0 | I13: =Inputs!N52 -> 0 | J13: =Inputs!O52 -> 0 | K13: =Inputs!P52 -> 0 | L13: =Inputs!Q52 -> 0
B14: Design / Survey AH | C14: =Inputs!H53*(1*Inputs!$G$14) -> 124.9769866 | D14: =Inputs!I53*(1*Inputs!$G$14) -> 128.7512916 | E14: =Inputs!J53*(1*Inputs!$G$14) -> 131.6095703 | F14: =Inputs!K53*(1*Inputs!$G$14) -> 132.4913544 | G14: =Inputs!L53 -> 134.3462334 | H14: =Inputs!M53 -> 0 | I14: =Inputs!N53 -> 0 | J14: =Inputs!O53 -> 0 | K14: =Inputs!P53 -> 0 | L14: =Inputs!Q53 -> 0
B15: Skilled Electrical Worker BH | C15: =Inputs!H81 -> 0 | D15: =Inputs!I81 -> 0 | E15: =Inputs!J81 -> 0 | F15: =Inputs!K81 -> 0 | G15: =Inputs!L81 -> 121.4914353 | H15: =Inputs!M81 -> 123.7674125 | I15: =Inputs!N81 -> 125.8521179 | J15: =Inputs!O81 -> 127.9719375 | K15: =Inputs!P81 -> 130.1274628 | L15: =Inputs!Q81 -> 132.3192952
B16: Skilled Electrical Worker AH | C16: =Inputs!H82 -> 0 | D16: =Inputs!I82 -> 0 | E16: =Inputs!J82 -> 0 | F16: =Inputs!K82 -> 0 | G16: =Inputs!L82 -> 142.6766892 | H16: =Inputs!M82 -> 145.3495434 | I16: =Inputs!N82 -> 147.7977724 | J16: =Inputs!O82 -> 150.2872388 | K16: =Inputs!P82 -> 152.8186371 | L16: =Inputs!Q82 -> 155.3926736
B18: Back Office - Exclusive of Ohs | C18: =Inputs!H46*(1*Inputs!$G$14) -> 47.88209411 | D18: =Inputs!I46*(1*Inputs!$G$14) -> 49.31844203 | E18: =Inputs!J46*(1*Inputs!$G$14) -> 50.41006645 | F18: =Inputs!K46*(1*Inputs!$G$14) -> 50.74329916 | G18: =Inputs!L46 -> 51.45 | H18: =Inputs!M46 -> 0 | I18: =Inputs!N46 -> 0 | J18: =Inputs!O46 -> 0 | K18: =Inputs!P46 -> 0 | L18: =Inputs!Q46 -> 0
B19: Support staff (Category RIN) | C19: =Inputs!H83 -> 0 | D19: =Inputs!I83 -> 0 | E19: =Inputs!J83 -> 0 | F19: =Inputs!K83 -> 0 | G19: =Inputs!L83 -> 69.32444664 | H19: =Inputs!M83 -> 70.62314609 | I19: =Inputs!N83 -> 71.81270358 | J19: =Inputs!O83 -> 73.02229767 | K19: =Inputs!P83 -> 74.25226583 | L19: =Inputs!Q83 -> 75.50295125 | M19: =SUM(C19:L19,C15:L16)-SUM(Inputs!G81:Q83) -> 0

Sheet ACS vol
A1: =Title!A38 -> PAL ACS Model
A2: =MID(CELL("Filename",C1),FIND("]",CELL("Filename",C1))+1,255) -> ACS vol
A3: Menu
B4: Number of customers for each year
B6: Name of Service | C6: Current regulatory control period | H6: Forthcoming regulatory control period | M6: =SUM(M9:M84) -> 0
C7: Actual | H7: Proposed
C8: 2011 | D8: 2012 | E8: 2013 | F8: 2014 | G8: 2015 | H8: 2016 | I8: 2017 | J8: 2018 | K8: 2019 | L8: 2020
B9: Meter Investigation Test (BH) | C9: =Volumes!I9 -> 280.7272621 | D9: =OFFSET(Volumes!$I9,0,D$82) -> 431.8054142 | E9: =OFFSET(Volumes!$I9,0,E$82) -> 468.2659038 | F9: =OFFSET(Volumes!$I9,0,F$82) -> 379.7018955 | G9: =OFFSET(Volumes!$I9,0,G$82) -> 385.8972489 | H9: =OFFSET(Volumes!$I9,0,H$82) -> 392.1936878 | I9: =OFFSET(Volumes!$I9,0,I$82) -> 398.5928617 | J9: =OFFSET(Volumes!$I9,0,J$82) -> 405.0964468 | K9: =OFFSET(Volumes!$I9,0,K$82) -> 411.7061468 | L9: =OFFSET(Volumes!$I9,0,L$82) -> 418.4236931
B10: Meter Investigation Test (AH) | C10: =Volumes!I10 -> 60 | D10: =OFFSET(Volumes!$I10,0,D$82) -> 108.9740458 | E10: =OFFSET(Volumes!$I10,0,E$82) -> 62.55542488 | F10: =OFFSET(Volumes!$I10,0,F$82) -> 55.11465504 | G10: =OFFSET(Volumes!$I10,0,G$82) -> 56.01392566 | H10: =OFFSET(Volumes!$I10,0,H$82) -> 56.92786911 | I10: =OFFSET(Volumes!$I10,0,I$82) -> 57.85672479 | J10: =OFFSET(Volumes!$I10,0,J$82) -> 58.80073602 | K10: =OFFSET(Volumes!$I10,0,K$82) -> 59.76015007 | L10: =OFFSET(Volumes!$I10,0,L$82) -> 60.73521827
B11: Meter Accuracy Test - single phase (BH) | C11: =Volumes!I11 -> 400.3517884 | D11: =OFFSET(Volumes!$I11,0,D$82) -> 418.4421214 | E11: =OFFSET(Volumes!$I11,0,E$82) -> 310.7035105 | F11: =OFFSET(Volumes!$I11,0,F$82) -> 213.8489321 | G11: =OFFSET(Volumes!$I11,0,G$82) -> 217.3381686 | H11: =OFFSET(Volumes!$I11,0,H$82) -> 220.8843367 | I11: =OFFSET(Volumes!$I11,0,I$82) -> 224.4883653 | J11: =OFFSET(Volumes!$I11,0,J$82) -> 228.1511986 | K11: =OFFSET(Volumes!$I11,0,K$82) -> 231.873796 | L11: =OFFSET(Volumes!$I11,0,L$82) -> 235.6571326
B12: Meter Accuracy Test - single phase (AH) | C12: =Volumes!I12 -> 1 | D12: =OFFSET(Volumes!$I12,0,D$82) -> 6 | E12: =OFFSET(Volumes!$I12,0,E$82) -> 2 | F12: =OFFSET(Volumes!$I12,0,F$82) -> 0 | G12: =OFFSET(Volumes!$I12,0,G$82) -> 0 | H12: =OFFSET(Volumes!$I12,0,H$82) -> 0 | I12: =OFFSET(Volumes!$I12,0,I$82) -> 0 | J12: =OFFSET(Volumes!$I12,0,J$82) -> 0 | K12: =OFFSET(Volumes!$I12,0,K$82) -> 0 | L12: =OFFSET(Volumes!$I12,0,L$82) -> 0
B13: Meter Accuracy Test - Single phase additional meter (BH) | C13: =Volumes!I13 -> 66.80905586 | D13: =OFFSET(Volumes!$I13,0,D$82) -> 48.77098961 | E13: =OFFSET(Volumes!$I13,0,E$82) -> 31.9629784 | F13: =OFFSET(Volumes!$I13,0,F$82) -> 19.90688742 | G13: =OFFSET(Volumes!$I13,0,G$82) -> 20.23169538 | H13: =OFFSET(Volumes!$I13,0,H$82) -> 20.56180304 | I13: =OFFSET(Volumes!$I13,0,I$82) -> 20.89729684 | J13: =OFFSET(Volumes!$I13,0,J$82) -> 21.23826469 | K13: =OFFSET(Volumes!$I13,0,K$82) -> 21.58479589 | L13: =OFFSET(Volumes!$I13,0,L$82) -> 21.93698122
B14: Meter Accuracy Test - multi phase (BH) | C14: =Volumes!I14 -> 93.42520786 | D14: =OFFSET(Volumes!$I14,0,D$82) -> 125.5417127 | E14: =OFFSET(Volumes!$I14,0,E$82) -> 100.8888003 | F14: =OFFSET(Volumes!$I14,0,F$82) -> 77.26093014 | G14: =OFFSET(Volumes!$I14,0,G$82) -> 78.52154739 | H14: =OFFSET(Volumes!$I14,0,H$82) -> 79.80273333 | I14: =OFFSET(Volumes!$I14,0,I$82) -> 81.10482356 | J14: =OFFSET(Volumes!$I14,0,J$82) -> 82.42815916 | K14: =OFFSET(Volumes!$I14,0,K$82) -> 83.77308679 | L14: =OFFSET(Volumes!$I14,0,L$82) -> 85.13995874
B15: Meter Accuracy Test - multi phase (AH) | C15: =Volumes!I15 -> 0 | D15: =OFFSET(Volumes!$I15,0,D$82) -> 0 | E15: =OFFSET(Volumes!$I15,0,E$82) -> 0 | F15: =OFFSET(Volumes!$I15,0,F$82) -> 0 | G15: =OFFSET(Volumes!$I15,0,G$82) -> 0 | H15: =OFFSET(Volumes!$I15,0,H$82) -> 0 | I15: =OFFSET(Volumes!$I15,0,I$82) -> 0 | J15: =OFFSET(Volumes!$I15,0,J$82) -> 0 | K15: =OFFSET(Volumes!$I15,0,K$82) -> 0 | L15: =OFFSET(Volumes!$I15,0,L$82) -> 0
B16: Meter Accuracy Test - Multi phase additional meter (BH) | C16: =Volumes!I16 -> 20.59168978 | D16: =OFFSET(Volumes!$I16,0,D$82) -> 8 | E16: =OFFSET(Volumes!$I16,0,E$82) -> 12 | F16: =OFFSET(Volumes!$I16,0,F$82) -> 9.095486247 | G16: =OFFSET(Volumes!$I16,0,G$82) -> 9.243891487 | H16: =OFFSET(Volumes!$I16,0,H$82) -> 9.39471816 | I16: =OFFSET(Volumes!$I16,0,I$82) -> 9.548005776 | J16: =OFFSET(Volumes!$I16,0,J$82) -> 9.703794488 | K16: =OFFSET(Volumes!$I16,0,K$82) -> 9.862125105 | L16: =OFFSET(Volumes!$I16,0,L$82) -> 10.0230391
B17: Meter Accuracy Test - CT (BH) | C17: =Volumes!I17 -> 1 | D17: =OFFSET(Volumes!$I17,0,D$82) -> 1 | E17: =OFFSET(Volumes!$I17,0,E$82) -> 10.88879351 | F17: =OFFSET(Volumes!$I17,0,F$82) -> 3 | G17: =OFFSET(Volumes!$I17,0,G$82) -> 3.048949084 | H17: =OFFSET(Volumes!$I17,0,H$82) -> 3.098696839 | I17: =OFFSET(Volumes!$I17,0,I$82) -> 3.149256296 | J17: =OFFSET(Volumes!$I17,0,J$82) -> 3.200640699 | K17: =OFFSET(Volumes!$I17,0,K$82) -> 3.252863509 | L17: =OFFSET(Volumes!$I17,0,L$82) -> 3.305938406
B18: Meter Accuracy Test - CT (AH) | C18: =Volumes!I18 -> 0 | D18: =OFFSET(Volumes!$I18,0,D$82) -> 0 | E18: =OFFSET(Volumes!$I18,0,E$82) -> 0 | F18: =OFFSET(Volumes!$I18,0,F$82) -> 0 | G18: =OFFSET(Volumes!$I18,0,G$82) -> 0 | H18: =OFFSET(Volumes!$I18,0,H$82) -> 0 | I18: =OFFSET(Volumes!$I18,0,I$82) -> 0 | J18: =OFFSET(Volumes!$I18,0,J$82) -> 0 | K18: =OFFSET(Volumes!$I18,0,K$82) -> 0 | L18: =OFFSET(Volumes!$I18,0,L$82) -> 0
B20: Reconnections (incl Customer Transfer) BH | C20: =Volumes!I20 -> 54427.03582 | D20: =OFFSET(Volumes!$I20,0,D$82) -> 49832.77419 | E20: =OFFSET(Volumes!$I20,0,E$82) -> 37106.4889 | F20: =OFFSET(Volumes!$I20,0,F$82) -> 26803.35589 | G20: =OFFSET(Volumes!$I20,0,G$82) -> 19547.63648 | H20: =OFFSET(Volumes!$I20,0,H$82) -> 15385.13825 | I20: =OFFSET(Volumes!$I20,0,I$82) -> 12109.0076 | J20: =OFFSET(Volumes!$I20,0,J$82) -> 9530.500333 | K20: =OFFSET(Volumes!$I20,0,K$82) -> 7501.063635 | L20: =OFFSET(Volumes!$I20,0,L$82) -> 5903.777733
B21: Reconnections (same day) BH | C21: =Volumes!I21 -> 0 | D21: =OFFSET(Volumes!$I21,0,D$82) -> 0 | E21: =OFFSET(Volumes!$I21,0,E$82) -> 0 | F21: =OFFSET(Volumes!$I21,0,F$82) -> 0 | G21: =OFFSET(Volumes!$I21,0,G$82) -> 0 | H21: =OFFSET(Volumes!$I21,0,H$82) -> 0 | I21: =OFFSET(Volumes!$I21,0,I$82) -> 0 | J21: =OFFSET(Volumes!$I21,0,J$82) -> 0 | K21: =OFFSET(Volumes!$I21,0,K$82) -> 0 | L21: =OFFSET(Volumes!$I21,0,L$82) -> 0
B22: Reconnections (incl Customer Transfer) AH | C22: =Volumes!I22 -> 12140.0892 | D22: =OFFSET(Volumes!$I22,0,D$82) -> 8894.037575 | E22: =OFFSET(Volumes!$I22,0,E$82) -> 5794.218334 | F22: =OFFSET(Volumes!$I22,0,F$82) -> 3624.615873 | G22: =OFFSET(Volumes!$I22,0,G$82) -> 2643.425464 | H22: =OFFSET(Volumes!$I22,0,H$82) -> 2080.531129 | I22: =OFFSET(Volumes!$I22,0,I$82) -> 1637.50022 | J22: =OFFSET(Volumes!$I22,0,J$82) -> 1288.808869 | K22: =OFFSET(Volumes!$I22,0,K$82) -> 1014.368291 | L22: =OFFSET(Volumes!$I22,0,L$82) -> 798.3674347
B23: Disconnection (BH only) | C23: =Volumes!I23 -> 122729.5542 | D23: =OFFSET(Volumes!$I23,0,D$82) -> 98232.3961 | E23: =OFFSET(Volumes!$I23,0,E$82) -> 57991.48144 | F23: =OFFSET(Volumes!$I23,0,F$82) -> 42864.11585 | G23: =OFFSET(Volumes!$I23,0,G$82) -> 31260.71819 | H23: =OFFSET(Volumes!$I23,0,H$82) -> 24604.02164 | I23: =OFFSET(Volumes!$I23,0,I$82) -> 19364.8104 | J23: =OFFSET(Volumes!$I23,0,J$82) -> 15241.24338 | K23: =OFFSET(Volumes!$I23,0,K$82) -> 11995.75389 | L23: =OFFSET(Volumes!$I23,0,L$82) -> 9441.363007
B24: Disconnection (no AH service) | C24: =Volumes!I24 -> 3734.932015 | D24: =OFFSET(Volumes!$I24,0,D$82) -> 12217.96821 | E24: =OFFSET(Volumes!$I24,0,E$82) -> 9590.008123 | F24: =OFFSET(Volumes!$I24,0,F$82) -> 5920.090619 | G24: =OFFSET(Volumes!$I24,0,G$82) -> 4317.510832 | H24: =OFFSET(Volumes!$I24,0,H$82) -> 3398.134658 | I24: =OFFSET(Volumes!$I24,0,I$82) -> 2674.531601 | J24: =OFFSET(Volumes!$I24,0,J$82) -> 2105.013486 | K24: =OFFSET(Volumes!$I24,0,K$82) -> 1656.769273 | L24: =OFFSET(Volumes!$I24,0,L$82) -> 1303.974746
B25: Disconnection for non payment (BH only) | C25: =Volumes!I25 -> 9041.850994 | D25: =OFFSET(Volumes!$I25,0,D$82) -> 189.56486 | E25: =OFFSET(Volumes!$I25,0,E$82) -> 183.9755592 | F25: =OFFSET(Volumes!$I25,0,F$82) -> 0 | G25: =OFFSET(Volumes!$I25,0,G$82) -> 0 | H25: =OFFSET(Volumes!$I25,0,H$82) -> 0 | I25: =OFFSET(Volumes!$I25,0,I$82) -> 0 | J25: =OFFSET(Volumes!$I25,0,J$82) -> 0 | K25: =OFFSET(Volumes!$I25,0,K$82) -> 0 | L25: =OFFSET(Volumes!$I25,0,L$82) -> 0
B26: Special reading BH | C26: =Volumes!I26 -> 16528.03027 | D26: =OFFSET(Volumes!$I26,0,D$82) -> 20373.02145 | E26: =OFFSET(Volumes!$I26,0,E$82) -> 7001.104088 | F26: =OFFSET(Volumes!$I26,0,F$82) -> 2015.67285 | G26: =OFFSET(Volumes!$I26,0,G$82) -> 1470.026377 | H26: =OFFSET(Volumes!$I26,0,H$82) -> 1156.997116 | I26: =OFFSET(Volumes!$I26,0,I$82) -> 910.6246984 | J26: =OFFSET(Volumes!$I26,0,J$82) -> 716.7151327 | K26: =OFFSET(Volumes!$I26,0,K$82) -> 564.0969131 | L26: =OFFSET(Volumes!$I26,0,L$82) -> 443.9774087
B27: Special reading AH - no service | C27: =Volumes!I27 -> 0 | D27: =OFFSET(Volumes!$I27,0,D$82) -> 0 | E27: =OFFSET(Volumes!$I27,0,E$82) -> 0 | F27: =OFFSET(Volumes!$I27,0,F$82) -> 0 | G27: =OFFSET(Volumes!$I27,0,G$82) -> 0 | H27: =OFFSET(Volumes!$I27,0,H$82) -> 0 | I27: =OFFSET(Volumes!$I27,0,I$82) -> 0 | J27: =OFFSET(Volumes!$I27,0,J$82) -> 0 | K27: =OFFSET(Volumes!$I27,0,K$82) -> 0 | L27: =OFFSET(Volumes!$I27,0,L$82) -> 0
B28: Manual meter reading | C28: =Volumes!I28 -> 0 | D28: =OFFSET(Volumes!$I28,0,D$82) -> 0 | E28: =OFFSET(Volumes!$I28,0,E$82) -> 0 | F28: =OFFSET(Volumes!$I28,0,F$82) -> 0 | G28: =OFFSET(Volumes!$I28,0,G$82) -> 24308 | H28: =OFFSET(Volumes!$I28,0,H$82) -> 64824 | I28: =OFFSET(Volumes!$I28,0,I$82) -> 64824 | J28: =OFFSET(Volumes!$I28,0,J$82) -> 64824 | K28: =OFFSET(Volumes!$I28,0,K$82) -> 64824 | L28: =OFFSET(Volumes!$I28,0,L$82) -> 64824
B29: Access to meter data | C29: =Volumes!I29 -> 0 | D29: =OFFSET(Volumes!$I29,0,D$82) -> 0 | E29: =OFFSET(Volumes!$I29,0,E$82) -> 0 | F29: =OFFSET(Volumes!$I29,0,F$82) -> 0 | G29: =OFFSET(Volumes!$I29,0,G$82) -> 0 | H29: =OFFSET(Volumes!$I29,0,H$82) -> 444 | I29: =OFFSET(Volumes!$I29,0,I$82) -> 1111 | J29: =OFFSET(Volumes!$I29,0,J$82) -> 2778 | K29: =OFFSET(Volumes!$I29,0,K$82) -> 6945 | L29: =OFFSET(Volumes!$I29,0,L$82) -> 17363
B31: Service Truck Visit BH | C31: =Volumes!I31 -> 8185.513959 | D31: =OFFSET(Volumes!$I31,0,D$82) -> 9246.630555 | E31: =OFFSET(Volumes!$I31,0,E$82) -> 5919.873451 | F31: =OFFSET(Volumes!$I31,0,F$82) -> 6189.942579 | G31: =OFFSET(Volumes!$I31,0,G$82) -> 6290.939919 | H31: =OFFSET(Volumes!$I31,0,H$82) -> 6393.585167 | I31: =OFFSET(Volumes!$I31,0,I$82) -> 6497.905213 | J31: =OFFSET(Volumes!$I31,0,J$82) -> 6603.927382 | K31: =OFFSET(Volumes!$I31,0,K$82) -> 6711.679447 | L31: =OFFSET(Volumes!$I31,0,L$82) -> 6821.189634
B32: Service Truck Visit AH | C32: =Volumes!I32 -> 588.3693947 | D32: =OFFSET(Volumes!$I32,0,D$82) -> 838.675969 | E32: =OFFSET(Volumes!$I32,0,E$82) -> 570.1700813 | F32: =OFFSET(Volumes!$I32,0,F$82) -> 1071.222731 | G32: =OFFSET(Volumes!$I32,0,G$82) -> 1088.701188 | H32: =OFFSET(Volumes!$I32,0,H$82) -> 1106.46483 | I32: =OFFSET(Volumes!$I32,0,I$82) -> 1124.51831 | J32: =OFFSET(Volumes!$I32,0,J$82) -> 1142.866357 | K32: =OFFSET(Volumes!$I32,0,K$82) -> 1161.513777 | L32: =OFFSET(Volumes!$I32,0,L$82) -> 1180.465456
B33: Wasted Truck Visit BH | C33: =Volumes!I33 -> 1119.681643 | D33: =OFFSET(Volumes!$I33,0,D$82) -> 888.5248714 | E33: =OFFSET(Volumes!$I33,0,E$82) -> 721.9304986 | F33: =OFFSET(Volumes!$I33,0,F$82) -> 496.7979568 | G33: =OFFSET(Volumes!$I33,0,G$82) -> 504.9038917 | H33: =OFFSET(Volumes!$I33,0,H$82) -> 513.142086 | I33: =OFFSET(Volumes!$I33,0,I$82) -> 521.5146977 | J33: =OFFSET(Volumes!$I33,0,J$82) -> 530.0239199 | K33: =OFFSET(Volumes!$I33,0,K$82) -> 538.6719817 | L33: =OFFSET(Volumes!$I33,0,L$82) -> 547.4611484
B34: Wasted Truck Visit AH | C34: =Volumes!I34 -> 24.09456901 | D34: =OFFSET(Volumes!$I34,0,D$82) -> 5 | E34: =OFFSET(Volumes!$I34,0,E$82) -> 20.94592401 | F34: =OFFSET(Volumes!$I34,0,F$82) -> 8.953418095 | G34: =OFFSET(Volumes!$I34,0,G$82) -> 9.099505299 | H34: =OFFSET(Volumes!$I34,0,H$82) -> 9.247976115 | I34: =OFFSET(Volumes!$I34,0,I$82) -> 9.398869435 | J34: =OFFSET(Volumes!$I34,0,J$82) -> 9.552224784 | K34: =OFFSET(Volumes!$I34,0,K$82) -> 9.708082335 | L34: =OFFSET(Volumes!$I34,0,L$82) -> 9.866482914
B36: Reserve Feeder - Subtransmission - KVA | C36: =Volumes!I36 -> 0 | D36: =OFFSET(Volumes!$I36,0,D$82) -> 0 | E36: =OFFSET(Volumes!$I36,0,E$82) -> 0 | F36: =OFFSET(Volumes!$I36,0,F$82) -> 0 | G36: =OFFSET(Volumes!$I36,0,G$82) -> 0 | H36: =OFFSET(Volumes!$I36,0,H$82) -> 0 | I36: =OFFSET(Volumes!$I36,0,I$82) -> 0 | J36: =OFFSET(Volumes!$I36,0,J$82) -> 0 | K36: =OFFSET(Volumes!$I36,0,K$82) -> 0 | L36: =OFFSET(Volumes!$I36,0,L$82) -> 0
B37: Reserve Feeder - High Voltage - KVA | C37: =Volumes!I37 -> 16676.88293 | D37: =OFFSET(Volumes!$I37,0,D$82) -> 23752.08625 | E37: =OFFSET(Volumes!$I37,0,E$82) -> 19628.44045 | F37: =OFFSET(Volumes!$I37,0,F$82) -> 64893.46567 | G37: =OFFSET(Volumes!$I37,0,G$82) -> 65952.2909 | H37: =OFFSET(Volumes!$I37,0,H$82) -> 67028.3923 | I37: =OFFSET(Volumes!$I37,0,I$82) -> 68122.05177 | J37: =OFFSET(Volumes!$I37,0,J$82) -> 69233.55578 | K37: =OFFSET(Volumes!$I37,0,K$82) -> 70363.19549 | L37: =OFFSET(Volumes!$I37,0,L$82) -> 71511.26681
B38: Reserve Feeder - Voltage - KVA | C38: =Volumes!I38 -> 0 | D38: =OFFSET(Volumes!$I38,0,D$82) -> 0 | E38: =OFFSET(Volumes!$I38,0,E$82) -> 0 | F38: =OFFSET(Volumes!$I38,0,F$82) -> 0 | G38: =OFFSET(Volumes!$I38,0,G$82) -> 0 | H38: =OFFSET(Volumes!$I38,0,H$82) -> 0 | I38: =OFFSET(Volumes!$I38,0,I$82) -> 0 | J38: =OFFSET(Volumes!$I38,0,J$82) -> 0 | K38: =OFFSET(Volumes!$I38,0,K$82) -> 0 | L38: =OFFSET(Volumes!$I38,0,L$82) -> 0
C39: =Volumes!I39 -> 0
B40: Solar PV Conn - Single phase BH | C40: =Volumes!I40 -> 21175.09712 | D40: =OFFSET(Volumes!$I40,0,D$82) -> 22567.96158 | E40: =OFFSET(Volumes!$I40,0,E$82) -> 12668.49278 | F40: =OFFSET(Volumes!$I40,0,F$82) -> 11023.82121 | G40: =OFFSET(Volumes!$I40,0,G$82) -> 11203.68986
B41: Solar PV Conn - Single phase AH | C41: =Volumes!I41 -> 38.90909915 | D41: =OFFSET(Volumes!$I41,0,D$82) -> 15.9392071 | E41: =OFFSET(Volumes!$I41,0,E$82) -> 4.000071497 | F41: =OFFSET(Volumes!$I41,0,F$82) -> 9.892254841 | G41: =OFFSET(Volumes!$I41,0,G$82) -> 10.05366044
B43: New Connections Responsible for metering
B44: Single phase BH | C44: =Volumes!I44 -> 14124.10066 | D44: =OFFSET(Volumes!$I44,0,D$82) -> 12808.15357 | E44: =OFFSET(Volumes!$I44,0,E$82) -> 11626.59532 | F44: =OFFSET(Volumes!$I44,0,F$82) -> 12652.38444 | G44: =OFFSET(Volumes!$I44,0,G$82) -> 12858.82531 | H44: =OFFSET(Volumes!$I44,0,H$82) -> 13068.63455 | I44: =OFFSET(Volumes!$I44,0,I$82) -> 13281.86712 | J44: =OFFSET(Volumes!$I44,0,J$82) -> 13498.57886 | K44: =OFFSET(Volumes!$I44,0,K$82) -> 13718.82655 | L44: =OFFSET(Volumes!$I44,0,L$82) -> 13942.66788
B45: Single phase AH | C45: =Volumes!I45 -> 60 | D45: =OFFSET(Volumes!$I45,0,D$82) -> 54.95417163 | E45: =OFFSET(Volumes!$I45,0,E$82) -> 26 | F45: =OFFSET(Volumes!$I45,0,F$82) -> 21.90681978 | G45: =OFFSET(Volumes!$I45,0,G$82) -> 22.26425937 | H45: =OFFSET(Volumes!$I45,0,H$82) -> 22.62753107 | I45: =OFFSET(Volumes!$I45,0,I$82) -> 22.99673004 | J45: =OFFSET(Volumes!$I45,0,J$82) -> 23.371953 | K45: =OFFSET(Volumes!$I45,0,K$82) -> 23.75329823 | L45: =OFFSET(Volumes!$I45,0,L$82) -> 24.14086562
B46: Multi phase DC BH | C46: =Volumes!I46 -> 1997.797474 | D46: =OFFSET(Volumes!$I46,0,D$82) -> 2098.042493 | E46: =OFFSET(Volumes!$I46,0,E$82) -> 1860.814168 | F46: =OFFSET(Volumes!$I46,0,F$82) -> 2198.843373 | G46: =OFFSET(Volumes!$I46,0,G$82) -> 2234.720496 | H46: =OFFSET(Volumes!$I46,0,H$82) -> 2271.183003 | I46: =OFFSET(Volumes!$I46,0,I$82) -> 2308.240445 | J46: =OFFSET(Volumes!$I46,0,J$82) -> 2345.90253 | K46: =OFFSET(Volumes!$I46,0,K$82) -> 2384.179124 | L46: =OFFSET(Volumes!$I46,0,L$82) -> 2423.080252
B47: Multi phase DC AH | C47: =Volumes!I47 -> 12.92756001 | D47: =OFFSET(Volumes!$I47,0,D$82) -> 26.95417379 | E47: =OFFSET(Volumes!$I47,0,E$82) -> 19 | F47: =OFFSET(Volumes!$I47,0,F$82) -> 22.90678239 | G47: =OFFSET(Volumes!$I47,0,G$82) -> 23.28053772 | H47: =OFFSET(Volumes!$I47,0,H$82) -> 23.66039139 | I47: =OFFSET(Volumes!$I47,0,I$82) -> 24.04644288 | J47: =OFFSET(Volumes!$I47,0,J$82) -> 24.43879333 | K47: =OFFSET(Volumes!$I47,0,K$82) -> 24.83754551 | L47: =OFFSET(Volumes!$I47,0,L$82) -> 25.24280388
B48: Multi phase CT BH | C48: =Volumes!I48 -> 114.7948823 | D48: =OFFSET(Volumes!$I48,0,D$82) -> 184.1291846 | E48: =OFFSET(Volumes!$I48,0,E$82) -> 195.6292706 | F48: =OFFSET(Volumes!$I48,0,F$82) -> 204.7203651 | G48: =OFFSET(Volumes!$I48,0,G$82) -> 208.0606565 | H48: =OFFSET(Volumes!$I48,0,H$82) -> 211.4554493 | I48: =OFFSET(Volumes!$I48,0,I$82) -> 214.9056329 | J48: =OFFSET(Volumes!$I48,0,J$82) -> 218.4121108 | K48: =OFFSET(Volumes!$I48,0,K$82) -> 221.9758017 | L48: =OFFSET(Volumes!$I48,0,L$82) -> 225.5976391
B49: Multi phase CT AH | C49: =Volumes!I49 -> 6.969890965 | D49: =OFFSET(Volumes!$I49,0,D$82) -> 5.045832687 | E49: =OFFSET(Volumes!$I49,0,E$82) -> 8.962924926 | F49: =OFFSET(Volumes!$I49,0,F$82) -> 3.906785469 | G49: =OFFSET(Volumes!$I49,0,G$82) -> 3.970529993 | H49: =OFFSET(Volumes!$I49,0,H$82) -> 4.035314595 | I49: =OFFSET(Volumes!$I49,0,I$82) -> 4.101156245 | J49: =OFFSET(Volumes!$I49,0,J$82) -> 4.168072193 | K49: =OFFSET(Volumes!$I49,0,K$82) -> 4.236079964 | L49: =OFFSET(Volumes!$I49,0,L$82) -> 4.305197375
B51: New Connections Not Responsible for metering
B52: Single phase BH | C52: =Volumes!I52 -> 50.77579401 | D52: =OFFSET(Volumes!$I52,0,D$82) -> 12 | E52: =OFFSET(Volumes!$I52,0,E$82) -> 2 | F52: =OFFSET(Volumes!$I52,0,F$82) -> 5 | G52: =OFFSET(Volumes!$I52,0,G$82) -> 5.081581806 | H52: =OFFSET(Volumes!$I52,0,H$82) -> 5.164494731 | I52: =OFFSET(Volumes!$I52,0,I$82) -> 5.248760493 | J52: =OFFSET(Volumes!$I52,0,J$82) -> 5.334401166 | K52: =OFFSET(Volumes!$I52,0,K$82) -> 5.421439182 | L52: =OFFSET(Volumes!$I52,0,L$82) -> 5.509897343
B53: Single phase AH | C53: =Volumes!I53 -> 0 | D53: =OFFSET(Volumes!$I53,0,D$82) -> 0 | E53: =OFFSET(Volumes!$I53,0,E$82) -> 0 | F53: =OFFSET(Volumes!$I53,0,F$82) -> 0 | G53: =OFFSET(Volumes!$I53,0,G$82) -> 0 | H53: =OFFSET(Volumes!$I53,0,H$82) -> 0 | I53: =OFFSET(Volumes!$I53,0,I$82) -> 0 | J53: =OFFSET(Volumes!$I53,0,J$82) -> 0 | K53: =OFFSET(Volumes!$I53,0,K$82) -> 0 | L53: =OFFSET(Volumes!$I53,0,L$82) -> 0
B54: Multi phase DC BH | C54: =Volumes!I54 -> 71.63828214 | D54: =OFFSET(Volumes!$I54,0,D$82) -> 19.81672925 | E54: =OFFSET(Volumes!$I54,0,E$82) -> 7 | F54: =OFFSET(Volumes!$I54,0,F$82) -> 5 | G54: =OFFSET(Volumes!$I54,0,G$82) -> 5.081581806 | H54: =OFFSET(Volumes!$I54,0,H$82) -> 5.164494731 | I54: =OFFSET(Volumes!$I54,0,I$82) -> 5.248760493 | J54: =OFFSET(Volumes!$I54,0,J$82) -> 5.334401166 | K54: =OFFSET(Volumes!$I54,0,K$82) -> 5.421439182 | L54: =OFFSET(Volumes!$I54,0,L$82) -> 5.509897343
B55: Multi phase DC AH | C55: =Volumes!I55 -> 2.275128085 | D55: =OFFSET(Volumes!$I55,0,D$82) -> 0 | E55: =OFFSET(Volumes!$I55,0,E$82) -> 0 | F55: =OFFSET(Volumes!$I55,0,F$82) -> 0 | G55: =OFFSET(Volumes!$I55,0,G$82) -> 0 | H55: =OFFSET(Volumes!$I55,0,H$82) -> 0 | I55: =OFFSET(Volumes!$I55,0,I$82) -> 0 | J55: =OFFSET(Volumes!$I55,0,J$82) -> 0 | K55: =OFFSET(Volumes!$I55,0,K$82) -> 0 | L55: =OFFSET(Volumes!$I55,0,L$82) -> 0
B56: Multi phase CT BH | C56: =Volumes!I56 -> 80.49756986 | D56: =OFFSET(Volumes!$I56,0,D$82) -> 95.26671499 | E56: =OFFSET(Volumes!$I56,0,E$82) -> 130.8517065 | F56: =OFFSET(Volumes!$I56,0,F$82) -> 97.95339297 | G56: =OFFSET(Volumes!$I56,0,G$82) -> 99.55163592 | H56: =OFFSET(Volumes!$I56,0,H$82) -> 101.1759564 | I56: =OFFSET(Volumes!$I56,0,I$82) -> 102.8267798 | J56: =OFFSET(Volumes!$I56,0,J$82) -> 104.5045387 | K56: =OFFSET(Volumes!$I56,0,K$82) -> 106.2096725 | L56: =OFFSET(Volumes!$I56,0,L$82) -> 107.9426279
B57: Multi phase CT AH | C57: =Volumes!I57 -> 5.240926807 | D57: =OFFSET(Volumes!$I57,0,D$82) -> 12 | E57: =OFFSET(Volumes!$I57,0,E$82) -> 8 | F57: =OFFSET(Volumes!$I57,0,F$82) -> 9.953391153 | G57: =OFFSET(Volumes!$I57,0,G$82) -> 10.11579428 | H57: =OFFSET(Volumes!$I57,0,H$82) -> 10.28084723 | I57: =OFFSET(Volumes!$I57,0,I$82) -> 10.44859325 | J57: =OFFSET(Volumes!$I57,0,J$82) -> 10.61907627 | K57: =OFFSET(Volumes!$I57,0,K$82) -> 10.79234096 | L57: =OFFSET(Volumes!$I57,0,L$82) -> 10.96843269
B59: Re-test of type 5 & 6 metering installations for first tier customers with annual consumption greater than 160MWh BH
B60: Re-test of type 5 & 6 metering installations for first tier customers with annual consumption greater than 160MWh AH
B62: Remote Meter Reconfiguration | C62: =Volumes!I62 -> 0 | D62: =OFFSET(Volumes!$I62,0,D$82) -> 12609.04035 | E62: =OFFSET(Volumes!$I62,0,E$82) -> 11300.74557 | F62: =OFFSET(Volumes!$I62,0,F$82) -> 10957.02862 | G62: =OFFSET(Volumes!$I62,0,G$82) -> 11135.80745 | H62: =OFFSET(Volumes!$I62,0,H$82) -> 11317.50331 | I62: =OFFSET(Volumes!$I62,0,I$82) -> 11502.16379 | J62: =OFFSET(Volumes!$I62,0,J$82) -> 11689.83725 | K62: =OFFSET(Volumes!$I62,0,K$82) -> 11880.57285 | L62: =OFFSET(Volumes!$I62,0,L$82) -> 12074.42057
B63: Remote Reenergisation | C63: =Volumes!I63 -> 0 | D63: =OFFSET(Volumes!$I63,0,D$82) -> 2191 | E63: =OFFSET(Volumes!$I63,0,E$82) -> 20140.93032 | F63: =OFFSET(Volumes!$I63,0,F$82) -> 36667.02688 | G63: =OFFSET(Volumes!$I63,0,G$82) -> 37265.29934 | H63: =OFFSET(Volumes!$I63,0,H$82) -> 37873.33343 | I63: =OFFSET(Volumes!$I63,0,I$82) -> 38491.28842 | J63: =OFFSET(Volumes!$I63,0,J$82) -> 39119.32619 | K63: =OFFSET(Volumes!$I63,0,K$82) -> 39757.61125 | L63: =OFFSET(Volumes!$I63,0,L$82) -> 40406.3108
B64: Remote Deenergisation | C64: =Volumes!I64 -> 0 | D64: =OFFSET(Volumes!$I64,0,D$82) -> 5369 | E64: =OFFSET(Volumes!$I64,0,E$82) -> 32036.90211 | F64: =OFFSET(Volumes!$I64,0,F$82) -> 48788.49065 | G64: =OFFSET(Volumes!$I64,0,G$82) -> 49584.54129 | H64: =OFFSET(Volumes!$I64,0,H$82) -> 50393.58058 | I64: =OFFSET(Volumes!$I64,0,I$82) -> 51215.82045 | J64: =OFFSET(Volumes!$I64,0,J$82) -> 52051.47628 | K64: =OFFSET(Volumes!$I64,0,K$82) -> 52900.76697 | L64: =OFFSET(Volumes!$I64,0,L$82) -> 53763.915
B67: Check | C67: =SUM(C9:C64)-SUM(Volumes!C9:C65) -> 0 | D67: =SUM(D9:D64)-SUM(Volumes!P9:P65) -> 0 | E67: =SUM(E9:E64)-SUM(Volumes!W9:W65) -> 0 | F67: =SUM(F9:F64)-SUM(Volumes!AD9:AD65) -> 0 | G67: =SUM(G9:G64)-SUM(Volumes!AK9:AK65) -> 0 | H67: =SUM(H9:H64)-SUM(Volumes!AR9:AR65) -> 0 | I67: =SUM(I9:I64)-SUM(Volumes!AY9:AY65) -> 0 | J67: =SUM(J9:J64)-SUM(Volumes!BF9:BF65) -> 0 | K67: =SUM(K9:K64)-SUM(Volumes!BM9:BM65) -> 0 | L67: =SUM(L9:L64)-SUM(Volumes!BT9:BT65) -> 0 | M67: =SUM(C67:L67) -> 0
B70: Name of Quoted Service | C70: Current regulatory control period | H70: Forthcoming regulatory control period
C71: Actual (nominal $ ex GST) | H71: Real $2015 (ex GST)
C72: 2011 | D72: 2012 | E72: 2013 | F72: 2014 | G72: 2015 | H72: 2016 | I72: 2017 | J72: 2018 | K72: 2019 | L72: 2020
B74: Emergency Recoverable Works | C74: =Inputs!H124 -> 312 | D74: =Inputs!I124 -> 263 | E74: =Inputs!J124 -> 243 | F74: =Inputs!K124 -> 237 | G74: =Inputs!L124 -> 237 | H74: =Inputs!M124 -> 237 | I74: =Inputs!N124 -> 237 | J74: =Inputs!O124 -> 237 | K74: =Inputs!P124 -> 237 | L74: =Inputs!Q124 -> 237
B75: After hours truck by appointment | C75: =Inputs!H125 -> 260 | D75: =Inputs!I125 -> 9 | E75: =Inputs!J125 -> 16 | F75: =Inputs!K125 -> 46.99 | G75: =Inputs!L125 -> 46.99 | H75: =Inputs!M125 -> 46.99 | I75: =Inputs!N125 -> 46.99 | J75: =Inputs!O125 -> 46.99 | K75: =Inputs!P125 -> 46.99 | L75: =Inputs!Q125 -> 46.99
B76: Supply abolishment | C76: =Inputs!H126 -> 2794 | D76: =Inputs!I126 -> 2546 | E76: =Inputs!J126 -> 1631 | F76: =Inputs!K126 -> 1200 | G76: =Inputs!L126 -> 1200 | H76: =Inputs!M126 -> 0 | I76: =Inputs!N126 -> 0 | J76: =Inputs!O126 -> 0 | K76: =Inputs!P126 -> 0 | L76: =Inputs!Q126 -> 0
B77: Audit Design & Construction Charge | C77: =Inputs!H127 -> 125 | D77: =Inputs!I127 -> 604 | E77: =Inputs!J127 -> 764 | F77: =Inputs!K127 -> 564 | G77: =Inputs!L127 -> 564 | H77: =Inputs!M127 -> 564 | I77: =Inputs!N127 -> 564 | J77: =Inputs!O127 -> 564 | K77: =Inputs!P127 -> 564 | L77: =Inputs!Q127 -> 564
B78: Specification & Design Enquiry Charge | C78: =Inputs!H128 -> 15 | D78: =Inputs!I128 -> 52 | E78: =Inputs!J128 -> 100 | F78: =Inputs!K128 -> 115 | G78: =Inputs!L128 -> 115 | H78: =Inputs!M128 -> 115 | I78: =Inputs!N128 -> 115 | J78: =Inputs!O128 -> 115 | K78: =Inputs!P128 -> 115 | L78: =Inputs!Q128 -> 115
B79: High Load Escorts | C79: =Inputs!H129 -> 7 | D79: =Inputs!I129 -> 23 | E79: =Inputs!J129 -> 28 | F79: =Inputs!K129 -> 12 | G79: =Inputs!L129 -> 12 | H79: =Inputs!M129 -> 12 | I79: =Inputs!N129 -> 12 | J79: =Inputs!O129 -> 12 | K79: =Inputs!P129 -> 12 | L79: =Inputs!Q129 -> 12
B80: Low Voltage Mains | C80: =Inputs!H130 -> 100 | D80: =Inputs!I130 -> 217 | E80: =Inputs!J130 -> 230 | F80: =Inputs!K130 -> 265 | G80: =Inputs!L130 -> 265 | H80: =Inputs!M130 -> 265 | I80: =Inputs!N130 -> 265 | J80: =Inputs!O130 -> 265 | K80: =Inputs!P130 -> 265 | L80: =Inputs!Q130 -> 265
B81: Regulated Fee | C81: =Inputs!H131 -> 0 | D81: =Inputs!I131 -> 0 | E81: =Inputs!J131 -> 0 | F81: =Inputs!K131 -> 0 | G81: =Inputs!L131 -> 0 | H81: =Inputs!M131 -> 0 | I81: =Inputs!N131 -> 0 | J81: =Inputs!O131 -> 0 | K81: =Inputs!P131 -> 0 | L81: =Inputs!Q131 -> 0
B82: Offset ref | D82: =E82-7 -> 7 | E82: 14 | F82: 21 | G82: 28 | H82: 35 | I82: 42 | J82: 49 | K82: =L82-7 -> 56 | L82: 63
M84: =SUM(C73:L81)-SUM(Inputs!G124:Q131) -> 0

Sheet Volumes
A1: =Title!A38 -> PAL ACS Model
A2: =MID(CELL("Filename",C1),FIND("]",CELL("Filename",C1))+1,255) -> Volumes
A3: Menu
C5: Actuals | AE5: Escalated
B6: Powercor Alternative Control services - Fee Based Services | C6: 2011 | J6: 2012 | Q6: 2013 | X6: 2014 | AE6: 2015 | AL6: 2016 | AS6: 2017 | AZ6: 2018 | BG6: 2019 | BN6: 2020
C8: Labour | D8: Material | E8: Contract | F8: Direct Overhead | G8: Indirect Overhead | H8: Margin | I8: Total | J8: Labour | K8: Material | L8: Contract | M8: Direct Overhead | N8: Indirect Overhead | O8: Margin | P8: Total | Q8: Labour | R8: Material | S8: Contract | T8: Direct Overhead | U8: Indirect Overhead | V8: Margin | W8: Total | X8: Labour | Y8: Material | Z8: Contract | AA8: Direct Overhead | AB8: Indirect Overhead | AC8: Margin | AD8: Total | AE8: Labour | AF8: Material | AG8: Contract | AH8: Direct Overhead | AI8: Indirect Overhead | AJ8: Margin | AK8: Total | AL8: Labour | AM8: Material | AN8: Contract | AO8: Direct Overhead | AP8: Indirect Overhead | AQ8: Margin | AR8: Total | AS8: Labour | AT8: Material | AU8: Contract | AV8: Direct Overhead | AW8: Indirect Overhead | AX8: Margin | AY8: Total | AZ8: Labour | BA8: Material | BB8: Contract | BC8: Direct Overhead | BD8: Indirect Overhead | BE8: Margin | BF8: Total | BG8: Labour | BH8: Material | BI8: Contract | BJ8: Direct Overhead | BK8: Indirect Overhead | BL8: Margin | BM8: Total | BN8: Labour | BO8: Material | BP8: Contract | BQ8: Direct Overhead | BR8: Indirect Overhead | BS8: Margin | BT8: Total
B9: Meter Investigation Test (BH) | C9: =IFERROR('2011-20 Revenue'!C9/'ACS 12.1'!C9,0) -> 280.7272621 | D9: =IFERROR('2011-20 Revenue'!D9/'ACS 12.1'!D9,0) -> 0 | E9: =IFERROR('2011-20 Revenue'!E9/'ACS 12.1'!E9,0) -> 0 | F9: =IFERROR('2011-20 Revenue'!F9/'ACS 12.1'!F9,0) -> 0 | G9: =IFERROR('2011-20 Revenue'!G9/'ACS 12.1'!G9,0) -> 0 | I9: =IFERROR('2011-20 Revenue'!I9/'ACS 12.1'!H9,0) -> 280.7272621 | J9: =IFERROR('2011-20 Revenue'!J9/'ACS 12.1'!I9,0) -> 431.8054142 | K9: =IFERROR('2011-20 Revenue'!K9/'ACS 12.1'!J9,0) -> 0 | L9: =IFERROR('2011-20 Revenue'!L9/'ACS 12.1'!K9,0) -> 0 | M9: =IFERROR('2011-20 Revenue'!M9/'ACS 12.1'!L9,0) -> 0 | N9: =IFERROR('2011-20 Revenue'!N9/'ACS 12.1'!M9,0) -> 0 | P9: =IFERROR('2011-20 Revenue'!P9/'ACS 12.1'!N9,0) -> 431.8054142 | Q9: =IFERROR('2011-20 Revenue'!Q9/'ACS 12.1'!O9,0) -> 468.2659038 | R9: =IFERROR('2011-20 Revenue'!R9/'ACS 12.1'!P9,0) -> 0 | S9: =IFERROR('2011-20 Revenue'!S9/'ACS 12.1'!Q9,0) -> 0 | T9: =IFERROR('2011-20 Revenue'!T9/'ACS 12.1'!R9,0) -> 0 | U9: =IFERROR('2011-20 Revenue'!U9/'ACS 12.1'!S9,0) -> 0 | W9: =IFERROR('2011-20 Revenue'!W9/'ACS 12.1'!T9,0) -> 468.2659038 | X9: =IFERROR('2011-20 Revenue'!X9/'ACS 12.1'!U9,0) -> 379.7018955 | Y9: =IFERROR('2011-20 Revenue'!Y9/'ACS 12.1'!V9,0) -> 0 | Z9: =IFERROR('2011-20 Revenue'!Z9/'ACS 12.1'!W9,0) -> 0 | AA9: =IFERROR('2011-20 Revenue'!AA9/'ACS 12.1'!X9,0) -> 0 | AB9: =IFERROR('2011-20 Revenue'!AB9/'ACS 12.1'!Y9,0) -> 0 | AD9: =IFERROR('2011-20 Revenue'!AD9/'ACS 12.1'!Z9,0) -> 379.7018955 | AE9: =X9*(1+Inputs!$L$137) -> 385.8972489 | AF9: =Y9*(1+Inputs!$L$137) -> 0 | AG9: =Z9*(1+Inputs!$L$137) -> 0 | AH9: =AA9*(1+Inputs!$L$137) -> 0 | AI9: =AB9*(1+Inputs!$L$137) -> 0 | AK9: =AD9*(1+Inputs!$L$137) -> 385.8972489 | AL9: =IF('ACS 12.1'!AG9<>0,($AK9*(1+Inputs!$M$137)),0) -> 392.1936878 | AM9: =IF('ACS 12.1'!AH9<>0,($AK9*(1+Inputs!$M$137)),0) -> 0 | AN9: =IF('ACS 12.1'!AI9<>0,($AK9*(1+Inputs!$M$137)),0) -> 0 | AO9: =IF('ACS 12.1'!AJ9<>0,($AK9*(1+Inputs!$M$137)),0) -> 392.1936878 | AP9: =IF('ACS 12.1'!AK9<>0,($AK9*(1+Inputs!$M$137)),0) -> 392.1936878 | AQ9: =IF('ACS 12.1'!AL9<>0,($AY9*(1+Inputs!$M$137)),0) -> 405.0964468 | AR9: =AK9*(1+Inputs!$M$137) -> 392.1936878 | AS9: =IF('ACS 12.1'!AN9<>0,($AR9*(1+Inputs!$M$137)),0) -> 398.5928617 | AT9: =IF('ACS 12.1'!AO9<>0,($AR9*(1+Inputs!$M$137)),0) -> 0 | AU9: =IF('ACS 12.1'!AP9<>0,($AR9*(1+Inputs!$M$137)),0) -> 0 | AV9: =IF('ACS 12.1'!AQ9<>0,($AR9*(1+Inputs!$M$137)),0) -> 398.5928617 | AW9: =IF('ACS 12.1'!AR9<>0,($AR9*(1+Inputs!$M$137)),0) -> 398.5928617 | AX9: =IF('ACS 12.1'!AS9<>0,($AY9*(1+Inputs!$M$137)),0) -> 405.0964468 | AY9: =AR9*(1+Inputs!$M$137) -> 398.5928617 | AZ9: =IF('ACS 12.1'!AU9<>0,($AY9*(1+Inputs!$M$137)),0) -> 405.0964468 | BA9: =IF('ACS 12.1'!AV9<>0,($AY9*(1+Inputs!$M$137)),0) -> 0 | BB9: =IF('ACS 12.1'!AW9<>0,($AY9*(1+Inputs!$M$137)),0) -> 0 | BC9: =IF('ACS 12.1'!AX9<>0,($AY9*(1+Inputs!$M$137)),0) -> 405.0964468 | BD9: =IF('ACS 12.1'!AY9<>0,($AY9*(1+Inputs!$M$137)),0) -> 405.0964468 | BE9: =IF('ACS 12.1'!AZ9<>0,($AY9*(1+Inputs!$M$137)),0) -> 405.0964468 | BF9: =AY9*(1+Inputs!$M$137) -> 405.0964468 | BG9: =IF('ACS 12.1'!BB9<>0,($BF9*(1+Inputs!$M$137)),0) -> 411.7061468 | BH9: =IF('ACS 12.1'!BC9<>0,($BF9*(1+Inputs!$M$137)),0) -> 0 | BI9: =IF('ACS 12.1'!BD9<>0,($BF9*(1+Inputs!$M$137)),0) -> 0 | BJ9: =IF('ACS 12.1'!BE9<>0,($BF9*(1+Inputs!$M$137)),0) -> 411.7061468 | BK9: =IF('ACS 12.1'!BF9<>0,($BF9*(1+Inputs!$M$137)),0) -> 411.7061468 | BL9: =IF('ACS 12.1'!BG9<>0,($BF9*(1+Inputs!$M$137)),0) -> 411.7061468 | BM9: =BF9*(1+Inputs!$M$137) -> 411.7061468 | BN9: =IF('ACS 12.1'!BI9<>0,($BM9*(1+Inputs!$M$137)),0) -> 418.4236931 | BO9: =IF('ACS 12.1'!BJ9<>0,($BM9*(1+Inputs!$M$137)),0) -> 0 | BP9: =IF('ACS 12.1'!BK9<>0,($BM9*(1+Inputs!$M$137)),0) -> 0 | BQ9: =IF('ACS 12.1'!BL9<>0,($BM9*(1+Inputs!$M$137)),0) -> 418.4236931 | BR9: =IF('ACS 12.1'!BM9<>0,($BM9*(1+Inputs!$M$137)),0) -> 418.4236931 | BS9: =IF('ACS 12.1'!BN9<>0,($BM9*(1+Inputs!$M$137)),0) -> 418.4236931 | BT9: =BM9*(1+Inputs!$M$137) -> 418.4236931
B10: Meter Investigation Test (AH) | C10: =IFERROR('2011-20 Revenue'!C10/'ACS 12.1'!C10,0) -> 60 | D10: =IFERROR('2011-20 Revenue'!D10/'ACS 12.1'!D10,0) -> 0 | E10: =IFERROR('2011-20 Revenue'!E10/'ACS 12.1'!E10,0) -> 0 | F10: =IFERROR('2011-20 Revenue'!F10/'ACS 12.1'!F10,0) -> 0 | G10: =IFERROR('2011-20 Revenue'!G10/'ACS 12.1'!G10,0) -> 0 | I10: =IFERROR('2011-20 Revenue'!I10/'ACS 12.1'!H10,0) -> 60 | J10: =IFERROR('2011-20 Revenue'!J10/'ACS 12.1'!I10,0) -> 108.9740458 | K10: =IFERROR('2011-20 Revenue'!K10/'ACS 12.1'!J10,0) -> 0 | L10: =IFERROR('2011-20 Revenue'!L10/'ACS 12.1'!K10,0) -> 0 | M10: =IFERROR('2011-20 Revenue'!M10/'ACS 12.1'!L10,0) -> 0 | N10: =IFERROR('2011-20 Revenue'!N10/'ACS 12.1'!M10,0) -> 0 | P10: =IFERROR('2011-20 Revenue'!P10/'ACS 12.1'!N10,0) -> 108.9740458 | Q10: =IFERROR('2011-20 Revenue'!Q10/'ACS 12.1'!O10,0) -> 62.55542488 | R10: =IFERROR('2011-20 Revenue'!R10/'ACS 12.1'!P10,0) -> 0 | S10: =IFERROR('2011-20 Revenue'!S10/'ACS 12.1'!Q10,0) -> 0 | T10: =IFERROR('2011-20 Revenue'!T10/'ACS 12.1'!R10,0) -> 0 | U10: =IFERROR('2011-20 Revenue'!U10/'ACS 12.1'!S10,0) -> 0 | W10: =IFERROR('2011-20 Revenue'!W10/'ACS 12.1'!T10,0) -> 62.55542488 | X10: =IFERROR('2011-20 Revenue'!X10/'ACS 12.1'!U10,0) -> 55.11465504 | Y10: =IFERROR('2011-20 Revenue'!Y10/'ACS 12.1'!V10,0) -> 0 | Z10: =IFERROR('2011-20 Revenue'!Z10/'ACS 12.1'!W10,0) -> 0 | AA10: =IFERROR('2011-20 Revenue'!AA10/'ACS 12.1'!X10,0) -> 0 | AB10: =IFERROR('2011-20 Revenue'!AB10/'ACS 12.1'!Y10,0) -> 0 | AD10: =IFERROR('2011-20 Revenue'!AD10/'ACS 12.1'!Z10,0) -> 55.11465504 | AE10: =X10*(1+Inputs!$L$137) -> 56.01392566 | AF10: =Y10*(1+Inputs!$L$137) -> 0 | AG10: =Z10*(1+Inputs!$L$137) -> 0 | AH10: =AA10*(1+Inputs!$L$137) -> 0 | AI10: =AB10*(1+Inputs!$L$137) -> 0 | AK10: =AD10*(1+Inputs!$L$137) -> 56.01392566 | AL10: =IF('ACS 12.1'!AG10<>0,($AK10*(1+Inputs!$M$137)),0) -> 56.92786911 | AM10: =IF('ACS 12.1'!AH10<>0,($AK10*(1+Inputs!$M$137)),0) -> 0 | AN10: =IF('ACS 12.1'!AI10<>0,($AK10*(1+Inputs!$M$137)),0) -> 0 | AO10: =IF('ACS 12.1'!AJ10<>0,($AK10*(1+Inputs!$M$137)),0) -> 56.92786911 | AP10: =IF('ACS 12.1'!AK10<>0,($AK10*(1+Inputs!$M$137)),0) -> 56.92786911 | AQ10: =IF('ACS 12.1'!AL10<>0,($AY10*(1+Inputs!$M$137)),0) -> 58.80073602 | AR10: =AK10*(1+Inputs!$M$137) -> 56.92786911 | AS10: =IF('ACS 12.1'!AN10<>0,($AR10*(1+Inputs!$M$137)),0) -> 57.85672479 | AT10: =IF('ACS 12.1'!AO10<>0,($AR10*(1+Inputs!$M$137)),0) -> 0 | AU10: =IF('ACS 12.1'!AP10<>0,($AR10*(1+Inputs!$M$137)),0) -> 0 | AV10: =IF('ACS 12.1'!AQ10<>0,($AR10*(1+Inputs!$M$137)),0) -> 57.85672479 | AW10: =IF('ACS 12.1'!AR10<>0,($AR10*(1+Inputs!$M$137)),0) -> 57.85672479 | AX10: =IF('ACS 12.1'!AS10<>0,($AY10*(1+Inputs!$M$137)),0) -> 58.80073602 | AY10: =AR10*(1+Inputs!$M$137) -> 57.85672479 | AZ10: =IF('ACS 12.1'!AU10<>0,($AY10*(1+Inputs!$M$137)),0) -> 58.80073602 | BA10: =IF('ACS 12.1'!AV10<>0,($AY10*(1+Inputs!$M$137)),0) -> 0 | BB10: =IF('ACS 12.1'!AW10<>0,($AY10*(1+Inputs!$M$137)),0) -> 0 | BC10: =IF('ACS 12.1'!AX10<>0,($AY10*(1+Inputs!$M$137)),0) -> 58.80073602 | BD10: =IF('ACS 12.1'!AY10<>0,($AY10*(1+Inputs!$M$137)),0) -> 58.80073602 | BE10: =IF('ACS 12.1'!AZ10<>0,($AY10*(1+Inputs!$M$137)),0) -> 58.80073602 | BF10: =AY10*(1+Inputs!$M$137) -> 58.80073602 | BG10: =IF('ACS 12.1'!BB10<>0,($BF10*(1+Inputs!$M$137)),0) -> 59.76015007 | BH10: =IF('ACS 12.1'!BC10<>0,($BF10*(1+Inputs!$M$137)),0) -> 0 | BI10: =IF('ACS 12.1'!BD10<>0,($BF10*(1+Inputs!$M$137)),0) -> 0 | BJ10: =IF('ACS 12.1'!BE10<>0,($BF10*(1+Inputs!$M$137)),0) -> 59.76015007 | BK10: =IF('ACS 12.1'!BF10<>0,($BF10*(1+Inputs!$M$137)),0) -> 59.76015007 | BL10: =IF('ACS 12.1'!BG10<>0,($BF10*(1+Inputs!$M$137)),0) -> 59.76015007 | BM10: =BF10*(1+Inputs!$M$137) -> 59.76015007 | BN10: =IF('ACS 12.1'!BI10<>0,($BM10*(1+Inputs!$M$137)),0) -> 60.73521827 | BO10: =IF('ACS 12.1'!BJ10<>0,($BM10*(1+Inputs!$M$137)),0) -> 0 | BP10: =IF('ACS 12.1'!BK10<>0,($BM10*(1+Inputs!$M$137)),0) -> 0 | BQ10: =IF('ACS 12.1'!BL10<>0,($BM10*(1+Inputs!$M$137)),0) -> 60.73521827 | BR10: =IF('ACS 12.1'!BM10<>0,($BM10*(1+Inputs!$M$137)),0) -> 60.73521827 | BS10: =IF('ACS 12.1'!BN10<>0,($BM10*(1+Inputs!$M$137)),0) -> 60.73521827 | BT10: =BM10*(1+Inputs!$M$137) -> 60.73521827
B11: Meter Accuracy Test - single phase (BH) | C11: =IFERROR('2011-20 Revenue'!C11/'ACS 12.1'!C11,0) -> 400.3517884 | D11: =IFERROR('2011-20 Revenue'!D11/'ACS 12.1'!D11,0) -> 0 | E11: =IFERROR('2011-20 Revenue'!E11/'ACS 12.1'!E11,0) -> 0 | F11: =IFERROR('2011-20 Revenue'!F11/'ACS 12.1'!F11,0) -> 0 | G11: =IFERROR('2011-20 Revenue'!G11/'ACS 12.1'!G11,0) -> 0 | I11: =IFERROR('2011-20 Revenue'!I11/'ACS 12.1'!H11,0) -> 400.3517884 | J11: =IFERROR('2011-20 Revenue'!J11/'ACS 12.1'!I11,0) -> 418.4421214 | K11: =IFERROR('2011-20 Revenue'!K11/'ACS 12.1'!J11,0) -> 0 | L11: =IFERROR('2011-20 Revenue'!L11/'ACS 12.1'!K11,0) -> 0 | M11: =IFERROR('2011-20 Revenue'!M11/'ACS 12.1'!L11,0) -> 0 | N11: =IFERROR('2011-20 Revenue'!N11/'ACS 12.1'!M11,0) -> 0 | P11: =IFERROR('2011-20 Revenue'!P11/'ACS 12.1'!N11,0) -> 418.4421214 | Q11: =IFERROR('2011-20 Revenue'!Q11/'ACS 12.1'!O11,0) -> 310.7035105 | R11: =IFERROR('2011-20 Revenue'!R11/'ACS 12.1'!P11,0) -> 0 | S11: =IFERROR('2011-20 Revenue'!S11/'ACS 12.1'!Q11,0) -> 0 | T11: =IFERROR('2011-20 Revenue'!T11/'ACS 12.1'!R11,0) -> 0 | U11: =IFERROR('2011-20 Revenue'!U11/'ACS 12.1'!S11,0) -> 0 | W11: =IFERROR('2011-20 Revenue'!W11/'ACS 12.1'!T11,0) -> 310.7035105 | X11: =IFERROR('2011-20 Revenue'!X11/'ACS 12.1'!U11,0) -> 213.8489321 | Y11: =IFERROR('2011-20 Revenue'!Y11/'ACS 12.1'!V11,0) -> 0 | Z11: =IFERROR('2011-20 Revenue'!Z11/'ACS 12.1'!W11,0) -> 0 | AA11: =IFERROR('2011-20 Revenue'!AA11/'ACS 12.1'!X11,0) -> 0 | AB11: =IFERROR('2011-20 Revenue'!AB11/'ACS 12.1'!Y11,0) -> 0 | AD11: =IFERROR('2011-20 Revenue'!AD11/'ACS 12.1'!Z11,0) -> 213.8489321 | AE11: =X11*(1+Inputs!$L$137) -> 217.3381686 | AF11: =Y11*(1+Inputs!$L$137) -> 0 | AG11: =Z11*(1+Inputs!$L$137) -> 0 | AH11: =AA11*(1+Inputs!$L$137) -> 0 | AI11: =AB11*(1+Inputs!$L$137) -> 0 | AK11: =AD11*(1+Inputs!$L$137) -> 217.3381686 | AL11: =IF('ACS 12.1'!AG11<>0,($AK11*(1+Inputs!$M$137)),0) -> 220.8843367 | AM11: =IF('ACS 12.1'!AH11<>0,($AK11*(1+Inputs!$M$137)),0) -> 0 | AN11: =IF('ACS 12.1'!AI11<>0,($AK11*(1+Inputs!$M$137)),0) -> 0 | AO11: =IF('ACS 12.1'!AJ11<>0,($AK11*(1+Inputs!$M$137)),0) -> 220.8843367 | AP11: =IF('ACS 12.1'!AK11<>0,($AK11*(1+Inputs!$M$137)),0) -> 220.8843367 | AQ11: =IF('ACS 12.1'!AL11<>0,($AY11*(1+Inputs!$M$137)),0) -> 228.1511986 | AR11: =AK11*(1+Inputs!$M$137) -> 220.8843367 | AS11: =IF('ACS 12.1'!AN11<>0,($AR11*(1+Inputs!$M$137)),0) -> 224.4883653 | AT11: =IF('ACS 12.1'!AO11<>0,($AR11*(1+Inputs!$M$137)),0) -> 0 | AU11: =IF('ACS 12.1'!AP11<>0,($AR11*(1+Inputs!$M$137)),0) -> 0 | AV11: =IF('ACS 12.1'!AQ11<>0,($AR11*(1+Inputs!$M$137)),0) -> 224.4883653 | AW11: =IF('ACS 12.1'!AR11<>0,($AR11*(1+Inputs!$M$137)),0) -> 224.4883653 | AX11: =IF('ACS 12.1'!AS11<>0,($AY11*(1+Inputs!$M$137)),0) -> 228.1511986 | AY11: =AR11*(1+Inputs!$M$137) -> 224.4883653 | AZ11: =IF('ACS 12.1'!AU11<>0,($AY11*(1+Inputs!$M$137)),0) -> 228.1511986 | BA11: =IF('ACS 12.1'!AV11<>0,($AY11*(1+Inputs!$M$137)),0) -> 0 | BB11: =IF('ACS 12.1'!AW11<>0,($AY11*(1+Inputs!$M$137)),0) -> 0 | BC11: =IF('ACS 12.1'!AX11<>0,($AY11*(1+Inputs!$M$137)),0) -> 228.1511986 | BD11: =IF('ACS 12.1'!AY11<>0,($AY11*(1+Inputs!$M$137)),0) -> 228.1511986 | BE11: =IF('ACS 12.1'!AZ11<>0,($AY11*(1+Inputs!$M$137)),0) -> 228.1511986 | BF11: =AY11*(1+Inputs!$M$137) -> 228.1511986 | BG11: =IF('ACS 12.1'!BB11<>0,($BF11*(1+Inputs!$M$137)),0) -> 231.873796 | BH11: =IF('ACS 12.1'!BC11<>0,($BF11*(1+Inputs!$M$137)),0) -> 0 | BI11: =IF('ACS 12.1'!BD11<>0,($BF11*(1+Inputs!$M$137)),0) -> 0 | BJ11: =IF('ACS 12.1'!BE11<>0,($BF11*(1+Inputs!$M$137)),0) -> 231.873796 | BK11: =IF('ACS 12.1'!BF11<>0,($BF11*(1+Inputs!$M$137)),0) -> 231.873796 | BL11: =IF('ACS 12.1'!BG11<>0,($BF11*(1+Inputs!$M$137)),0) -> 231.873796 | BM11: =BF11*(1+Inputs!$M$137) -> 231.873796 | BN11: =IF('ACS 12.1'!BI11<>0,($BM11*(1+Inputs!$M$137)),0) -> 235.6571326 | BO11: =IF('ACS 12.1'!BJ11<>0,($BM11*(1+Inputs!$M$137)),0) -> 0 | BP11: =IF('ACS 12.1'!BK11<>0,($BM11*(1+Inputs!$M$137)),0) -> 0 | BQ11: =IF('ACS 12.1'!BL11<>0,($BM11*(1+Inputs!$M$137)),0) -> 235.6571326 | BR11: =IF('ACS 12.1'!BM11<>0,($BM11*(1+Inputs!$M$137)),0) -> 235.6571326 | BS11: =IF('ACS 12.1'!BN11<>0,($BM11*(1+Inputs!$M$137)),0) -> 235.6571326 | BT11: =BM11*(1+Inputs!$M$137) -> 235.6571326
B12: Meter Accuracy Test - single phase (AH) | C12: =IFERROR('2011-20 Revenue'!C12/'ACS 12.1'!C12,0) -> 1 | D12: =IFERROR('2011-20 Revenue'!D12/'ACS 12.1'!D12,0) -> 0 | E12: =IFERROR('2011-20 Revenue'!E12/'ACS 12.1'!E12,0) -> 0 | F12: =IFERROR('2011-20 Revenue'!F12/'ACS 12.1'!F12,0) -> 0 | G12: =IFERROR('2011-20 Revenue'!G12/'ACS 12.1'!G12,0) -> 0 | I12: =IFERROR('2011-20 Revenue'!I12/'ACS 12.1'!H12,0) -> 1 | J12: =IFERROR('2011-20 Revenue'!J12/'ACS 12.1'!I12,0) -> 6 | K12: =IFERROR('2011-20 Revenue'!K12/'ACS 12.1'!J12,0) -> 0 | L12: =IFERROR('2011-20 Revenue'!L12/'ACS 12.1'!K12,0) -> 0 | M12: =IFERROR('2011-20 Revenue'!M12/'ACS 12.1'!L12,0) -> 0 | N12: =IFERROR('2011-20 Revenue'!N12/'ACS 12.1'!M12,0) -> 0 | P12: =IFERROR('2011-20 Revenue'!P12/'ACS 12.1'!N12,0) -> 6 | Q12: =IFERROR('2011-20 Revenue'!Q12/'ACS 12.1'!O12,0) -> 2 | R12: =IFERROR('2011-20 Revenue'!R12/'ACS 12.1'!P12,0) -> 0 | S12: =IFERROR('2011-20 Revenue'!S12/'ACS 12.1'!Q12,0) -> 0 | T12: =IFERROR('2011-20 Revenue'!T12/'ACS 12.1'!R12,0) -> 0 | U12: =IFERROR('2011-20 Revenue'!U12/'ACS 12.1'!S12,0) -> 0 | W12: =IFERROR('2011-20 Revenue'!W12/'ACS 12.1'!T12,0) -> 2 | X12: =IFERROR('2011-20 Revenue'!X12/'ACS 12.1'!U12,0) -> 0 | Y12: =IFERROR('2011-20 Revenue'!Y12/'ACS 12.1'!V12,0) -> 0 | Z12: =IFERROR('2011-20 Revenue'!Z12/'ACS 12.1'!W12,0) -> 0 | AA12: =IFERROR('2011-20 Revenue'!AA12/'ACS 12.1'!X12,0) -> 0 | AB12: =IFERROR('2011-20 Revenue'!AB12/'ACS 12.1'!Y12,0) -> 0 | AD12: =IFERROR('2011-20 Revenue'!AD12/'ACS 12.1'!Z12,0) -> 0 | AE12: =X12*(1+Inputs!$L$137) -> 0 | AF12: =Y12*(1+Inputs!$L$137) -> 0 | AG12: =Z12*(1+Inputs!$L$137) -> 0 | AH12: =AA12*(1+Inputs!$L$137) -> 0 | AI12: =AB12*(1+Inputs!$L$137) -> 0 | AK12: =AD12*(1+Inputs!$L$137) -> 0 | AL12: =IF('ACS 12.1'!AG12<>0,($AK12*(1+Inputs!$M$137)),0) -> 0 | AM12: =IF('ACS 12.1'!AH12<>0,($AK12*(1+Inputs!$M$137)),0) -> 0 | AN12: =IF('ACS 12.1'!AI12<>0,($AK12*(1+Inputs!$M$137)),0) -> 0 | AO12: =IF('ACS 12.1'!AJ12<>0,($AK12*(1+Inputs!$M$137)),0) -> 0 | AP12: =IF('ACS 12.1'!AK12<>0,($AK12*(1+Inputs!$M$137)),0) -> 0 | AQ12: =IF('ACS 12.1'!AL12<>0,($AY12*(1+Inputs!$M$137)),0) -> 0 | AR12: =AK12*(1+Inputs!$M$137) -> 0 | AS12: =IF('ACS 12.1'!AN12<>0,($AR12*(1+Inputs!$M$137)),0) -> 0 | AT12: =IF('ACS 12.1'!AO12<>0,($AR12*(1+Inputs!$M$137)),0) -> 0 | AU12: =IF('ACS 12.1'!AP12<>0,($AR12*(1+Inputs!$M$137)),0) -> 0 | AV12: =IF('ACS 12.1'!AQ12<>0,($AR12*(1+Inputs!$M$137)),0) -> 0 | AW12: =IF('ACS 12.1'!AR12<>0,($AR12*(1+Inputs!$M$137)),0) -> 0 | AX12: =IF('ACS 12.1'!AS12<>0,($AY12*(1+Inputs!$M$137)),0) -> 0 | AY12: =AR12*(1+Inputs!$M$137) -> 0 | AZ12: =IF('ACS 12.1'!AU12<>0,($AY12*(1+Inputs!$M$137)),0) -> 0 | BA12: =IF('ACS 12.1'!AV12<>0,($AY12*(1+Inputs!$M$137)),0) -> 0 | BB12: =IF('ACS 12.1'!AW12<>0,($AY12*(1+Inputs!$M$137)),0) -> 0 | BC12: =IF('ACS 12.1'!AX12<>0,($AY12*(1+Inputs!$M$137)),0) -> 0 | BD12: =IF('ACS 12.1'!AY12<>0,($AY12*(1+Inputs!$M$137)),0) -> 0 | BE12: =IF('ACS 12.1'!AZ12<>0,($AY12*(1+Inputs!$M$137)),0) -> 0 | BF12: =AY12*(1+Inputs!$M$137) -> 0 | BG12: =IF('ACS 12.1'!BB12<>0,($BF12*(1+Inputs!$M$137)),0) -> 0 | BH12: =IF('ACS 12.1'!BC12<>0,($BF12*(1+Inputs!$M$137)),0) -> 0 | BI12: =IF('ACS 12.1'!BD12<>0,($BF12*(1+Inputs!$M$137)),0) -> 0 | BJ12: =IF('ACS 12.1'!BE12<>0,($BF12*(1+Inputs!$M$137)),0) -> 0 | BK12: =IF('ACS 12.1'!BF12<>0,($BF12*(1+Inputs!$M$137)),0) -> 0 | BL12: =IF('ACS 12.1'!BG12<>0,($BF12*(1+Inputs!$M$137)),0) -> 0 | BM12: =BF12*(1+Inputs!$M$137) -> 0 | BN12: =IF('ACS 12.1'!BI12<>0,($BM12*(1+Inputs!$M$137)),0) -> 0 | BO12: =IF('ACS 12.1'!BJ12<>0,($BM12*(1+Inputs!$M$137)),0) -> 0 | BP12: =IF('ACS 12.1'!BK12<>0,($BM12*(1+Inputs!$M$137)),0) -> 0 | BQ12: =IF('ACS 12.1'!BL12<>0,($BM12*(1+Inputs!$M$137)),0) -> 0 | BR12: =IF('ACS 12.1'!BM12<>0,($BM12*(1+Inputs!$M$137)),0) -> 0 | BS12: =IF('ACS 12.1'!BN12<>0,($BM12*(1+Inputs!$M$137)),0) -> 0 | BT12: =BM12*(1+Inputs!$M$137) -> 0
B13: Meter Accuracy Test - Single phase additional meter (BH) | C13: =IFERROR('2011-20 Revenue'!C13/'ACS 12.1'!C13,0) -> 66.80905586 | D13: =IFERROR('2011-20 Revenue'!D13/'ACS 12.1'!D13,0) -> 0 | E13: =IFERROR('2011-20 Revenue'!E13/'ACS 12.1'!E13,0) -> 0 | F13: =IFERROR('2011-20 Revenue'!F13/'ACS 12.1'!F13,0) -> 0 | G13: =IFERROR('2011-20 Revenue'!G13/'ACS 12.1'!G13,0) -> 0 | I13: =IFERROR('2011-20 Revenue'!I13/'ACS 12.1'!H13,0) -> 66.80905586 | J13: =IFERROR('2011-20 Revenue'!J13/'ACS 12.1'!I13,0) -> 48.77098961 | K13: =IFERROR('2011-20 Revenue'!K13/'ACS 12.1'!J13,0) -> 0 | L13: =IFERROR('2011-20 Revenue'!L13/'ACS 12.1'!K13,0) -> 0 | M13: =IFERROR('2011-20 Revenue'!M13/'ACS 12.1'!L13,0) -> 0 | N13: =IFERROR('2011-20 Revenue'!N13/'ACS 12.1'!M13,0) -> 0 | P13: =IFERROR('2011-20 Revenue'!P13/'ACS 12.1'!N13,0) -> 48.77098961 | Q13: =IFERROR('2011-20 Revenue'!Q13/'ACS 12.1'!O13,0) -> 31.9629784 | R13: =IFERROR('2011-20 Revenue'!R13/'ACS 12.1'!P13,0) -> 0 | S13: =IFERROR('2011-20 Revenue'!S13/'ACS 12.1'!Q13,0) -> 0 | T13: =IFERROR('2011-20 Revenue'!T13/'ACS 12.1'!R13,0) -> 0 | U13: =IFERROR('2011-20 Revenue'!U13/'ACS 12.1'!S13,0) -> 0 | W13: =IFERROR('2011-20 Revenue'!W13/'ACS 12.1'!T13,0) -> 31.9629784 | X13: =IFERROR('2011-20 Revenue'!X13/'ACS 12.1'!U13,0) -> 19.90688742 | Y13: =IFERROR('2011-20 Revenue'!Y13/'ACS 12.1'!V13,0) -> 0 | Z13: =IFERROR('2011-20 Revenue'!Z13/'ACS 12.1'!W13,0) -> 0 | AA13: =IFERROR('2011-20 Revenue'!AA13/'ACS 12.1'!X13,0) -> 0 | AB13: =IFERROR('2011-20 Revenue'!AB13/'ACS 12.1'!Y13,0) -> 0 | AD13: =IFERROR('2011-20 Revenue'!AD13/'ACS 12.1'!Z13,0) -> 19.90688742 | AE13: =X13*(1+Inputs!$L$137) -> 20.23169538 | AF13: =Y13*(1+Inputs!$L$137) -> 0 | AG13: =Z13*(1+Inputs!$L$137) -> 0 | AH13: =AA13*(1+Inputs!$L$137) -> 0 | AI13: =AB13*(1+Inputs!$L$137) -> 0 | AK13: =AD13*(1+Inputs!$L$137) -> 20.23169538 | AL13: =IF('ACS 12.1'!AG13<>0,($AK13*(1+Inputs!$M$137)),0) -> 20.56180304 | AM13: =IF('ACS 12.1'!AH13<>0,($AK13*(1+Inputs!$M$137)),0) -> 0 | AN13: =IF('ACS 12.1'!AI13<>0,($AK13*(1+Inputs!$M$137)),0) -> 0 | AO13: =IF('ACS 12.1'!AJ13<>0,($AK13*(1+Inputs!$M$137)),0) -> 20.56180304 | AP13: =IF('ACS 12.1'!AK13<>0,($AK13*(1+Inputs!$M$137)),0) -> 20.56180304 | AQ13: =IF('ACS 12.1'!AL13<>0,($AY13*(1+Inputs!$M$137)),0) -> 21.23826469 | AR13: =AK13*(1+Inputs!$M$137) -> 20.56180304 | AS13: =IF('ACS 12.1'!AN13<>0,($AR13*(1+Inputs!$M$137)),0) -> 20.89729684 | AT13: =IF('ACS 12.1'!AO13<>0,($AR13*(1+Inputs!$M$137)),0) -> 0 | AU13: =IF('ACS 12.1'!AP13<>0,($AR13*(1+Inputs!$M$137)),0) -> 0 | AV13: =IF('ACS 12.1'!AQ13<>0,($AR13*(1+Inputs!$M$137)),0) -> 20.89729684 | AW13: =IF('ACS 12.1'!AR13<>0,($AR13*(1+Inputs!$M$137)),0) -> 20.89729684 | AX13: =IF('ACS 12.1'!AS13<>0,($AY13*(1+Inputs!$M$137)),0) -> 21.23826469 | AY13: =AR13*(1+Inputs!$M$137) -> 20.89729684 | AZ13: =IF('ACS 12.1'!AU13<>0,($AY13*(1+Inputs!$M$137)),0) -> 21.23826469 | BA13: =IF('ACS 12.1'!AV13<>0,($AY13*(1+Inputs!$M$137)),0) -> 0 | BB13: =IF('ACS 12.1'!AW13<>0,($AY13*(1+Inputs!$M$137)),0) -> 0 | BC13: =IF('ACS 12.1'!AX13<>0,($AY13*(1+Inputs!$M$137)),0) -> 21.23826469 | BD13: =IF('ACS 12.1'!AY13<>0,($AY13*(1+Inputs!$M$137)),0) -> 21.23826469 | BE13: =IF('ACS 12.1'!AZ13<>0,($AY13*(1+Inputs!$M$137)),0) -> 21.23826469 | BF13: =AY13*(1+Inputs!$M$137) -> 21.23826469 | BG13: =IF('ACS 12.1'!BB13<>0,($BF13*(1+Inputs!$M$137)),0) -> 21.58479589 | BH13: =IF('ACS 12.1'!BC13<>0,($BF13*(1+Inputs!$M$137)),0) -> 0 | BI13: =IF('ACS 12.1'!BD13<>0,($BF13*(1+Inputs!$M$137)),0) -> 0 | BJ13: =IF('ACS 12.1'!BE13<>0,($BF13*(1+Inputs!$M$137)),0) -> 21.58479589 | BK13: =IF('ACS 12.1'!BF13<>0,($BF13*(1+Inputs!$M$137)),0) -> 21.58479589 | BL13: =IF('ACS 12.1'!BG13<>0,($BF13*(1+Inputs!$M$137)),0) -> 21.58479589 | BM13: =BF13*(1+Inputs!$M$137) -> 21.58479589 | BN13: =IF('ACS 12.1'!BI13<>0,($BM13*(1+Inputs!$M$137)),0) -> 21.93698122 | BO13: =IF('ACS 12.1'!BJ13<>0,($BM13*(1+Inputs!$M$137)),0) -> 0 | BP13: =IF('ACS 12.1'!BK13<>0,($BM13*(1+Inputs!$M$137)),0) -> 0 | BQ13: =IF('ACS 12.1'!BL13<>0,($BM13*(1+Inputs!$M$137)),0) -> 21.93698122 | BR13: =IF('ACS 12.1'!BM13<>0,($BM13*(1+Inputs!$M$137)),0) -> 21.93698122 | BS13: =IF('ACS 12.1'!BN13<>0,($BM13*(1+Inputs!$M$137)),0) -> 21.93698122 | BT13: =BM13*(1+Inputs!$M$137) -> 21.93698122
B14: Meter Accuracy Test - multi phase (BH) | C14: =IFERROR('2011-20 Revenue'!C14/'ACS 12.1'!C14,0) -> 93.42520786 | D14: =IFERROR('2011-20 Revenue'!D14/'ACS 12.1'!D14,0) -> 0 | E14: =IFERROR('2011-20 Revenue'!E14/'ACS 12.1'!E14,0) -> 0 | F14: =IFERROR('2011-20 Revenue'!F14/'ACS 12.1'!F14,0) -> 0 | G14: =IFERROR('2011-20 Revenue'!G14/'ACS 12.1'!G14,0) -> 0 | I14: =IFERROR('2011-20 Revenue'!I14/'ACS 12.1'!H14,0) -> 93.42520786 | J14: =IFERROR('2011-20 Revenue'!J14/'ACS 12.1'!I14,0) -> 125.5417127 | K14: =IFERROR('2011-20 Revenue'!K14/'ACS 12.1'!J14,0) -> 0 | L14: =IFERROR('2011-20 Revenue'!L14/'ACS 12.1'!K14,0) -> 0 | M14: =IFERROR('2011-20 Revenue'!M14/'ACS 12.1'!L14,0) -> 0 | N14: =IFERROR('2011-20 Revenue'!N14/'ACS 12.1'!M14,0) -> 0 | P14: =IFERROR('2011-20 Revenue'!P14/'ACS 12.1'!N14,0) -> 125.5417127 | Q14: =IFERROR('2011-20 Revenue'!Q14/'ACS 12.1'!O14,0) -> 100.8888003 | R14: =IFERROR('2011-20 Revenue'!R14/'ACS 12.1'!P14,0) -> 0 | S14: =IFERROR('2011-20 Revenue'!S14/'ACS 12.1'!Q14,0) -> 0 | T14: =IFERROR('2011-20 Revenue'!T14/'ACS 12.1'!R14,0) -> 0 | U14: =IFERROR('2011-20 Revenue'!U14/'ACS 12.1'!S14,0) -> 0 | W14: =IFERROR('2011-20 Revenue'!W14/'ACS 12.1'!T14,0) -> 100.8888003 | X14: =IFERROR('2011-20 Revenue'!X14/'ACS 12.1'!U14,0) -> 77.26093014 | Y14: =IFERROR('2011-20 Revenue'!Y14/'ACS 12.1'!V14,0) -> 0 | Z14: =IFERROR('2011-20 Revenue'!Z14/'ACS 12.1'!W14,0) -> 0 | AA14: =IFERROR('2011-20 Revenue'!AA14/'ACS 12.1'!X14,0) -> 0 | AB14: =IFERROR('2011-20 Revenue'!AB14/'ACS 12.1'!Y14,0) -> 0 | AD14: =IFERROR('2011-20 Revenue'!AD14/'ACS 12.1'!Z14,0) -> 77.26093014 | AE14: =X14*(1+Inputs!$L$137) -> 78.52154739 | AF14: =Y14*(1+Inputs!$L$137) -> 0 | AG14: =Z14*(1+Inputs!$L$137) -> 0 | AH14: =AA14*(1+Inputs!$L$137) -> 0 | AI14: =AB14*(1+Inputs!$L$137) -> 0 | AK14: =AD14*(1+Inputs!$L$137) -> 78.52154739 | AL14: =IF('ACS 12.1'!AG14<>0,($AK14*(1+Inputs!$M$137)),0) -> 79.80273333 | AM14: =IF('ACS 12.1'!AH14<>0,($AK14*(1+Inputs!$M$137)),0) -> 0 | AN14: =IF('ACS 12.1'!AI14<>0,($AK14*(1+Inputs!$M$137)),0) -> 0 | AO14: =IF('ACS 12.1'!AJ14<>0,($AK14*(1+Inputs!$M$137)),0) -> 79.80273333 | AP14: =IF('ACS 12.1'!AK14<>0,($AK14*(1+Inputs!$M$137)),0) -> 79.80273333 | AQ14: =IF('ACS 12.1'!AL14<>0,($AY14*(1+Inputs!$M$137)),0) -> 82.42815916 | AR14: =AK14*(1+Inputs!$M$137) -> 79.80273333 | AS14: =IF('ACS 12.1'!AN14<>0,($AR14*(1+Inputs!$M$137)),0) -> 81.10482356 | AT14: =IF('ACS 12.1'!AO14<>0,($AR14*(1+Inputs!$M$137)),0) -> 0 | AU14: =IF('ACS 12.1'!AP14<>0,($AR14*(1+Inputs!$M$137)),0) -> 0 | AV14: =IF('ACS 12.1'!AQ14<>0,($AR14*(1+Inputs!$M$137)),0) -> 81.10482356 | AW14: =IF('ACS 12.1'!AR14<>0,($AR14*(1+Inputs!$M$137)),0) -> 81.10482356 | AX14: =IF('ACS 12.1'!AS14<>0,($AY14*(1+Inputs!$M$137)),0) -> 82.42815916 | AY14: =AR14*(1+Inputs!$M$137) -> 81.10482356 | AZ14: =IF('ACS 12.1'!AU14<>0,($AY14*(1+Inputs!$M$137)),0) -> 82.42815916 | BA14: =IF('ACS 12.1'!AV14<>0,($AY14*(1+Inputs!$M$137)),0) -> 0 | BB14: =IF('ACS 12.1'!AW14<>0,($AY14*(1+Inputs!$M$137)),0) -> 0 | BC14: =IF('ACS 12.1'!AX14<>0,($AY14*(1+Inputs!$M$137)),0) -> 82.42815916 | BD14: =IF('ACS 12.1'!AY14<>0,($AY14*(1+Inputs!$M$137)),0) -> 82.42815916 | BE14: =IF('ACS 12.1'!AZ14<>0,($AY14*(1+Inputs!$M$137)),0) -> 82.42815916 | BF14: =AY14*(1+Inputs!$M$137) -> 82.42815916 | BG14: =IF('ACS 12.1'!BB14<>0,($BF14*(1+Inputs!$M$137)),0) -> 83.77308679 | BH14: =IF('ACS 12.1'!BC14<>0,($BF14*(1+Inputs!$M$137)),0) -> 0 | BI14: =IF('ACS 12.1'!BD14<>0,($BF14*(1+Inputs!$M$137)),0) -> 0 | BJ14: =IF('ACS 12.1'!BE14<>0,($BF14*(1+Inputs!$M$137)),0) -> 83.77308679 | BK14: =IF('ACS 12.1'!BF14<>0,($BF14*(1+Inputs!$M$137)),0) -> 83.77308679 | BL14: =IF('ACS 12.1'!BG14<>0,($BF14*(1+Inputs!$M$137)),0) -> 83.77308679 | BM14: =BF14*(1+Inputs!$M$137) -> 83.77308679 | BN14: =IF('ACS 12.1'!BI14<>0,($BM14*(1+Inputs!$M$137)),0) -> 85.13995874 | BO14: =IF('ACS 12.1'!BJ14<>0,($BM14*(1+Inputs!$M$137)),0) -> 0 | BP14: =IF('ACS 12.1'!BK14<>0,($BM14*(1+Inputs!$M$137)),0) -> 0 | BQ14: =IF('ACS 12.1'!BL14<>0,($BM14*(1+Inputs!$M$137)),0) -> 85.13995874 | BR14: =IF('ACS 12.1'!BM14<>0,($BM14*(1+Inputs!$M$137)),0) -> 85.13995874 | BS14: =IF('ACS 12.1'!BN14<>0,($BM14*(1+Inputs!$M$137)),0) -> 85.13995874 | BT14: =BM14*(1+Inputs!$M$137) -> 85.13995874
